Workbook

Sheet Overview
A1: training set 2; n=111 | B1: 1 tool, no filter (20, 50, 0.01)
B2: Mutations (TP) | C2: Polymorphisms (TP) | D2: Mutations (FN) | E2: Polymorphisms (FN) | F2: No Mutations (FP_M) | G2: No Mutations (FP_P) | H2: No Mutations (TN2) | I2: No Mutations (TN1) | J2: Variants | K2: Artifacts | L2: sens | M2: PPV
A3: GATK | B3: 154 | C3: 362 | D3: 0 | E3: 0 | F3: 12 | G3: 0 | H3: 141 | I3: 57 | J3: =SUM(B3:E3) -> 516 | K3: =SUM(F3:I3) -> 210 | L3: =J3/631 -> 0.8177496038 | M3: =J3/(J3+K3) -> 0.7107438017
A4: Platypus | B4: 182 | C4: 401 | D4: 2 | E4: 0 | F4: 18 | G4: 0 | H4: 684 | I4: 92 | J4: =SUM(B4:E4) -> 585 | K4: =SUM(F4:I4) -> 794 | L4: =J4/631 -> 0.9270998415 | M4: =J4/(J4+K4) -> 0.4242204496
A5: VarScan | B5: 77 | C5: 217 | D5: 0 | E5: 0 | F5: 5 | G5: 0 | H5: 98 | I5: 5 | J5: =SUM(B5:E5) -> 294 | K5: =SUM(F5:I5) -> 108 | L5: =J5/631 -> 0.4659270998 | M5: =J5/(J5+K5) -> 0.7313432836
A6: LoFreq | B6: 174 | C6: 314 | D6: 2 | E6: 0 | F6: 23 | G6: 1 | H6: 1624 | I6: 0 | J6: =SUM(B6:E6) -> 490 | K6: =SUM(F6:I6) -> 1648 | L6: =J6/631 -> 0.7765451664 | M6: =J6/(J6+K6) -> 0.2291861553
A7: FreeBayes | B7: 215 | C7: 401 | D7: 11 | E7: 0 | F7: 37 | G7: 1 | H7: 8075 | I7: 32046 | J7: =SUM(B7:E7) -> 627 | K7: =SUM(F7:I7) -> 40159 | L7: =J7/631 -> 0.9936608558 | M7: =J7/(J7+K7) -> 0.01537292208
A8: SNVer | B8: 124 | C8: 214 | D8: 6 | E8: 0 | F8: 20 | G8: 0 | H8: 3373 | I8: 983 | J8: =SUM(B8:E8) -> 344 | K8: =SUM(F8:I8) -> 4376 | L8: =J8/631 -> 0.5451664025 | M8: =J8/(J8+K8) -> 0.07288135593
A9: SAMtools | B9: 67 | C9: 335 | D9: 0 | E9: 0 | F9: 5 | G9: 0 | H9: 102 | I9: 12 | J9: =SUM(B9:E9) -> 402 | K9: =SUM(F9:I9) -> 119 | L9: =J9/631 -> 0.6370839937 | M9: =J9/(J9+K9) -> 0.7715930902
A10: VarDict | B10: 196 | C10: 390 | D10: 9 | E10: 0 | F10: 36 | G10: 0 | H10: 3436 | I10: 36 | J10: =SUM(B10:E10) -> 595 | K10: =SUM(F10:I10) -> 3508 | L10: =J10/631 -> 0.9429477021 | M10: =J10/(J10+K10) -> 0.1450158421
B11: 219 | C11: 401 | D11: 11 | E11: 0 | F11: 39 | G11: 1 | H11: 8366 | I11: 32060 | J11: =SUM(B11:E11) -> 631 | K11: =SUM(F11:I11) -> 40466
B14: 8 tools, no filter (20, 50, 0.01)
B15: Variants | C15: Artifacts | D15: sens | E15: PPV
B16: =SUM(B11,C11,D11,E11) -> 631 | C16: =K11 -> 40466 | D16: =B16/B17 -> 1 | E16: =B16/(B16+C16) -> 0.01535391878
B17: =J11 -> 631
B19: 8 tools, our filter; single sample info
B20: Mutations | C20: Artifacts | D20: sens | E20: PPV
B21: 622 | C21: 1177 | D21: =Overview!B21/B22 -> 0.9857369255 | E21: =Overview!B21/(Overview!B21+Overview!C21) -> 0.3457476376
B22: 631
B24: 8 tools our filter
B25: Variants | C25: Artifacts | D25: sens | E25: PPV
B26: =SUM(B11,C11) -> 620 | C26: =SUM(F11,G11) -> 40 | D26: =B26/B27 -> 0.9825673534 | E26: =B26/(B26+C26) -> 0.9393939394
B27: =J11 -> 631
A36: Mutations only | B36: 1 tool, no filter (20, 50, 0.01)
B37: Mutations (TP) | C37: Mutations (FN) | D37: No Mutations (FP_M) | E37: No Mutations (TN2) | F37: No Mutations (TN1) | G37: Variants | H37: Artifacts | I37: sens | J37: PPV
A38: GATK | B38: 154 | C38: 0 | D38: 13 | E38: 141 | F38: 57 | G38: =SUM(B38,C38) -> 154 | H38: =SUM(D38,E38,F38) -> 211 | I38: =G38/230 -> 0.6695652174 | J38: =G38/(G38+H38) -> 0.4219178082
A39: Platypus | B39: 182 | C39: 2 | D39: 20 | E39: 684 | F39: 92 | G39: =SUM(B39,C39) -> 184 | H39: =SUM(D39,E39,F39) -> 796 | I39: =G39/230 -> 0.8 | J39: =G39/(G39+H39) -> 0.187755102
A40: VarScan | B40: 77 | C40: 0 | D40: 5 | E40: 98 | F40: 5 | G40: =SUM(B40,C40) -> 77 | H40: =SUM(D40,E40,F40) -> 108 | I40: =G40/230 -> 0.3347826087 | J40: =G40/(G40+H40) -> 0.4162162162
A41: LoFreq | B41: 174 | C41: 2 | D41: 25 | E41: 1624 | F41: 0 | G41: =SUM(B41,C41) -> 176 | H41: =SUM(D41,E41,F41) -> 1649 | I41: =G41/230 -> 0.7652173913 | J41: =G41/(G41+H41) -> 0.09643835616
A42: FreeBayes | B42: 215 | C42: 11 | D42: 39 | E42: 8075 | F42: 32046 | G42: =SUM(B42,C42) -> 226 | H42: =SUM(D42,E42,F42) -> 40160 | I42: =G42/230 -> 0.9826086957 | J42: =G42/(G42+H42) -> 0.005595998613
A43: SNVer | B43: 124 | C43: 6 | D43: 22 | E43: 3373 | F43: 983 | G43: =SUM(B43,C43) -> 130 | H43: =SUM(D43,E43,F43) -> 4378 | I43: =G43/230 -> 0.5652173913 | J43: =G43/(G43+H43) -> 0.02883762201
A44: SAMtools | B44: 67 | C44: 0 | D44: 6 | E44: 102 | F44: 12 | G44: =SUM(B44,C44) -> 67 | H44: =SUM(D44,E44,F44) -> 120 | I44: =G44/230 -> 0.2913043478 | J44: =G44/(G44+H44) -> 0.3582887701
A45: VarDict | B45: 196 | C45: 9 | D45: 38 | E45: 3436 | F45: 36 | G45: =SUM(B45,C45) -> 205 | H45: =SUM(D45,E45,F45) -> 3510 | I45: =G45/230 -> 0.8913043478 | J45: =G45/(G45+H45) -> 0.05518169583
B46: 219 | C46: 11 | D46: 41 | E46: 8366 | F46: 32060 | G46: =SUM(B46,C46) -> 230 | H46: =SUM(D46,E46,F46) -> 40467
B49: 8 tools, no filter (20, 50, 0.01)
B50: Variants | C50: Artifacts | D50: sens | E50: PPV
B51: =SUM(B46,C46) -> 230 | C51: =H46 -> 40467 | D51: =B51/B52 -> 1 | E51: =B51/(B51+C51) -> 0.005651522225
B52: =G46 -> 230
B54: 8 tools, our filter; single sample info
B55: Mutations | C55: Artifacts | D55: sens | E55: PPV
B56: 221 | C56: 1184 | D56: =Overview!B56/B57 -> 0.9608695652 | E56: =Overview!B56/(Overview!B56+Overview!C56) -> 0.1572953737
B57: 230
B59: 8 tools our filter
B60: Variants | C60: Artifacts | D60: sens | E60: PPV
B61: =SUM(B46) -> 219 | C61: =SUM(D46) -> 41 | D61: =B61/B62 -> 0.952173913 | E61: =B61/(B61+C61) -> 0.8423076923
B62: =G46 -> 230

Sheet TP Mutations
A1: True, because... | B1: Sample | C1: Chr | D1: Pos | E1: Ref | F1: Alt | G1: Gene | H1: ENST | I1: Type | J1: Mutation | K1: Nr_Ref | L1: Nr_Alt | M1: DP | N1: VAF | O1: GATK | P1: Platypus | Q1: VarScan | R1: LoFreq | S1: FreeBayes | T1: SNVer | U1: SAMtools | V1: VarDict | W1: Called | X1: ESP6500 | Y1: G1000 | Z1: Cosmic | AA1: Cosmic_location | AB1: Cosmic_occurence | AC1: dbSNP_SNPs | AD1: dbSNP_SNVs | AE1: PM_flag | AF1: ExAC | AG1: ClinVar_clinical | AH1: ClinVar_noimpact | AI1: provean_score | AJ1: prediction | AK1: BQ_Ref | AL1: BQ_Alt | AM1: Nr_Ref_fwd | AN1: Nr_Alt_fwd | AO1: DP_fwd | AP1: VAF_fwd | AQ1: Nr_Ref_rev | AR1: Nr_Alt_rev | AS1: DP_rev | AT1: VAF_rev | AU1: strandbias | AV1: nr_samples | AW1: nr_samples_similar | AX1: Category
A2: Hotspot | B2: UPN_Tr2_049 | C2: 1 | D2: 115256530 | E2: G | F2: T | G2: NRAS | H2: ENST00000369535 | I2: missense_variant | J2: Caa/Aaa|p.Gln61Lys/c.181C>A | K2: 485 | L2: 24 | M2: 509 | N2: 0.04715127701 | O2: 0 | P2: 0 | Q2: 0 | R2: 0 | S2: 1 | T2: 0 | U2: 0 | V2: 1 | W2: 2 | X2: NO | Y2: NO | Z2: COSM580 | AA2: autonomic_ganglia, biliary_tract, bone, breast, central_nervous_system, cervix, endometrium, eye, haematopoietic_and_lymphoid_tissue, kidney, large_intestine, liver, lung, meninges, NS, ovary, pancreas, pleura, prostate, skin, soft_tissue, stomach, thyroid, urinary_tract | AB2: 5, 2, 4, 2, 5, 2, 2, 2, 91, 1, 100, 3, 18, 3, 1322, 1, 2, 1, 1, 513, 24, 2, 71, 2 | AC2: NO | AD2: rs121913254 | AE2: YES | AF2: NO | AG2: NO | AH2: NO | AI2: -3.817 | AJ2: Deleterious | AK2: 31.58 | AL2: 32.38 | AM2: 467 | AN2: 24 | AO2: 491 | AP2: 0.04887983707 | AQ2: 18 | AR2: 0 | AS2: 18 | AT2: 0 | AU2: 1 | AV2: 1 | AW2: 1 | AX2: Hotspot (-3)
A3: Hotspot, 2nd Illumina | B3: UPN_Tr2_001 | C3: 1 | D3: 115258744 | E3: C | F3: A | G3: NRAS | H3: ENST00000369535 | I3: missense_variant | J3: gGt/gTt|p.Gly13Val/c.38G>T | K3: 10205 | L3: 320 | M3: 10552 | N3: 0.03032600455 | O3: 0 | P3: 0 | Q3: 0 | R3: 0 | S3: 1 | T3: 0 | U3: 0 | V3: 1 | W3: 2 | X3: NO | Y3: NO | Z3: COSM574 | AA3: adrenal_gland, central_nervous_system, haematopoietic_and_lymphoid_tissue, large_intestine, skin, soft_tissue | AB3: 1, 1, 48, 4, 18, 1 | AC3: NO | AD3: rs121434596 | AE3: YES | AF3: NO | AG3: NO | AH3: NO | AI3: -7.664 | AJ3: Deleterious | AK3: 35.04 | AL3: 29.65 | AM3: 10205 | AN3: 320 | AO3: 10552 | AP3: 0.03032600455 | AQ3: 0 | AR3: 0 | AS3: 0 | AT3: NA | AU3: 1 | AV3: 2 | AW3: 3 | AX3: Hotspot (-4)
A4: Hotspot, 2nd Illumina, Expert, 454 validated, dbSNP flag, Cosmic, prediction, bq | B4: UPN_Tr2_001 | C4: 1 | D4: 115258747 | E4: C | F4: T | G4: NRAS | H4: ENST00000369535 | I4: missense_variant | J4: gGt/gAt|p.Gly12Asp/c.35G>A | K4: 7560 | L4: 2946 | M4: 10551 | N4: 0.2792152403 | O4: 1 | P4: 1 | Q4: 1 | R4: 1 | S4: 1 | T4: 0 | U4: 1 | V4: 1 | W4: 7 | X4: 0.0116 | Y4: NO | Z4: COSM564 | AA4: biliary_tract, central_nervous_system, endometrium, genital_tract, haematopoietic_and_lymphoid_tissue, kidney, large_intestine, lung, NS, ovary, pancreas, skin, soft_tissue, testis, thyroid, upper_aerodigestive_tract | AB4: 4, 5, 4, 2, 381, 1, 60, 1, 570, 1, 1, 61, 2, 3, 2, 1 | AC4: NO | AD4: rs121913237 | AE4: YES | AF4: 1.647e-05 | AG4: NO | AH4: NO | AI4: -5.5 | AJ4: Deleterious | AK4: 34.7 | AL4: 34.41 | AM4: 7560 | AN4: 2946 | AO4: 10551 | AP4: 0.2792152403 | AQ4: 0 | AR4: 0 | AS4: 0 | AT4: NA | AU4: 1 | AV4: 2 | AW4: 2 | AX4: Hotspot (-9)
A5: Hotspot, Expert, dbSNP flag, Cosmic, prediction, bq | B5: UPN_Tr2_017 | C5: 1 | D5: 115258747 | E5: C | F5: T | G5: NRAS | H5: ENST00000369535 | I5: missense_variant | J5: gGt/gAt|p.Gly12Asp/c.35G>A | K5: 3429 | L5: 2899 | M5: 6341 | N5: 0.4571834096 | O5: 1 | P5: 1 | Q5: 1 | R5: 1 | S5: 1 | T5: 0 | U5: 1 | V5: 1 | W5: 7 | X5: 0.0116 | Y5: NO | Z5: COSM564 | AA5: biliary_tract, central_nervous_system, endometrium, genital_tract, haematopoietic_and_lymphoid_tissue, kidney, large_intestine, lung, NS, ovary, pancreas, skin, soft_tissue, testis, thyroid, upper_aerodigestive_tract | AB5: 4, 5, 4, 2, 381, 1, 60, 1, 570, 1, 1, 61, 2, 3, 2, 1 | AC5: NO | AD5: rs121913237 | AE5: YES | AF5: 1.647e-05 | AG5: NO | AH5: NO | AI5: -5.5 | AJ5: Deleterious | AK5: 34.75 | AL5: 34.56 | AM5: 3429 | AN5: 2899 | AO5: 6341 | AP5: 0.4571834096 | AQ5: 0 | AR5: 0 | AS5: 0 | AT5: NA | AU5: 1 | AV5: 2 | AW5: 2 | AX5: Hotspot (-9)
A6: Inspected, 454 validated | B6: UPN_Tr2_008 | C6: 2 | D6: 25457180 | E6: C | F6: T | G6: DNMT3A | H6: ENST00000264709 | I6: missense_variant | J6: Gct/Act|p.Ala903Thr/c.2707G>A | K6: 9094 | L6: 1233 | M6: 10335 | N6: 0.1193033382 | O6: 1 | P6: 1 | Q6: 0 | R6: 1 | S6: 1 | T6: 0 | U6: 0 | V6: 1 | W6: 5 | X6: NO | Y6: NO | Z6: NO | AA6: NA | AB6: NA | AC6: NO | AD6: NO | AE6: NO | AF6: 8.236e-06 | AG6: NO | AH6: NO | AI6: -3.235 | AJ6: Deleterious | AK6: 35.3 | AL6: 34.82 | AM6: 9094 | AN6: 1233 | AO6: 10335 | AP6: 0.1193033382 | AQ6: 0 | AR6: 0 | AS6: 0 | AT6: NA | AU6: 1 | AV6: 1 | AW6: 1 | AX6: Probably True (-5)
A7: Hotspot | B7: UPN_Tr2_087 | C7: 2 | D7: 25457242 | E7: C | F7: T | G7: DNMT3A | H7: ENST00000264709 | I7: missense_variant | J7: cGc/cAc|p.Arg882His/c.2645G>A | K7: 3298 | L7: 172 | M7: 3477 | N7: 0.04946793213 | O7: 0 | P7: 0 | Q7: 0 | R7: 0 | S7: 1 | T7: 1 | U7: 0 | V7: 1 | W7: 3 | X7: 0.0581 | Y7: NO | Z7: COSM52944 | AA7: breast, haematopoietic_and_lymphoid_tissue | AB7: 1, 452 | AC7: NO | AD7: rs147001633 | AE7: NO | AF7: NA | AG7: NO | AH7: NO | AI7: -4.025 | AJ7: Deleterious | AK7: 31.69 | AL7: 32.68 | AM7: 1665 | AN7: 86 | AO7: 1754 | AP7: 0.04903078677 | AQ7: 1633 | AR7: 86 | AS7: 1723 | AT7: 0.04991294254 | AU7: 0.9377149783 | AV7: 2 | AW7: 2 | AX7: Hotspot (-4)
A8: Hotspot | B8: UPN_Tr2_111 | C8: 2 | D8: 25457242 | E8: C | F8: T | G8: DNMT3A | H8: ENST00000264709 | I8: missense_variant | J8: cGc/cAc|p.Arg882His/c.2645G>A | K8: 8277 | L8: 97 | M8: 8388 | N8: 0.01156413925 | O8: 0 | P8: 0 | Q8: 0 | R8: 0 | S8: 1 | T8: 1 | U8: 0 | V8: 1 | W8: 3 | X8: 0.0581 | Y8: NO | Z8: COSM52944 | AA8: breast, haematopoietic_and_lymphoid_tissue | AB8: 1, 452 | AC8: NO | AD8: rs147001633 | AE8: NO | AF8: NA | AG8: NO | AH8: NO | AI8: -4.025 | AJ8: Deleterious | AK8: 31.64 | AL8: 33.53 | AM8: 4169 | AN8: 49 | AO8: 4222 | AP8: 0.01160587399 | AQ8: 4108 | AR8: 48 | AS8: 4166 | AT8: 0.01152184349 | AU8: 1 | AV8: 2 | AW8: 2 | AX8: Hotspot (-2)
A9: Hotspot, Expert, Cosmic, prediction, bq | B9: UPN_Tr2_092 | C9: 2 | D9: 25457243 | E9: G | F9: A | G9: DNMT3A | H9: ENST00000264709 | I9: missense_variant | J9: Cgc/Tgc|p.Arg882Cys/c.2644C>T | K9: 1887 | L9: 1647 | M9: 3542 | N9: 0.4649915302 | O9: 1 | P9: 1 | Q9: 0 | R9: 1 | S9: 1 | T9: 1 | U9: 1 | V9: 1 | W9: 7 | X9: 0.0465 | Y9: NO | Z9: COSM53042 | AA9: haematopoietic_and_lymphoid_tissue, prostate | AB9: 191, 1 | AC9: NO | AD9: rs377577594 | AE9: NO | AF9: 0.0003624 | AG9: NO | AH9: NO | AI9: -6.901 | AJ9: Deleterious | AK9: 32.1 | AL9: 34.7 | AM9: 950 | AN9: 829 | AO9: 1781 | AP9: 0.4654688377 | AQ9: 937 | AR9: 818 | AS9: 1761 | AT9: 0.4645088018 | AU9: 1 | AV9: 6 | AW9: 6 | AX9: Hotspot (-7)
A10: Hotspot, Expert, inspected, Cosmic, prediction, bq | B10: UPN_Tr2_081 | C10: 2 | D10: 25457243 | E10: G | F10: A | G10: DNMT3A | H10: ENST00000264709 | I10: missense_variant | J10: Cgc/Tgc|p.Arg882Cys/c.2644C>T | K10: 4607 | L10: 2930 | M10: 7575 | N10: 0.3867986799 | O10: 1 | P10: 1 | Q10: 0 | R10: 1 | S10: 1 | T10: 1 | U10: 1 | V10: 1 | W10: 7 | X10: 0.0465 | Y10: NO | Z10: COSM53042 | AA10: haematopoietic_and_lymphoid_tissue, prostate | AB10: 191, 1 | AC10: NO | AD10: rs377577594 | AE10: NO | AF10: 0.0003624 | AG10: NO | AH10: NO | AI10: -6.901 | AJ10: Deleterious | AK10: 32.3 | AL10: 33.27 | AM10: 2328 | AN10: 1477 | AO10: 3824 | AP10: 0.3862447699 | AQ10: 2279 | AR10: 1453 | AS10: 3751 | AT10: 0.3873633698 | AU10: 0.9247028811 | AV10: 6 | AW10: 6 | AX10: Hotspot (-7)
A11: Hotspot, Expert, inspected, Cosmic, prediction, bq | B11: UPN_Tr2_094 | C11: 2 | D11: 25457243 | E11: G | F11: A | G11: DNMT3A | H11: ENST00000264709 | I11: missense_variant | J11: Cgc/Tgc|p.Arg882Cys/c.2644C>T | K11: 6183 | L11: 2524 | M11: 8723 | N11: 0.2893499943 | O11: 1 | P11: 1 | Q11: 0 | R11: 1 | S11: 1 | T11: 1 | U11: 1 | V11: 1 | W11: 7 | X11: 0.0465 | Y11: NO | Z11: COSM53042 | AA11: haematopoietic_and_lymphoid_tissue, prostate | AB11: 191, 1 | AC11: NO | AD11: rs377577594 | AE11: NO | AF11: 0.0003624 | AG11: NO | AH11: NO | AI11: -6.901 | AJ11: Deleterious | AK11: 32.21 | AL11: 34.64 | AM11: 3106 | AN11: 1275 | AO11: 4386 | AP11: 0.2906976744 | AQ11: 3077 | AR11: 1249 | AS11: 4337 | AT11: 0.2879870878 | AU11: 0.8133184047 | AV11: 6 | AW11: 6 | AX11: Hotspot (-7)
A12: Hotspot, inspected | B12: UPN_Tr2_097 | C12: 2 | D12: 25457243 | E12: G | F12: A | G12: DNMT3A | H12: ENST00000264709 | I12: missense_variant | J12: Cgc/Tgc|p.Arg882Cys/c.2644C>T | K12: 9578 | L12: 226 | M12: 9828 | N12: 0.022995523 | O12: 0 | P12: 0 | Q12: 0 | R12: 0 | S12: 1 | T12: 1 | U12: 0 | V12: 1 | W12: 3 | X12: 0.0465 | Y12: NO | Z12: COSM53042 | AA12: haematopoietic_and_lymphoid_tissue, prostate | AB12: 191, 1 | AC12: NO | AD12: rs377577594 | AE12: NO | AF12: 0.0003624 | AG12: NO | AH12: NO | AI12: -6.901 | AJ12: Deleterious | AK12: 32.04 | AL12: 34.52 | AM12: 4815 | AN12: 115 | AO12: 4942 | AP12: 0.0232699312 | AQ12: 4763 | AR12: 111 | AS12: 4886 | AT12: 0.02271796971 | AU12: 0.8929857555 | AV12: 6 | AW12: 6 | AX12: Hotspot (-2)
A13: Expert, bq, freq | B13: UPN_Tr2_072 | C13: 2 | D13: 25458676 | E13: T | F13: C | G13: DNMT3A | H13: ENST00000264709 | I13: missense_variant | J13: Att/Gtt|p.Ile833Val/c.2497A>G | K13: 25530 | L13: 9308 | M13: 34970 | N13: 0.2661710037 | O13: 1 | P13: 1 | Q13: 1 | R13: 1 | S13: 1 | T13: 1 | U13: 1 | V13: 1 | W13: 8 | X13: NO | Y13: NO | Z13: NO | AA13: NO | AB13: O | AC13: NO | AD13: NO | AE13: NO | AF13: 8.236e-06 | AG13: NO | AH13: NO | AI13: -0.744 | AJ13: Tolerated | AK13: 33.7 | AL13: 32.2 | AM13: 12869 | AN13: 4704 | AO13: 17641 | AP13: 0.2666515504 | AQ13: 12661 | AR13: 4604 | AS13: 17329 | AT13: 0.2656818051 | AU13: 0.8369143174 | AV13: 1 | AW13: 1 | AX13: Probably True (-4)
A14: Hotspot, Expert, Cosmic, prediction, bq | B14: UPN_Tr2_053 | C14: 2 | D14: 25463184 | E14: G | F14: A | G14: DNMT3A | H14: ENST00000264709 | I14: missense_variant | J14: tCg/tTg|p.Ser770Leu/c.2309C>T | K14: 14042 | L14: 3059 | M14: 17126 | N14: 0.178617307 | O14: 1 | P14: 1 | Q14: 0 | R14: 1 | S14: 1 | T14: 0 | U14: 0 | V14: 1 | W14: 5 | X14: NO | Y14: NO | Z14: COSM231549 | AA14: haematopoietic_and_lymphoid_tissue | AB14: 4 | AC14: NO | AD14: NO | AE14: NO | AF14: NO | AG14: NO | AH14: NO | AI14: -4.738 | AJ14: Deleterious | AK14: 35.13 | AL14: 35.37 | AM14: 14017 | AN14: 3059 | AO14: 17101 | AP14: 0.1788784282 | AQ14: 25 | AR14: 0 | AS14: 25 | AT14: 0 | AU14: 0.01511771215 | AV14: 1 | AW14: 1 | AX14: Probably True (-4)
A15: inspected | B15: UPN_Tr2_066 | C15: 2 | D15: 25463289 | E15: T | F15: C | G15: DNMT3A | H15: ENST00000264709 | I15: missense_variant | J15: tAc/tGc|p.Tyr735Cys/c.2204A>G | K15: 5273 | L15: 199 | M15: 5524 | N15: 0.03602461984 | O15: 0 | P15: 0 | Q15: 0 | R15: 0 | S15: 1 | T15: 1 | U15: 0 | V15: 1 | W15: 3 | X15: 0.0116 | Y15: NO | Z15: COSM133126 | AA15: haematopoietic_and_lymphoid_tissue | AB15: 5 | AC15: NO | AD15: rs147828672 | AE15: NO | AF15: NA | AG15: NO | AH15: NO | AI15: -6.941 | AJ15: Deleterious | AK15: 30.7 | AL15: 32.38 | AM15: 2627 | AN15: 97 | AO15: 2763 | AP15: 0.03510676801 | AQ15: 2646 | AR15: 102 | AS15: 2761 | AT15: 0.03694313654 | AU15: 0.7732120319 | AV15: 2 | AW15: 2 | AX15: Probably True (-1)
A16: Hotspot, Expert, prediction, bq | B16: UPN_Tr2_077 | C16: 2 | D16: 25463299 | E16: A | F16: G | G16: DNMT3A | H16: ENST00000264709 | I16: missense_variant | J16: Ttt/Ctt|p.Phe732Leu/c.2194T>C | K16: 4545 | L16: 2776 | M16: 7341 | N16: 0.3781501158 | O16: 1 | P16: 1 | Q16: 1 | R16: 1 | S16: 1 | T16: 0 | U16: 1 | V16: 1 | W16: 7 | X16: NO | Y16: NO | Z16: COSM4383544 | AA16: haematopoietic_and_lymphoid_tissue | AB16: 1 | AC16: NO | AD16: NO | AE16: NO | AF16: NO | AG16: NO | AH16: NO | AI16: -5.838 | AJ16: Deleterious | AK16: 33.38 | AL16: 34.64 | AM16: 0 | AN16: 0 | AO16: 0 | AP16: NA | AQ16: 4545 | AR16: 2776 | AS16: 7341 | AT16: 0.3781501158 | AU16: 1 | AV16: 1 | AW16: 1 | AX16: Probably True (-6)
A17: Sanger validated, 454 validated, IonT_1 validated, Expert, bq | B17: UPN_Tr2_039 | C17: 2 | D17: 25463307 | E17: C | F17: T | G17: DNMT3A | H17: ENST00000264709 | I17: missense_variant | J17: cGg/cAg|p.Arg729Gln/c.2186G>A | K17: 10669 | L17: 5202 | M17: 15906 | N17: 0.3270463976 | O17: 1 | P17: 1 | Q17: 1 | R17: 1 | S17: 1 | T17: 0 | U17: 1 | V17: 1 | W17: 7 | X17: NO | Y17: NO | Z17: COSM1318938 | AA17: haematopoietic_and_lymphoid_tissue | AB17: 1 | AC17: NO | AD17: NO | AE17: NO | AF17: 1.647e-05 | AG17: NO | AH17: NO | AI17: -2.914 | AJ17: Deleterious | AK17: 34.76 | AL17: 34.2 | AM17: 0 | AN17: 0 | AO17: 0 | AP17: NA | AQ17: 10669 | AR17: 5202 | AS17: 15906 | AT17: 0.3270463976 | AU17: 1 | AV17: 1 | AW17: 2 | AX17: Probably True (-5)
A18: 454 validated, Expert | B18: UPN_Tr2_037 | C18: 2 | D18: 25463544 | E18: AG | F18: A | G18: DNMT3A | H18: ENST00000264709 | I18: frameshift_variant | J18: ctc/|p.Leu713fs/c.2137delC | K18: 19048 | L18: 2376 | M18: 21454 | N18: 0.1107485784 | O18: 0 | P18: 1 | Q18: 0 | R18: 1 | S18: 1 | T18: 1 | U18: 0 | V18: 0 | W18: 4 | X18: NO | Y18: NO | Z18: NO | AA18: NO | AB18: O | AC18: NO | AD18: NO | AE18: NO | AF18: 8.236e-06 | AG18: NO | AH18: NO | AI18: NA | AJ18: NA | AK18: 35.64 | AL18: NA | AM18: 7604 | AN18: 39 | AO18: 7650 | AP18: 0.005098039216 | AQ18: 11444 | AR18: 2337 | AS18: 13804 | AT18: 0.169298754 | AU18: 2 | AV18: 1 | AW18: 1 | AX18: Probably True (-2)
A19: Hotspot, Expert, Cosmic, prediction, bq | B19: UPN_Tr2_030 | C19: 2 | D19: 25466800 | E19: G | F19: A | G19: DNMT3A | H19: ENST00000264709 | I19: missense_variant | J19: Cgg/Tgg|p.Arg635Trp/c.1903C>T | K19: 3337 | L19: 2851 | M19: 6202 | N19: 0.4596904224 | O19: 1 | P19: 1 | Q19: 1 | R19: 1 | S19: 1 | T19: 0 | U19: 1 | V19: 1 | W19: 7 | X19: 0 | Y19: 0 | Z19: COSM87012 | AA19: haematopoietic_and_lymphoid_tissue | AB19: 8 | AC19: NO | AD19: rs144689354 | AE19: NO | AF19: 3.052e-05 | AG19: NO | AH19: NO | AI19: -7.543 | AJ19: Deleterious | AK19: 34.52 | AL19: 34.35 | AM19: 3337 | AN19: 2851 | AO19: 6202 | AP19: 0.4596904224 | AQ19: 0 | AR19: 0 | AS19: 0 | AT19: NA | AU19: 1 | AV19: 1 | AW19: 1 | AX19: Probably True (-6)
A20: inspected | B20: UPN_Tr2_032 | C20: 2 | D20: 25467123 | E20: GT | F20: G | G20: DNMT3A | H20: ENST00000264709 | I20: frameshift_variant | J20: tac/|p.Tyr584fs/c.1751delA | K20: 2634 | L20: 244 | M20: 2900 | N20: 0.08413793103 | O20: 0 | P20: 1 | Q20: 0 | R20: 1 | S20: 1 | T20: 1 | U20: 0 | V20: 1 | W20: 5 | X20: NO | Y20: NO | Z20: NO | AA20: NO | AB20: O | AC20: NO | AD20: NO | AE20: NO | AF20: NO | AG20: NO | AH20: NO | AI20: NA | AJ20: NA | AK20: 33.47 | AL20: NA | AM20: 0 | AN20: 0 | AO20: 0 | AP20: NA | AQ20: 2634 | AR20: 244 | AS20: 2900 | AT20: 0.08413793103 | AU20: 1 | AV20: 1 | AW20: 1 | AX20: Probably True (-3)
A21: Expert, prediction, bq | B21: UPN_Tr2_053 | C21: 2 | D21: 25467204 | E21: G | F21: C | G21: DNMT3A | H21: ENST00000264709 | I21: missense_variant | J21: tgC/tgG|p.Cys557Trp/c.1671C>G | K21: 8698 | L21: 1908 | M21: 10634 | N21: 0.1794244875 | O21: 1 | P21: 1 | Q21: 0 | R21: 1 | S21: 1 | T21: 0 | U21: 0 | V21: 1 | W21: 5 | X21: NO | Y21: NO | Z21: NO | AA21: NA | AB21: NA | AC21: NO | AD21: NO | AE21: NO | AF21: NO | AG21: NO | AH21: NO | AI21: -7.607 | AJ21: Deleterious | AK21: 34.9 | AL21: 35.21 | AM21: 0 | AN21: 0 | AO21: 0 | AP21: NA | AQ21: 8698 | AR21: 1908 | AS21: 10634 | AT21: 0.1794244875 | AU21: 1 | AV21: 1 | AW21: 1 | AX21: Probably True (-5)
A22: 454 validated, Expert, Cosmic, prediction, bq | B22: UPN_Tr2_005 | C22: 2 | D22: 25467449 | E22: C | F22: A | G22: DNMT3A | H22: ENST00000264709 | I22: missense_variant | J22: Ggc/Tgc|p.Gly543Cys/c.1627G>T | K22: 944 | L22: 651 | M22: 1603 | N22: 0.4061135371 | O22: 1 | P22: 1 | Q22: 1 | R22: 1 | S22: 1 | T22: 0 | U22: 1 | V22: 1 | W22: 7 | X22: NO | Y22: NO | Z22: COSM87002 | AA22: haematopoietic_and_lymphoid_tissue | AB22: 13 | AC22: NO | AD22: NO | AE22: NO | AF22: 3.295e-05 | AG22: NO | AH22: NO | AI22: -7.59 | AJ22: Deleterious | AK22: 35.13 | AL22: 30.1 | AM22: 944 | AN22: 651 | AO22: 1603 | AP22: 0.4061135371 | AQ22: 0 | AR22: 0 | AS22: 0 | AT22: NA | AU22: 1 | AV22: 1 | AW22: 1 | AX22: Probably True (-6)
A23: Expert, freq | B23: UPN_Tr2_078 | C23: 2 | D23: 25469502 | E23: CAGGCCCTTAGGGCCAGA | F23: C | G23: DNMT3A | H23: ENST00000264709 | I23: frameshift_variant | J23: tctggccctaagggcctg/|p.Ser417fs/c.1249_1265delTCTGGCCCTAAGGGCCT | K23: 1156 | L23: 777 | M23: 1939 | N23: 0.4007220217 | O23: 1 | P23: 1 | Q23: 0 | R23: 1 | S23: 1 | T23: 1 | U23: 0 | V23: 1 | W23: 6 | X23: NO | Y23: NO | Z23: NO | AA23: NA | AB23: NA | AC23: NO | AD23: NO | AE23: NO | AF23: NO | AG23: NO | AH23: NO | AI23: NA | AJ23: NA | AK23: 32.96 | AL23: NA | AM23: 1156 | AN23: 777 | AO23: 1939 | AP23: 0.4007220217 | AQ23: 0 | AR23: 0 | AS23: 0 | AT23: NA | AU23: 1 | AV23: 1 | AW23: 1 | AX23: Probably True (-5)
A24: 454 validated, Expert, freq | B24: UPN_Tr2_010 | C24: 2 | D24: 25469552 | E24: T | F24: TG | G24: DNMT3A | H24: ENST00000264709 | I24: frameshift_variant | J24: ccc/cccC|p.Met406fs/c.1215dupC | K24: 4679 | L24: 2117 | M24: 4708 | N24: 0.4496601529 | O24: 1 | P24: 1 | Q24: 1 | R24: 1 | S24: 1 | T24: 1 | U24: 0 | V24: 1 | W24: 7 | X24: NO | Y24: NO | Z24: NO | AA24: NO | AB24: O | AC24: NO | AD24: NO | AE24: NO | AF24: NO | AG24: NO | AH24: NO | AI24: NA | AJ24: NA | AK24: 32.63 | AL24: NA | AM24: 4666 | AN24: 2117 | AO24: 4695 | AP24: 0.4509052183 | AQ24: 13 | AR24: 0 | AS24: 13 | AT24: 0 | AU24: 0.01307725452 | AV24: 1 | AW24: 1 | AX24: Probably True (-5)
A25: Expert, prediction, bq | B25: UPN_Tr2_014 | C25: 2 | D25: 25469633 | E25: G | F25: A | G25: DNMT3A | H25: ENST00000264709 | I25: missense_variant | J25: Cgc/Tgc|p.Arg379Cys/c.1135C>T | K25: 3012 | L25: 1352 | M25: 4380 | N25: 0.3086757991 | O25: 1 | P25: 1 | Q25: 1 | R25: 1 | S25: 1 | T25: 0 | U25: 1 | V25: 1 | W25: 7 | X25: NO | Y25: NO | Z25: NO | AA25: NA | AB25: NA | AC25: NO | AD25: NO | AE25: NO | AF25: 2.471e-05 | AG25: NO | AH25: NO | AI25: -5.62 | AJ25: Deleterious | AK25: 35.44 | AL25: 34.19 | AM25: 0 | AN25: 0 | AO25: 0 | AP25: NA | AQ25: 3012 | AR25: 1352 | AS25: 4380 | AT25: 0.3086757991 | AU25: 1 | AV25: 2 | AW25: 3 | AX25: Probably True (-6)
A26: Expert, prediction, bq | B26: UPN_Tr2_064 | C26: 2 | D26: 25469927 | E26: A | F26: T | G26: DNMT3A | H26: ENST00000264709 | I26: missense_variant | J26: gTc/gAc|p.Val372Asp/c.1115T>A | K26: 1328 | L26: 660 | M26: 2006 | N26: 0.3290129611 | O26: 1 | P26: 1 | Q26: 1 | R26: 0 | S26: 1 | T26: 0 | U26: 1 | V26: 1 | W26: 6 | X26: NO | Y26: NO | Z26: NO | AA26: NO | AB26: O | AC26: NO | AD26: NO | AE26: NO | AF26: NO | AG26: NO | AH26: NO | AI26: -2.477 | AJ26: Tolerated | AK26: 23.42 | AL26: 34.86 | AM26: 1306 | AN26: 660 | AO26: 1984 | AP26: 0.3326612903 | AQ26: 22 | AR26: 0 | AS26: 22 | AT26: 0 | AU26: 0.0001581740843 | AV26: 1 | AW26: 4 | AX26: Probably True (-2)
A27: 454 validated, Expert, prediction, bq | B27: UPN_Tr2_002 | C27: 2 | D27: 25470494 | E27: C | F27: T | G27: DNMT3A | H27: ENST00000264709 | I27: stop_gained | J27: tGg/tAg|p.Trp327*/c.980G>A | K27: 1967 | L27: 416 | M27: 2391 | N27: 0.17398578 | O27: 1 | P27: 1 | Q27: 0 | R27: 1 | S27: 1 | T27: 0 | U27: 0 | V27: 1 | W27: 5 | X27: NO | Y27: NO | Z27: NO | AA27: NO | AB27: O | AC27: NO | AD27: NO | AE27: NO | AF27: 8.236e-06 | AG27: NO | AH27: NO | AI27: NA | AJ27: NA | AK27: 33.14 | AL27: 33.01 | AM27: 1953 | AN27: 416 | AO27: 2377 | AP27: 0.1750105175 | AQ27: 14 | AR27: 0 | AS27: 14 | AT27: 0 | AU27: 0.1484307036 | AV27: 3 | AW27: 3 | AX27: Probably True (-4)
A28: Hotspot, 2nd Illumina, Expert, Cosmic, prediction, bq | B28: UPN_Tr2_086 | C28: 2 | D28: 25470498 | E28: G | F28: A | G28: DNMT3A | H28: ENST00000264709 | I28: missense_variant | J28: Cgc/Tgc|p.Arg326Cys/c.976C>T | K28: 870 | L28: 342 | M28: 1220 | N28: 0.2803278689 | O28: 0 | P28: 1 | Q28: 0 | R28: 1 | S28: 1 | T28: 0 | U28: 1 | V28: 1 | W28: 5 | X28: NO | Y28: NO | Z28: COSM4169721 | AA28: haematopoietic_and_lymphoid_tissue | AB28: 2 | AC28: NO | AD28: NO | AE28: NO | AF28: NA | AG28: NO | AH28: NO | AI28: -5.58 | AJ28: Deleterious | AK28: 31.16 | AL28: 30.15 | AM28: 870 | AN28: 342 | AO28: 1220 | AP28: 0.2803278689 | AQ28: 0 | AR28: 0 | AS28: 0 | AT28: NA | AU28: 1 | AV28: 2 | AW28: 2 | AX28: Probably True (-5)
A29: Hotspot, Expert, Cosmic, prediction, bq | B29: UPN_Tr2_058 | C29: 2 | D29: 198266494 | E29: T | F29: C | G29: SF3B1 | H29: ENST00000335508 | I29: missense_variant | J29: gAt/gGt|p.Asp781Gly/c.2342A>G | K29: 5857 | L29: 974 | M29: 6864 | N29: 0.1418997669 | O29: 0 | P29: 1 | Q29: 0 | R29: 1 | S29: 1 | T29: 0 | U29: 0 | V29: 1 | W29: 4 | X29: NO | Y29: NO | Z29: COSM131554 | AA29: haematopoietic_and_lymphoid_tissue, NS | AB29: 4, 8 | AC29: NO | AD29: NO | AE29: NO | AF29: 8.237e-06 | AG29: NO | AH29: NO | AI29: -6.682 | AJ29: Deleterious | AK29: 35.16 | AL29: 34.92 | AM29: 5857 | AN29: 974 | AO29: 6864 | AP29: 0.1418997669 | AQ29: 0 | AR29: 0 | AS29: 0 | AT29: NA | AU29: 1 | AV29: 1 | AW29: 1 | AX29: Hotspot (-7)
A30: Hotspot, Expert, Cosmic, bq | B30: UPN_Tr2_054 | C30: 2 | D30: 198266611 | E30: C | F30: T | G30: SF3B1 | H30: ENST00000335508 | I30: missense_variant | J30: gGt/gAt|p.Gly742Asp/c.2225G>A | K30: 4017 | L30: 50 | M30: 4102 | N30: 0.01218917601 | O30: 0 | P30: 0 | Q30: 0 | R30: 0 | S30: 1 | T30: 0 | U30: 0 | V30: 1 | W30: 2 | X30: NO | Y30: NO | Z30: COSM145923 | AA30: haematopoietic_and_lymphoid_tissue, kidney, lung | AB30: 43, 1, 1 | AC30: NO | AD30: NO | AE30: NO | AF30: 1.649e-05 | AG30: NO | AH30: NO | AI30: -4.313 | AJ30: Deleterious | AK30: 32.48 | AL30: 33.64 | AM30: 0 | AN30: 0 | AO30: 0 | AP30: NA | AQ30: 4017 | AR30: 50 | AS30: 4102 | AT30: 0.01218917601 | AU30: 1 | AV30: 2 | AW30: 2 | AX30: Hotspot (-2)
A31: Hotspot, Expert, 454 validated; IonT_2 validated, Cosmic, bq | B31: UPN_Tr2_009 | C31: 2 | D31: 198266611 | E31: C | F31: T | G31: SF3B1 | H31: ENST00000335508 | I31: missense_variant | J31: gGt/gAt|p.Gly742Asp/c.2225G>A | K31: 3203 | L31: 1933 | M31: 5163 | N31: 0.3743947317 | O31: 0 | P31: 0 | Q31: 0 | R31: 1 | S31: 0 | T31: 0 | U31: 0 | V31: 0 | W31: 1 | X31: NO | Y31: NO | Z31: COSM145923 | AA31: haematopoietic_and_lymphoid_tissue, kidney, lung | AB31: 43, 1, 1 | AC31: NO | AD31: NO | AE31: NO | AF31: 1.649e-05 | AG31: NO | AH31: NO | AI31: -4.313 | AJ31: Deleterious | AK31: 33.63 | AL31: 34.68 | AM31: 0 | AN31: 0 | AO31: 0 | AP31: NA | AQ31: 3203 | AR31: 1933 | AS31: 5163 | AT31: 0.3743947317 | AU31: 1 | AV31: 2 | AW31: 2 | AX31: Hotspot (-3)
A32: Hotspot, Expert, Cosmic, prediction, bq | B32: UPN_Tr2_020 | C32: 2 | D32: 198266834 | E32: T | F32: C | G32: SF3B1 | H32: ENST00000335508 | I32: missense_variant | J32: Aaa/Gaa|p.Lys700Glu/c.2098A>G | K32: 5205 | L32: 3007 | M32: 8217 | N32: 0.3659486431 | O32: 1 | P32: 1 | Q32: 1 | R32: 1 | S32: 1 | T32: 0 | U32: 1 | V32: 1 | W32: 7 | X32: NO | Y32: 0 | Z32: COSM84677 | AA32: breast, central_nervous_system, eye, haematopoietic_and_lymphoid_tissue, kidney, NS, oesophagus, pancreas, prostate | AB32: 14, 2, 1, 395, 1, 515, 1, 13, 4 | AC32: NO | AD32: NO | AE32: NO | AF32: 0.0002306 | AG32: NO | AH32: NO | AI32: -3.819 | AJ32: Deleterious | AK32: 35.59 | AL32: 35.35 | AM32: 0 | AN32: 0 | AO32: 0 | AP32: NA | AQ32: 5205 | AR32: 3007 | AS32: 8217 | AT32: 0.3659486431 | AU32: 1 | AV32: 32 | AW32: 32 | AX32: Hotspot (-7)
A33: Hotspot, Expert, Cosmic, prediction, bq | B33: UPN_Tr2_026 | C33: 2 | D33: 198266834 | E33: T | F33: C | G33: SF3B1 | H33: ENST00000335508 | I33: missense_variant | J33: Aaa/Gaa|p.Lys700Glu/c.2098A>G | K33: 9105 | L33: 5855 | M33: 14980 | N33: 0.3908544726 | O33: 1 | P33: 1 | Q33: 1 | R33: 1 | S33: 1 | T33: 0 | U33: 1 | V33: 1 | W33: 7 | X33: NO | Y33: 0 | Z33: COSM84677 | AA33: breast, central_nervous_system, eye, haematopoietic_and_lymphoid_tissue, kidney, NS, oesophagus, pancreas, prostate | AB33: 14, 2, 1, 395, 1, 515, 1, 13, 4 | AC33: NO | AD33: NO | AE33: NO | AF33: 0.0002306 | AG33: NO | AH33: NO | AI33: -3.819 | AJ33: Deleterious | AK33: 35.62 | AL33: 35.3 | AM33: 0 | AN33: 0 | AO33: 0 | AP33: NA | AQ33: 9105 | AR33: 5855 | AS33: 14980 | AT33: 0.3908544726 | AU33: 1 | AV33: 32 | AW33: 32 | AX33: Hotspot (-7)
A34: Hotspot, Expert, Cosmic, prediction, bq | B34: UPN_Tr2_027 | C34: 2 | D34: 198266834 | E34: T | F34: C | G34: SF3B1 | H34: ENST00000335508 | I34: missense_variant | J34: Aaa/Gaa|p.Lys700Glu/c.2098A>G | K34: 10944 | L34: 5300 | M34: 16255 | N34: 0.326053522 | O34: 1 | P34: 1 | Q34: 1 | R34: 1 | S34: 1 | T34: 0 | U34: 1 | V34: 1 | W34: 7 | X34: NO | Y34: 0 | Z34: COSM84677 | AA34: breast, central_nervous_system, eye, haematopoietic_and_lymphoid_tissue, kidney, NS, oesophagus, pancreas, prostate | AB34: 14, 2, 1, 395, 1, 515, 1, 13, 4 | AC34: NO | AD34: NO | AE34: NO | AF34: 0.0002306 | AG34: NO | AH34: NO | AI34: -3.819 | AJ34: Deleterious | AK34: 35.52 | AL34: 35.34 | AM34: 0 | AN34: 0 | AO34: 0 | AP34: NA | AQ34: 10944 | AR34: 5300 | AS34: 16255 | AT34: 0.326053522 | AU34: 1 | AV34: 32 | AW34: 32 | AX34: Hotspot (-7)
A35: Hotspot, Expert, Cosmic, prediction, bq | B35: UPN_Tr2_043 | C35: 2 | D35: 198266834 | E35: T | F35: C | G35: SF3B1 | H35: ENST00000335508 | I35: missense_variant | J35: Aaa/Gaa|p.Lys700Glu/c.2098A>G | K35: 11689 | L35: 1346 | M35: 13058 | N35: 0.1030785725 | O35: 0 | P35: 1 | Q35: 0 | R35: 1 | S35: 1 | T35: 0 | U35: 0 | V35: 1 | W35: 4 | X35: NO | Y35: 0 | Z35: COSM84677 | AA35: breast, central_nervous_system, eye, haematopoietic_and_lymphoid_tissue, kidney, NS, oesophagus, pancreas, prostate | AB35: 14, 2, 1, 395, 1, 515, 1, 13, 4 | AC35: NO | AD35: NO | AE35: NO | AF35: 0.0002306 | AG35: NO | AH35: NO | AI35: -3.819 | AJ35: Deleterious | AK35: 35.33 | AL35: 34.68 | AM35: 0 | AN35: 0 | AO35: 0 | AP35: NA | AQ35: 11689 | AR35: 1346 | AS35: 13058 | AT35: 0.1030785725 | AU35: 1 | AV35: 32 | AW35: 32 | AX35: Hotspot (-5)
A36: Hotspot, Expert, Cosmic, prediction, bq | B36: UPN_Tr2_044 | C36: 2 | D36: 198266834 | E36: T | F36: C | G36: SF3B1 | H36: ENST00000335508 | I36: missense_variant | J36: Aaa/Gaa|p.Lys700Glu/c.2098A>G | K36: 3153 | L36: 1224 | M36: 4380 | N36: 0.2794520548 | O36: 1 | P36: 1 | Q36: 1 | R36: 1 | S36: 1 | T36: 0 | U36: 1 | V36: 1 | W36: 7 | X36: NO | Y36: 0 | Z36: COSM84677 | AA36: breast, central_nervous_system, eye, haematopoietic_and_lymphoid_tissue, kidney, NS, oesophagus, pancreas, prostate | AB36: 14, 2, 1, 395, 1, 515, 1, 13, 4 | AC36: NO | AD36: NO | AE36: NO | AF36: 0.0002306 | AG36: NO | AH36: NO | AI36: -3.819 | AJ36: Deleterious | AK36: 35.38 | AL36: 34.86 | AM36: 0 | AN36: 0 | AO36: 0 | AP36: NA | AQ36: 3153 | AR36: 1224 | AS36: 4380 | AT36: 0.2794520548 | AU36: 1 | AV36: 32 | AW36: 32 | AX36: Hotspot (-7)
A37: Hotspot, Expert, Cosmic, prediction, bq | B37: UPN_Tr2_030 | C37: 2 | D37: 198266834 | E37: T | F37: C | G37: SF3B1 | H37: ENST00000335508 | I37: missense_variant | J37: Aaa/Gaa|p.Lys700Glu/c.2098A>G | K37: 7500 | L37: 6128 | M37: 13639 | N37: 0.449299802 | O37: 1 | P37: 1 | Q37: 1 | R37: 1 | S37: 1 | T37: 0 | U37: 1 | V37: 1 | W37: 7 | X37: NO | Y37: 0 | Z37: COSM84677 | AA37: breast, central_nervous_system, eye, haematopoietic_and_lymphoid_tissue, kidney, NS, oesophagus, pancreas, prostate | AB37: 14, 2, 1, 395, 1, 515, 1, 13, 4 | AC37: NO | AD37: NO | AE37: NO | AF37: 0.0002306 | AG37: NO | AH37: NO | AI37: -3.819 | AJ37: Deleterious | AK37: 35.59 | AL37: 35.25 | AM37: 0 | AN37: 0 | AO37: 0 | AP37: NA | AQ37: 7500 | AR37: 6128 | AS37: 13639 | AT37: 0.449299802 | AU37: 1 | AV37: 32 | AW37: 32 | AX37: Hotspot (-7)
A38: Hotspot, Expert, Cosmic, prediction, bq | B38: UPN_Tr2_031 | C38: 2 | D38: 198266834 | E38: T | F38: C | G38: SF3B1 | H38: ENST00000335508 | I38: missense_variant | J38: Aaa/Gaa|p.Lys700Glu/c.2098A>G | K38: 6228 | L38: 1702 | M38: 7939 | N38: 0.2143846832 | O38: 1 | P38: 1 | Q38: 1 | R38: 1 | S38: 1 | T38: 0 | U38: 0 | V38: 1 | W38: 6 | X38: NO | Y38: 0 | Z38: COSM84677 | AA38: breast, central_nervous_system, eye, haematopoietic_and_lymphoid_tissue, kidney, NS, oesophagus, pancreas, prostate | AB38: 14, 2, 1, 395, 1, 515, 1, 13, 4 | AC38: NO | AD38: NO | AE38: NO | AF38: 0.0002306 | AG38: NO | AH38: NO | AI38: -3.819 | AJ38: Deleterious | AK38: 35.54 | AL38: 35.31 | AM38: 0 | AN38: 0 | AO38: 0 | AP38: NA | AQ38: 6228 | AR38: 1702 | AS38: 7939 | AT38: 0.2143846832 | AU38: 1 | AV38: 32 | AW38: 32 | AX38: Hotspot (-7)
A39: Hotspot, Expert, Cosmic, prediction, bq | B39: UPN_Tr2_047 | C39: 2 | D39: 198266834 | E39: T | F39: C | G39: SF3B1 | H39: ENST00000335508 | I39: missense_variant | J39: Aaa/Gaa|p.Lys700Glu/c.2098A>G | K39: 13581 | L39: 2332 | M39: 15937 | N39: 0.1463261593 | O39: 0 | P39: 1 | Q39: 0 | R39: 1 | S39: 1 | T39: 0 | U39: 0 | V39: 1 | W39: 4 | X39: NO | Y39: 0 | Z39: COSM84677 | AA39: breast, central_nervous_system, eye, haematopoietic_and_lymphoid_tissue, kidney, NS, oesophagus, pancreas, prostate | AB39: 14, 2, 1, 395, 1, 515, 1, 13, 4 | AC39: NO | AD39: NO | AE39: NO | AF39: 0.0002306 | AG39: NO | AH39: NO | AI39: -3.819 | AJ39: Deleterious | AK39: 35.26 | AL39: 34.8 | AM39: 0 | AN39: 0 | AO39: 0 | AP39: NA | AQ39: 13581 | AR39: 2332 | AS39: 15937 | AT39: 0.1463261593 | AU39: 1 | AV39: 32 | AW39: 32 | AX39: Hotspot (-5)
A40: Hotspot, 2nd Illumina, IonT_2 validated, Expert, Cosmic, prediction, bq | B40: UPN_Tr2_006 | C40: 2 | D40: 198266834 | E40: T | F40: C | G40: SF3B1 | H40: ENST00000335508 | I40: missense_variant | J40: Aaa/Gaa|p.Lys700Glu/c.2098A>G | K40: 7277 | L40: 3749 | M40: 11049 | N40: 0.3393067246 | O40: 1 | P40: 1 | Q40: 1 | R40: 1 | S40: 1 | T40: 0 | U40: 1 | V40: 1 | W40: 7 | X40: NO | Y40: 0 | Z40: COSM84677 | AA40: breast, central_nervous_system, eye, haematopoietic_and_lymphoid_tissue, kidney, NS, oesophagus, pancreas, prostate | AB40: 14, 2, 1, 395, 1, 515, 1, 13, 4 | AC40: NO | AD40: NO | AE40: NO | AF40: 0.0002306 | AG40: NO | AH40: NO | AI40: -3.819 | AJ40: Deleterious | AK40: 35.44 | AL40: 35.19 | AM40: 0 | AN40: 0 | AO40: 0 | AP40: NA | AQ40: 7277 | AR40: 3749 | AS40: 11049 | AT40: 0.3393067246 | AU40: 1 | AV40: 32 | AW40: 32 | AX40: Hotspot (-7)
A41: Hotspot, Expert, Cosmic, prediction, bq | B41: UPN_Tr2_037 | C41: 2 | D41: 198266834 | E41: T | F41: C | G41: SF3B1 | H41: ENST00000335508 | I41: missense_variant | J41: Aaa/Gaa|p.Lys700Glu/c.2098A>G | K41: 14581 | L41: 3151 | M41: 17757 | N41: 0.177451146 | O41: 1 | P41: 1 | Q41: 0 | R41: 1 | S41: 1 | T41: 0 | U41: 0 | V41: 1 | W41: 5 | X41: NO | Y41: 0 | Z41: COSM84677 | AA41: breast, central_nervous_system, eye, haematopoietic_and_lymphoid_tissue, kidney, NS, oesophagus, pancreas, prostate | AB41: 14, 2, 1, 395, 1, 515, 1, 13, 4 | AC41: NO | AD41: NO | AE41: NO | AF41: 0.0002306 | AG41: NO | AH41: NO | AI41: -3.819 | AJ41: Deleterious | AK41: 35.58 | AL41: 35.35 | AM41: 0 | AN41: 0 | AO41: 0 | AP41: NA | AQ41: 14581 | AR41: 3151 | AS41: 17757 | AT41: 0.177451146 | AU41: 1 | AV41: 32 | AW41: 32 | AX41: Hotspot (-6)
A42: Hotspot, Expert, Cosmic, prediction, bq | B42: UPN_Tr2_039 | C42: 2 | D42: 198266834 | E42: T | F42: C | G42: SF3B1 | H42: ENST00000335508 | I42: missense_variant | J42: Aaa/Gaa|p.Lys700Glu/c.2098A>G | K42: 7048 | L42: 2112 | M42: 9170 | N42: 0.2303162486 | O42: 1 | P42: 1 | Q42: 1 | R42: 1 | S42: 1 | T42: 0 | U42: 0 | V42: 1 | W42: 6 | X42: NO | Y42: 0 | Z42: COSM84677 | AA42: breast, central_nervous_system, eye, haematopoietic_and_lymphoid_tissue, kidney, NS, oesophagus, pancreas, prostate | AB42: 14, 2, 1, 395, 1, 515, 1, 13, 4 | AC42: NO | AD42: NO | AE42: NO | AF42: 0.0002306 | AG42: NO | AH42: NO | AI42: -3.819 | AJ42: Deleterious | AK42: 35.64 | AL42: 35.4 | AM42: 0 | AN42: 0 | AO42: 0 | AP42: NA | AQ42: 7048 | AR42: 2112 | AS42: 9170 | AT42: 0.2303162486 | AU42: 1 | AV42: 32 | AW42: 32 | AX42: Hotspot (-7)
A43: Hotspot, Expert, Cosmic, prediction, bq | B43: UPN_Tr2_054 | C43: 2 | D43: 198266834 | E43: T | F43: C | G43: SF3B1 | H43: ENST00000335508 | I43: missense_variant | J43: Aaa/Gaa|p.Lys700Glu/c.2098A>G | K43: 8690 | L43: 4951 | M43: 13662 | N43: 0.3623920363 | O43: 1 | P43: 1 | Q43: 1 | R43: 1 | S43: 1 | T43: 0 | U43: 1 | V43: 1 | W43: 7 | X43: NO | Y43: 0 | Z43: COSM84677 | AA43: breast, central_nervous_system, eye, haematopoietic_and_lymphoid_tissue, kidney, NS, oesophagus, pancreas, prostate | AB43: 14, 2, 1, 395, 1, 515, 1, 13, 4 | AC43: NO | AD43: NO | AE43: NO | AF43: 0.0002306 | AG43: NO | AH43: NO | AI43: -3.819 | AJ43: Deleterious | AK43: 35.35 | AL43: 34.91 | AM43: 0 | AN43: 0 | AO43: 0 | AP43: NA | AQ43: 8690 | AR43: 4951 | AS43: 13662 | AT43: 0.3623920363 | AU43: 1 | AV43: 32 | AW43: 32 | AX43: Hotspot (-7)
A44: Hotspot, Expert, IonT_2 validated, Cosmic, prediction, bq | B44: UPN_Tr2_008 | C44: 2 | D44: 198266834 | E44: T | F44: C | G44: SF3B1 | H44: ENST00000335508 | I44: missense_variant | J44: Aaa/Gaa|p.Lys700Glu/c.2098A>G | K44: 28967 | L44: 4476 | M44: 33486 | N44: 0.1336678015 | O44: 0 | P44: 1 | Q44: 0 | R44: 1 | S44: 1 | T44: 0 | U44: 0 | V44: 1 | W44: 4 | X44: NO | Y44: 0 | Z44: COSM84677 | AA44: breast, central_nervous_system, eye, haematopoietic_and_lymphoid_tissue, kidney, NS, oesophagus, pancreas, prostate | AB44: 14, 2, 1, 395, 1, 515, 1, 13, 4 | AC44: NO | AD44: NO | AE44: NO | AF44: 0.0002306 | AG44: NO | AH44: NO | AI44: -3.819 | AJ44: Deleterious | AK44: 35.43 | AL44: 35.18 | AM44: 0 | AN44: 0 | AO44: 0 | AP44: NA | AQ44: 28967 | AR44: 4476 | AS44: 33486 | AT44: 0.1336678015 | AU44: 1 | AV44: 32 | AW44: 32 | AX44: Hotspot (-5)
A45: Hotspot, Expert, IonT_2 validated, Cosmic, prediction, bq | B45: UPN_Tr2_010 | C45: 2 | D45: 198266834 | E45: T | F45: C | G45: SF3B1 | H45: ENST00000335508 | I45: missense_variant | J45: Aaa/Gaa|p.Lys700Glu/c.2098A>G | K45: 12898 | L45: 7695 | M45: 20613 | N45: 0.3733081065 | O45: 1 | P45: 1 | Q45: 1 | R45: 1 | S45: 1 | T45: 0 | U45: 1 | V45: 1 | W45: 7 | X45: NO | Y45: 0 | Z45: COSM84677 | AA45: breast, central_nervous_system, eye, haematopoietic_and_lymphoid_tissue, kidney, NS, oesophagus, pancreas, prostate | AB45: 14, 2, 1, 395, 1, 515, 1, 13, 4 | AC45: NO | AD45: NO | AE45: NO | AF45: 0.0002306 | AG45: NO | AH45: NO | AI45: -3.819 | AJ45: Deleterious | AK45: 35.41 | AL45: 35.18 | AM45: 0 | AN45: 0 | AO45: 0 | AP45: NA | AQ45: 12898 | AR45: 7695 | AS45: 20613 | AT45: 0.3733081065 | AU45: 1 | AV45: 32 | AW45: 32 | AX45: Hotspot (-7)
A46: Hotspot, 2nd Illumina, IonT_2 validated, Expert, Cosmic, prediction, bq | B46: UPN_Tr2_013 | C46: 2 | D46: 198266834 | E46: T | F46: C | G46: SF3B1 | H46: ENST00000335508 | I46: missense_variant | J46: Aaa/Gaa|p.Lys700Glu/c.2098A>G | K46: 3936 | L46: 2980 | M46: 6921 | N46: 0.4305736165 | O46: 1 | P46: 1 | Q46: 1 | R46: 1 | S46: 1 | T46: 0 | U46: 1 | V46: 1 | W46: 7 | X46: NO | Y46: 0 | Z46: COSM84677 | AA46: breast, central_nervous_system, eye, haematopoietic_and_lymphoid_tissue, kidney, NS, oesophagus, pancreas, prostate | AB46: 14, 2, 1, 395, 1, 515, 1, 13, 4 | AC46: NO | AD46: NO | AE46: NO | AF46: 0.0002306 | AG46: NO | AH46: NO | AI46: -3.819 | AJ46: Deleterious | AK46: 35.42 | AL46: 35.21 | AM46: 0 | AN46: 0 | AO46: 0 | AP46: NA | AQ46: 3936 | AR46: 2980 | AS46: 6921 | AT46: 0.4305736165 | AU46: 1 | AV46: 32 | AW46: 32 | AX46: Hotspot (-7)
A47: Hotspot, Expert, Cosmic, prediction, bq | B47: UPN_Tr2_092 | C47: 2 | D47: 198266834 | E47: T | F47: C | G47: SF3B1 | H47: ENST00000335508 | I47: missense_variant | J47: Aaa/Gaa|p.Lys700Glu/c.2098A>G | K47: 3115 | L47: 2803 | M47: 5923 | N47: 0.4732399122 | O47: 1 | P47: 1 | Q47: 0 | R47: 1 | S47: 1 | T47: 0 | U47: 1 | V47: 1 | W47: 6 | X47: NO | Y47: 0 | Z47: COSM84677 | AA47: breast, central_nervous_system, eye, haematopoietic_and_lymphoid_tissue, kidney, NS, oesophagus, pancreas, prostate | AB47: 14, 2, 1, 395, 1, 515, 1, 13, 4 | AC47: NO | AD47: NO | AE47: NO | AF47: 0.0002306 | AG47: NO | AH47: NO | AI47: -3.819 | AJ47: Deleterious | AK47: 35.49 | AL47: 35.17 | AM47: 0 | AN47: 0 | AO47: 0 | AP47: NA | AQ47: 3115 | AR47: 2803 | AS47: 5923 | AT47: 0.4732399122 | AU47: 1 | AV47: 32 | AW47: 32 | AX47: Hotspot (-7)
A48: Hotspot, Expert, Cosmic, prediction, bq | B48: UPN_Tr2_064 | C48: 2 | D48: 198266834 | E48: T | F48: C | G48: SF3B1 | H48: ENST00000335508 | I48: missense_variant | J48: Aaa/Gaa|p.Lys700Glu/c.2098A>G | K48: 3199 | L48: 2320 | M48: 5528 | N48: 0.4196816208 | O48: 1 | P48: 1 | Q48: 1 | R48: 1 | S48: 1 | T48: 0 | U48: 1 | V48: 1 | W48: 7 | X48: NO | Y48: 0 | Z48: COSM84677 | AA48: breast, central_nervous_system, eye, haematopoietic_and_lymphoid_tissue, kidney, NS, oesophagus, pancreas, prostate | AB48: 14, 2, 1, 395, 1, 515, 1, 13, 4 | AC48: NO | AD48: NO | AE48: NO | AF48: 0.0002306 | AG48: NO | AH48: NO | AI48: -3.819 | AJ48: Deleterious | AK48: 34.86 | AL48: 34.65 | AM48: 0 | AN48: 0 | AO48: 0 | AP48: NA | AQ48: 3199 | AR48: 2320 | AS48: 5528 | AT48: 0.4196816208 | AU48: 1 | AV48: 32 | AW48: 32 | AX48: Hotspot (-7)
A49: Hotspot, Expert, Cosmic, prediction, bq | B49: UPN_Tr2_065 | C49: 2 | D49: 198266834 | E49: T | F49: C | G49: SF3B1 | H49: ENST00000335508 | I49: missense_variant | J49: Aaa/Gaa|p.Lys700Glu/c.2098A>G | K49: 4878 | L49: 2653 | M49: 7542 | N49: 0.351763458 | O49: 1 | P49: 1 | Q49: 1 | R49: 1 | S49: 1 | T49: 0 | U49: 1 | V49: 1 | W49: 7 | X49: NO | Y49: 0 | Z49: COSM84677 | AA49: breast, central_nervous_system, eye, haematopoietic_and_lymphoid_tissue, kidney, NS, oesophagus, pancreas, prostate | AB49: 14, 2, 1, 395, 1, 515, 1, 13, 4 | AC49: NO | AD49: NO | AE49: NO | AF49: 0.0002306 | AG49: NO | AH49: NO | AI49: -3.819 | AJ49: Deleterious | AK49: 34.73 | AL49: 34.72 | AM49: 0 | AN49: 0 | AO49: 0 | AP49: NA | AQ49: 4878 | AR49: 2653 | AS49: 7542 | AT49: 0.351763458 | AU49: 1 | AV49: 32 | AW49: 32 | AX49: Hotspot (-7)
A50: Hotspot, Expert, Cosmic, prediction, bq | B50: UPN_Tr2_071 | C50: 2 | D50: 198266834 | E50: T | F50: C | G50: SF3B1 | H50: ENST00000335508 | I50: missense_variant | J50: Aaa/Gaa|p.Lys700Glu/c.2098A>G | K50: 3801 | L50: 1692 | M50: 5500 | N50: 0.3076363636 | O50: 1 | P50: 1 | Q50: 1 | R50: 1 | S50: 1 | T50: 0 | U50: 1 | V50: 1 | W50: 7 | X50: NO | Y50: 0 | Z50: COSM84677 | AA50: breast, central_nervous_system, eye, haematopoietic_and_lymphoid_tissue, kidney, NS, oesophagus, pancreas, prostate | AB50: 14, 2, 1, 395, 1, 515, 1, 13, 4 | AC50: NO | AD50: NO | AE50: NO | AF50: 0.0002306 | AG50: NO | AH50: NO | AI50: -3.819 | AJ50: Deleterious | AK50: 34.79 | AL50: 34.82 | AM50: 0 | AN50: 0 | AO50: 0 | AP50: NA | AQ50: 3801 | AR50: 1692 | AS50: 5500 | AT50: 0.3076363636 | AU50: 1 | AV50: 32 | AW50: 32 | AX50: Hotspot (-7)
A51: Hotspot, Expert, Cosmic, prediction, bq | B51: UPN_Tr2_075 | C51: 2 | D51: 198266834 | E51: T | F51: C | G51: SF3B1 | H51: ENST00000335508 | I51: missense_variant | J51: Aaa/Gaa|p.Lys700Glu/c.2098A>G | K51: 6904 | L51: 2935 | M51: 9851 | N51: 0.2979392955 | O51: 1 | P51: 1 | Q51: 1 | R51: 1 | S51: 1 | T51: 0 | U51: 1 | V51: 1 | W51: 7 | X51: NO | Y51: 0 | Z51: COSM84677 | AA51: breast, central_nervous_system, eye, haematopoietic_and_lymphoid_tissue, kidney, NS, oesophagus, pancreas, prostate | AB51: 14, 2, 1, 395, 1, 515, 1, 13, 4 | AC51: NO | AD51: NO | AE51: NO | AF51: 0.0002306 | AG51: NO | AH51: NO | AI51: -3.819 | AJ51: Deleterious | AK51: 34.8 | AL51: 34.76 | AM51: 0 | AN51: 0 | AO51: 0 | AP51: NA | AQ51: 6904 | AR51: 2935 | AS51: 9851 | AT51: 0.2979392955 | AU51: 1 | AV51: 32 | AW51: 32 | AX51: Hotspot (-7)
A52: Hotspot, Expert, Cosmic, prediction, bq | B52: UPN_Tr2_077 | C52: 2 | D52: 198266834 | E52: T | F52: C | G52: SF3B1 | H52: ENST00000335508 | I52: missense_variant | J52: Aaa/Gaa|p.Lys700Glu/c.2098A>G | K52: 6646 | L52: 4216 | M52: 10874 | N52: 0.3877138128 | O52: 1 | P52: 1 | Q52: 1 | R52: 1 | S52: 1 | T52: 0 | U52: 1 | V52: 1 | W52: 7 | X52: NO | Y52: 0 | Z52: COSM84677 | AA52: breast, central_nervous_system, eye, haematopoietic_and_lymphoid_tissue, kidney, NS, oesophagus, pancreas, prostate | AB52: 14, 2, 1, 395, 1, 515, 1, 13, 4 | AC52: NO | AD52: NO | AE52: NO | AF52: 0.0002306 | AG52: NO | AH52: NO | AI52: -3.819 | AJ52: Deleterious | AK52: 34.91 | AL52: 34.88 | AM52: 0 | AN52: 0 | AO52: 0 | AP52: NA | AQ52: 6646 | AR52: 4216 | AS52: 10874 | AT52: 0.3877138128 | AU52: 1 | AV52: 32 | AW52: 32 | AX52: Hotspot (-7)
A53: Hotspot, Expert, Cosmic, prediction, bq | B53: UPN_Tr2_081 | C53: 2 | D53: 198266834 | E53: T | F53: C | G53: SF3B1 | H53: ENST00000335508 | I53: missense_variant | J53: Aaa/Gaa|p.Lys700Glu/c.2098A>G | K53: 3840 | L53: 2694 | M53: 6541 | N53: 0.4118636294 | O53: 1 | P53: 1 | Q53: 0 | R53: 1 | S53: 1 | T53: 0 | U53: 1 | V53: 1 | W53: 6 | X53: NO | Y53: 0 | Z53: COSM84677 | AA53: breast, central_nervous_system, eye, haematopoietic_and_lymphoid_tissue, kidney, NS, oesophagus, pancreas, prostate | AB53: 14, 2, 1, 395, 1, 515, 1, 13, 4 | AC53: NO | AD53: NO | AE53: NO | AF53: 0.0002306 | AG53: NO | AH53: NO | AI53: -3.819 | AJ53: Deleterious | AK53: 34.93 | AL53: 34.76 | AM53: 0 | AN53: 0 | AO53: 0 | AP53: NA | AQ53: 3840 | AR53: 2694 | AS53: 6541 | AT53: 0.4118636294 | AU53: 1 | AV53: 32 | AW53: 32 | AX53: Hotspot (-7)
A54: Hotspot | B54: UPN_Tr2_084 | C54: 2 | D54: 198266834 | E54: T | F54: C | G54: SF3B1 | H54: ENST00000335508 | I54: missense_variant | J54: Aaa/Gaa|p.Lys700Glu/c.2098A>G | K54: 11965 | L54: 954 | M54: 12931 | N54: 0.07377619674 | O54: 0 | P54: 0 | Q54: 0 | R54: 1 | S54: 1 | T54: 0 | U54: 0 | V54: 1 | W54: 3 | X54: NO | Y54: 0 | Z54: COSM84677 | AA54: breast, central_nervous_system, eye, haematopoietic_and_lymphoid_tissue, kidney, NS, oesophagus, pancreas, prostate | AB54: 14, 2, 1, 395, 1, 515, 1, 13, 4 | AC54: NO | AD54: NO | AE54: NO | AF54: 0.0002306 | AG54: NO | AH54: NO | AI54: -3.819 | AJ54: Deleterious | AK54: 34.73 | AL54: 34.57 | AM54: 0 | AN54: 0 | AO54: 0 | AP54: NA | AQ54: 11965 | AR54: 954 | AS54: 12931 | AT54: 0.07377619674 | AU54: 1 | AV54: 32 | AW54: 32 | AX54: Hotspot (-4)
A55: Hotspot, 2nd Illumina, Expert, Cosmic, prediction, bq | B55: UPN_Tr2_086 | C55: 2 | D55: 198266834 | E55: T | F55: C | G55: SF3B1 | H55: ENST00000335508 | I55: missense_variant | J55: Aaa/Gaa|p.Lys700Glu/c.2098A>G | K55: 6790 | L55: 1151 | M55: 7957 | N55: 0.1446525072 | O55: 1 | P55: 1 | Q55: 0 | R55: 1 | S55: 1 | T55: 0 | U55: 0 | V55: 1 | W55: 5 | X55: NO | Y55: 0 | Z55: COSM84677 | AA55: breast, central_nervous_system, eye, haematopoietic_and_lymphoid_tissue, kidney, NS, oesophagus, pancreas, prostate | AB55: 14, 2, 1, 395, 1, 515, 1, 13, 4 | AC55: NO | AD55: NO | AE55: NO | AF55: 0.0002306 | AG55: NO | AH55: NO | AI55: -3.819 | AJ55: Deleterious | AK55: 34.87 | AL55: 34.7 | AM55: 0 | AN55: 0 | AO55: 0 | AP55: NA | AQ55: 6790 | AR55: 1151 | AS55: 7957 | AT55: 0.1446525072 | AU55: 1 | AV55: 32 | AW55: 32 | AX55: Hotspot (-6)
A56: Hotspot, Expert, Cosmic, prediction, bq | B56: UPN_Tr2_094 | C56: 2 | D56: 198266834 | E56: T | F56: C | G56: SF3B1 | H56: ENST00000335508 | I56: missense_variant | J56: Aaa/Gaa|p.Lys700Glu/c.2098A>G | K56: 7820 | L56: 227 | M56: 8055 | N56: 0.02818125388 | O56: 0 | P56: 0 | Q56: 0 | R56: 0 | S56: 1 | T56: 0 | U56: 0 | V56: 1 | W56: 2 | X56: NO | Y56: 0 | Z56: COSM84677 | AA56: breast, central_nervous_system, eye, haematopoietic_and_lymphoid_tissue, kidney, NS, oesophagus, pancreas, prostate | AB56: 14, 2, 1, 395, 1, 515, 1, 13, 4 | AC56: NO | AD56: NO | AE56: NO | AF56: 0.0002306 | AG56: NO | AH56: NO | AI56: -3.819 | AJ56: Deleterious | AK56: 35.48 | AL56: 35.19 | AM56: 0 | AN56: 0 | AO56: 0 | AP56: NA | AQ56: 7820 | AR56: 227 | AS56: 8055 | AT56: 0.02818125388 | AU56: 1 | AV56: 32 | AW56: 32 | AX56: Hotspot (-2)
A57: Hotspot | B57: UPN_Tr2_097 | C57: 2 | D57: 198266834 | E57: T | F57: C | G57: SF3B1 | H57: ENST00000335508 | I57: missense_variant | J57: Aaa/Gaa|p.Lys700Glu/c.2098A>G | K57: 8437 | L57: 484 | M57: 8930 | N57: 0.05419932811 | O57: 0 | P57: 0 | Q57: 0 | R57: 1 | S57: 1 | T57: 0 | U57: 0 | V57: 1 | W57: 3 | X57: NO | Y57: 0 | Z57: COSM84677 | AA57: breast, central_nervous_system, eye, haematopoietic_and_lymphoid_tissue, kidney, NS, oesophagus, pancreas, prostate | AB57: 14, 2, 1, 395, 1, 515, 1, 13, 4 | AC57: NO | AD57: NO | AE57: NO | AF57: 0.0002306 | AG57: NO | AH57: NO | AI57: -3.819 | AJ57: Deleterious | AK57: 35.49 | AL57: 35.37 | AM57: 0 | AN57: 0 | AO57: 0 | AP57: NA | AQ57: 8437 | AR57: 484 | AS57: 8930 | AT57: 0.05419932811 | AU57: 1 | AV57: 32 | AW57: 32 | AX57: Hotspot (-4)
A58: Hotspot, Expert, Cosmic, prediction, bq | B58: UPN_Tr2_100 | C58: 2 | D58: 198266834 | E58: T | F58: C | G58: SF3B1 | H58: ENST00000335508 | I58: missense_variant | J58: Aaa/Gaa|p.Lys700Glu/c.2098A>G | K58: 4443 | L58: 2282 | M58: 6730 | N58: 0.3390787519 | O58: 1 | P58: 1 | Q58: 0 | R58: 1 | S58: 1 | T58: 0 | U58: 1 | V58: 1 | W58: 6 | X58: NO | Y58: 0 | Z58: COSM84677 | AA58: breast, central_nervous_system, eye, haematopoietic_and_lymphoid_tissue, kidney, NS, oesophagus, pancreas, prostate | AB58: 14, 2, 1, 395, 1, 515, 1, 13, 4 | AC58: NO | AD58: NO | AE58: NO | AF58: 0.0002306 | AG58: NO | AH58: NO | AI58: -3.819 | AJ58: Deleterious | AK58: 35.47 | AL58: 35.32 | AM58: 0 | AN58: 0 | AO58: 0 | AP58: NA | AQ58: 4443 | AR58: 2282 | AS58: 6730 | AT58: 0.3390787519 | AU58: 1 | AV58: 32 | AW58: 32 | AX58: Hotspot (-7)
A59: Hotspot, Expert, Cosmic, prediction, bq | B59: UPN_Tr2_103 | C59: 2 | D59: 198266834 | E59: T | F59: C | G59: SF3B1 | H59: ENST00000335508 | I59: missense_variant | J59: Aaa/Gaa|p.Lys700Glu/c.2098A>G | K59: 6360 | L59: 1641 | M59: 8006 | N59: 0.2049712715 | O59: 1 | P59: 1 | Q59: 0 | R59: 1 | S59: 1 | T59: 0 | U59: 0 | V59: 1 | W59: 5 | X59: NO | Y59: 0 | Z59: COSM84677 | AA59: breast, central_nervous_system, eye, haematopoietic_and_lymphoid_tissue, kidney, NS, oesophagus, pancreas, prostate | AB59: 14, 2, 1, 395, 1, 515, 1, 13, 4 | AC59: NO | AD59: NO | AE59: NO | AF59: 0.0002306 | AG59: NO | AH59: NO | AI59: -3.819 | AJ59: Deleterious | AK59: 35.5 | AL59: 35.33 | AM59: 0 | AN59: 0 | AO59: 0 | AP59: NA | AQ59: 6360 | AR59: 1641 | AS59: 8006 | AT59: 0.2049712715 | AU59: 1 | AV59: 32 | AW59: 32 | AX59: Hotspot (-6)
A60: Hotspot, Expert, Cosmic, prediction, bq | B60: UPN_Tr2_105 | C60: 2 | D60: 198266834 | E60: T | F60: C | G60: SF3B1 | H60: ENST00000335508 | I60: missense_variant | J60: Aaa/Gaa|p.Lys700Glu/c.2098A>G | K60: 5039 | L60: 2676 | M60: 7722 | N60: 0.3465423465 | O60: 1 | P60: 1 | Q60: 0 | R60: 1 | S60: 1 | T60: 0 | U60: 1 | V60: 1 | W60: 6 | X60: NO | Y60: 0 | Z60: COSM84677 | AA60: breast, central_nervous_system, eye, haematopoietic_and_lymphoid_tissue, kidney, NS, oesophagus, pancreas, prostate | AB60: 14, 2, 1, 395, 1, 515, 1, 13, 4 | AC60: NO | AD60: NO | AE60: NO | AF60: 0.0002306 | AG60: NO | AH60: NO | AI60: -3.819 | AJ60: Deleterious | AK60: 35.46 | AL60: 35.31 | AM60: 0 | AN60: 0 | AO60: 0 | AP60: NA | AQ60: 5039 | AR60: 2676 | AS60: 7722 | AT60: 0.3465423465 | AU60: 1 | AV60: 32 | AW60: 32 | AX60: Hotspot (-7)
A61: Hotspot, Expert, Cosmic, prediction, bq | B61: UPN_Tr2_109 | C61: 2 | D61: 198266834 | E61: T | F61: C | G61: SF3B1 | H61: ENST00000335508 | I61: missense_variant | J61: Aaa/Gaa|p.Lys700Glu/c.2098A>G | K61: 8696 | L61: 2668 | M61: 11372 | N61: 0.2346113261 | O61: 1 | P61: 1 | Q61: 0 | R61: 1 | S61: 1 | T61: 0 | U61: 0 | V61: 1 | W61: 5 | X61: NO | Y61: 0 | Z61: COSM84677 | AA61: breast, central_nervous_system, eye, haematopoietic_and_lymphoid_tissue, kidney, NS, oesophagus, pancreas, prostate | AB61: 14, 2, 1, 395, 1, 515, 1, 13, 4 | AC61: NO | AD61: NO | AE61: NO | AF61: 0.0002306 | AG61: NO | AH61: NO | AI61: -3.819 | AJ61: Deleterious | AK61: 35.46 | AL61: 35.34 | AM61: 0 | AN61: 0 | AO61: 0 | AP61: NA | AQ61: 8696 | AR61: 2668 | AS61: 11372 | AT61: 0.2346113261 | AU61: 1 | AV61: 32 | AW61: 32 | AX61: Hotspot (-6)
A62: Hotspot | B62: UPN_Tr2_111 | C62: 2 | D62: 198266834 | E62: T | F62: C | G62: SF3B1 | H62: ENST00000335508 | I62: missense_variant | J62: Aaa/Gaa|p.Lys700Glu/c.2098A>G | K62: 10169 | L62: 840 | M62: 11022 | N62: 0.07621121394 | O62: 0 | P62: 0 | Q62: 0 | R62: 1 | S62: 1 | T62: 0 | U62: 0 | V62: 1 | W62: 3 | X62: NO | Y62: 0 | Z62: COSM84677 | AA62: breast, central_nervous_system, eye, haematopoietic_and_lymphoid_tissue, kidney, NS, oesophagus, pancreas, prostate | AB62: 14, 2, 1, 395, 1, 515, 1, 13, 4 | AC62: NO | AD62: NO | AE62: NO | AF62: 0.0002306 | AG62: NO | AH62: NO | AI62: -3.819 | AJ62: Deleterious | AK62: 35.47 | AL62: 35.33 | AM62: 0 | AN62: 0 | AO62: 0 | AP62: NA | AQ62: 10169 | AR62: 840 | AS62: 11022 | AT62: 0.07621121394 | AU62: 1 | AV62: 32 | AW62: 32 | AX62: Hotspot (-4)
A63: Hotspot, Expert, Cosmic, prediction, bq | B63: UPN_Tr2_050 | C63: 2 | D63: 198267359 | E63: C | F63: A | G63: SF3B1 | H63: ENST00000335508 | I63: missense_variant | J63: aaG/aaT|p.Lys666Asn/c.1998G>T | K63: 6315 | L63: 3467 | M63: 9808 | N63: 0.3534869494 | O63: 1 | P63: 1 | Q63: 0 | R63: 0 | S63: 1 | T63: 1 | U63: 1 | V63: 1 | W63: 6 | X63: NO | Y63: NO | Z63: COSM131557 | AA63: endometrium, haematopoietic_and_lymphoid_tissue, NS | AB63: 1, 15, 28 | AC63: NO | AD63: NO | AE63: NO | AF63: NA | AG63: NO | AH63: NO | AI63: -4.774 | AJ63: Deleterious | AK63: 35.23 | AL63: 33.56 | AM63: 4719 | AN63: 3461 | AO63: 8195 | AP63: 0.4223306894 | AQ63: 1596 | AR63: 6 | AS63: 1613 | AT63: 0.003719776813 | AU63: 2 | AV63: 1 | AW63: 2 | AX63: Hotspot (-8)
A64: Hotspot, Expert, Cosmic, prediction, bq | B64: UPN_Tr2_019 | C64: 2 | D64: 198267359 | E64: C | F64: G | G64: SF3B1 | H64: ENST00000335508 | I64: missense_variant | J64: aaG/aaC|p.Lys666Asn/c.1998G>C | K64: 9789 | L64: 116 | M64: 9938 | N64: 0.01167236869 | O64: 0 | P64: 0 | Q64: 0 | R64: 0 | S64: 1 | T64: 0 | U64: 0 | V64: 0 | W64: 1 | X64: 0.0116 | Y64: NO | Z64: COSM132937 | AA64: haematopoietic_and_lymphoid_tissue, liver | AB64: 20, 1 | AC64: NO | AD64: rs377023736 | AE64: NO | AF64: NA | AG64: NO | AH64: NO | AI64: -4.774 | AJ64: Deleterious | AK64: 35.6 | AL64: 34.95 | AM64: 7595 | AN64: 116 | AO64: 7738 | AP64: 0.01499095373 | AQ64: 2194 | AR64: 0 | AS64: 2200 | AT64: 0 | AU64: 2 | AV64: 1 | AW64: 2 | AX64: Hotspot (-2)
A65: Hotspot, Expert, Cosmic, prediction, bq | B65: UPN_Tr2_101 | C65: 2 | D65: 198267360 | E65: T | F65: A | G65: SF3B1 | H65: ENST00000335508 | I65: missense_variant | J65: aAg/aTg|p.Lys666Met/c.1997A>T | K65: 7032 | L65: 2313 | M65: 9365 | N65: 0.246983449 | O65: 1 | P65: 1 | Q65: 0 | R65: 0 | S65: 1 | T65: 1 | U65: 0 | V65: 0 | W65: 4 | X65: 0.0116 | Y65: NO | Z65: COSM110698 | AA65: haematopoietic_and_lymphoid_tissue | AB65: 9 | AC65: NO | AD65: rs374250186 | AE65: NO | AF65: NO | AG65: NO | AH65: NO | AI65: -5.729 | AJ65: Deleterious | AK65: 35.15 | AL65: 35.61 | AM65: 5452 | AN65: 2305 | AO65: 7775 | AP65: 0.2964630225 | AQ65: 1580 | AR65: 8 | AS65: 1590 | AT65: 0.005031446541 | AU65: 2 | AV65: 1 | AW65: 1 | AX65: Hotspot (-6)
A66: Hotspot, Expert, Cosmic, prediction, bq | B66: UPN_Tr2_045 | C66: 2 | D66: 198267361 | E66: T | F66: C | G66: SF3B1 | H66: ENST00000335508 | I66: missense_variant | J66: Aag/Gag|p.Lys666Glu/c.1996A>G | K66: 9272 | L66: 1430 | M66: 10751 | N66: 0.1330108827 | O66: 0 | P66: 1 | Q66: 0 | R66: 0 | S66: 1 | T66: 1 | U66: 0 | V66: 0 | W66: 3 | X66: NO | Y66: NO | Z66: COSM110694 | AA66: breast, haematopoietic_and_lymphoid_tissue, pancreas | AB66: 1, 17, 1 | AC66: NO | AD66: NO | AE66: NO | AF66: NO | AG66: NO | AH66: NO | AI66: -3.819 | AJ66: Deleterious | AK66: 34.05 | AL66: 35.51 | AM66: 7321 | AN66: 1427 | AO66: 8795 | AP66: 0.1622512791 | AQ66: 1951 | AR66: 3 | AS66: 1956 | AT66: 0.001533742331 | AU66: 2 | AV66: 1 | AW66: 1 | AX66: Hotspot (-5)
A67: Hotspot, Sanger other sample, 454 validated, Expert, Cosmic, prediction, bq | B67: UPN_Tr2_012 | C67: 2 | D67: 198267371 | E67: G | F67: C | G67: SF3B1 | H67: ENST00000335508 | I67: missense_variant | J67: caC/caG|p.His662Gln/c.1986C>G | K67: 4256 | L67: 2332 | M67: 6608 | N67: 0.352905569 | O67: 1 | P67: 1 | Q67: 0 | R67: 0 | S67: 1 | T67: 0 | U67: 1 | V67: 1 | W67: 5 | X67: NO | Y67: NO | Z67: COSM110692 | AA67: haematopoietic_and_lymphoid_tissue, NS, prostate | AB67: 30, 35, 1 | AC67: NO | AD67: NO | AE67: NO | AF67: NA | AG67: NO | AH67: NO | AI67: -7.601 | AJ67: Deleterious | AK67: 34.58 | AL67: 35.49 | AM67: 3670 | AN67: 2332 | AO67: 6021 | AP67: 0.3873110779 | AQ67: 586 | AR67: 0 | AS67: 587 | AT67: 0 | AU67: 2 | AV67: 1 | AW67: 3 | AX67: Hotspot (-7)
A68: Hotspot, Sanger other sample, Expert, Cosmic, prediction, bq | B68: UPN_Tr2_014 | C68: 2 | D68: 198267371 | E68: G | F68: T | G68: SF3B1 | H68: ENST00000335508 | I68: missense_variant | J68: caC/caA|p.His662Gln/c.1986C>A | K68: 9072 | L68: 2344 | M68: 11441 | N68: 0.204877196 | O68: 1 | P68: 1 | Q68: 0 | R68: 0 | S68: 1 | T68: 1 | U68: 0 | V68: 0 | W68: 4 | X68: NO | Y68: NO | Z68: COSM130416 | AA68: haematopoietic_and_lymphoid_tissue | AB68: 17 | AC68: NO | AD68: NO | AE68: NO | AF68: NA | AG68: NO | AH68: NO | AI68: -7.601 | AJ68: Deleterious | AK68: 35.11 | AL68: 35.11 | AM68: 7040 | AN68: 2342 | AO68: 9407 | AP68: 0.2489635378 | AQ68: 2032 | AR68: 2 | AS68: 2034 | AT68: 0.0009832841691 | AU68: 2 | AV68: 2 | AW68: 3 | AX68: Hotspot (-6)
A69: Hotspot, Sanger other sample, Expert, Cosmic, prediction, bq | B69: UPN_Tr2_053 | C69: 2 | D69: 198267371 | E69: G | F69: T | G69: SF3B1 | H69: ENST00000335508 | I69: missense_variant | J69: caC/caA|p.His662Gln/c.1986C>A | K69: 12066 | L69: 2062 | M69: 14177 | N69: 0.1454468505 | O69: 0 | P69: 1 | Q69: 0 | R69: 0 | S69: 1 | T69: 1 | U69: 0 | V69: 0 | W69: 3 | X69: NO | Y69: NO | Z69: COSM130416 | AA69: haematopoietic_and_lymphoid_tissue | AB69: 17 | AC69: NO | AD69: NO | AE69: NO | AF69: NA | AG69: NO | AH69: NO | AI69: -7.601 | AJ69: Deleterious | AK69: 34.41 | AL69: 34.42 | AM69: 9562 | AN69: 2061 | AO69: 11670 | AP69: 0.1766066838 | AQ69: 2504 | AR69: 1 | AS69: 2507 | AT69: 0.0003988831272 | AU69: 2 | AV69: 2 | AW69: 3 | AX69: Hotspot (-5)
A70: Hotspot, Expert, 454 validated, IonT_1 validated, Cosmic, prediction, bq | B70: UPN_Tr2_015 | C70: 2 | D70: 198267373 | E70: G | F70: C | G70: SF3B1 | H70: ENST00000335508 | I70: missense_variant | J70: Cac/Gac|p.His662Asp/c.1984C>G | K70: 12268 | L70: 3397 | M70: 15710 | N70: 0.2162316996 | O70: 1 | P70: 1 | Q70: 0 | R70: 0 | S70: 1 | T70: 1 | U70: 0 | V70: 0 | W70: 4 | X70: NO | Y70: NO | Z70: COSM131560 | AA70: haematopoietic_and_lymphoid_tissue | AB70: 10 | AC70: NO | AD70: NO | AE70: NO | AF70: NO | AG70: NO | AH70: NO | AI70: -8.551 | AJ70: Deleterious | AK70: 35 | AL70: 35.57 | AM70: 9707 | AN70: 3396 | AO70: 13144 | AP70: 0.2583688375 | AQ70: 2561 | AR70: 1 | AS70: 2566 | AT70: 0.0003897116134 | AU70: 2 | AV70: 1 | AW70: 1 | AX70: Hotspot (-6)
A71: Hotspot, Expert, Cosmic, prediction, bq | B71: UPN_Tr2_069 | C71: 2 | D71: 198267481 | E71: T | F71: C | G71: SF3B1 | H71: ENST00000335508 | I71: missense_variant | J71: Aac/Gac|p.Asn626Asp/c.1876A>G | K71: 7270 | L71: 4782 | M71: 12092 | N71: 0.3954680781 | O71: 1 | P71: 1 | Q71: 1 | R71: 1 | S71: 1 | T71: 1 | U71: 1 | V71: 1 | W71: 8 | X71: NO | Y71: NO | Z71: COSM131555 | AA71: breast, haematopoietic_and_lymphoid_tissue, prostate | AB71: 1, 2, 1 | AC71: NO | AD71: NO | AE71: NO | AF71: 8.236e-06 | AG71: NO | AH71: NO | AI71: -4.744 | AJ71: Deleterious | AK71: 34.55 | AL71: 33.29 | AM71: 355 | AN71: 196 | AO71: 568 | AP71: 0.3450704225 | AQ71: 6915 | AR71: 4586 | AS71: 11524 | AT71: 0.3979521 | AU71: 0.04489453054 | AV71: 1 | AW71: 1 | AX71: Hotspot (-9)
A72: Hotspot, Sanger other sample, 454 validated, Expert, Cosmic, prediction, bq | B72: UPN_Tr2_005 | C72: 2 | D72: 198267484 | E72: G | F72: A | G72: SF3B1 | H72: ENST00000335508 | I72: missense_variant | J72: Cgt/Tgt|p.Arg625Cys/c.1873C>T | K72: 1209 | L72: 478 | M72: 1693 | N72: 0.2823390431 | O72: 1 | P72: 1 | Q72: 1 | R72: 1 | S72: 1 | T72: 0 | U72: 1 | V72: 1 | W72: 7 | X72: NO | Y72: NO | Z72: COSM110696 | AA72: eye, haematopoietic_and_lymphoid_tissue, pancreas, salivary_gland, skin, urinary_tract | AB72: 12, 11, 2, 1, 3, 1 | AC72: NO | AD72: NO | AE72: NO | AF72: 1.647e-05 | AG72: NO | AH72: NO | AI72: -7.491 | AJ72: Deleterious | AK72: 31.77 | AL72: 33.99 | AM72: 0 | AN72: 0 | AO72: 0 | AP72: NA | AQ72: 1209 | AR72: 478 | AS72: 1693 | AT72: 0.2823390431 | AU72: 1 | AV72: 4 | AW72: 4 | AX72: Hotspot (-7)
A73: Hotspot, Sanger validated, 454 validated, IonT_1 validated, Expert, Cosmic, prediction, bq | B73: UPN_Tr2_035 | C73: 2 | D73: 198267484 | E73: G | F73: A | G73: SF3B1 | H73: ENST00000335508 | I73: missense_variant | J73: Cgt/Tgt|p.Arg625Cys/c.1873C>T | K73: 7423 | L73: 2077 | M73: 9524 | N73: 0.2180806384 | O73: 1 | P73: 1 | Q73: 1 | R73: 1 | S73: 1 | T73: 0 | U73: 0 | V73: 1 | W73: 6 | X73: NO | Y73: NO | Z73: COSM110696 | AA73: eye, haematopoietic_and_lymphoid_tissue, pancreas, salivary_gland, skin, urinary_tract | AB73: 12, 11, 2, 1, 3, 1 | AC73: NO | AD73: NO | AE73: NO | AF73: 1.647e-05 | AG73: NO | AH73: NO | AI73: -7.491 | AJ73: Deleterious | AK73: 30.1 | AL73: 33.45 | AM73: 0 | AN73: 0 | AO73: 0 | AP73: NA | AQ73: 7423 | AR73: 2077 | AS73: 9524 | AT73: 0.2180806384 | AU73: 1 | AV73: 4 | AW73: 4 | AX73: Hotspot (-7)
A74: Hotspot, Sanger other sample, 454 validated Expert, Cosmic, prediction, bq | B74: UPN_Tr2_011 | C74: 2 | D74: 198267484 | E74: G | F74: A | G74: SF3B1 | H74: ENST00000335508 | I74: missense_variant | J74: Cgt/Tgt|p.Arg625Cys/c.1873C>T | K74: 12174 | L74: 3176 | M74: 15429 | N74: 0.2058461339 | O74: 1 | P74: 1 | Q74: 1 | R74: 1 | S74: 1 | T74: 0 | U74: 0 | V74: 1 | W74: 6 | X74: NO | Y74: NO | Z74: COSM110696 | AA74: eye, haematopoietic_and_lymphoid_tissue, pancreas, salivary_gland, skin, urinary_tract | AB74: 12, 11, 2, 1, 3, 1 | AC74: NO | AD74: NO | AE74: NO | AF74: 1.647e-05 | AG74: NO | AH74: NO | AI74: -7.491 | AJ74: Deleterious | AK74: 31.38 | AL74: 33.78 | AM74: 16 | AN74: 0 | AO74: 16 | AP74: 0 | AQ74: 12158 | AR74: 3176 | AS74: 15413 | AT74: 0.2060598196 | AU74: 0.05610033861 | AV74: 4 | AW74: 4 | AX74: Hotspot (-6)
A75: Hotspot, Sanger other sample, Expert, Cosmic, prediction, bq | B75: UPN_Tr2_095 | C75: 2 | D75: 198267484 | E75: G | F75: A | G75: SF3B1 | H75: ENST00000335508 | I75: missense_variant | J75: Cgt/Tgt|p.Arg625Cys/c.1873C>T | K75: 5514 | L75: 3336 | M75: 8878 | N75: 0.3757603064 | O75: 1 | P75: 1 | Q75: 0 | R75: 1 | S75: 1 | T75: 0 | U75: 1 | V75: 1 | W75: 6 | X75: NO | Y75: NO | Z75: COSM110696 | AA75: eye, haematopoietic_and_lymphoid_tissue, pancreas, salivary_gland, skin, urinary_tract | AB75: 12, 11, 2, 1, 3, 1 | AC75: NO | AD75: NO | AE75: NO | AF75: 1.647e-05 | AG75: NO | AH75: NO | AI75: -7.491 | AJ75: Deleterious | AK75: 30.02 | AL75: 34.4 | AM75: 0 | AN75: 0 | AO75: 0 | AP75: NA | AQ75: 5514 | AR75: 3336 | AS75: 8878 | AT75: 0.3757603064 | AU75: 1 | AV75: 4 | AW75: 4 | AX75: Hotspot (-7)
A76: Hotspot, Sanger validated, 454 validated, IonT_1 validated, Expert, Cosmic, prediction, bq | B76: UPN_Tr2_024 | C76: 2 | D76: 198267491 | E76: C | F76: A | G76: SF3B1 | H76: ENST00000335508 | I76: missense_variant | J76: gaG/gaT|p.Glu622Asp/c.1866G>T | K76: 3950 | L76: 1186 | M76: 5145 | N76: 0.2305150632 | O76: 1 | P76: 1 | Q76: 1 | R76: 1 | S76: 1 | T76: 0 | U76: 0 | V76: 1 | W76: 6 | X76: NO | Y76: NO | Z76: COSM110693 | AA76: haematopoietic_and_lymphoid_tissue | AB76: 30 | AC76: NO | AD76: NO | AE76: NO | AF76: NO | AG76: NO | AH76: NO | AI76: -2.737 | AJ76: Deleterious | AK76: 34.95 | AL76: 35.09 | AM76: 0 | AN76: 0 | AO76: 0 | AP76: NA | AQ76: 3950 | AR76: 1186 | AS76: 5145 | AT76: 0.2305150632 | AU76: 1 | AV76: 1 | AW76: 1 | AX76: Hotspot (-8)
A77: Hotspot | B77: UPN_Tr2_047 | C77: 2 | D77: 198267501 | E77: T | F77: A | G77: SF3B1 | H77: ENST00000335508 | I77: missense_variant | J77: aAc/aTc|p.Asn619Ile/c.1856A>T | K77: 1044 | L77: 29 | M77: 1081 | N77: 0.02682701203 | O77: 0 | P77: 0 | Q77: 0 | R77: 0 | S77: 1 | T77: 0 | U77: 0 | V77: 1 | W77: 2 | X77: NO | Y77: NO | Z77: NO | AA77: NO | AB77: O | AC77: NO | AD77: NO | AE77: NO | AF77: NO | AG77: NO | AH77: NO | AI77: -6.979 | AJ77: Deleterious | AK77: 35.42 | AL77: 34.55 | AM77: 0 | AN77: 0 | AO77: 0 | AP77: NA | AQ77: 1044 | AR77: 29 | AS77: 1081 | AT77: 0.02682701203 | AU77: 1 | AV77: 1 | AW77: 1 | AX77: Hotspot (-3)
A78: Hotspot | B78: UPN_Tr2_048 | C78: 2 | D78: 198267705 | E78: C | F78: T | G78: SF3B1 | H78: ENST00000335508 | I78: missense_variant | J78: Gaa/Aaa|p.Glu592Lys/c.1774G>A | K78: 745 | L78: 30 | M78: 777 | N78: 0.03861003861 | O78: 0 | P78: 0 | Q78: 0 | R78: 0 | S78: 1 | T78: 0 | U78: 0 | V78: 1 | W78: 2 | X78: NO | Y78: NO | Z78: COSM132936 | AA78: haematopoietic_and_lymphoid_tissue | AB78: 6 | AC78: NO | AD78: NO | AE78: NO | AF78: NO | AG78: NO | AH78: NO | AI78: -3.517 | AJ78: Deleterious | AK78: 33.45 | AL78: 35 | AM78: 0 | AN78: 0 | AO78: 0 | AP78: NA | AQ78: 745 | AR78: 30 | AS78: 777 | AT78: 0.03861003861 | AU78: 1 | AV78: 1 | AW78: 1 | AX78: Hotspot (-4)
A79: Expert, freq | B79: UPN_Tr2_067 | C79: 4 | D79: 106155606 | E79: T | F79: TA | G79: TET2 | H79: ENST00000380013 | I79: frameshift_variant | J79: aac/aaAc|p.Asn170fs/c.509dupA | K79: 58678 | L79: 16151 | M79: 58895 | N79: 0.2742338059 | O79: 1 | P79: 1 | Q79: 0 | R79: 1 | S79: 1 | T79: 1 | U79: 0 | V79: 1 | W79: 6 | X79: NO | Y79: NO | Z79: NO | AA79: NA | AB79: NA | AC79: NO | AD79: NO | AE79: NO | AF79: NO | AG79: NO | AH79: NO | AI79: NA | AJ79: NA | AK79: 32.77 | AL79: NA | AM79: 29643 | AN79: 8227 | AO79: 29766 | AP79: 0.2763891689 | AQ79: 29035 | AR79: 7924 | AS79: 29129 | AT79: 0.272031309 | AU79: 0.3462173932 | AV79: 1 | AW79: 1 | AX79: Probably True (-5)
A80: 454 validated, Expert, freq | B80: UPN_Tr2_005 | C80: 4 | D80: 106156426 | E80: AC | F80: A | G80: TET2 | H80: ENST00000380013 | I80: frameshift_variant | J80: aca/|p.Thr443fs/c.1328delC | K80: 1886 | L80: 3408 | M80: 5310 | N80: 0.6418079096 | O80: 1 | P80: 1 | Q80: 1 | R80: 1 | S80: 1 | T80: 1 | U80: 0 | V80: 1 | W80: 7 | X80: NO | Y80: NO | Z80: NO | AA80: NA | AB80: NA | AC80: NO | AD80: NO | AE80: NO | AF80: NO | AG80: NO | AH80: NO | AI80: NA | AJ80: NA | AK80: 34.47 | AL80: NA | AM80: 934 | AN80: 1751 | AO80: 2695 | AP80: 0.6497217069 | AQ80: 952 | AR80: 1657 | AS80: 2615 | AT80: 0.6336520076 | AU80: 0.1966457557 | AV80: 1 | AW80: 1 | AX80: Probably True (-5)
A81: Expert, bq, freq | B81: UPN_Tr2_028 | C81: 4 | D81: 106156675 | E81: C | F81: T | G81: TET2 | H81: ENST00000380013 | I81: stop_gained | J81: Cag/Tag|p.Gln526*/c.1576C>T | K81: 11006 | L81: 5111 | M81: 16156 | N81: 0.3163530577 | O81: 0 | P81: 1 | Q81: 0 | R81: 0 | S81: 1 | T81: 1 | U81: 0 | V81: 1 | W81: 4 | X81: NO | Y81: NO | Z81: NO | AA81: NO | AB81: O | AC81: NO | AD81: NO | AE81: NO | AF81: NO | AG81: NO | AH81: NO | AI81: NA | AJ81: NA | AK81: 35.28 | AL81: 35.63 | AM81: 3233 | AN81: 2 | AO81: 3255 | AP81: 0.0006144393241 | AQ81: 7773 | AR81: 5109 | AS81: 12901 | AT81: 0.3960158127 | AU81: 2 | AV81: 1 | AW81: 1 | AX81: Probably True (-2)
A82: Expert, bq, freq | B82: UPN_Tr2_049 | C82: 4 | D82: 106156795 | E82: G | F82: T | G82: TET2 | H82: ENST00000380013 | I82: stop_gained | J82: Gaa/Taa|p.Glu566*/c.1696G>T | K82: 4482 | L82: 7629 | M82: 12223 | N82: 0.6241511904 | O82: 1 | P82: 1 | Q82: 1 | R82: 1 | S82: 1 | T82: 1 | U82: 1 | V82: 1 | W82: 8 | X82: NO | Y82: NO | Z82: NO | AA82: NO | AB82: O | AC82: NO | AD82: NO | AE82: NO | AF82: NO | AG82: NO | AH82: NO | AI82: NA | AJ82: NA | AK82: 32.89 | AL82: 32.67 | AM82: 2219 | AN82: 3747 | AO82: 6053 | AP82: 0.619031885 | AQ82: 2263 | AR82: 3882 | AS82: 6170 | AT82: 0.6291734198 | AU82: 0.678843892 | AV82: 1 | AW82: 1 | AX82: Probably True (-5)
A83: 2nd Illumina, 454 validated, Expert, freq | B83: UPN_Tr2_001 | C83: 4 | D83: 106157105 | E83: CA | F83: C | G83: TET2 | H83: ENST00000380013 | I83: frameshift_variant | J83: aaa/|p.Ala671fs/c.2010delA | K83: 19432 | L83: 7460 | M83: 26997 | N83: 0.2763269993 | O83: 1 | P83: 1 | Q83: 1 | R83: 1 | S83: 1 | T83: 1 | U83: 0 | V83: 1 | W83: 7 | X83: NO | Y83: NO | Z83: NO | AA83: NA | AB83: NA | AC83: NO | AD83: NO | AE83: NO | AF83: NO | AG83: NO | AH83: NO | AI83: NA | AJ83: NA | AK83: 34.08 | AL83: NA | AM83: 9762 | AN83: 3558 | AO83: 13368 | AP83: 0.2661579892 | AQ83: 9670 | AR83: 3902 | AS83: 13629 | AT83: 0.2863012694 | AU83: 0.0001898746755 | AV83: 1 | AW83: 1 | AX83: Probably True (-5)
A84: Expert, freq | B84: UPN_Tr2_054 | C84: 4 | D84: 106157182 | E84: AT | F84: A | G84: TET2 | H84: ENST00000380013 | I84: frameshift_variant | J84: atg/|p.Met695fs/c.2084delT | K84: 25645 | L84: 4788 | M84: 30647 | N84: 0.1562306262 | O84: 1 | P84: 1 | Q84: 0 | R84: 1 | S84: 1 | T84: 1 | U84: 0 | V84: 0 | W84: 5 | X84: NO | Y84: NO | Z84: NO | AA84: NA | AB84: NA | AC84: NO | AD84: NO | AE84: NO | AF84: NO | AG84: NO | AH84: NO | AI84: NA | AJ84: NA | AK84: 32.2 | AL84: NA | AM84: 2150 | AN84: 4712 | AO84: 6908 | AP84: 0.6821077012 | AQ84: 23495 | AR84: 76 | AS84: 23739 | AT84: 0.003201482792 | AU84: 2 | AV84: 1 | AW84: 1 | AX84: Probably True (-3)
A85: Inspected, 454 validated | B85: UPN_Tr2_035 | C85: 4 | D85: 106157219 | E85: CTTCAGAGACTGAGCCA | F85: C | G85: TET2 | H85: ENST00000380013 | I85: frameshift_variant | J85: tcagagactgagccattt/|p.Ser708fs/c.2123_2138delCAGAGACTGAGCCATT | K85: 21150 | L85: 1183 | M85: 22434 | N85: 0.05273245966 | O85: 1 | P85: 1 | Q85: 0 | R85: 1 | S85: 1 | T85: 1 | U85: 0 | V85: 1 | W85: 6 | X85: NO | Y85: NO | Z85: NO | AA85: NO | AB85: O | AC85: NO | AD85: NO | AE85: NO | AF85: NO | AG85: NO | AH85: NO | AI85: NA | AJ85: NA | AK85: 34.51 | AL85: NA | AM85: 10640 | AN85: 596 | AO85: 11287 | AP85: 0.05280411092 | AQ85: 10510 | AR85: 587 | AS85: 11147 | AT85: 0.0526599085 | AU85: 0.9761682411 | AV85: 2 | AW85: 2 | AX85: Probably True (-4)
A86: Inspected, 454 validated | B86: UPN_Tr2_011 | C86: 4 | D86: 106157219 | E86: CTTCAGAGACTGAGCCA | F86: C | G86: TET2 | H86: ENST00000380013 | I86: frameshift_variant | J86: tcagagactgagccattt/|p.Ser708fs/c.2123_2138delCAGAGACTGAGCCATT | K86: 21773 | L86: 2444 | M86: 24316 | N86: 0.1005099523 | O86: 1 | P86: 1 | Q86: 0 | R86: 1 | S86: 1 | T86: 1 | U86: 0 | V86: 1 | W86: 6 | X86: NO | Y86: NO | Z86: NO | AA86: NO | AB86: O | AC86: NO | AD86: NO | AE86: NO | AF86: NO | AG86: NO | AH86: NO | AI86: NA | AJ86: NA | AK86: 34.32 | AL86: NA | AM86: 10969 | AN86: 1232 | AO86: 12253 | AP86: 0.1005468049 | AQ86: 10804 | AR86: 1212 | AS86: 12063 | AT86: 0.1004725193 | AU86: 0.9829818231 | AV86: 2 | AW86: 2 | AX86: Probably True (-5)
A87: 454 validated, Expert, freq | B87: UPN_Tr2_089 | C87: 4 | D87: 106157235 | E87: AT | F87: A | G87: TET2 | H87: ENST00000380013 | I87: frameshift_variant | J87: tca/|p.Ser714fs/c.2140delT | K87: 6167 | L87: 7624 | M87: 13845 | N87: 0.5506681112 | O87: 1 | P87: 1 | Q87: 0 | R87: 1 | S87: 1 | T87: 1 | U87: 0 | V87: 1 | W87: 6 | X87: NO | Y87: NO | Z87: NO | AA87: NO | AB87: O | AC87: NO | AD87: NO | AE87: NO | AF87: NO | AG87: NO | AH87: NO | AI87: NA | AJ87: NA | AK87: 34.68 | AL87: NA | AM87: 3097 | AN87: 3828 | AO87: 6954 | AP87: 0.550474547 | AQ87: 3070 | AR87: 3796 | AS87: 6891 | AT87: 0.5508634451 | AU87: 1 | AV87: 1 | AW87: 1 | AX87: Probably True (-5)
A88: Expert, bq, freq | B88: UPN_Tr2_068 | C88: 4 | D88: 106157342 | E88: T | F88: A | G88: TET2 | H88: ENST00000380013 | I88: stop_gained | J88: tTa/tAa|p.Leu748*/c.2243T>A | K88: 25165 | L88: 11153 | M88: 36394 | N88: 0.3064516129 | O88: 1 | P88: 1 | Q88: 0 | R88: 0 | S88: 1 | T88: 1 | U88: 0 | V88: 1 | W88: 5 | X88: NO | Y88: NO | Z88: NO | AA88: NO | AB88: O | AC88: NO | AD88: NO | AE88: NO | AF88: NO | AG88: NO | AH88: NO | AI88: NA | AJ88: NA | AK88: 34.84 | AL88: 35.09 | AM88: 14511 | AN88: 11147 | AO88: 25711 | AP88: 0.4335498425 | AQ88: 10654 | AR88: 6 | AS88: 10683 | AT88: 0.0005616399888 | AU88: 2 | AV88: 1 | AW88: 1 | AX88: Probably True (-3)
A89: Expert, Cosmic, prediction, bq | B89: UPN_Tr2_071 | C89: 4 | D89: 106157573 | E89: C | F89: G | G89: TET2 | H89: ENST00000380013 | I89: stop_gained | J89: tCa/tGa|p.Ser825*/c.2474C>G | K89: 27182 | L89: 10347 | M89: 37753 | N89: 0.2740709348 | O89: 0 | P89: 1 | Q89: 1 | R89: 1 | S89: 1 | T89: 1 | U89: 0 | V89: 1 | W89: 6 | X89: NO | Y89: NO | Z89: COSM4383851, COSM87104 | AA89: haematopoietic_and_lymphoid_tissue | AB89: 5 | AC89: NO | AD89: NO | AE89: NO | AF89: NO | AG89: NO | AH89: NO | AI89: NA | AJ89: NA | AK89: 33.08 | AL89: 33.81 | AM89: 13701 | AN89: 5182 | AO89: 19017 | AP89: 0.2724930325 | AQ89: 13481 | AR89: 5165 | AS89: 18736 | AT89: 0.2756725021 | AU89: 0.5792627858 | AV89: 1 | AW89: 1 | AX89: Probably True (-5)
A90: Expert, freq | B90: UPN_Tr2_025 | C90: 4 | D90: 106157679 | E90: AAACTTGCATC | F90: A | G90: TET2 | H90: ENST00000380013 | I90: frameshift_variant | J90: aacttgcatcac/|p.Asn861fs/c.2582_2591delACTTGCATCA | K90: 17963 | L90: 11198 | M90: 29246 | N90: 0.3828899679 | O90: 1 | P90: 1 | Q90: 0 | R90: 1 | S90: 1 | T90: 1 | U90: 0 | V90: 1 | W90: 6 | X90: NO | Y90: NO | Z90: NO | AA90: NA | AB90: NA | AC90: NO | AD90: NO | AE90: NO | AF90: NO | AG90: NO | AH90: NO | AI90: NA | AJ90: NA | AK90: 33.67 | AL90: NA | AM90: 8943 | AN90: 5730 | AO90: 14708 | AP90: 0.3895838999 | AQ90: 9020 | AR90: 5468 | AS90: 14538 | AT90: 0.3761177604 | AU90: 0.02215155704 | AV90: 1 | AW90: 1 | AX90: Probably True (-5)
A91: Expert, bq, freq | B91: UPN_Tr2_048 | C91: 4 | D91: 106157806 | E91: A | F91: T | G91: TET2 | H91: ENST00000380013 | I91: missense_variant | J91: Aac/Tac|p.Asn903Tyr/c.2707A>T | K91: 446 | L91: 116 | M91: 563 | N91: 0.2060390764 | O91: 1 | P91: 1 | Q91: 1 | R91: 0 | S91: 1 | T91: 0 | U91: 0 | V91: 1 | W91: 5 | X91: NO | Y91: NO | Z91: NO | AA91: NO | AB91: O | AC91: NO | AD91: NO | AE91: NO | AF91: NO | AG91: NO | AH91: NO | AI91: -1.702 | AJ91: Tolerated | AK91: 35.48 | AL91: 34.53 | AM91: 0 | AN91: 115 | AO91: 115 | AP91: 1 | AQ91: 446 | AR91: 1 | AS91: 448 | AT91: 0.002232142857 | AU91: 2 | AV91: 1 | AW91: 1 | AX91: Probably True (-3)
A92: Expert, bq, freq | B92: UPN_Tr2_048 | C92: 4 | D92: 106157810 | E92: A | F92: G | G92: TET2 | H92: ENST00000380013 | I92: missense_variant | J92: cAa/cGa|p.Gln904Arg/c.2711A>G | K92: 444 | L92: 115 | M92: 563 | N92: 0.2042628774 | O92: 1 | P92: 1 | Q92: 1 | R92: 0 | S92: 1 | T92: 1 | U92: 0 | V92: 1 | W92: 6 | X92: NO | Y92: NO | Z92: NO | AA92: NO | AB92: O | AC92: NO | AD92: NO | AE92: NO | AF92: NO | AG92: NO | AH92: NO | AI92: -0.9 | AJ92: Tolerated | AK92: 35.71 | AL92: 34.76 | AM92: 0 | AN92: 114 | AO92: 115 | AP92: 0.9913043478 | AQ92: 444 | AR92: 1 | AS92: 448 | AT92: 0.002232142857 | AU92: 2 | AV92: 1 | AW92: 1 | AX92: Probably True (-3)
A93: Expert, bq, freq | B93: UPN_Tr2_048 | C93: 4 | D93: 106157848 | E93: C | F93: T | G93: TET2 | H93: ENST00000380013 | I93: stop_gained | J93: Caa/Taa|p.Gln917*/c.2749C>T | K93: 600 | L93: 214 | M93: 818 | N93: 0.2616136919 | O93: 1 | P93: 1 | Q93: 1 | R93: 0 | S93: 1 | T93: 1 | U93: 1 | V93: 1 | W93: 7 | X93: NO | Y93: NO | Z93: COSM5487353, COSM5487354 | AA93: Something is odd... | AB93: 0 | AC93: NO | AD93: NO | AE93: NO | AF93: NO | AG93: NO | AH93: NO | AI93: NA | AJ93: NA | AK93: 28.31 | AL93: 32.77 | AM93: 0 | AN93: 114 | AO93: 115 | AP93: 0.9913043478 | AQ93: 600 | AR93: 100 | AS93: 703 | AT93: 0.1422475107 | AU93: 1.449332659e-79 | AV93: 1 | AW93: 1 | AX93: Probably True (-3)
A94: 2nd Illumina, 454 validated, IonT_1 validated, Expert | B94: UPN_Tr2_004 | C94: 4 | D94: 106157878 | E94: GT | F94: G | G94: TET2 | H94: ENST00000380013 | I94: frameshift_variant | J94: ttt/|p.Pro929fs/c.2784delT | K94: 1527 | L94: 1018 | M94: 2557 | N94: 0.3981228002 | O94: 1 | P94: 1 | Q94: 1 | R94: 1 | S94: 1 | T94: 1 | U94: 0 | V94: 1 | W94: 7 | X94: NO | Y94: NO | Z94: NO | AA94: NO | AB94: O | AC94: NO | AD94: NO | AE94: NO | AF94: NO | AG94: NO | AH94: NO | AI94: NA | AJ94: NA | AK94: 33.89 | AL94: NA | AM94: 765 | AN94: 506 | AO94: 1277 | AP94: 0.3962411903 | AQ94: 762 | AR94: 512 | AS94: 1280 | AT94: 0.4 | AU94: 0.8714334802 | AV94: 1 | AW94: 1 | AX94: Probably True (-5)
A95: inspected | B95: UPN_Tr2_044 | C95: 4 | D95: 106157929 | E95: A | F95: T | G95: TET2 | H95: ENST00000380013 | I95: stop_gained | J95: Aag/Tag|p.Lys944*/c.2830A>T | K95: 1128 | L95: 153 | M95: 1286 | N95: 0.1189735614 | O95: 1 | P95: 1 | Q95: 0 | R95: 1 | S95: 1 | T95: 0 | U95: 0 | V95: 1 | W95: 5 | X95: NO | Y95: NO | Z95: NO | AA95: NO | AB95: O | AC95: NO | AD95: NO | AE95: NO | AF95: NO | AG95: NO | AH95: NO | AI95: NA | AJ95: NA | AK95: 34.51 | AL95: 34.4 | AM95: 0 | AN95: 0 | AO95: 0 | AP95: NA | AQ95: 1128 | AR95: 153 | AS95: 1286 | AT95: 0.1189735614 | AU95: 1 | AV95: 1 | AW95: 1 | AX95: Probably True (-4)
A96: Inspected, 454 validated | B96: UPN_Tr2_010 | C96: 4 | D96: 106158201 | E96: G | F96: GT | G96: TET2 | H96: ENST00000380013 | I96: frameshift_variant | J96: cac/Tcac|p.His1036fs/c.3105dupT | K96: 40385 | L96: 3530 | M96: 40457 | N96: 0.08725313296 | O96: 1 | P96: 1 | Q96: 0 | R96: 1 | S96: 1 | T96: 1 | U96: 0 | V96: 1 | W96: 6 | X96: NO | Y96: NO | Z96: NO | AA96: NA | AB96: NA | AC96: NO | AD96: NO | AE96: NO | AF96: NO | AG96: NO | AH96: NO | AI96: NA | AJ96: NA | AK96: 34.36 | AL96: NA | AM96: 20385 | AN96: 1792 | AO96: 20409 | AP96: 0.08780440002 | AQ96: 20000 | AR96: 1738 | AS96: 20048 | AT96: 0.08669193935 | AU96: 0.7520563518 | AV96: 1 | AW96: 1 | AX96: Probably True (-4)
A97: Expert, freq | B97: UPN_Tr2_045 | C97: 4 | D97: 106164036 | E97: T | F97: TA | G97: TET2 | H97: ENST00000380013 | I97: frameshift_variant | J97: act/aAct|p.Thr1183fs/c.3547dupA | K97: 40645 | L97: 11235 | M97: 40854 | N97: 0.2750036716 | O97: 1 | P97: 1 | Q97: 1 | R97: 1 | S97: 1 | T97: 1 | U97: 0 | V97: 1 | W97: 7 | X97: NO | Y97: NO | Z97: NO | AA97: NA | AB97: NA | AC97: NO | AD97: NO | AE97: NO | AF97: NO | AG97: NO | AH97: NO | AI97: NA | AJ97: NA | AK97: 32.38 | AL97: NA | AM97: 21010 | AN97: 6183 | AO97: 21140 | AP97: 0.2924787133 | AQ97: 19635 | AR97: 5052 | AS97: 19714 | AT97: 0.2562645835 | AU97: 3.478400881e-10 | AV97: 1 | AW97: 1 | AX97: Probably True (-5)
A98: Expert, bq, prediction | B98: UPN_Tr2_077 | C98: 4 | D98: 106164079 | E98: A | F98: G | G98: TET2 | H98: ENST00000380013 | I98: missense_variant | J98: Aag/Gag|p.Lys1197Glu/c.3589A>G | K98: 32817 | L98: 11460 | M98: 44527 | N98: 0.2573719316 | O98: 1 | P98: 1 | Q98: 1 | R98: 1 | S98: 1 | T98: 1 | U98: 0 | V98: 1 | W98: 7 | X98: NO | Y98: NO | Z98: NO | AA98: NA | AB98: NA | AC98: NO | AD98: NO | AE98: NO | AF98: NO | AG98: NO | AH98: NO | AI98: -3.647 | AJ98: Deleterious | AK98: 32.35 | AL98: 32.56 | AM98: 16570 | AN98: 5769 | AO98: 22418 | AP98: 0.2573378535 | AQ98: 16247 | AR98: 5691 | AS98: 22109 | AT98: 0.257406486 | AU98: 0.7861830759 | AV98: 1 | AW98: 1 | AX98: Probably True (-6)
A99: inspected | B99: UPN_Tr2_041 | C99: 4 | D99: 106164754 | E99: A | F99: T | G99: TET2 | H99: ENST00000380013 | I99: stop_gained | J99: Aag/Tag|p.Lys1208*/c.3622A>T | K99: 152 | L99: 29 | M99: 182 | N99: 0.1593406593 | O99: 1 | P99: 1 | Q99: 0 | R99: 1 | S99: 1 | T99: 0 | U99: 0 | V99: 1 | W99: 5 | X99: NO | Y99: NO | Z99: COSM211716 | AA99: haematopoietic_and_lymphoid_tissue | AB99: 1 | AC99: NO | AD99: NO | AE99: NO | AF99: NO | AG99: NO | AH99: NO | AI99: NA | AJ99: NA | AK99: 34.7 | AL99: 36 | AM99: 152 | AN99: 29 | AO99: 182 | AP99: 0.1593406593 | AQ99: 0 | AR99: 0 | AS99: 0 | AT99: NA | AU99: 1 | AV99: 1 | AW99: 1 | AX99: Probably True (-4)
A100: inspected | B100: UPN_Tr2_095 | C100: 4 | D100: 106180810 | E100: AC | F100: A | G100: TET2 | H100: ENST00000380013 | I100: frameshift_variant | J100: acc/|p.Cys1281fs/c.3840delC | K100: 7517 | L100: 341 | M100: 7865 | N100: 0.04335664336 | O100: 0 | P100: 0 | Q100: 0 | R100: 1 | S100: 1 | T100: 1 | U100: 0 | V100: 1 | W100: 4 | X100: NO | Y100: NO | Z100: NO | AA100: NA | AB100: NA | AC100: NO | AD100: NO | AE100: NO | AF100: NO | AG100: NO | AH100: NO | AI100: NA | AJ100: NA | AK100: 35.27 | AL100: NA | AM100: 7517 | AN100: 341 | AO100: 7865 | AP100: 0.04335664336 | AQ100: 0 | AR100: 0 | AS100: 0 | AT100: NA | AU100: 1 | AV100: 1 | AW100: 1 | AX100: Probably True (-1)
A101: Expert, Cosmic, prediction, bq | B101: UPN_Tr2_034 | C101: 4 | D101: 106180834 | E101: G | F101: A | G101: TET2 | H101: ENST00000380013 | I101: missense_variant | J101: Ggt/Agt|p.Gly1288Ser/c.3862G>A | K101: 2523 | L101: 584 | M101: 3123 | N101: 0.1869996798 | O101: 1 | P101: 1 | Q101: 0 | R101: 1 | S101: 1 | T101: 0 | U101: 0 | V101: 1 | W101: 5 | X101: NO | Y101: NO | Z101: COSM110780 | AA101: haematopoietic_and_lymphoid_tissue | AB101: 2 | AC101: NO | AD101: NO | AE101: NO | AF101: NO | AG101: NO | AH101: NO | AI101: -5.429 | AJ101: Deleterious | AK101: 34.97 | AL101: 34.34 | AM101: 2523 | AN101: 584 | AO101: 3123 | AP101: 0.1869996798 | AQ101: 0 | AR101: 0 | AS101: 0 | AT101: NA | AU101: 1 | AV101: 1 | AW101: 1 | AX101: Probably True (-5)
A102: Expert, Cosmic, prediction, bq | B102: UPN_Tr2_064 | C102: 4 | D102: 106180835 | E102: G | F102: T | G102: TET2 | H102: ENST00000380013 | I102: missense_variant | J102: gGt/gTt|p.Gly1288Val/c.3863G>T | K102: 1666 | L102: 1083 | M102: 2755 | N102: 0.3931034483 | O102: 1 | P102: 1 | Q102: 1 | R102: 1 | S102: 1 | T102: 0 | U102: 1 | V102: 1 | W102: 7 | X102: NO | Y102: NO | Z102: COSM1716167 | AA102: haematopoietic_and_lymphoid_tissue | AB102: 2 | AC102: NO | AD102: NO | AE102: NO | AF102: NO | AG102: NO | AH102: NO | AI102: -8.077 | AJ102: Deleterious | AK102: 33.87 | AL102: 34.29 | AM102: 1666 | AN102: 1083 | AO102: 2755 | AP102: 0.3931034483 | AQ102: 0 | AR102: 0 | AS102: 0 | AT102: NA | AU102: 1 | AV102: 1 | AW102: 1 | AX102: Probably True (-6)
A103: inspected | B103: UPN_Tr2_048 | C103: 4 | D103: 106180874 | E103: C | F103: T | G103: TET2 | H103: ENST00000380013 | I103: missense_variant | J103: gCc/gTc|p.Ala1301Val/c.3902C>T | K103: 307 | L103: 54 | M103: 362 | N103: 0.1491712707 | O103: 1 | P103: 1 | Q103: 0 | R103: 1 | S103: 1 | T103: 1 | U103: 0 | V103: 1 | W103: 6 | X103: NO | Y103: NO | Z103: NO | AA103: NO | AB103: O | AC103: NO | AD103: NO | AE103: NO | AF103: NO | AG103: NO | AH103: NO | AI103: -3.47 | AJ103: Deleterious | AK103: 31.12 | AL103: 32.65 | AM103: 155 | AN103: 27 | AO103: 182 | AP103: 0.1483516484 | AQ103: 152 | AR103: 27 | AS103: 180 | AT103: 0.15 | AU103: 1 | AV103: 2 | AW103: 2 | AX103: Probably True (-6)
A104: Expert, bq, prediction | B104: UPN_Tr2_078 | C104: 4 | D104: 106180891 | E104: A | F104: G | G104: TET2 | H104: ENST00000380013 | I104: missense_variant | J104: Agg/Ggg|p.Arg1307Gly/c.3919A>G | K104: 14085 | L104: 4613 | M104: 18783 | N104: 0.2455944205 | O104: 1 | P104: 1 | Q104: 0 | R104: 1 | S104: 1 | T104: 1 | U104: 0 | V104: 1 | W104: 6 | X104: NO | Y104: NO | Z104: NO | AA104: NO | AB104: O | AC104: NO | AD104: NO | AE104: NO | AF104: NO | AG104: NO | AH104: NO | AI104: -6.222 | AJ104: Deleterious | AK104: 32.89 | AL104: 31.25 | AM104: 7113 | AN104: 2309 | AO104: 9444 | AP104: 0.2444938585 | AQ104: 6972 | AR104: 2304 | AS104: 9339 | AT104: 0.2467073562 | AU104: 0.5990113244 | AV104: 1 | AW104: 1 | AX104: Probably True (-6)
A105: Expert, bq, prediction | B105: UPN_Tr2_092 | C105: 4 | D105: 106190776 | E105: G | F105: A | G105: TET2 | H105: ENST00000380013 | I105: missense_variant | J105: Gaa/Aaa|p.Glu1352Lys/c.4054G>A | K105: 928 | L105: 1000 | M105: 1935 | N105: 0.5167958656 | O105: 1 | P105: 1 | Q105: 0 | R105: 1 | S105: 1 | T105: 0 | U105: 1 | V105: 1 | W105: 6 | X105: NO | Y105: NO | Z105: NO | AA105: NO | AB105: O | AC105: NO | AD105: NO | AE105: NO | AF105: NO | AG105: NO | AH105: NO | AI105: -3.82 | AJ105: Deleterious | AK105: 35.6 | AL105: 35.84 | AM105: 928 | AN105: 1000 | AO105: 1935 | AP105: 0.5167958656 | AQ105: 0 | AR105: 0 | AS105: 0 | AT105: NA | AU105: 1 | AV105: 1 | AW105: 1 | AX105: Probably True (-6)
A106: Expert, Cosmic, bq | B106: UPN_Tr2_030 | C106: 4 | D106: 106190797 | E106: C | F106: T | G106: TET2 | H106: ENST00000380013 | I106: missense_variant | J106: Cgt/Tgt|p.Arg1359Cys/c.4075C>T | K106: 627 | L106: 4768 | M106: 5400 | N106: 0.882962963 | O106: 1 | P106: 1 | Q106: 1 | R106: 1 | S106: 1 | T106: 0 | U106: 1 | V106: 1 | W106: 7 | X106: NO | Y106: NO | Z106: COSM41649 | AA106: cervix, haematopoietic_and_lymphoid_tissue | AB106: 1, 5 | AC106: NO | AD106: NO | AE106: NO | AF106: NO | AG106: NO | AH106: NO | AI106: -7.245 | AJ106: Deleterious | AK106: 35.06 | AL106: 35.23 | AM106: 627 | AN106: 4768 | AO106: 5400 | AP106: 0.882962963 | AQ106: 0 | AR106: 0 | AS106: 0 | AT106: NA | AU106: 1 | AV106: 1 | AW106: 1 | AX106: Probably True (-6)
A107: Expert, Cosmic, prediction, bq | B107: UPN_Tr2_103 | C107: 4 | D107: 106190860 | E107: C | F107: T | G107: TET2 | H107: ENST00000380013 | I107: missense_variant | J107: Cat/Tat|p.His1380Tyr/c.4138C>T | K107: 6837 | L107: 1005 | M107: 7856 | N107: 0.1279276986 | O107: 1 | P107: 1 | Q107: 0 | R107: 1 | S107: 1 | T107: 1 | U107: 0 | V107: 1 | W107: 6 | X107: NO | Y107: NO | Z107: COSM87161 | AA107: haematopoietic_and_lymphoid_tissue | AB107: 13 | AC107: NO | AD107: NO | AE107: NO | AF107: 7.586e-05 | AG107: NO | AH107: NO | AI107: -5.713 | AJ107: Deleterious | AK107: 33.02 | AL107: 35.16 | AM107: 3436 | AN107: 505 | AO107: 3946 | AP107: 0.1279776989 | AQ107: 3401 | AR107: 500 | AS107: 3910 | AT107: 0.1278772379 | AU107: 1 | AV107: 1 | AW107: 1 | AX107: Probably True (-6)
A108: inspected | B108: UPN_Tr2_053 | C108: 4 | D108: 106193874 | E108: GTAC | F108: G | G108: TET2 | H108: ENST00000380013 | I108: disruptive_inframe_deletion | J108: gtactg/gtg|p.Leu1447del/c.4338_4340delACT | K108: 8722 | L108: 1587 | M108: 10352 | N108: 0.1533037094 | O108: 1 | P108: 1 | Q108: 1 | R108: 1 | S108: 1 | T108: 1 | U108: 1 | V108: 1 | W108: 8 | X108: NO | Y108: NO | Z108: NO | AA108: NO | AB108: O | AC108: NO | AD108: NO | AE108: NO | AF108: NO | AG108: NO | AH108: NO | AI108: -11.277 | AJ108: Deleterious | AK108: 33.47 | AL108: NA | AM108: 0 | AN108: 0 | AO108: 0 | AP108: NA | AQ108: 8722 | AR108: 1587 | AS108: 10352 | AT108: 0.1533037094 | AU108: 1 | AV108: 1 | AW108: 1 | AX108: Probably True (-6)
A109: Expert, freq | B109: UPN_Tr2_071 | C109: 4 | D109: 106193926 | E109: CT | F109: C | G109: TET2 | H109: ENST00000380013 | I109: frameshift_variant | J109: tgc/|p.Cys1464fs/c.4390delT | K109: 5340 | L109: 820 | M109: 6194 | N109: 0.1323861802 | O109: 1 | P109: 1 | Q109: 0 | R109: 1 | S109: 0 | T109: 1 | U109: 0 | V109: 0 | W109: 4 | X109: NO | Y109: NO | Z109: NO | AA109: NO | AB109: O | AC109: NO | AD109: NO | AE109: NO | AF109: NO | AG109: NO | AH109: NO | AI109: NA | AJ109: NA | AK109: 35.09 | AL109: NA | AM109: 2556 | AN109: 818 | AO109: 3397 | AP109: 0.2408007065 | AQ109: 2784 | AR109: 2 | AS109: 2797 | AT109: 0.0007150518413 | AU109: 2 | AV109: 1 | AW109: 1 | AX109: Probably True (-2)
A110: Expert, freq; part of complex variant | B110: UPN_Tr2_071 | C110: 4 | D110: 106193929 | E110: G | F110: A | G110: TET2 | H110: ENST00000380013 | I110: missense_variant | J110: tGc/tAc|p.Cys1464Tyr/c.4391G>A | K110: 5354 | L110: 825 | M110: 6194 | N110: 0.133193413 | O110: 1 | P110: 1 | Q110: 0 | R110: 0 | S110: 0 | T110: 1 | U110: 0 | V110: 0 | W110: 3 | X110: NO | Y110: NO | Z110: NO | AA110: NO | AB110: O | AC110: NO | AD110: NO | AE110: NO | AF110: NO | AG110: NO | AH110: NO | AI110: -7.155 | AJ110: Deleterious | AK110: 34.76 | AL110: 33.87 | AM110: 2564 | AN110: 822 | AO110: 3397 | AP110: 0.2419782161 | AQ110: 2790 | AR110: 3 | AS110: 2797 | AT110: 0.001072577762 | AU110: 2 | AV110: 1 | AW110: 1 | AX110: Probably True (-2)
A111: inspected | B111: UPN_Tr2_026 | C111: 4 | D111: 106194073 | E111: C | F111: T | G111: TET2 | H111: ENST00000380013 | I111: missense_variant | J111: gCa/gTa|p.Ala1512Val/c.4535C>T | K111: 10452 | L111: 1052 | M111: 11520 | N111: 0.09131944444 | O111: 0 | P111: 0 | Q111: 0 | R111: 1 | S111: 1 | T111: 0 | U111: 0 | V111: 1 | W111: 3 | X111: NO | Y111: NO | Z111: NO | AA111: NO | AB111: O | AC111: NO | AD111: NO | AE111: NO | AF111: NO | AG111: NO | AH111: NO | AI111: -1.626 | AJ111: Tolerated | AK111: 34.38 | AL111: 34.84 | AM111: 0 | AN111: 0 | AO111: 0 | AP111: NA | AQ111: 10452 | AR111: 1052 | AS111: 11520 | AT111: 0.09131944444 | AU111: 1 | AV111: 1 | AW111: 1 | AX111: Probably True (-1)
A112: Expert, freq, no SNP database | B112: UPN_Tr2_026 | C112: 4 | D112: 106196328 | E112: CAG | F112: C | G112: TET2 | H112: ENST00000380013 | I112: frameshift_variant | J112: gag/|p.Glu1555fs/c.4664_4665delAG | K112: 4929 | L112: 4996 | M112: 9955 | N112: 0.5018583626 | O112: 1 | P112: 1 | Q112: 1 | R112: 1 | S112: 1 | T112: 1 | U112: 0 | V112: 1 | W112: 7 | X112: NO | Y112: NO | Z112: NO | AA112: NA | AB112: NA | AC112: NO | AD112: NO | AE112: NO | AF112: NO | AG112: NO | AH112: NO | AI112: NA | AJ112: NA | AK112: 33.13 | AL112: NA | AM112: 2486 | AN112: 2445 | AO112: 4940 | AP112: 0.4949392713 | AQ112: 2443 | AR112: 2551 | AS112: 5015 | AT112: 0.5086739781 | AU112: 0.1374092494 | AV112: 1 | AW112: 1 | AX112: Probably True (-5)
A113: Expert, bq, no SNP database | B113: UPN_Tr2_047 | C113: 4 | D113: 106196645 | E113: A | F113: G | G113: TET2 | H113: ENST00000380013 | I113: missense_variant | J113: Agg/Ggg|p.Arg1660Gly/c.4978A>G | K113: 15877 | L113: 15710 | M113: 31750 | N113: 0.4948031496 | O113: 1 | P113: 1 | Q113: 1 | R113: 1 | S113: 1 | T113: 1 | U113: 1 | V113: 1 | W113: 8 | X113: NO | Y113: NO | Z113: NO | AA113: NO | AB113: O | AC113: NO | AD113: NO | AE113: NO | AF113: NO | AG113: NO | AH113: NO | AI113: -1.308 | AJ113: Tolerated | AK113: 33.43 | AL113: 32.21 | AM113: 7877 | AN113: 7779 | AO113: 15738 | AP113: 0.4942813572 | AQ113: 8000 | AR113: 7931 | AS113: 16012 | AT113: 0.495316013 | AU113: 0.8659540801 | AV113: 1 | AW113: 1 | AX113: Probably True (-5)
A114: inspected | B114: UPN_Tr2_044 | C114: 4 | D114: 106197230 | E114: C | F114: A | G114: TET2 | H114: ENST00000380013 | I114: missense_variant | J114: Ctg/Atg|p.Leu1855Met/c.5563C>A | K114: 1224 | L114: 189 | M114: 1414 | N114: 0.1336633663 | O114: 0 | P114: 1 | Q114: 0 | R114: 1 | S114: 1 | T114: 1 | U114: 0 | V114: 1 | W114: 5 | X114: NO | Y114: NO | Z114: NO | AA114: NO | AB114: O | AC114: NO | AD114: NO | AE114: NO | AF114: NO | AG114: NO | AH114: NO | AI114: -1.161 | AJ114: Tolerated | AK114: 33.72 | AL114: 32.8 | AM114: 604 | AN114: 94 | AO114: 699 | AP114: 0.1344778255 | AQ114: 620 | AR114: 95 | AS114: 715 | AT114: 0.1328671329 | AU114: 0.9378193461 | AV114: 1 | AW114: 1 | AX114: Probably True (-3)
A115: 454 validated, IonT_1 validated, Expert, bq, prediction | B115: UPN_Tr2_015 | C115: 4 | D115: 106197302 | E115: G | F115: A | G115: TET2 | H115: ENST00000380013 | I115: missense_variant | J115: Gag/Aag|p.Glu1879Lys/c.5635G>A | K115: 17293 | L115: 5141 | M115: 22454 | N115: 0.2289569787 | O115: 1 | P115: 1 | Q115: 0 | R115: 0 | S115: 1 | T115: 1 | U115: 0 | V115: 0 | W115: 4 | X115: NO | Y115: NO | Z115: NO | AA115: NO | AB115: O | AC115: NO | AD115: NO | AE115: NO | AF115: NO | AG115: NO | AH115: NO | AI115: -3.735 | AJ115: Deleterious | AK115: 35.57 | AL115: 35.8 | AM115: 13380 | AN115: 5021 | AO115: 18417 | AP115: 0.2726285497 | AQ115: 3913 | AR115: 120 | AS115: 4037 | AT115: 0.02972504335 | AU115: 2 | AV115: 1 | AW115: 1 | AX115: Probably True (-3)
A116: Hotspot, Expert, Cosmic, prediction, bq | B116: UPN_Tr2_026 | C116: 4 | D116: 106197308 | E116: C | F116: T | G116: TET2 | H116: ENST00000380013 | I116: missense_variant | J116: Cat/Tat|p.His1881Tyr/c.5641C>T | K116: 16869 | L116: 3565 | M116: 20453 | N116: 0.1743020584 | O116: 1 | P116: 1 | Q116: 0 | R116: 0 | S116: 1 | T116: 1 | U116: 0 | V116: 0 | W116: 4 | X116: NO | Y116: NO | Z116: COSM4383970 | AA116: haematopoietic_and_lymphoid_tissue | AB116: 1 | AC116: NO | AD116: NO | AE116: NO | AF116: NO | AG116: NO | AH116: NO | AI116: -5.573 | AJ116: Deleterious | AK116: 35.67 | AL116: 35.53 | AM116: 12994 | AN116: 3563 | AO116: 16576 | AP116: 0.2149493243 | AQ116: 3875 | AR116: 2 | AS116: 3877 | AT116: 0.0005158627805 | AU116: 2 | AV116: 1 | AW116: 1 | AX116: Probably True (-3)
A117: 2nd Illumina, 454 validated Expert, prediction, bq | B117: UPN_Tr2_013 | C117: 7 | D117: 148506402 | E117: C | F117: A | G117: EZH2 | H117: ENST00000320356 | I117: missense_variant | J117: Gtt/Ttt|p.Val704Phe/c.2110G>T | K117: 3513 | L117: 2462 | M117: 5988 | N117: 0.4111556446 | O117: 0 | P117: 0 | Q117: 0 | R117: 1 | S117: 0 | T117: 0 | U117: 0 | V117: 1 | W117: 2 | X117: NO | Y117: NO | Z117: NO | AA117: NA | AB117: NA | AC117: NO | AD117: NO | AE117: NO | AF117: NO | AG117: NO | AH117: NO | AI117: -4.002 | AJ117: Deleterious | AK117: 34.86 | AL117: 35.28 | AM117: 3513 | AN117: 2462 | AO117: 5988 | AP117: 0.4111556446 | AQ117: 0 | AR117: 0 | AS117: 0 | AT117: NA | AU117: 1 | AV117: 1 | AW117: 1 | AX117: Probably True (-1)
A118: Hotspot, Expert, Cosmic, prediction, bq | B118: UPN_Tr2_049 | C118: 7 | D118: 148506443 | E118: C | F118: T | G118: EZH2 | H118: ENST00000320356 | I118: missense_variant | J118: cGt/cAt|p.Arg690His/c.2069G>A | K118: 5787 | L118: 19118 | M118: 25003 | N118: 0.7646282446 | O118: 1 | P118: 1 | Q118: 1 | R118: 1 | S118: 1 | T118: 1 | U118: 1 | V118: 1 | W118: 8 | X118: NO | Y118: NO | Z118: COSM52980 | AA118: haematopoietic_and_lymphoid_tissue | AB118: 15 | AC118: NO | AD118: NO | AE118: NO | AF118: NO | AG118: NO | AH118: NO | AI118: -4.164 | AJ118: Deleterious | AK118: 30.96 | AL118: 32.97 | AM118: 2878 | AN118: 9546 | AO118: 12502 | AP118: 0.7635578307 | AQ118: 2909 | AR118: 9572 | AS118: 12501 | AT118: 0.7656987441 | AU118: 0.7986783414 | AV118: 1 | AW118: 1 | AX118: Probably True (-6)
A119: Expert, prediction, bq | B119: UPN_Tr2_082 | C119: 7 | D119: 148507464 | E119: C | F119: G | G119: EZH2 | H119: ENST00000320356 | I119: missense_variant | J119: Gat/Cat|p.Asp664His/c.1990G>C | K119: 16410 | L119: 5060 | M119: 21517 | N119: 0.2351628945 | O119: 1 | P119: 1 | Q119: 0 | R119: 1 | S119: 1 | T119: 0 | U119: 0 | V119: 1 | W119: 5 | X119: NO | Y119: NO | Z119: NO | AA119: NO | AB119: O | AC119: NO | AD119: NO | AE119: NO | AF119: NO | AG119: NO | AH119: NO | AI119: -5.874 | AJ119: Deleterious | AK119: 35.1 | AL119: 35.02 | AM119: 16410 | AN119: 5060 | AO119: 21517 | AP119: 0.2351628945 | AQ119: 0 | AR119: 0 | AS119: 0 | AT119: NA | AU119: 1 | AV119: 1 | AW119: 1 | AX119: Probably True (-5)
A120: Expert, bq, prediction | B120: UPN_Tr2_017 | C120: 7 | D120: 148512074 | E120: C | F120: A | G120: EZH2 | H120: ENST00000320356 | I120: missense_variant | J120: tGt/tTt|p.Cys535Phe/c.1604G>T | K120: 6658 | L120: 5185 | M120: 11907 | N120: 0.4354581339 | O120: 1 | P120: 1 | Q120: 0 | R120: 1 | S120: 1 | T120: 1 | U120: 1 | V120: 1 | W120: 7 | X120: NO | Y120: NO | Z120: NO | AA120: NO | AB120: O | AC120: NO | AD120: NO | AE120: NO | AF120: NO | AG120: NO | AH120: NO | AI120: -9.203 | AJ120: Deleterious | AK120: 32.83 | AL120: 33.16 | AM120: 3364 | AN120: 2710 | AO120: 6101 | AP120: 0.4441894771 | AQ120: 3294 | AR120: 2475 | AS120: 5806 | AT120: 0.4262831554 | AU120: 0.06130728992 | AV120: 1 | AW120: 1 | AX120: Probably True (-6)
A121: inspected | B121: UPN_Tr2_070 | C121: 7 | D121: 148512610 | E121: G | F121: GT | G121: EZH2 | H121: ENST00000320356 | I121: frameshift_variant | J121: ata/ataA|p.Gln512fs/c.1533dupA | K121: 10071 | L121: 669 | M121: 10111 | N121: 0.06616556226 | O121: 1 | P121: 1 | Q121: 0 | R121: 1 | S121: 1 | T121: 1 | U121: 0 | V121: 1 | W121: 6 | X121: NO | Y121: NO | Z121: NO | AA121: NO | AB121: O | AC121: NO | AD121: NO | AE121: NO | AF121: NO | AG121: NO | AH121: NO | AI121: NA | AJ121: NA | AK121: 34.85 | AL121: NA | AM121: 10071 | AN121: 669 | AO121: 10111 | AP121: 0.06616556226 | AQ121: 0 | AR121: 0 | AS121: 0 | AT121: NA | AU121: 1 | AV121: 1 | AW121: 1 | AX121: Probably True (-4)
A122: inspected | B122: UPN_Tr2_034 | C122: 7 | D122: 148514992 | E122: TTCTTC | F122: T | G122: EZH2 | H122: ENST00000320356 | I122: frameshift_variant | J122: gagaagaaa/|p.Lys405fs/c.1212_1216delGAAGA | K122: 1561 | L122: 209 | M122: 1781 | N122: 0.1173498035 | O122: 1 | P122: 1 | Q122: 0 | R122: 1 | S122: 1 | T122: 1 | U122: 0 | V122: 1 | W122: 6 | X122: NO | Y122: NO | Z122: NO | AA122: NA | AB122: NA | AC122: NO | AD122: NO | AE122: NO | AF122: NO | AG122: NO | AH122: NO | AI122: NA | AJ122: NA | AK122: 35.17 | AL122: NA | AM122: 1561 | AN122: 209 | AO122: 1781 | AP122: 0.1173498035 | AQ122: 0 | AR122: 0 | AS122: 0 | AT122: NA | AU122: 1 | AV122: 1 | AW122: 1 | AX122: Probably True (-5)
A123: inspected, no strandbias | B123: UPN_Tr2_048 | C123: 7 | D123: 148515069 | E123: TG | F123: T | G123: EZH2 | H123: ENST00000320356 | I123: frameshift_variant | J123: tca/|p.Ser380fs/c.1139delC | K123: 1172 | L123: 67 | M123: 1245 | N123: 0.05381526104 | O123: 0 | P123: 0 | Q123: 0 | R123: 1 | S123: 1 | T123: 0 | U123: 0 | V123: 1 | W123: 3 | X123: NO | Y123: NO | Z123: NO | AA123: NO | AB123: O | AC123: NO | AD123: NO | AE123: NO | AF123: NO | AG123: NO | AH123: NO | AI123: NA | AJ123: NA | AK123: 32.28 | AL123: NA | AM123: 587 | AN123: 34 | AO123: 626 | AP123: 0.05431309904 | AQ123: 585 | AR123: 33 | AS123: 619 | AT123: 0.05331179321 | AU123: 1 | AV123: 1 | AW123: 1 | AX123: Probably True (-1)
A124: inspected | B124: UPN_Tr2_110 | C124: 7 | D124: 148516754 | E124: A | F124: T | G124: EZH2 | H124: ENST00000320356 | I124: stop_gained | J124: taT/taA|p.Tyr311*/c.933T>A | K124: 3216 | L124: 558 | M124: 3782 | N124: 0.1475409836 | O124: 1 | P124: 1 | Q124: 0 | R124: 1 | S124: 1 | T124: 0 | U124: 0 | V124: 1 | W124: 5 | X124: NO | Y124: NO | Z124: NO | AA124: NA | AB124: NA | AC124: NO | AD124: NO | AE124: NO | AF124: NO | AG124: NO | AH124: NO | AI124: NA | AJ124: NA | AK124: 35.16 | AL124: 35.5 | AM124: 3216 | AN124: 558 | AO124: 3782 | AP124: 0.1475409836 | AQ124: 0 | AR124: 0 | AS124: 0 | AT124: NA | AU124: 1 | AV124: 2 | AW124: 2 | AX124: Probably True (-4)
A125: Hotspot, Sanger validated, 454 validated, IonT_1 validated, Expert, Cosmic, bq | B125: UPN_Tr2_040 | C125: 7 | D125: 148523591 | E125: G | F125: A | G125: EZH2 | H125: ENST00000320356 | I125: stop_gained | J125: Cga/Tga|p.Arg288*/c.862C>T | K125: 8896 | L125: 8719 | M125: 17663 | N125: 0.4936307536 | O125: 1 | P125: 1 | Q125: 1 | R125: 1 | S125: 1 | T125: 1 | U125: 1 | V125: 1 | W125: 8 | X125: NO | Y125: NO | Z125: COSM1000721 | AA125: haematopoietic_and_lymphoid_tissue | AB125: 2 | AC125: NO | AD125: NO | AE125: NO | AF125: NO | AG125: NO | AH125: NO | AI125: NA | AJ125: NA | AK125: 33.39 | AL125: 32.54 | AM125: 4500 | AN125: 4503 | AO125: 9021 | AP125: 0.4991686066 | AQ125: 4396 | AR125: 4216 | AS125: 8642 | AT125: 0.4878500347 | AU125: 0.1609727244 | AV125: 2 | AW125: 2 | AX125: Probably True (-5)
A126: Expert, bq, freq | B126: UPN_Tr2_056 | C126: 7 | D126: 148524330 | E126: A | F126: T | G126: EZH2 | H126: ENST00000320356 | I126: missense_variant | J126: ttT/ttA|p.Phe218Leu/c.654T>A | K126: 85 | L126: 22 | M126: 109 | N126: 0.2018348624 | O126: 1 | P126: 1 | Q126: 1 | R126: 1 | S126: 1 | T126: 1 | U126: 1 | V126: 1 | W126: 8 | X126: NO | Y126: NO | Z126: NO | AA126: NO | AB126: O | AC126: NO | AD126: NO | AE126: NO | AF126: NO | AG126: NO | AH126: NO | AI126: -2.65 | AJ126: Deleterious | AK126: 33.71 | AL126: 33.82 | AM126: 43 | AN126: 11 | AO126: 55 | AP126: 0.2 | AQ126: 42 | AR126: 11 | AS126: 54 | AT126: 0.2037037037 | AU126: 1 | AV126: 1 | AW126: 1 | AX126: Probably True (-5)
A127: inspected | B127: UPN_Tr2_098 | C127: 7 | D127: 148525847 | E127: C | F127: A | G127: EZH2 | H127: ENST00000320356 | I127: stop_gained | J127: Gag/Tag|p.Glu204*/c.610G>T | K127: 5266 | L127: 997 | M127: 6286 | N127: 0.158606427 | O127: 1 | P127: 1 | Q127: 0 | R127: 1 | S127: 1 | T127: 0 | U127: 0 | V127: 1 | W127: 5 | X127: NO | Y127: NO | Z127: NO | AA127: NO | AB127: O | AC127: NO | AD127: NO | AE127: NO | AF127: NO | AG127: NO | AH127: NO | AI127: NA | AJ127: NA | AK127: 35.65 | AL127: 35.72 | AM127: 5266 | AN127: 997 | AO127: 6286 | AP127: 0.158606427 | AQ127: 0 | AR127: 0 | AS127: 0 | AT127: NA | AU127: 1 | AV127: 1 | AW127: 1 | AX127: Probably True (-4)
A128: inspected | B128: UPN_Tr2_085 | C128: 7 | D128: 148526867 | E128: A | F128: G | G128: EZH2 | H128: ENST00000320356 | I128: missense_variant | J128: aTt/aCt|p.Ile146Thr/c.437T>C | K128: 18770 | L128: 3689 | M128: 22477 | N128: 0.1641233261 | O128: 0 | P128: 1 | Q128: 0 | R128: 1 | S128: 1 | T128: 0 | U128: 0 | V128: 1 | W128: 4 | X128: NO | Y128: NO | Z128: NO | AA128: NA | AB128: NA | AC128: NO | AD128: NO | AE128: NO | AF128: NO | AG128: NO | AH128: NO | AI128: -4.135 | AJ128: Deleterious | AK128: 35.32 | AL128: 34.73 | AM128: 18770 | AN128: 3689 | AO128: 22477 | AP128: 0.1641233261 | AQ128: 0 | AR128: 0 | AS128: 0 | AT128: NA | AU128: 1 | AV128: 1 | AW128: 1 | AX128: Probably True (-4)
A129: Hotspot, Sanger other sample, Expert, dbSNP flag, Cosmic, prediction, bq | B129: UPN_Tr2_097 | C129: 9 | D129: 5073770 | E129: G | F129: T | G129: JAK2 | H129: ENST00000381652 | I129: missense_variant | J129: Gtc/Ttc|p.Val617Phe/c.1849G>T | K129: 7591 | L129: 3798 | M129: 11403 | N129: 0.3330702447 | O129: 1 | P129: 1 | Q129: 0 | R129: 1 | S129: 1 | T129: 1 | U129: 1 | V129: 1 | W129: 7 | X129: 0.0233 | Y129: NO | Z129: COSM12600 | AA129: central_nervous_system, haematopoietic_and_lymphoid_tissue, lung | AB129: 1, 37620, 3 | AC129: NO | AD129: rs77375493 | AE129: YES | AF129: 0.0006919 | AG129: NO | AH129: NO | AI129: -3.94 | AJ129: Deleterious | AK129: 31.45 | AL129: 34.99 | AM129: 3776 | AN129: 1909 | AO129: 5693 | AP129: 0.3353240822 | AQ129: 3815 | AR129: 1889 | AS129: 5710 | AT129: 0.3308231173 | AU129: 0.6053572313 | AV129: 1 | AW129: 1 | AX129: Hotspot (-9)
A130: inspected | B130: UPN_Tr2_075 | C130: 11 | D130: 119149002 | E130: T | F130: C | G130: CBL | H130: ENST00000264033 | I130: missense_variant | J130: Tgg/Cgg|p.Trp408Arg/c.1222T>C | K130: 15640 | L130: 878 | M130: 16571 | N130: 0.0529841289 | O130: 0 | P130: 0 | Q130: 0 | R130: 0 | S130: 1 | T130: 1 | U130: 0 | V130: 0 | W130: 2 | X130: NO | Y130: NO | Z130: COSM34060 | AA130: haematopoietic_and_lymphoid_tissue | AB130: 2 | AC130: NO | AD130: NO | AE130: NO | AF130: NO | AG130: NO | AH130: NO | AI130: -13.074 | AJ130: Deleterious | AK130: 35.32 | AL130: 34.55 | AM130: 6822 | AN130: 853 | AO130: 7702 | AP130: 0.1107504544 | AQ130: 8818 | AR130: 25 | AS130: 8869 | AT130: 0.002818807081 | AU130: 2 | AV130: 1 | AW130: 1 | AX130: Probably True (-2)
A131: inspected | B131: UPN_Tr2_027 | C131: 11 | D131: 119149280 | E131: G | F131: A | G131: CBL | H131: ENST00000264033 | I131: missense_variant | J131: Gtg/Atg|p.Val430Met/c.1288G>A | K131: 12737 | L131: 6490 | M131: 19351 | N131: 0.3353831843 | O131: 1 | P131: 1 | Q131: 1 | R131: 1 | S131: 1 | T131: 1 | U131: 1 | V131: 1 | W131: 8 | X131: NO | Y131: NO | Z131: COSM5492878 | AA131: Something is odd... | AB131: 0 | AC131: NO | AD131: NO | AE131: NO | AF131: NO | AG131: NO | AH131: NO | AI131: -2.119 | AJ131: Tolerated | AK131: 32.93 | AL131: 32.81 | AM131: 6465 | AN131: 3379 | AO131: 9860 | AP131: 0.3426977688 | AQ131: 6272 | AR131: 3111 | AS131: 9491 | AT131: 0.3277842166 | AU131: 0.08753315077 | AV131: 1 | AW131: 1 | AX131: Probably True (-5)
A132: inspected | B132: UPN_Tr2_028 | C132: 12 | D132: 12006472 | E132: T | F132: TA | G132: ETV6 | H132: ENST00000396373 | I132: frameshift_variant | J132: ctg/Actg|p.Leu148fs/c.441dupA | K132: 22701 | L132: 2711 | M132: 22788 | N132: 0.1189661225 | O132: 1 | P132: 1 | Q132: 0 | R132: 1 | S132: 1 | T132: 1 | U132: 0 | V132: 1 | W132: 6 | X132: NO | Y132: NO | Z132: NO | AA132: NO | AB132: O | AC132: NO | AD132: NO | AE132: NO | AF132: NO | AG132: NO | AH132: NO | AI132: NA | AJ132: NA | AK132: 33.38 | AL132: NA | AM132: 11435 | AN132: 1334 | AO132: 11485 | AP132: 0.116151502 | AQ132: 11266 | AR132: 1377 | AS132: 11303 | AT132: 0.1218260639 | AU132: 0.2551656588 | AV132: 2 | AW132: 2 | AX132: Probably True (-5)
A133: 2nd Illumina, Expert, freq | B133: UPN_Tr2_083 | C133: 12 | D133: 12022491 | E133: G | F133: GC | G133: ETV6 | H133: ENST00000396373 | I133: frameshift_variant | J133: ctc/cCtc|p.Leu201fs/c.601dupC | K133: 5676 | L133: 1577 | M133: 5712 | N133: 0.2760854342 | O133: 1 | P133: 1 | Q133: 0 | R133: 1 | S133: 1 | T133: 1 | U133: 0 | V133: 1 | W133: 6 | X133: NO | Y133: NO | Z133: NO | AA133: NO | AB133: O | AC133: NO | AD133: NO | AE133: NO | AF133: NO | AG133: NO | AH133: NO | AI133: NA | AJ133: NA | AK133: 32.82 | AL133: NA | AM133: 0 | AN133: 0 | AO133: 0 | AP133: NA | AQ133: 5676 | AR133: 1577 | AS133: 5712 | AT133: 0.2760854342 | AU133: 1 | AV133: 1 | AW133: 1 | AX133: Probably True (-5)
A134: Expert, prediction, bq | B134: UPN_Tr2_017 | C134: 12 | D134: 12037403 | E134: T | F134: C | G134: ETV6 | H134: ENST00000396373 | I134: missense_variant | J134: gTc/gCc|p.Val345Ala/c.1034T>C | K134: 2994 | L134: 2502 | M134: 5506 | N134: 0.4544133672 | O134: 1 | P134: 1 | Q134: 1 | R134: 1 | S134: 1 | T134: 0 | U134: 1 | V134: 1 | W134: 7 | X134: NO | Y134: NO | Z134: NO | AA134: NO | AB134: O | AC134: NO | AD134: NO | AE134: NO | AF134: NO | AG134: NO | AH134: NO | AI134: -3.058 | AJ134: Deleterious | AK134: 35.56 | AL134: 35.19 | AM134: 2994 | AN134: 2502 | AO134: 5506 | AP134: 0.4544133672 | AQ134: 0 | AR134: 0 | AS134: 0 | AT134: NA | AU134: 1 | AV134: 1 | AW134: 1 | AX134: Probably True (-6)
A135: inspected | B135: UPN_Tr2_098 | C135: 12 | D135: 12038902 | E135: C | F135: T | G135: ETV6 | H135: ENST00000396373 | I135: missense_variant | J135: Cgc/Tgc|p.Arg399Cys/c.1195C>T | K135: 3737 | L135: 327 | M135: 4071 | N135: 0.08032424466 | O135: 0 | P135: 0 | Q135: 0 | R135: 1 | S135: 1 | T135: 0 | U135: 0 | V135: 1 | W135: 3 | X135: NO | Y135: NO | Z135: NO | AA135: NA | AB135: NA | AC135: NO | AD135: NO | AE135: NO | AF135: NO | AG135: NO | AH135: NO | AI135: -6.975 | AJ135: Deleterious | AK135: 34.74 | AL135: 35.07 | AM135: 3737 | AN135: 327 | AO135: 4071 | AP135: 0.08032424466 | AQ135: 0 | AR135: 0 | AS135: 0 | AT135: NA | AU135: 1 | AV135: 1 | AW135: 1 | AX135: Probably True (-2)
A136: inspected | B136: UPN_Tr2_048 | C136: 12 | D136: 25398263 | E136: A | F136: G | G136: KRAS | H136: ENST00000256078 | I136: missense_variant | J136: tTg/tCg|p.Leu19Ser/c.56T>C | K136: 122 | L136: 20 | M136: 142 | N136: 0.1408450704 | O136: 0 | P136: 1 | Q136: 0 | R136: 1 | S136: 1 | T136: 0 | U136: 0 | V136: 1 | W136: 4 | X136: NO | Y136: NO | Z136: NO | AA136: NO | AB136: O | AC136: NO | AD136: NO | AE136: NO | AF136: NO | AG136: NO | AH136: NO | AI136: -4.979 | AJ136: Deleterious | AK136: 35.43 | AL136: 32.6 | AM136: 122 | AN136: 20 | AO136: 142 | AP136: 0.1408450704 | AQ136: 0 | AR136: 0 | AS136: 0 | AT136: NA | AU136: 1 | AV136: 1 | AW136: 1 | AX136: Probably True (-4)
A137: Hotspot | B137: UPN_Tr2_025 | C137: 15 | D137: 90631934 | E137: C | F137: T | G137: IDH2 | H137: ENST00000330062 | I137: missense_variant | J137: cGg/cAg|p.Arg140Gln/c.419G>A | K137: 19804 | L137: 573 | M137: 20412 | N137: 0.02807172252 | O137: 0 | P137: 0 | Q137: 0 | R137: 0 | S137: 1 | T137: 1 | U137: 0 | V137: 1 | W137: 3 | X137: NO | Y137: NO | Z137: COSM41590 | AA137: haematopoietic_and_lymphoid_tissue | AB137: 489 | AC137: NO | AD137: rs121913502 | AE137: YES | AF137: 0.0001071 | AG137: NO | AH137: NO | AI137: -3.75 | AJ137: Deleterious | AK137: 31.66 | AL137: 32.7 | AM137: 9957 | AN137: 285 | AO137: 10257 | AP137: 0.02778590231 | AQ137: 9847 | AR137: 288 | AS137: 10155 | AT137: 0.02836041359 | AU137: 0.7994933077 | AV137: 7 | AW137: 7 | AX137: Hotspot (-2)
A138: Hotspot, Expert, dbSNP flag, Cosmic, prediction, bq | B138: UPN_Tr2_045 | C138: 15 | D138: 90631934 | E138: C | F138: T | G138: IDH2 | H138: ENST00000330062 | I138: missense_variant | J138: cGg/cAg|p.Arg140Gln/c.419G>A | K138: 15778 | L138: 3523 | M138: 19370 | N138: 0.1818791946 | O138: 1 | P138: 1 | Q138: 0 | R138: 1 | S138: 1 | T138: 1 | U138: 0 | V138: 1 | W138: 6 | X138: NO | Y138: NO | Z138: COSM41590 | AA138: haematopoietic_and_lymphoid_tissue | AB138: 489 | AC138: NO | AD138: rs121913502 | AE138: YES | AF138: 0.0001071 | AG138: NO | AH138: NO | AI138: -3.75 | AJ138: Deleterious | AK138: 30.71 | AL138: 32.56 | AM138: 7953 | AN138: 1779 | AO138: 9759 | AP138: 0.1822932678 | AQ138: 7825 | AR138: 1744 | AS138: 9611 | AT138: 0.1814587452 | AU138: 0.9257741581 | AV138: 7 | AW138: 7 | AX138: Hotspot (-7)
A139: Hotspot, 454 validated Expert, dbSNP flag, Cosmic, prediction, bq | B139: UPN_Tr2_009 | C139: 15 | D139: 90631934 | E139: C | F139: T | G139: IDH2 | H139: ENST00000330062 | I139: missense_variant | J139: cGg/cAg|p.Arg140Gln/c.419G>A | K139: 21641 | L139: 12877 | M139: 34625 | N139: 0.371898917 | O139: 1 | P139: 1 | Q139: 1 | R139: 1 | S139: 1 | T139: 1 | U139: 1 | V139: 1 | W139: 8 | X139: NO | Y139: NO | Z139: COSM41590 | AA139: haematopoietic_and_lymphoid_tissue | AB139: 489 | AC139: NO | AD139: rs121913502 | AE139: YES | AF139: 0.0001071 | AG139: NO | AH139: NO | AI139: -3.75 | AJ139: Deleterious | AK139: 31.74 | AL139: 32.95 | AM139: 10876 | AN139: 6457 | AO139: 17384 | AP139: 0.3714335021 | AQ139: 10765 | AR139: 6420 | AS139: 17241 | AT139: 0.3723681921 | AU139: 0.8412263421 | AV139: 7 | AW139: 7 | AX139: Hotspot (-7)
A140: Hotspot, Expert, dbSNP flag, Cosmic, prediction, bq | B140: UPN_Tr2_079 | C140: 15 | D140: 90631934 | E140: C | F140: T | G140: IDH2 | H140: ENST00000330062 | I140: missense_variant | J140: cGg/cAg|p.Arg140Gln/c.419G>A | K140: 10981 | L140: 2167 | M140: 13213 | N140: 0.1640051464 | O140: 1 | P140: 1 | Q140: 0 | R140: 1 | S140: 1 | T140: 1 | U140: 0 | V140: 1 | W140: 6 | X140: NO | Y140: NO | Z140: COSM41590 | AA140: haematopoietic_and_lymphoid_tissue | AB140: 489 | AC140: NO | AD140: rs121913502 | AE140: YES | AF140: 0.0001071 | AG140: NO | AH140: NO | AI140: -3.75 | AJ140: Deleterious | AK140: 29.91 | AL140: 32.15 | AM140: 5532 | AN140: 1079 | AO140: 6625 | AP140: 0.1628679245 | AQ140: 5449 | AR140: 1088 | AS140: 6588 | AT140: 0.1651487553 | AU140: 0.6216330346 | AV140: 7 | AW140: 7 | AX140: Hotspot (-7)
A141: Hotspot, Expert, dbSNP flag, Cosmic, prediction, bq | B141: UPN_Tr2_082 | C141: 15 | D141: 90631934 | E141: C | F141: T | G141: IDH2 | H141: ENST00000330062 | I141: missense_variant | J141: cGg/cAg|p.Arg140Gln/c.419G>A | K141: 13978 | L141: 2440 | M141: 16511 | N141: 0.1477802677 | O141: 1 | P141: 1 | Q141: 0 | R141: 1 | S141: 1 | T141: 1 | U141: 0 | V141: 1 | W141: 6 | X141: NO | Y141: NO | Z141: COSM41590 | AA141: haematopoietic_and_lymphoid_tissue | AB141: 489 | AC141: NO | AD141: rs121913502 | AE141: YES | AF141: 0.0001071 | AG141: NO | AH141: NO | AI141: -3.75 | AJ141: Deleterious | AK141: 29.97 | AL141: 32 | AM141: 7072 | AN141: 1223 | AO141: 8335 | AP141: 0.1467306539 | AQ141: 6906 | AR141: 1217 | AS141: 8176 | AT141: 0.1488502935 | AU141: 0.6767797139 | AV141: 7 | AW141: 7 | AX141: Hotspot (-7)
A142: Hotspot, Expert, dbSNP flag, Cosmic, prediction, bq | B142: UPN_Tr2_110 | C142: 15 | D142: 90631934 | E142: C | F142: T | G142: IDH2 | H142: ENST00000330062 | I142: missense_variant | J142: cGg/cAg|p.Arg140Gln/c.419G>A | K142: 13168 | L142: 1924 | M142: 15125 | N142: 0.1272066116 | O142: 1 | P142: 1 | Q142: 0 | R142: 1 | S142: 1 | T142: 1 | U142: 0 | V142: 1 | W142: 6 | X142: NO | Y142: NO | Z142: COSM41590 | AA142: haematopoietic_and_lymphoid_tissue | AB142: 489 | AC142: NO | AD142: rs121913502 | AE142: YES | AF142: 0.0001071 | AG142: NO | AH142: NO | AI142: -3.75 | AJ142: Deleterious | AK142: 30.25 | AL142: 33.93 | AM142: 6602 | AN142: 963 | AO142: 7580 | AP142: 0.1270448549 | AQ142: 6566 | AR142: 961 | AS142: 7545 | AT142: 0.1273691186 | AU142: 0.9610692688 | AV142: 7 | AW142: 7 | AX142: Hotspot (-7)
A143: Hotspot | B143: UPN_Tr2_061 | C143: 15 | D143: 90631935 | E143: G | F143: A | G143: IDH2 | H143: ENST00000330062 | I143: missense_variant | J143: Cgg/Tgg|p.Arg140Trp/c.418C>T | K143: 24609 | L143: 1443 | M143: 26188 | N143: 0.05510157324 | O143: 0 | P143: 0 | Q143: 0 | R143: 0 | S143: 1 | T143: 1 | U143: 0 | V143: 1 | W143: 3 | X143: NO | Y143: NO | Z143: COSM41877 | AA143: haematopoietic_and_lymphoid_tissue, large_intestine | AB143: 10, 2 | AC143: NO | AD143: NO | AE143: NO | AF143: NO | AG143: NO | AH143: NO | AI143: -7.5 | AJ143: Deleterious | AK143: 32.28 | AL143: 30.88 | AM143: 12397 | AN143: 722 | AO143: 13147 | AP143: 0.05491747167 | AQ143: 12212 | AR143: 721 | AS143: 13041 | AT143: 0.05528717123 | AU143: 0.8074452495 | AV143: 1 | AW143: 1 | AX143: Hotspot (-4)
A144: Expert, Cosmic, prediction, bq | B144: UPN_Tr2_056 | C144: 17 | D144: 7579314 | E144: T | F144: G | G144: TP53 | H144: ENST00000269305 | I144: missense_variant | J144: Acg/Ccg|p.Thr125Pro/c.373A>C | K144: 385 | L144: 3670 | M144: 4074 | N144: 0.9008345606 | O144: 0 | P144: 1 | Q144: 0 | R144: 0 | S144: 1 | T144: 0 | U144: 0 | V144: 1 | W144: 3 | X144: NO | Y144: NO | Z144: COSM1646886, COSM707863, COSM3970385, COSM707862, COSM45368 | AA144: central_nervous_system, lung | AB144: 5, 6 | AC144: NO | AD144: NO | AE144: NO | AF144: NO | AG144: NO | AH144: NO | AI144: -5.478 | AJ144: Deleterious | AK144: 34.95 | AL144: 34.95 | AM144: 373 | AN144: 3670 | AO144: 4059 | AP144: 0.9041635871 | AQ144: 12 | AR144: 0 | AS144: 15 | AT144: 0 | AU144: 4.586810435e-13 | AV144: 1 | AW144: 1 | AX144: Probably True (-1)
A145: Expert, Cosmic, prediction, bq | B145: UPN_Tr2_092 | C145: 17 | D145: 7579395 | E145: G | F145: A | G145: TP53 | H145: ENST00000269305 | I145: missense_variant | J145: Cct/Tct|p.Pro98Ser/c.292C>T | K145: 853 | L145: 723 | M145: 1580 | N145: 0.4575949367 | O145: 1 | P145: 1 | Q145: 0 | R145: 1 | S145: 1 | T145: 0 | U145: 1 | V145: 1 | W145: 6 | X145: NO | Y145: NO | Z145: COSM12296 | AA145: haematopoietic_and_lymphoid_tissue, oesophagus, skin | AB145: 1, 1, 1 | AC145: NO | AD145: NO | AE145: NO | AF145: NO | AG145: NO | AH145: NO | AI145: -6.482 | AJ145: Deleterious | AK145: 34.83 | AL145: 32.91 | AM145: 853 | AN145: 723 | AO145: 1580 | AP145: 0.4575949367 | AQ145: 0 | AR145: 0 | AS145: 0 | AT145: NA | AU145: 1 | AV145: 1 | AW145: 1 | AX145: Probably True (-6)
A146: Expert, prediction | B146: UPN_Tr2_028 | C146: 17 | D146: 74732935 | E146: CGGCGGCTGTGGTGTGAGTCCGGGG | F146: C | G146: SRSF2 | H146: ENST00000392485 | I146: disruptive_inframe_deletion | J146: cccccggactcacaccacagccgccgg/cgg|p.Pro95_Arg102del/c.284_307delCCCCGGACTCACACCACAGCCGCC | K146: 2544 | L146: 1243 | M146: 3801 | N146: 0.3270192055 | O146: 1 | P146: 1 | Q146: 0 | R146: 1 | S146: 1 | T146: 1 | U146: 0 | V146: 1 | W146: 6 | X146: NO | Y146: NO | Z146: NO | AA146: NA | AB146: NA | AC146: NO | AD146: NO | AE146: NO | AF146: 1.693e-05 | AG146: NO | AH146: NO | AI146: -10.625 | AJ146: Deleterious | AK146: 34.27 | AL146: NA | AM146: 1283 | AN146: 1190 | AO146: 2481 | AP146: 0.4796453043 | AQ146: 1261 | AR146: 53 | AS146: 1320 | AT146: 0.04015151515 | AU146: 1.391006874e-202 | AV146: 2 | AW146: 2 | AX146: Hotspot (-9)
A147: Expert, prediction | B147: UPN_Tr2_036 | C147: 17 | D147: 74732935 | E147: CGGCGGCTGTGGTGTGAGTCCGGGG | F147: C | G147: SRSF2 | H147: ENST00000392485 | I147: disruptive_inframe_deletion | J147: cccccggactcacaccacagccgccgg/cgg|p.Pro95_Arg102del/c.284_307delCCCCGGACTCACACCACAGCCGCC | K147: 2906 | L147: 343 | M147: 3256 | N147: 0.1053439803 | O147: 1 | P147: 1 | Q147: 0 | R147: 1 | S147: 1 | T147: 1 | U147: 0 | V147: 1 | W147: 6 | X147: NO | Y147: NO | Z147: NO | AA147: NA | AB147: NA | AC147: NO | AD147: NO | AE147: NO | AF147: 1.693e-05 | AG147: NO | AH147: NO | AI147: -10.625 | AJ147: Deleterious | AK147: 34.08 | AL147: NA | AM147: 1475 | AN147: 337 | AO147: 1816 | AP147: 0.1855726872 | AQ147: 1431 | AR147: 6 | AS147: 1440 | AT147: 0.004166666667 | AU147: 3.165415668e-82 | AV147: 2 | AW147: 2 | AX147: Hotspot (-8)
A148: Expert, prediction | B148: UPN_Tr2_079 | C148: 17 | D148: 74732944 | E148: TGGTGTGAGTCCGGGG | F148: T | G148: SRSF2 | H148: ENST00000392485 | I148: disruptive_inframe_deletion | J148: cccccggactcacaccac/cac|p.Pro95_His99del/c.284_298delCCCCGGACTCACACC | K148: 129 | L148: 76 | M148: 205 | N148: 0.3707317073 | O148: 1 | P148: 1 | Q148: 0 | R148: 1 | S148: 1 | T148: 1 | U148: 1 | V148: 1 | W148: 7 | X148: NO | Y148: NO | Z148: NO | AA148: NA | AB148: NA | AC148: NO | AD148: NO | AE148: NO | AF148: NO | AG148: NO | AH148: NO | AI148: -10.124 | AJ148: Deleterious | AK148: 34.53 | AL148: NA | AM148: 65 | AN148: 39 | AO148: 104 | AP148: 0.375 | AQ148: 64 | AR148: 37 | AS148: 101 | AT148: 0.3663366337 | AU148: 1 | AV148: 1 | AW148: 1 | AX148: Probably True (-6)
A149: Hotspot, Expert, Cosmic, prediction, bq | B149: UPN_Tr2_025 | C149: 17 | D149: 74732959 | E149: G | F149: A | G149: SRSF2 | H149: ENST00000392485 | I149: missense_variant | J149: cCc/cTc|p.Pro95Leu/c.284C>T | K149: 4930 | L149: 2853 | M149: 7794 | N149: 0.3660508083 | O149: 1 | P149: 1 | Q149: 1 | R149: 1 | S149: 1 | T149: 1 | U149: 1 | V149: 1 | W149: 8 | X149: NO | Y149: NO | Z149: COSM146288 | AA149: haematopoietic_and_lymphoid_tissue | AB149: 93 | AC149: NO | AD149: NO | AE149: NO | AF149: NO | AG149: NO | AH149: NO | AI149: -5.208 | AJ149: Deleterious | AK149: 34.42 | AL149: 30.14 | AM149: 2480 | AN149: 1439 | AO149: 3922 | AP149: 0.3669046405 | AQ149: 2450 | AR149: 1414 | AS149: 3872 | AT149: 0.3651859504 | AU149: 0.9250346848 | AV149: 2 | AW149: 13 | AX149: Hotspot (-9)
A150: Hotspot, Expert, Cosmic, prediction, bq | B150: UPN_Tr2_044 | C150: 17 | D150: 74732959 | E150: G | F150: A | G150: SRSF2 | H150: ENST00000392485 | I150: missense_variant | J150: cCc/cTc|p.Pro95Leu/c.284C>T | K150: 3368 | L150: 66 | M150: 3436 | N150: 0.01920838184 | O150: 0 | P150: 0 | Q150: 0 | R150: 0 | S150: 1 | T150: 1 | U150: 0 | V150: 1 | W150: 3 | X150: NO | Y150: NO | Z150: COSM146288 | AA150: haematopoietic_and_lymphoid_tissue | AB150: 93 | AC150: NO | AD150: NO | AE150: NO | AF150: NO | AG150: NO | AH150: NO | AI150: -5.208 | AJ150: Deleterious | AK150: 34.41 | AL150: 31.7 | AM150: 1700 | AN150: 32 | AO150: 1733 | AP150: 0.01846508944 | AQ150: 1668 | AR150: 34 | AS150: 1703 | AT150: 0.01996476806 | AU150: 0.8041531511 | AV150: 2 | AW150: 13 | AX150: Hotspot (-2)
A151: Hotspot, Expert, Cosmic, prediction, bq | B151: UPN_Tr2_021 | C151: 17 | D151: 74732959 | E151: G | F151: C | G151: SRSF2 | H151: ENST00000392485 | I151: missense_variant | J151: cCc/cGc|p.Pro95Arg/c.284C>G | K151: 2636 | L151: 1086 | M151: 3735 | N151: 0.2907630522 | O151: 1 | P151: 1 | Q151: 1 | R151: 1 | S151: 1 | T151: 1 | U151: 1 | V151: 1 | W151: 8 | X151: NO | Y151: NO | Z151: COSM211661 | AA151: haematopoietic_and_lymphoid_tissue | AB151: 55 | AC151: NO | AD151: NO | AE151: NO | AF151: NO | AG151: NO | AH151: NO | AI151: -4.575 | AJ151: Deleterious | AK151: 34.25 | AL151: 34.59 | AM151: 1326 | AN151: 545 | AO151: 1879 | AP151: 0.2900478978 | AQ151: 1310 | AR151: 541 | AS151: 1856 | AT151: 0.291487069 | AU151: 0.9712374437 | AV151: 5 | AW151: 13 | AX151: Hotspot (-7)
A152: Hotspot, Expert, Cosmic, prediction, bq | B152: UPN_Tr2_052 | C152: 17 | D152: 74732959 | E152: G | F152: C | G152: SRSF2 | H152: ENST00000392485 | I152: missense_variant | J152: cCc/cGc|p.Pro95Arg/c.284C>G | K152: 3845 | L152: 4820 | M152: 8687 | N152: 0.5548520778 | O152: 1 | P152: 1 | Q152: 1 | R152: 1 | S152: 1 | T152: 1 | U152: 1 | V152: 1 | W152: 8 | X152: NO | Y152: NO | Z152: COSM211661 | AA152: haematopoietic_and_lymphoid_tissue | AB152: 55 | AC152: NO | AD152: NO | AE152: NO | AF152: NO | AG152: NO | AH152: NO | AI152: -4.575 | AJ152: Deleterious | AK152: 34.32 | AL152: 34.24 | AM152: 1929 | AN152: 2434 | AO152: 4372 | AP152: 0.5567246112 | AQ152: 1916 | AR152: 2386 | AS152: 4315 | AT152: 0.5529548088 | AU152: 0.7621466759 | AV152: 5 | AW152: 13 | AX152: Hotspot (-7)
A153: Hotspot, Expert, Cosmic, prediction, bq | B153: UPN_Tr2_090 | C153: 17 | D153: 74732959 | E153: G | F153: C | G153: SRSF2 | H153: ENST00000392485 | I153: missense_variant | J153: cCc/cGc|p.Pro95Arg/c.284C>G | K153: 3034 | L153: 375 | M153: 3414 | N153: 0.1098418278 | O153: 0 | P153: 1 | Q153: 0 | R153: 1 | S153: 1 | T153: 1 | U153: 0 | V153: 1 | W153: 5 | X153: NO | Y153: NO | Z153: COSM211661 | AA153: haematopoietic_and_lymphoid_tissue | AB153: 55 | AC153: NO | AD153: NO | AE153: NO | AF153: NO | AG153: NO | AH153: NO | AI153: -4.575 | AJ153: Deleterious | AK153: 33.73 | AL153: 33.86 | AM153: 1524 | AN153: 188 | AO153: 1714 | AP153: 0.1096849475 | AQ153: 1510 | AR153: 187 | AS153: 1700 | AT153: 0.11 | AU153: 1 | AV153: 5 | AW153: 13 | AX153: Hotspot (-6)
A154: Hotspot, inspected | B154: UPN_Tr2_097 | C154: 17 | D154: 74732959 | E154: G | F154: C | G154: SRSF2 | H154: ENST00000392485 | I154: missense_variant | J154: cCc/cGc|p.Pro95Arg/c.284C>G | K154: 4036 | L154: 111 | M154: 4175 | N154: 0.02658682635 | O154: 0 | P154: 0 | Q154: 0 | R154: 0 | S154: 1 | T154: 1 | U154: 0 | V154: 1 | W154: 3 | X154: NO | Y154: NO | Z154: COSM211661 | AA154: haematopoietic_and_lymphoid_tissue | AB154: 55 | AC154: NO | AD154: NO | AE154: NO | AF154: NO | AG154: NO | AH154: NO | AI154: -4.575 | AJ154: Deleterious | AK154: 33.79 | AL154: 33.31 | AM154: 2030 | AN154: 56 | AO154: 2099 | AP154: 0.02667937113 | AQ154: 2006 | AR154: 55 | AS154: 2076 | AT154: 0.02649325626 | AU154: 1 | AV154: 5 | AW154: 13 | AX154: Hotspot (-2)
A155: Hotspot, Expert, Cosmic, prediction, bq | B155: UPN_Tr2_110 | C155: 17 | D155: 74732959 | E155: G | F155: C | G155: SRSF2 | H155: ENST00000392485 | I155: missense_variant | J155: cCc/cGc|p.Pro95Arg/c.284C>G | K155: 3709 | L155: 1043 | M155: 4758 | N155: 0.219209752 | O155: 1 | P155: 1 | Q155: 0 | R155: 1 | S155: 1 | T155: 1 | U155: 1 | V155: 1 | W155: 7 | X155: NO | Y155: NO | Z155: COSM211661 | AA155: haematopoietic_and_lymphoid_tissue | AB155: 55 | AC155: NO | AD155: NO | AE155: NO | AF155: NO | AG155: NO | AH155: NO | AI155: -4.575 | AJ155: Deleterious | AK155: 33.65 | AL155: 34.03 | AM155: 1864 | AN155: 524 | AO155: 2391 | AP155: 0.2191551652 | AQ155: 1845 | AR155: 519 | AS155: 2367 | AT155: 0.2192648923 | AU155: 1 | AV155: 5 | AW155: 13 | AX155: Hotspot (-7)
A156: Expert, IonT_2 validated, prediction, freq | B156: UPN_Tr2_003 | C156: 17 | D156: 74732959 | E156: G | F156: GGGC | G156: SRSF2 | H156: ENST00000392485 | I156: inframe_insertion | J156: ccc/cGCCcc|p.Arg94dup/c.281_283dupGCC | K156: 448 | L156: 85 | M156: 448 | N156: 0.1897321429 | O156: 1 | P156: 1 | Q156: 0 | R156: 1 | S156: 1 | T156: 1 | U156: 0 | V156: 1 | W156: 6 | X156: NO | Y156: NO | Z156: NO | AA156: NA | AB156: NA | AC156: NO | AD156: NO | AE156: NO | AF156: NO | AG156: NO | AH156: NO | AI156: -5.479 | AJ156: Deleterious | AK156: 35.17 | AL156: NA | AM156: 225 | AN156: 42 | AO156: 225 | AP156: 0.1866666667 | AQ156: 223 | AR156: 43 | AS156: 223 | AT156: 0.1928251121 | AU156: 0.9063471557 | AV156: 1 | AW156: 13 | AX156: Probably True (-5)
A157: Hotspot, Expert, IonT_2 validated, Cosmic, prediction, bq | B157: UPN_Tr2_002 | C157: 17 | D157: 74732959 | E157: G | F157: T | G157: SRSF2 | H157: ENST00000392485 | I157: missense_variant | J157: cCc/cAc|p.Pro95His/c.284C>A | K157: 2154 | L157: 306 | M157: 2460 | N157: 0.1243902439 | O157: 1 | P157: 1 | Q157: 0 | R157: 1 | S157: 1 | T157: 1 | U157: 0 | V157: 1 | W157: 6 | X157: NO | Y157: NO | Z157: COSM211504 | AA157: haematopoietic_and_lymphoid_tissue | AB157: 147 | AC157: NO | AD157: NO | AE157: NO | AF157: NO | AG157: NO | AH157: NO | AI157: -4.999 | AJ157: Deleterious | AK157: 35.11 | AL157: 30.45 | AM157: 1080 | AN157: 155 | AO157: 1235 | AP157: 0.1255060729 | AQ157: 1074 | AR157: 151 | AS157: 1225 | AT157: 0.1232653061 | AU157: 0.9027836396 | AV157: 5 | AW157: 13 | AX157: Hotspot (-7)
A158: Hotspot, inspected | B158: UPN_Tr2_051 | C158: 17 | D158: 74732959 | E158: G | F158: T | G158: SRSF2 | H158: ENST00000392485 | I158: missense_variant | J158: cCc/cAc|p.Pro95His/c.284C>A | K158: 6445 | L158: 247 | M158: 6710 | N158: 0.03681073025 | O158: 0 | P158: 0 | Q158: 0 | R158: 0 | S158: 1 | T158: 1 | U158: 0 | V158: 1 | W158: 3 | X158: NO | Y158: NO | Z158: COSM211504 | AA158: haematopoietic_and_lymphoid_tissue | AB158: 147 | AC158: NO | AD158: NO | AE158: NO | AF158: NO | AG158: NO | AH158: NO | AI158: -4.999 | AJ158: Deleterious | AK158: 34.41 | AL158: 31.03 | AM158: 3246 | AN158: 125 | AO158: 3382 | AP158: 0.03696037847 | AQ158: 3199 | AR158: 122 | AS158: 3328 | AT158: 0.03665865385 | AU158: 0.9483976694 | AV158: 5 | AW158: 13 | AX158: Hotspot (-2)
A159: Hotspot, Expert,, Cosmic, prediction | B159: UPN_Tr2_062 | C159: 17 | D159: 74732959 | E159: G | F159: T | G159: SRSF2 | H159: ENST00000392485 | I159: missense_variant | J159: cCc/cAc|p.Pro95His/c.284C>A | K159: 467 | L159: 593 | M159: 1060 | N159: 0.5594339623 | O159: 1 | P159: 1 | Q159: 1 | R159: 1 | S159: 1 | T159: 1 | U159: 1 | V159: 1 | W159: 8 | X159: NO | Y159: NO | Z159: COSM211504 | AA159: haematopoietic_and_lymphoid_tissue | AB159: 147 | AC159: NO | AD159: NO | AE159: NO | AF159: NO | AG159: NO | AH159: NO | AI159: -4.999 | AJ159: Deleterious | AK159: 33.41 | AL159: 29.91 | AM159: 231 | AN159: 302 | AO159: 533 | AP159: 0.5666041276 | AQ159: 236 | AR159: 291 | AS159: 527 | AT159: 0.5521821632 | AU159: 0.6650514224 | AV159: 5 | AW159: 13 | AX159: Hotspot (-7)
A160: Hotspot, Expert, Cosmic, prediction, bq | B160: UPN_Tr2_102 | C160: 17 | D160: 74732959 | E160: G | F160: T | G160: SRSF2 | H160: ENST00000392485 | I160: missense_variant | J160: cCc/cAc|p.Pro95His/c.284C>A | K160: 2306 | L160: 376 | M160: 2684 | N160: 0.1400894188 | O160: 1 | P160: 1 | Q160: 0 | R160: 1 | S160: 1 | T160: 1 | U160: 0 | V160: 1 | W160: 6 | X160: NO | Y160: NO | Z160: COSM211504 | AA160: haematopoietic_and_lymphoid_tissue | AB160: 147 | AC160: NO | AD160: NO | AE160: NO | AF160: NO | AG160: NO | AH160: NO | AI160: -4.999 | AJ160: Deleterious | AK160: 33.75 | AL160: 32 | AM160: 1158 | AN160: 190 | AO160: 1349 | AP160: 0.1408450704 | AQ160: 1148 | AR160: 186 | AS160: 1335 | AT160: 0.1393258427 | AU160: 0.9115714924 | AV160: 5 | AW160: 13 | AX160: Hotspot (-7)
A161: Hotspot, Expert, Cosmic, prediction, bq | B161: UPN_Tr2_106 | C161: 17 | D161: 74732959 | E161: G | F161: T | G161: SRSF2 | H161: ENST00000392485 | I161: missense_variant | J161: cCc/cAc|p.Pro95His/c.284C>A | K161: 5498 | L161: 942 | M161: 6454 | N161: 0.1459559963 | O161: 1 | P161: 1 | Q161: 0 | R161: 1 | S161: 1 | T161: 1 | U161: 0 | V161: 1 | W161: 6 | X161: NO | Y161: NO | Z161: COSM211504 | AA161: haematopoietic_and_lymphoid_tissue | AB161: 147 | AC161: NO | AD161: NO | AE161: NO | AF161: NO | AG161: NO | AH161: NO | AI161: -4.999 | AJ161: Deleterious | AK161: 33.68 | AL161: 31.77 | AM161: 2754 | AN161: 476 | AO161: 3237 | AP161: 0.1470497374 | AQ161: 2744 | AR161: 466 | AS161: 3217 | AT161: 0.1448554554 | AU161: 0.8051459492 | AV161: 5 | AW161: 13 | AX161: Hotspot (-7)
A162: Expert, inspected, freq | B162: UPN_Tr2_016 | C162: 20 | D162: 31022286 | E162: TACC | F162: T | G162: ASXL1 | H162: ENST00000375687 | I162: stop_gained+disruptive_inframe_deletion | J162: taccag/tag|p.Tyr591_Gln592delinsTer/c.1773_1775delCCA | K162: 4104 | L162: 3351 | M162: 7466 | N162: 0.4488347174 | O162: 1 | P162: 1 | Q162: 0 | R162: 1 | S162: 1 | T162: 1 | U162: 0 | V162: 1 | W162: 6 | X162: NO | Y162: NO | Z162: NO | AA162: NA | AB162: NA | AC162: NO | AD162: NO | AE162: NO | AF162: NO | AG162: NO | AH162: NO | AI162: -8.203 | AJ162: Deleterious | AK162: 34.87 | AL162: NA | AM162: 924 | AN162: 488 | AO162: 1414 | AP162: 0.3451202263 | AQ162: 3180 | AR162: 2863 | AS162: 6052 | AT162: 0.4730667548 | AU162: 2 | AV162: 1 | AW162: 1 | AX162: Probably True (-7)
A163: Expert, inspected, freq | B163: UPN_Tr2_043 | C163: 20 | D163: 31022288 | E163: C | F163: A | G163: ASXL1 | H163: ENST00000375687 | I163: stop_gained | J163: taC/taA|p.Tyr591*/c.1773C>A | K163: 11049 | L163: 367 | M163: 11453 | N163: 0.03204400594 | O163: 0 | P163: 0 | Q163: 0 | R163: 0 | S163: 1 | T163: 1 | U163: 0 | V163: 1 | W163: 3 | X163: NO | Y163: NO | Z163: COSM1681609 | AA163: haematopoietic_and_lymphoid_tissue | AB163: 2 | AC163: NO | AD163: NO | AE163: NO | AF163: NA | AG163: NO | AH163: NO | AI163: NA | AJ163: NA | AK163: 35.2 | AL163: 34.31 | AM163: 1834 | AN163: 70 | AO163: 1915 | AP163: 0.0365535248 | AQ163: 9215 | AR163: 297 | AS163: 9538 | AT163: 0.03113860348 | AU163: 0.2259226711 | AV163: 1 | AW163: 1 | AX163: Hotspot (-3)
A164: Hotspot, Sanger other sample | B164: UPN_Tr2_017 | C164: 20 | D164: 31022402 | E164: TCACCACTGCCATAGAGAGGCGGC | F164: T | G164: ASXL1 | H164: ENST00000375687 | I164: frameshift_variant | J164: agagaggcggccaccactgccatc/|p.Glu635fs/c.1900_1922delAGAGAGGCGGCCACCACTGCCAT | K164: 1578 | L164: 209 | M164: 1796 | N164: 0.1163697105 | O164: 0 | P164: 1 | Q164: 1 | R164: 1 | S164: 1 | T164: 1 | U164: 0 | V164: 1 | W164: 6 | X164: NO | Y164: NO | Z164: NO | AA164: NA | AB164: NA | AC164: NO | AD164: NO | AE164: NO | AF164: 0.0001403 | AG164: NO | AH164: NO | AI164: NA | AJ164: NA | AK164: 32.25 | AL164: NA | AM164: 999 | AN164: 0 | AO164: 1002 | AP164: 0 | AQ164: 579 | AR164: 209 | AS164: 794 | AT164: 0.2632241814 | AU164: 2 | AV164: 5 | AW164: 5 | AX164: Hotspot (-7)
A165: Hotspot, Sanger other sample | B165: UPN_Tr2_018 | C165: 20 | D165: 31022402 | E165: TCACCACTGCCATAGAGAGGCGGC | F165: T | G165: ASXL1 | H165: ENST00000375687 | I165: frameshift_variant | J165: agagaggcggccaccactgccatc/|p.Glu635fs/c.1900_1922delAGAGAGGCGGCCACCACTGCCAT | K165: 3207 | L165: 40 | M165: 3257 | N165: 0.01228124041 | O165: 0 | P165: 0 | Q165: 0 | R165: 1 | S165: 1 | T165: 0 | U165: 0 | V165: 1 | W165: 3 | X165: NO | Y165: NO | Z165: NO | AA165: NA | AB165: NA | AC165: NO | AD165: NO | AE165: NO | AF165: 0.0001403 | AG165: NO | AH165: NO | AI165: NA | AJ165: NA | AK165: 32.76 | AL165: NA | AM165: 1670 | AN165: 0 | AO165: 1672 | AP165: 0 | AQ165: 1537 | AR165: 40 | AS165: 1585 | AT165: 0.02523659306 | AU165: 2 | AV165: 5 | AW165: 5 | AX165: Hotspot (-1)
A166: Hotspot, Sanger validated, freq | B166: UPN_Tr2_049 | C166: 20 | D166: 31022402 | E166: TCACCACTGCCATAGAGAGGCGGC | F166: T | G166: ASXL1 | H166: ENST00000375687 | I166: frameshift_variant | J166: ggtcaccactgccatagagaggcggcc/|p.Glu635fs/c.1887_1909delCACCACTGCCATAGAGAGGCGGC | K166: 2797 | L166: 221 | M166: 3034 | N166: 0.07284113382 | O166: 0 | P166: 0 | Q166: 1 | R166: 1 | S166: 1 | T166: 1 | U166: 0 | V166: 1 | W166: 5 | X166: NO | Y166: NO | Z166: NO | AA166: NA | AB166: NA | AC166: NO | AD166: NO | AE166: NO | AF166: 0.0001403 | AG166: NO | AH166: NO | AI166: NA | AJ166: NA | AK166: 31.65 | AL166: NA | AM166: 1674 | AN166: 0 | AO166: 1678 | AP166: 0 | AQ166: 1123 | AR166: 221 | AS166: 1356 | AT166: 0.162979351 | AU166: 2 | AV166: 5 | AW166: 5 | AX166: Hotspot (-6)
A167: Hotspot, Sanger validated, freq | B167: UPN_Tr2_104 | C167: 20 | D167: 31022402 | E167: TCACCACTGCCATAGAGAGGCGGC | F167: T | G167: ASXL1 | H167: ENST00000375687 | I167: frameshift_variant | J167: agagaggcggccaccactgccatc/|p.Glu635fs/c.1900_1922delAGAGAGGCGGCCACCACTGCCAT | K167: 2779 | L167: 300 | M167: 3085 | N167: 0.09724473258 | O167: 0 | P167: 1 | Q167: 0 | R167: 1 | S167: 1 | T167: 1 | U167: 0 | V167: 1 | W167: 5 | X167: NO | Y167: NO | Z167: NO | AA167: NA | AB167: NA | AC167: NO | AD167: NO | AE167: NO | AF167: 0.0001403 | AG167: NO | AH167: NO | AI167: NA | AJ167: NA | AK167: 32.46 | AL167: NA | AM167: 1624 | AN167: 0 | AO167: 1627 | AP167: 0 | AQ167: 1155 | AR167: 300 | AS167: 1458 | AT167: 0.2057613169 | AU167: 2 | AV167: 5 | AW167: 5 | AX167: Hotspot (-6)
A168: Hotspot, Sanger other sample | B168: UPN_Tr2_108 | C168: 20 | D168: 31022402 | E168: TCACCACTGCCATAGAGAGGCGGC | F168: T | G168: ASXL1 | H168: ENST00000375687 | I168: frameshift_variant | J168: agagaggcggccaccactgccatc/|p.Glu635fs/c.1900_1922delAGAGAGGCGGCCACCACTGCCAT | K168: 4019 | L168: 202 | M168: 4238 | N168: 0.04766399245 | O168: 1 | P168: 1 | Q168: 0 | R168: 1 | S168: 1 | T168: 1 | U168: 0 | V168: 1 | W168: 6 | X168: NO | Y168: NO | Z168: NO | AA168: NA | AB168: NA | AC168: NO | AD168: NO | AE168: NO | AF168: 0.0001403 | AG168: NO | AH168: NO | AI168: NA | AJ168: NA | AK168: 32.69 | AL168: NA | AM168: 2176 | AN168: 0 | AO168: 2182 | AP168: 0 | AQ168: 1843 | AR168: 202 | AS168: 2056 | AT168: 0.09824902724 | AU168: 2 | AV168: 5 | AW168: 5 | AX168: Hotspot (-6)
A169: Hotspot, Sanger validated, 2nd Illumina, freq | B169: UPN_Tr2_001 | C169: 20 | D169: 31022441 | E169: A | F169: AG | G169: ASXL1 | H169: ENST00000375687 | I169: frameshift_variant | J169: ggt/ggGt|p.Gly646fs/c.1934dupG | K169: 5021 | L169: 1280 | M169: 5082 | N169: 0.2518693428 | O169: 1 | P169: 1 | Q169: 1 | R169: 1 | S169: 1 | T169: 1 | U169: 0 | V169: 1 | W169: 7 | X169: NO | Y169: NO | Z169: NO | AA169: NA | AB169: NA | AC169: NO | AD169: NO | AE169: NO | AF169: NO | AG169: NO | AH169: NO | AI169: NA | AJ169: NA | AK169: 34.97 | AL169: NA | AM169: 4643 | AN169: 1208 | AO169: 4662 | AP169: 0.2591162591 | AQ169: 378 | AR169: 72 | AS169: 420 | AT169: 0.1714285714 | AU169: 0.01768155847 | AV169: 110 | AW169: 229 | AX169: Hotspot (-4)
A170: Hotspot, Sanger validated, freq | B170: UPN_Tr2_025 | C170: 20 | D170: 31022441 | E170: A | F170: AG | G170: ASXL1 | H170: ENST00000375687 | I170: frameshift_variant | J170: ggt/ggGt|p.Gly646fs/c.1934dupG | K170: 12618 | L170: 3737 | M170: 12944 | N170: 0.2887051916 | O170: 0 | P170: 1 | Q170: 1 | R170: 1 | S170: 1 | T170: 1 | U170: 0 | V170: 1 | W170: 6 | X170: NO | Y170: NO | Z170: NO | AA170: NA | AB170: NA | AC170: NO | AD170: NO | AE170: NO | AF170: NO | AG170: NO | AH170: NO | AI170: NA | AJ170: NA | AK170: 34.05 | AL170: NA | AM170: 10054 | AN170: 3115 | AO170: 10100 | AP170: 0.3084158416 | AQ170: 2564 | AR170: 622 | AS170: 2844 | AT170: 0.2187060478 | AU170: 4.783205377e-07 | AV170: 110 | AW170: 229 | AX170: Hotspot (-4)
A171: Hotspot, expert, freq | B171: UPN_Tr2_031 | C171: 20 | D171: 31022441 | E171: A | F171: AG | G171: ASXL1 | H171: ENST00000375687 | I171: frameshift_variant | J171: ggt/ggGt|p.Gly646fs/c.1934dupG | K171: 7067 | L171: 1331 | M171: 7228 | N171: 0.1841449917 | O171: 1 | P171: 1 | Q171: 0 | R171: 1 | S171: 1 | T171: 1 | U171: 0 | V171: 1 | W171: 6 | X171: NO | Y171: NO | Z171: NO | AA171: NA | AB171: NA | AC171: NO | AD171: NO | AE171: NO | AF171: NO | AG171: NO | AH171: NO | AI171: NA | AJ171: NA | AK171: 34.02 | AL171: NA | AM171: 5410 | AN171: 1067 | AO171: 5437 | AP171: 0.1962479308 | AQ171: 1657 | AR171: 264 | AS171: 1791 | AT171: 0.1474036851 | AU171: 0.003945542091 | AV171: 110 | AW171: 229 | AX171: Hotspot (-4)
A172: Hotspot, Sanger validated, freq | B172: UPN_Tr2_045 | C172: 20 | D172: 31022441 | E172: A | F172: AG | G172: ASXL1 | H172: ENST00000375687 | I172: frameshift_variant | J172: ggt/ggGt|p.Gly646fs/c.1934dupG | K172: 16513 | L172: 3856 | M172: 16813 | N172: 0.2293463391 | O172: 1 | P172: 1 | Q172: 1 | R172: 1 | S172: 1 | T172: 1 | U172: 0 | V172: 1 | W172: 7 | X172: NO | Y172: NO | Z172: NO | AA172: NA | AB172: NA | AC172: NO | AD172: NO | AE172: NO | AF172: NO | AG172: NO | AH172: NO | AI172: NA | AJ172: NA | AK172: 34.77 | AL172: NA | AM172: 14739 | AN172: 3499 | AO172: 14833 | AP172: 0.2358929414 | AQ172: 1774 | AR172: 357 | AS172: 1980 | AT172: 0.1803030303 | AU172: 0.006562729102 | AV172: 110 | AW172: 229 | AX172: Hotspot (-4)
A173: Hotspot, Sanger validated, freq | B173: UPN_Tr2_036 | C173: 20 | D173: 31022441 | E173: A | F173: AG | G173: ASXL1 | H173: ENST00000375687 | I173: frameshift_variant | J173: ggt/ggGt|p.Gly646fs/c.1934dupG | K173: 8226 | L173: 1714 | M173: 8443 | N173: 0.2030084093 | O173: 1 | P173: 1 | Q173: 1 | R173: 1 | S173: 1 | T173: 1 | U173: 0 | V173: 1 | W173: 7 | X173: NO | Y173: NO | Z173: NO | AA173: NA | AB173: NA | AC173: NO | AD173: NO | AE173: NO | AF173: NO | AG173: NO | AH173: NO | AI173: NA | AJ173: NA | AK173: 34.05 | AL173: NA | AM173: 6363 | AN173: 1450 | AO173: 6402 | AP173: 0.2264917213 | AQ173: 1863 | AR173: 264 | AS173: 2041 | AT173: 0.1293483586 | AU173: 7.602435344e-12 | AV173: 110 | AW173: 229 | AX173: Hotspot (-4)
A174: Hotspot, Sanger validated, freq | B174: UPN_Tr2_039 | C174: 20 | D174: 31022441 | E174: A | F174: AG | G174: ASXL1 | H174: ENST00000375687 | I174: frameshift_variant | J174: ggt/ggGt|p.Gly646fs/c.1934dupG | K174: 7957 | L174: 1773 | M174: 8195 | N174: 0.2163514338 | O174: 1 | P174: 1 | Q174: 1 | R174: 1 | S174: 1 | T174: 1 | U174: 0 | V174: 1 | W174: 7 | X174: NO | Y174: NO | Z174: NO | AA174: NA | AB174: NA | AC174: NO | AD174: NO | AE174: NO | AF174: NO | AG174: NO | AH174: NO | AI174: NA | AJ174: NA | AK174: 33.84 | AL174: NA | AM174: 5890 | AN174: 1448 | AO174: 5924 | AP174: 0.2444294396 | AQ174: 2067 | AR174: 325 | AS174: 2271 | AT174: 0.1431087627 | AU174: 4.925043207e-12 | AV174: 110 | AW174: 229 | AX174: Hotspot (-4)
A175: Hotspot, Sanger validated, freq | B175: UPN_Tr2_060 | C175: 20 | D175: 31022441 | E175: A | F175: AG | G175: ASXL1 | H175: ENST00000375687 | I175: frameshift_variant | J175: ggt/ggGt|p.Gly646fs/c.1934dupG | K175: 3518 | L175: 469 | M175: 3543 | N175: 0.1323736946 | O175: 0 | P175: 1 | Q175: 0 | R175: 1 | S175: 1 | T175: 1 | U175: 0 | V175: 1 | W175: 5 | X175: NO | Y175: NO | Z175: NO | AA175: NA | AB175: NA | AC175: NO | AD175: NO | AE175: NO | AF175: NO | AG175: NO | AH175: NO | AI175: NA | AJ175: NA | AK175: 34.91 | AL175: NA | AM175: 3163 | AN175: 409 | AO175: 3172 | AP175: 0.1289407314 | AQ175: 355 | AR175: 60 | AS175: 371 | AT175: 0.1617250674 | AU175: 0.07649428715 | AV175: 110 | AW175: 229 | AX175: Hotspot (-3)
A176: Hotspot, Sanger validated, freq | B176: UPN_Tr2_040 | C176: 20 | D176: 31022441 | E176: A | F176: AG | G176: ASXL1 | H176: ENST00000375687 | I176: frameshift_variant | J176: ggt/ggGt|p.Gly646fs/c.1934dupG | K176: 7712 | L176: 1476 | M176: 7927 | N176: 0.1861990665 | O176: 1 | P176: 1 | Q176: 1 | R176: 1 | S176: 1 | T176: 1 | U176: 0 | V176: 1 | W176: 7 | X176: NO | Y176: NO | Z176: NO | AA176: NA | AB176: NA | AC176: NO | AD176: NO | AE176: NO | AF176: NO | AG176: NO | AH176: NO | AI176: NA | AJ176: NA | AK176: 33.95 | AL176: NA | AM176: 5821 | AN176: 1189 | AO176: 5849 | AP176: 0.2032826124 | AQ176: 1891 | AR176: 287 | AS176: 2078 | AT176: 0.1381135707 | AU176: 2.171781882e-05 | AV176: 110 | AW176: 229 | AX176: Hotspot (-4)
A177: Hotspot, Sanger validated, 2nd Illumina, freq | B177: UPN_Tr2_083 | C177: 20 | D177: 31022441 | E177: A | F177: AG | G177: ASXL1 | H177: ENST00000375687 | I177: frameshift_variant | J177: ggt/ggGt|p.Gly646fs/c.1934dupG | K177: 2987 | L177: 732 | M177: 3004 | N177: 0.2436750999 | O177: 1 | P177: 1 | Q177: 0 | R177: 1 | S177: 1 | T177: 1 | U177: 0 | V177: 1 | W177: 6 | X177: NO | Y177: NO | Z177: NO | AA177: NA | AB177: NA | AC177: NO | AD177: NO | AE177: NO | AF177: NO | AG177: NO | AH177: NO | AI177: NA | AJ177: NA | AK177: 35.01 | AL177: NA | AM177: 2686 | AN177: 662 | AO177: 2692 | AP177: 0.2459138187 | AQ177: 301 | AR177: 70 | AS177: 312 | AT177: 0.2243589744 | AU177: 0.7308704935 | AV177: 110 | AW177: 229 | AX177: Hotspot (-4)
A178: Hotspot, Sanger validated, freq | B178: UPN_Tr2_098 | C178: 20 | D178: 31022441 | E178: A | F178: AG | G178: ASXL1 | H178: ENST00000375687 | I178: frameshift_variant | J178: ggt/ggGt|p.Gly646fs/c.1934dupG | K178: 6441 | L178: 932 | M178: 6481 | N178: 0.1438049684 | O178: 1 | P178: 1 | Q178: 0 | R178: 1 | S178: 1 | T178: 1 | U178: 0 | V178: 1 | W178: 6 | X178: NO | Y178: NO | Z178: NO | AA178: NA | AB178: NA | AC178: NO | AD178: NO | AE178: NO | AF178: NO | AG178: NO | AH178: NO | AI178: NA | AJ178: NA | AK178: 35.14 | AL178: NA | AM178: 5674 | AN178: 845 | AO178: 5694 | AP178: 0.1484018265 | AQ178: 767 | AR178: 87 | AS178: 787 | AT178: 0.1105463787 | AU178: 0.02139037885 | AV178: 110 | AW178: 229 | AX178: Hotspot (-4)
A179: Expert, Cosmic, bq | B179: UPN_Tr2_079 | C179: 20 | D179: 31022460 | E179: G | F179: T | G179: ASXL1 | H179: ENST00000375687 | I179: stop_gained | J179: Gga/Tga|p.Gly649*/c.1945G>T | K179: 2035 | L179: 374 | M179: 2418 | N179: 0.1546732837 | O179: 0 | P179: 1 | Q179: 0 | R179: 0 | S179: 1 | T179: 0 | U179: 0 | V179: 0 | W179: 2 | X179: NO | Y179: NO | Z179: COSM142309 | AA179: haematopoietic_and_lymphoid_tissue | AB179: 1 | AC179: NO | AD179: NO | AE179: NO | AF179: NO | AG179: NO | AH179: NO | AI179: NA | AJ179: NA | AK179: 35.1 | AL179: 34.55 | AM179: 1748 | AN179: 374 | AO179: 2129 | AP179: 0.1756693283 | AQ179: 287 | AR179: 0 | AS179: 289 | AT179: 0 | AU179: 2 | AV179: 1 | AW179: 2 | AX179: Probably True (-1)
A180: Expert, freq | B180: UPN_Tr2_101 | C180: 20 | D180: 31022547 | E180: A | F180: AG | G180: ASXL1 | H180: ENST00000375687 | I180: frameshift_variant | J180: gga/ggGa|p.Gly680fs/c.2036dupG | K180: 10077 | L180: 2797 | M180: 10167 | N180: 0.2751057342 | O180: 1 | P180: 1 | Q180: 0 | R180: 1 | S180: 1 | T180: 1 | U180: 0 | V180: 1 | W180: 6 | X180: NO | Y180: NO | Z180: NO | AA180: NA | AB180: NA | AC180: NO | AD180: NO | AE180: NO | AF180: NO | AG180: NO | AH180: NO | AI180: NA | AJ180: NA | AK180: 31.74 | AL180: NA | AM180: 4976 | AN180: 1331 | AO180: 5032 | AP180: 0.2645071542 | AQ180: 5101 | AR180: 1466 | AS180: 5135 | AT180: 0.2854917235 | AU180: 0.09545087838 | AV180: 1 | AW180: 1 | AX180: Probably True (-5)
A181: Hotspot, Expert, Cosmic, bq | B181: UPN_Tr2_062 | C181: 20 | D181: 31022592 | E181: C | F181: T | G181: ASXL1 | H181: ENST00000375687 | I181: stop_gained | J181: Cga/Tga|p.Arg693*/c.2077C>T | K181: 5253 | L181: 1512 | M181: 6772 | N181: 0.2232722977 | O181: 1 | P181: 1 | Q181: 0 | R181: 0 | S181: 1 | T181: 1 | U181: 0 | V181: 0 | W181: 4 | X181: 0 | Y181: NO | Z181: COSM51388 | AA181: central_nervous_system, haematopoietic_and_lymphoid_tissue | AB181: 2, 17 | AC181: NO | AD181: rs373221034 | AE181: NO | AF181: 5.765e-05 | AG181: NO | AH181: NO | AI181: NA | AJ181: NA | AK181: 35.39 | AL181: 34.25 | AM181: 3311 | AN181: 1 | AO181: 3312 | AP181: 0.0003019323671 | AQ181: 1942 | AR181: 1511 | AS181: 3460 | AT181: 0.4367052023 | AU181: 2 | AV181: 4 | AW181: 4 | AX181: Hotspot (-3)
A182: Hotspot, Expert, Cosmic, bq | B182: UPN_Tr2_070 | C182: 20 | D182: 31022592 | E182: C | F182: T | G182: ASXL1 | H182: ENST00000375687 | I182: stop_gained | J182: Cga/Tga|p.Arg693*/c.2077C>T | K182: 4372 | L182: 376 | M182: 4758 | N182: 0.07902480034 | O182: 0 | P182: 0 | Q182: 0 | R182: 0 | S182: 1 | T182: 1 | U182: 0 | V182: 0 | W182: 2 | X182: 0 | Y182: NO | Z182: COSM51388 | AA182: central_nervous_system, haematopoietic_and_lymphoid_tissue | AB182: 2, 17 | AC182: NO | AD182: rs373221034 | AE182: NO | AF182: 5.765e-05 | AG182: NO | AH182: NO | AI182: NA | AJ182: NA | AK182: 35.32 | AL182: 34.55 | AM182: 3221 | AN182: 5 | AO182: 3235 | AP182: 0.001545595054 | AQ182: 1151 | AR182: 371 | AS182: 1523 | AT182: 0.2435981615 | AU182: 2 | AV182: 4 | AW182: 4 | AX182: Hotspot (-2)
A183: Expert, freq | B183: UPN_Tr2_079 | C183: 20 | D183: 31022607 | E183: CCG | F183: C | G183: ASXL1 | H183: ENST00000375687 | I183: frameshift_variant | J183: ccgcct/|p.Pro699fs/c.2094_2095delGC | K183: 4215 | L183: 766 | M183: 4994 | N183: 0.1533840609 | O183: 1 | P183: 1 | Q183: 0 | R183: 1 | S183: 1 | T183: 1 | U183: 0 | V183: 1 | W183: 6 | X183: NO | Y183: NO | Z183: NO | AA183: NA | AB183: NA | AC183: NO | AD183: NO | AE183: NO | AF183: NO | AG183: NO | AH183: NO | AI183: NA | AJ183: NA | AK183: 35.08 | AL183: NA | AM183: 2384 | AN183: 442 | AO183: 2832 | AP183: 0.1560734463 | AQ183: 1831 | AR183: 324 | AS183: 2162 | AT183: 0.1498612396 | AU183: 2 | AV183: 1 | AW183: 1 | AX183: Probably True (-6)
A184: 454 validated, Expert, freq | B184: UPN_Tr2_039 | C184: 20 | D184: 31022732 | E184: CA | F184: C | G184: ASXL1 | H184: ENST00000375687 | I184: frameshift_variant | J184: aca/|p.Thr740fs/c.2218delA | K184: 11653 | L184: 3011 | M184: 14754 | N184: 0.2040802494 | O184: 1 | P184: 1 | Q184: 0 | R184: 1 | S184: 1 | T184: 1 | U184: 0 | V184: 0 | W184: 5 | X184: NO | Y184: NO | Z184: NO | AA184: NO | AB184: O | AC184: NO | AD184: NO | AE184: NO | AF184: NO | AG184: NO | AH184: NO | AI184: NA | AJ184: NA | AK184: 35.05 | AL184: NA | AM184: 8108 | AN184: 2 | AO184: 8149 | AP184: 0.000245428887 | AQ184: 3545 | AR184: 3009 | AS184: 6605 | AT184: 0.4555639667 | AU184: 2 | AV184: 1 | AW184: 1 | AX184: Probably True (-3)
A185: inspected | B185: UPN_Tr2_082 | C185: 20 | D185: 31022757 | E185: C | F185: T | G185: ASXL1 | H185: ENST00000375687 | I185: stop_gained | J185: Caa/Taa|p.Gln748*/c.2242C>T | K185: 23420 | L185: 4003 | M185: 27517 | N185: 0.1454737072 | O185: 1 | P185: 0 | Q185: 0 | R185: 1 | S185: 1 | T185: 1 | U185: 0 | V185: 1 | W185: 5 | X185: NO | Y185: NO | Z185: COSM307766 | AA185: haematopoietic_and_lymphoid_tissue | AB185: 2 | AC185: NO | AD185: NO | AE185: NO | AF185: NO | AG185: NO | AH185: NO | AI185: NA | AJ185: NA | AK185: 34.68 | AL185: 35.21 | AM185: 17517 | AN185: 3074 | AO185: 20657 | AP185: 0.1488115409 | AQ185: 5903 | AR185: 929 | AS185: 6860 | AT185: 0.1354227405 | AU185: 0.006754669217 | AV185: 1 | AW185: 1 | AX185: Probably True (-4)
A186: 454 validated, Expert, bq, freq | B186: UPN_Tr2_012 | C186: 20 | D186: 31022784 | E186: C | F186: T | G186: ASXL1 | H186: ENST00000375687 | I186: stop_gained | J186: Cag/Tag|p.Gln757*/c.2269C>T | K186: 8702 | L186: 2020 | M186: 10750 | N186: 0.1879069767 | O186: 1 | P186: 1 | Q186: 0 | R186: 0 | S186: 1 | T186: 1 | U186: 0 | V186: 0 | W186: 4 | X186: NO | Y186: NO | Z186: NO | AA186: NO | AB186: O | AC186: NO | AD186: NO | AE186: NO | AF186: 2.471e-05 | AG186: NO | AH186: NO | AI186: NA | AJ186: NA | AK186: 35.12 | AL186: 35.2 | AM186: 5336 | AN186: 2003 | AO186: 7352 | AP186: 0.2724428727 | AQ186: 3366 | AR186: 17 | AS186: 3398 | AT186: 0.005002942908 | AU186: 2 | AV186: 1 | AW186: 1 | AX186: Probably True (-2)
A187: Sanger validated, 454 validated, freq | B187: UPN_Tr2_035 | C187: 20 | D187: 31023336 | E187: CCT | F187: C | G187: ASXL1 | H187: ENST00000375687 | I187: frameshift_variant | J187: cct/|p.Pro941fs/c.2822_2823delCT | K187: 6567 | L187: 2051 | M187: 8633 | N187: 0.2375767404 | O187: 1 | P187: 1 | Q187: 1 | R187: 1 | S187: 1 | T187: 1 | U187: 0 | V187: 1 | W187: 7 | X187: NO | Y187: NO | Z187: NO | AA187: NA | AB187: NA | AC187: NO | AD187: NO | AE187: NO | AF187: NO | AG187: NO | AH187: NO | AI187: NA | AJ187: NA | AK187: 33.02 | AL187: NA | AM187: 3303 | AN187: 1034 | AO187: 4342 | AP187: 0.2381391064 | AQ187: 3264 | AR187: 1017 | AS187: 4291 | AT187: 0.2370076905 | AU187: 0.9395125818 | AV187: 2 | AW187: 2 | AX187: Probably True (-5)
A188: Sanger other sample, 454 validated, Expert, freq | B188: UPN_Tr2_011 | C188: 20 | D188: 31023336 | E188: CCT | F188: C | G188: ASXL1 | H188: ENST00000375687 | I188: frameshift_variant | J188: cct/|p.Pro941fs/c.2822_2823delCT | K188: 11875 | L188: 4492 | M188: 16418 | N188: 0.273602144 | O188: 1 | P188: 1 | Q188: 1 | R188: 1 | S188: 1 | T188: 1 | U188: 0 | V188: 1 | W188: 7 | X188: NO | Y188: NO | Z188: NO | AA188: NA | AB188: NA | AC188: NO | AD188: NO | AE188: NO | AF188: NO | AG188: NO | AH188: NO | AI188: NA | AJ188: NA | AK188: 33.13 | AL188: NA | AM188: 5975 | AN188: 2258 | AO188: 8260 | AP188: 0.2733656174 | AQ188: 5900 | AR188: 2234 | AS188: 8158 | AT188: 0.2738416278 | AU188: 0.958094853 | AV188: 2 | AW188: 2 | AX188: Probably True (-5)
A189: inspected | B189: UPN_Tr2_102 | C189: 20 | D189: 31023591 | E189: G | F189: T | G189: ASXL1 | H189: ENST00000375687 | I189: stop_gained | J189: Gga/Tga|p.Gly1026*/c.3076G>T | K189: 12168 | L189: 1755 | M189: 13951 | N189: 0.1257974339 | O189: 1 | P189: 1 | Q189: 0 | R189: 1 | S189: 1 | T189: 1 | U189: 0 | V189: 1 | W189: 6 | X189: NO | Y189: NO | Z189: NO | AA189: NO | AB189: O | AC189: NO | AD189: NO | AE189: NO | AF189: NO | AG189: NO | AH189: NO | AI189: NA | AJ189: NA | AK189: 31.77 | AL189: 33.86 | AM189: 6124 | AN189: 870 | AO189: 7011 | AP189: 0.1240907146 | AQ189: 6044 | AR189: 885 | AS189: 6940 | AT189: 0.1275216138 | AU189: 0.5571029906 | AV189: 1 | AW189: 1 | AX189: Probably True (-5)
A190: Hotspot, Expert, Cosmic, bq | B190: UPN_Tr2_061 | C190: 20 | D190: 31023625 | E190: G | F190: A | G190: ASXL1 | H190: ENST00000375687 | I190: stop_gained | J190: tGg/tAg|p.Trp1037*/c.3110G>A | K190: 19464 | L190: 4532 | M190: 24094 | N190: 0.1880966216 | O190: 0 | P190: 1 | Q190: 0 | R190: 1 | S190: 1 | T190: 1 | U190: 0 | V190: 1 | W190: 5 | X190: NO | Y190: NO | Z190: COSM2270981 | AA190: haematopoietic_and_lymphoid_tissue | AB190: 1 | AC190: NO | AD190: NO | AE190: NO | AF190: NO | AG190: NO | AH190: NO | AI190: NA | AJ190: NA | AK190: 33.63 | AL190: 34.5 | AM190: 9799 | AN190: 2283 | AO190: 12138 | AP190: 0.1880869995 | AQ190: 9665 | AR190: 2249 | AS190: 11956 | AT190: 0.1881063901 | AU190: 0.9736868237 | AV190: 1 | AW190: 1 | AX190: Probably True (-4)
A191: Expert, freq | B191: UPN_Tr2_094 | C191: 20 | D191: 31024079 | E191: T | F191: TG | G191: ASXL1 | H191: ENST00000375687 | I191: frameshift_variant | J191: gcc/gGcc|p.Ala1189fs/c.3565dupG | K191: 18233 | L191: 5214 | M191: 18373 | N191: 0.2837859903 | O191: 1 | P191: 1 | Q191: 0 | R191: 1 | S191: 1 | T191: 1 | U191: 0 | V191: 1 | W191: 6 | X191: NO | Y191: NO | Z191: NO | AA191: NO | AB191: O | AC191: NO | AD191: NO | AE191: NO | AF191: NO | AG191: NO | AH191: NO | AI191: NA | AJ191: NA | AK191: 34.85 | AL191: NA | AM191: 9062 | AN191: 2584 | AO191: 9145 | AP191: 0.2825587753 | AQ191: 9171 | AR191: 2630 | AS191: 9228 | AT191: 0.2850021673 | AU191: 0.8628488463 | AV191: 1 | AW191: 1 | AX191: Probably True (-5)
A192: Expert, bq, freq | B192: UPN_Tr2_050 | C192: 20 | D192: 31024339 | E192: C | F192: A | G192: ASXL1 | H192: ENST00000375687 | I192: stop_gained | J192: tCa/tAa|p.Ser1275*/c.3824C>A | K192: 14575 | L192: 5287 | M192: 19919 | N192: 0.2654249711 | O192: 0 | P192: 1 | Q192: 1 | R192: 1 | S192: 1 | T192: 1 | U192: 0 | V192: 1 | W192: 6 | X192: NO | Y192: NO | Z192: NO | AA192: NA | AB192: NA | AC192: NO | AD192: NO | AE192: NO | AF192: NO | AG192: NO | AH192: NO | AI192: NA | AJ192: NA | AK192: 34.03 | AL192: 33.69 | AM192: 13922 | AN192: 5065 | AO192: 19039 | AP192: 0.2660328799 | AQ192: 653 | AR192: 222 | AS192: 880 | AT192: 0.2522727273 | AU192: 0.4114451054 | AV192: 1 | AW192: 2 | AX192: Probably True (-5)
A193: 454 validated, Expert, freq | B193: UPN_Tr2_089 | C193: 20 | D193: 31024457 | E193: T | F193: TA | G193: ASXL1 | H193: ENST00000375687 | I193: frameshift_variant | J193: cag/Acag|p.Gln1315fs/c.3942_3943insA | K193: 15777 | L193: 2209 | M193: 15840 | N193: 0.1394570707 | O193: 0 | P193: 1 | Q193: 0 | R193: 1 | S193: 1 | T193: 1 | U193: 0 | V193: 0 | W193: 4 | X193: NO | Y193: NO | Z193: NO | AA193: NO | AB193: O | AC193: NO | AD193: NO | AE193: NO | AF193: NO | AG193: NO | AH193: NO | AI193: NA | AJ193: NA | AK193: 35.66 | AL193: NA | AM193: 5592 | AN193: 62 | AO193: 5609 | AP193: 0.01105366375 | AQ193: 10185 | AR193: 2147 | AS193: 10231 | AT193: 0.2098524093 | AU193: 2 | AV193: 1 | AW193: 1 | AX193: Probably True (-2)
A194: inspected | B194: UPN_Tr2_034 | C194: 21 | D194: 36164764 | E194: T | F194: TG | G194: RUNX1 | H194: ENST00000437180 | I194: frameshift_variant | J194: gcc/gccC|p.Met371fs/c.1110dupC | K194: 3218 | L194: 236 | M194: 3231 | N194: 0.07304240173 | O194: 0 | P194: 1 | Q194: 0 | R194: 1 | S194: 1 | T194: 1 | U194: 0 | V194: 0 | W194: 4 | X194: NO | Y194: NO | Z194: NO | AA194: NO | AB194: O | AC194: NO | AD194: NO | AE194: NO | AF194: NO | AG194: NO | AH194: NO | AI194: NA | AJ194: NA | AK194: 35.33 | AL194: NA | AM194: 2402 | AN194: 234 | AO194: 2414 | AP194: 0.09693454847 | AQ194: 816 | AR194: 2 | AS194: 817 | AT194: 0.002447980416 | AU194: 2 | AV194: 1 | AW194: 1 | AX194: Probably True (-1)
A195: Expert, freq | B195: UPN_Tr2_094 | C195: 21 | D195: 36206881 | E195: C | F195: CT | G195: RUNX1 | H195: ENST00000437180 | I195: frameshift_variant | J195: cta/ctaA|p.Asp211fs/c.630dupA | K195: 9168 | L195: 1980 | M195: 9188 | N195: 0.2154984763 | O195: 1 | P195: 1 | Q195: 0 | R195: 1 | S195: 1 | T195: 1 | U195: 0 | V195: 0 | W195: 5 | X195: NO | Y195: NO | Z195: NO | AA195: NO | AB195: O | AC195: NO | AD195: NO | AE195: NO | AF195: NO | AG195: NO | AH195: NO | AI195: NA | AJ195: NA | AK195: 35.17 | AL195: NA | AM195: 7023 | AN195: 1977 | AO195: 7037 | AP195: 0.2809435839 | AQ195: 2145 | AR195: 3 | AS195: 2151 | AT195: 0.001394700139 | AU195: 2 | AV195: 1 | AW195: 1 | AX195: Probably True (-3)
A196: Sanger validated, 454 validated, IonT_1 validated, Expert, bq, prediction | B196: UPN_Tr2_036 | C196: 21 | D196: 36206893 | E196: G | F196: A | G196: RUNX1 | H196: ENST00000437180 | I196: missense_variant | J196: Cgg/Tgg|p.Arg207Trp/c.619C>T | K196: 14812 | L196: 1559 | M196: 16399 | N196: 0.09506677236 | O196: 0 | P196: 1 | Q196: 0 | R196: 0 | S196: 1 | T196: 1 | U196: 0 | V196: 0 | W196: 3 | X196: NO | Y196: NO | Z196: NO | AA196: NO | AB196: O | AC196: NO | AD196: NO | AE196: NO | AF196: NO | AG196: NO | AH196: NO | AI196: -6.351 | AJ196: Deleterious | AK196: 34.79 | AL196: 35.49 | AM196: 12456 | AN196: 1558 | AO196: 14039 | AP196: 0.1109765653 | AQ196: 2356 | AR196: 1 | AS196: 2360 | AT196: 0.0004237288136 | AU196: 2 | AV196: 1 | AW196: 1 | AX196: Probably True (-1)
A197: Hotspot, Sanger other sample, 454 validated, Expert, dbSNP flag, Cosmic, bq, prediction | B197: UPN_Tr2_005 | C197: 21 | D197: 36231782 | E197: C | F197: T | G197: RUNX1 | H197: ENST00000437180 | I197: missense_variant | J197: cGa/cAa|p.Arg201Gln/c.602G>A | K197: 1442 | L197: 639 | M197: 2083 | N197: 0.3067690831 | O197: 1 | P197: 1 | Q197: 1 | R197: 1 | S197: 1 | T197: 0 | U197: 1 | V197: 1 | W197: 7 | X197: NO | Y197: NO | Z197: COSM24805 | AA197: breast, haematopoietic_and_lymphoid_tissue, oesophagus | AB197: 1, 13, 1 | AC197: NO | AD197: rs74315450 | AE197: YES | AF197: NO | AG197: NO | AH197: NO | AI197: -3.686 | AJ197: Deleterious | AK197: 35.58 | AL197: 34.92 | AM197: 1442 | AN197: 639 | AO197: 2083 | AP197: 0.3067690831 | AQ197: 0 | AR197: 0 | AS197: 0 | AT197: NA | AU197: 1 | AV197: 1 | AW197: 1 | AX197: Hotspot (-9)
A198: inspected | B198: UPN_Tr2_043 | C198: 21 | D198: 36231783 | E198: G | F198: A | G198: RUNX1 | H198: ENST00000437180 | I198: stop_gained | J198: Cga/Tga|p.Arg201*/c.601C>T | K198: 9644 | L198: 414 | M198: 10090 | N198: 0.04103072349 | O198: 0 | P198: 0 | Q198: 0 | R198: 0 | S198: 1 | T198: 0 | U198: 0 | V198: 1 | W198: 2 | X198: NO | Y198: NO | Z198: COSM24771 | AA198: haematopoietic_and_lymphoid_tissue | AB198: 10 | AC198: NO | AD198: NO | AE198: NO | AF198: NO | AG198: NO | AH198: NO | AI198: NA | AJ198: NA | AK198: 35.08 | AL198: 34.91 | AM198: 9644 | AN198: 414 | AO198: 10090 | AP198: 0.04103072349 | AQ198: 0 | AR198: 0 | AS198: 0 | AT198: NA | AU198: 1 | AV198: 2 | AW198: 2 | AX198: Hotspot (-3)
A199: inspected | B199: UPN_Tr2_098 | C199: 21 | D199: 36231783 | E199: G | F199: A | G199: RUNX1 | H199: ENST00000437180 | I199: stop_gained | J199: Cga/Tga|p.Arg201*/c.601C>T | K199: 7174 | L199: 422 | M199: 7613 | N199: 0.05543149875 | O199: 0 | P199: 0 | Q199: 0 | R199: 1 | S199: 1 | T199: 0 | U199: 0 | V199: 1 | W199: 3 | X199: NO | Y199: NO | Z199: COSM24771 | AA199: haematopoietic_and_lymphoid_tissue | AB199: 10 | AC199: NO | AD199: NO | AE199: NO | AF199: NO | AG199: NO | AH199: NO | AI199: NA | AJ199: NA | AK199: 35.36 | AL199: 35.55 | AM199: 7174 | AN199: 422 | AO199: 7613 | AP199: 0.05543149875 | AQ199: 0 | AR199: 0 | AS199: 0 | AT199: NA | AU199: 1 | AV199: 2 | AW199: 2 | AX199: Hotspot (-5)
A200: inspected | B200: UPN_Tr2_102 | C200: 21 | D200: 36231803 | E200: T | F200: A | G200: RUNX1 | H200: ENST00000437180 | I200: missense_variant | J200: aAa/aTa|p.Lys194Ile/c.581A>T | K200: 5964 | L200: 1131 | M200: 7115 | N200: 0.1589599438 | O200: 1 | P200: 1 | Q200: 0 | R200: 1 | S200: 1 | T200: 0 | U200: 0 | V200: 1 | W200: 5 | X200: NO | Y200: NO | Z200: NO | AA200: NO | AB200: O | AC200: NO | AD200: NO | AE200: NO | AF200: NO | AG200: NO | AH200: NO | AI200: -7.365 | AJ200: Deleterious | AK200: 35.35 | AL200: 35.12 | AM200: 5964 | AN200: 1131 | AO200: 7115 | AP200: 0.1589599438 | AQ200: 0 | AR200: 0 | AS200: 0 | AT200: NA | AU200: 1 | AV200: 1 | AW200: 1 | AX200: Probably True (-5)
... 21 more rows

Sheet TP Polymorphisms
A1: True because... | B1: Sample | C1: Chr | D1: Pos | E1: Ref | F1: Alt | G1: Gene | H1: ENST | I1: Type | J1: Mutation | K1: Nr_Ref | L1: Nr_Alt | M1: DP | N1: VAF | O1: GATK | P1: Platypus | Q1: VarScan | R1: LoFreq | S1: FreeBayes | T1: SNVer | U1: SAMtools | V1: VarDict | W1: Called | X1: ESP6500 | Y1: G1000 | Z1: Cosmic | AA1: Cosmic_location | AB1: Cosmic_occurence | AC1: dbSNP_SNPs | AD1: dbSNP_SNVs | AE1: PM_flag | AF1: ExAC | AG1: ClinVar_clinical | AH1: ClinVar_noimpact | AI1: provean_score | AJ1: prediction | AK1: BQ_Ref | AL1: BQ_Alt | AM1: Nr_Ref_fwd | AN1: Nr_Alt_fwd | AO1: DP_fwd | AP1: VAF_fwd | AQ1: Nr_Ref_rev | AR1: Nr_Alt_rev | AS1: DP_rev | AT1: VAF_rev | AU1: strandbias | AV1: nr_samples | AW1: nr_samples_similar | AX1: Category
A2: Inspected, ESP6500, ExAC, freq | B2: UPN_Tr2_030 | C2: 11 | D2: 119149352 | E2: A | F2: G | G2: CBL | H2: ENST00000264033 | I2: missense_variant | J2: Aat/Gat|p.Asn454Asp/c.1360A>G | K2: 3962 | L2: 3983 | M2: 7985 | N2: 0.4988102693 | O2: 1 | P2: 1 | Q2: 1 | R2: 1 | S2: 1 | T2: 0 | U2: 1 | V2: 1 | W2: 7 | X2: 0.0116 | Y2: NO | Z2: COSM34082 | AA2: haematopoietic_and_lymphoid_tissue | AB2: 1 | AC2: NO | AD2: rs371850672 | AE2: NO | AF2: 8.236e-06 | AG2: NO | AH2: NO | AI2: -0.376 | AJ2: Tolerated | AK2: 34.38 | AL2: 35 | AM2: 0 | AN2: 0 | AO2: 0 | AP2: NA | AQ2: 3962 | AR2: 3983 | AS2: 7985 | AT2: 0.4988102693 | AU2: 1 | AV2: 1 | AW2: 1 | AX2: Polymorphism
A3: 2nd Illumina, ESP6500, ExAC, freq | B3: UPN_Tr2_083 | C3: 12 | D3: 12006412 | E3: G | F3: A | G3: ETV6 | H3: ENST00000396373 | I3: missense_variant | J3: cGg/cAg|p.Arg127Gln/c.380G>A | K3: 6808 | L3: 6615 | M3: 13442 | N3: 0.4921142687 | O3: 1 | P3: 1 | Q3: 0 | R3: 1 | S3: 1 | T3: 0 | U3: 1 | V3: 1 | W3: 6 | X3: 0.093 | Y3: NO | Z3: NO | AA3: NO | AB3: O | AC3: NO | AD3: rs140357643 | AE3: NO | AF3: 0.0005271 | AG3: NO | AH3: NO | AI3: -0.621 | AJ3: Tolerated | AK3: 32.97 | AL3: 34.83 | AM3: 6808 | AN3: 6615 | AO3: 13442 | AP3: 0.4921142687 | AQ3: 0 | AR3: 0 | AS3: 0 | AT3: NA | AU3: 1 | AV3: 1 | AW3: 1 | AX3: Polymorphism
A4: ESP6500, 1000G, freq | B4: UPN_Tr2_008 | C4: 12 | D4: 12022496 | E4: T | F4: C | G4: ETV6 | H4: ENST00000396373 | I4: missense_variant | J4: cTc/cCc|p.Leu201Pro/c.602T>C | K4: 5071 | L4: 4218 | M4: 9408 | N4: 0.4483418367 | O4: 1 | P4: 1 | Q4: 1 | R4: 1 | S4: 1 | T4: 0 | U4: 1 | V4: 1 | W4: 7 | X4: 0.6628 | Y4: 0.0119 | Z4: NO | AA4: NO | AB4: O | AC4: NO | AD4: rs145477191 | AE4: NO | AF4: NA | AG4: NO | AH4: YES | AI4: -1.19 | AJ4: Tolerated | AK4: 32.71 | AL4: 34.38 | AM4: 0 | AN4: 0 | AO4: 0 | AP4: NA | AQ4: 5071 | AR4: 4218 | AS4: 9408 | AT4: 0.4483418367 | AU4: 1 | AV4: 1 | AW4: 1 | AX4: Polymorphism
A5: 2nd Illumina, ESP6500, 1000G, dbSNP, ExAC, freq, many samples | B5: UPN_Tr2_001 | C5: 17 | D5: 7579472 | E5: G | F5: C | G5: TP53 | H5: ENST00000269305 | I5: missense_variant | J5: cCc/cGc|p.Pro72Arg/c.215C>G | K5: 5 | L5: 1837 | M5: 1846 | N5: 0.9951245937 | O5: 1 | P5: 1 | Q5: 1 | R5: 1 | S5: 1 | T5: 0 | U5: 1 | V5: 1 | W5: 7 | X5: 25.4767 | Y5: 0.7147 | Z5: COSM3766190, COSM3766191, COSM250061, COSM3766193, COSM3766192 | AA5: large_intestine, liver, pancreas, pleura, prostate, soft_tissue, stomach, upper_aerodigestive_tract, urinary_tract, central_nervous_system | AB5: 10, 5, 15, 5, 5, 100, 5, 7, 5, 1 | AC5: rs1042522 | AD5: rs1042522 | AE5: NO | AF5: 0.659 | AG5: NO | AH5: YES | AI5: 0.155 | AJ5: Tolerated | AK5: 30.8 | AL5: 34.36 | AM5: 0 | AN5: 0 | AO5: 0 | AP5: NA | AQ5: 5 | AR5: 1837 | AS5: 1846 | AT5: 0.9951245937 | AU5: 1 | AV5: 106 | AW5: 106 | AX5: Polymorphism
A6: ESP6500, 1000G, dbSNP, ExAC, freq, many samples | B6: UPN_Tr2_014 | C6: 17 | D6: 7579472 | E6: G | F6: C | G6: TP53 | H6: ENST00000269305 | I6: missense_variant | J6: cCc/cGc|p.Pro72Arg/c.215C>G | K6: 17 | L6: 3358 | M6: 3379 | N6: 0.9937851435 | O6: 1 | P6: 1 | Q6: 1 | R6: 1 | S6: 1 | T6: 0 | U6: 1 | V6: 1 | W6: 7 | X6: 25.4767 | Y6: 0.7147 | Z6: COSM3766190, COSM3766191, COSM250061, COSM3766193, COSM3766192 | AA6: large_intestine, liver, pancreas, pleura, prostate, soft_tissue, stomach, upper_aerodigestive_tract, urinary_tract, central_nervous_system | AB6: 10, 5, 15, 5, 5, 100, 5, 7, 5, 1 | AC6: rs1042522 | AD6: rs1042522 | AE6: NO | AF6: 0.659 | AG6: NO | AH6: YES | AI6: 0.155 | AJ6: Tolerated | AK6: 21.76 | AL6: 34.39 | AM6: 0 | AN6: 0 | AO6: 0 | AP6: NA | AQ6: 17 | AR6: 3358 | AS6: 3379 | AT6: 0.9937851435 | AU6: 1 | AV6: 106 | AW6: 106 | AX6: Polymorphism
A7: ESP6500, 1000G, dbSNP, ExAC, freq, many samples | B7: UPN_Tr2_015 | C7: 17 | D7: 7579472 | E7: G | F7: C | G7: TP53 | H7: ENST00000269305 | I7: missense_variant | J7: cCc/cGc|p.Pro72Arg/c.215C>G | K7: 31 | L7: 5232 | M7: 5286 | N7: 0.989784336 | O7: 1 | P7: 1 | Q7: 0 | R7: 1 | S7: 1 | T7: 0 | U7: 1 | V7: 1 | W7: 6 | X7: 25.4767 | Y7: 0.7147 | Z7: COSM3766190, COSM3766191, COSM250061, COSM3766193, COSM3766192 | AA7: large_intestine, liver, pancreas, pleura, prostate, soft_tissue, stomach, upper_aerodigestive_tract, urinary_tract, central_nervous_system | AB7: 10, 5, 15, 5, 5, 100, 5, 7, 5, 1 | AC7: rs1042522 | AD7: rs1042522 | AE7: NO | AF7: 0.659 | AG7: NO | AH7: YES | AI7: 0.155 | AJ7: Tolerated | AK7: 25.94 | AL7: 34.41 | AM7: 0 | AN7: 0 | AO7: 0 | AP7: NA | AQ7: 31 | AR7: 5232 | AS7: 5286 | AT7: 0.989784336 | AU7: 1 | AV7: 106 | AW7: 106 | AX7: Polymorphism
A8: ESP6500, 1000G, dbSNP, ExAC, freq, many samples | B8: UPN_Tr2_016 | C8: 17 | D8: 7579472 | E8: G | F8: C | G8: TP53 | H8: ENST00000269305 | I8: missense_variant | J8: cCc/cGc|p.Pro72Arg/c.215C>G | K8: 1227 | L8: 1410 | M8: 2644 | N8: 0.5332829047 | O8: 1 | P8: 1 | Q8: 1 | R8: 1 | S8: 1 | T8: 0 | U8: 1 | V8: 1 | W8: 7 | X8: 25.4767 | Y8: 0.7147 | Z8: COSM3766190, COSM3766191, COSM250061, COSM3766193, COSM3766192 | AA8: large_intestine, liver, pancreas, pleura, prostate, soft_tissue, stomach, upper_aerodigestive_tract, urinary_tract, central_nervous_system | AB8: 10, 5, 15, 5, 5, 100, 5, 7, 5, 1 | AC8: rs1042522 | AD8: rs1042522 | AE8: NO | AF8: 0.659 | AG8: NO | AH8: YES | AI8: 0.155 | AJ8: Tolerated | AK8: 34.96 | AL8: 34.13 | AM8: 0 | AN8: 0 | AO8: 0 | AP8: NA | AQ8: 1227 | AR8: 1410 | AS8: 2644 | AT8: 0.5332829047 | AU8: 1 | AV8: 106 | AW8: 106 | AX8: Polymorphism
A9: ESP6500, 1000G, dbSNP, ExAC, freq, many samples | B9: UPN_Tr2_017 | C9: 17 | D9: 7579472 | E9: G | F9: C | G9: TP53 | H9: ENST00000269305 | I9: missense_variant | J9: cCc/cGc|p.Pro72Arg/c.215C>G | K9: 595 | L9: 742 | M9: 1341 | N9: 0.5533184191 | O9: 1 | P9: 1 | Q9: 1 | R9: 1 | S9: 1 | T9: 0 | U9: 1 | V9: 1 | W9: 7 | X9: 25.4767 | Y9: 0.7147 | Z9: COSM3766190, COSM3766191, COSM250061, COSM3766193, COSM3766192 | AA9: large_intestine, liver, pancreas, pleura, prostate, soft_tissue, stomach, upper_aerodigestive_tract, urinary_tract, central_nervous_system | AB9: 10, 5, 15, 5, 5, 100, 5, 7, 5, 1 | AC9: rs1042522 | AD9: rs1042522 | AE9: NO | AF9: 0.659 | AG9: NO | AH9: YES | AI9: 0.155 | AJ9: Tolerated | AK9: 35.39 | AL9: 34.33 | AM9: 0 | AN9: 0 | AO9: 0 | AP9: NA | AQ9: 595 | AR9: 742 | AS9: 1341 | AT9: 0.5533184191 | AU9: 1 | AV9: 106 | AW9: 106 | AX9: Polymorphism
A10: ESP6500, 1000G, dbSNP, ExAC, freq, many samples | B10: UPN_Tr2_018 | C10: 17 | D10: 7579472 | E10: G | F10: C | G10: TP53 | H10: ENST00000269305 | I10: missense_variant | J10: cCc/cGc|p.Pro72Arg/c.215C>G | K10: 1236 | L10: 1460 | M10: 2702 | N10: 0.5403404885 | O10: 1 | P10: 1 | Q10: 1 | R10: 1 | S10: 1 | T10: 0 | U10: 1 | V10: 1 | W10: 7 | X10: 25.4767 | Y10: 0.7147 | Z10: COSM3766190, COSM3766191, COSM250061, COSM3766193, COSM3766192 | AA10: large_intestine, liver, pancreas, pleura, prostate, soft_tissue, stomach, upper_aerodigestive_tract, urinary_tract, central_nervous_system | AB10: 10, 5, 15, 5, 5, 100, 5, 7, 5, 1 | AC10: rs1042522 | AD10: rs1042522 | AE10: NO | AF10: 0.659 | AG10: NO | AH10: YES | AI10: 0.155 | AJ10: Tolerated | AK10: 35.25 | AL10: 34.51 | AM10: 0 | AN10: 0 | AO10: 0 | AP10: NA | AQ10: 1236 | AR10: 1460 | AS10: 2702 | AT10: 0.5403404885 | AU10: 1 | AV10: 106 | AW10: 106 | AX10: Polymorphism
A11: ESP6500, 1000G, dbSNP, ExAC, freq, many samples | B11: UPN_Tr2_019 | C11: 17 | D11: 7579472 | E11: G | F11: C | G11: TP53 | H11: ENST00000269305 | I11: missense_variant | J11: cCc/cGc|p.Pro72Arg/c.215C>G | K11: 18 | L11: 2937 | M11: 2959 | N11: 0.9925650558 | O11: 1 | P11: 1 | Q11: 1 | R11: 1 | S11: 1 | T11: 0 | U11: 1 | V11: 1 | W11: 7 | X11: 25.4767 | Y11: 0.7147 | Z11: COSM3766190, COSM3766191, COSM250061, COSM3766193, COSM3766192 | AA11: large_intestine, liver, pancreas, pleura, prostate, soft_tissue, stomach, upper_aerodigestive_tract, urinary_tract, central_nervous_system | AB11: 10, 5, 15, 5, 5, 100, 5, 7, 5, 1 | AC11: rs1042522 | AD11: rs1042522 | AE11: NO | AF11: 0.659 | AG11: NO | AH11: YES | AI11: 0.155 | AJ11: Tolerated | AK11: 27 | AL11: 34.34 | AM11: 0 | AN11: 0 | AO11: 0 | AP11: NA | AQ11: 18 | AR11: 2937 | AS11: 2959 | AT11: 0.9925650558 | AU11: 1 | AV11: 106 | AW11: 106 | AX11: Polymorphism
A12: ESP6500, 1000G, dbSNP, ExAC, freq, many samples | B12: UPN_Tr2_020 | C12: 17 | D12: 7579472 | E12: G | F12: C | G12: TP53 | H12: ENST00000269305 | I12: missense_variant | J12: cCc/cGc|p.Pro72Arg/c.215C>G | K12: 14 | L12: 2015 | M12: 2036 | N12: 0.9896856582 | O12: 1 | P12: 1 | Q12: 1 | R12: 1 | S12: 1 | T12: 0 | U12: 1 | V12: 0 | W12: 6 | X12: 25.4767 | Y12: 0.7147 | Z12: COSM3766190, COSM3766191, COSM250061, COSM3766193, COSM3766192 | AA12: large_intestine, liver, pancreas, pleura, prostate, soft_tissue, stomach, upper_aerodigestive_tract, urinary_tract, central_nervous_system | AB12: 10, 5, 15, 5, 5, 100, 5, 7, 5, 1 | AC12: rs1042522 | AD12: rs1042522 | AE12: NO | AF12: 0.659 | AG12: NO | AH12: YES | AI12: 0.155 | AJ12: Tolerated | AK12: 23.14 | AL12: 34.26 | AM12: 0 | AN12: 0 | AO12: 0 | AP12: NA | AQ12: 14 | AR12: 2015 | AS12: 2036 | AT12: 0.9896856582 | AU12: 1 | AV12: 106 | AW12: 106 | AX12: Polymorphism
A13: ESP6500, 1000G, dbSNP, ExAC, freq, many samples | B13: UPN_Tr2_021 | C13: 17 | D13: 7579472 | E13: G | F13: C | G13: TP53 | H13: ENST00000269305 | I13: missense_variant | J13: cCc/cGc|p.Pro72Arg/c.215C>G | K13: 21 | L13: 2970 | M13: 2993 | N13: 0.9923154026 | O13: 1 | P13: 1 | Q13: 1 | R13: 1 | S13: 1 | T13: 0 | U13: 1 | V13: 1 | W13: 7 | X13: 25.4767 | Y13: 0.7147 | Z13: COSM3766190, COSM3766191, COSM250061, COSM3766193, COSM3766192 | AA13: large_intestine, liver, pancreas, pleura, prostate, soft_tissue, stomach, upper_aerodigestive_tract, urinary_tract, central_nervous_system | AB13: 10, 5, 15, 5, 5, 100, 5, 7, 5, 1 | AC13: rs1042522 | AD13: rs1042522 | AE13: NO | AF13: 0.659 | AG13: NO | AH13: YES | AI13: 0.155 | AJ13: Tolerated | AK13: 21.95 | AL13: 34.44 | AM13: 0 | AN13: 0 | AO13: 0 | AP13: NA | AQ13: 21 | AR13: 2970 | AS13: 2993 | AT13: 0.9923154026 | AU13: 1 | AV13: 106 | AW13: 106 | AX13: Polymorphism
A14: ESP6500, 1000G, dbSNP, ExAC, freq, many samples | B14: UPN_Tr2_002 | C14: 17 | D14: 7579472 | E14: G | F14: C | G14: TP53 | H14: ENST00000269305 | I14: missense_variant | J14: cCc/cGc|p.Pro72Arg/c.215C>G | K14: 715 | L14: 991 | M14: 1714 | N14: 0.5781796966 | O14: 1 | P14: 1 | Q14: 1 | R14: 1 | S14: 1 | T14: 0 | U14: 1 | V14: 1 | W14: 7 | X14: 25.4767 | Y14: 0.7147 | Z14: COSM3766190, COSM3766191, COSM250061, COSM3766193, COSM3766192 | AA14: large_intestine, liver, pancreas, pleura, prostate, soft_tissue, stomach, upper_aerodigestive_tract, urinary_tract, central_nervous_system | AB14: 10, 5, 15, 5, 5, 100, 5, 7, 5, 1 | AC14: rs1042522 | AD14: rs1042522 | AE14: NO | AF14: 0.659 | AG14: NO | AH14: YES | AI14: 0.155 | AJ14: Tolerated | AK14: 35.06 | AL14: 34.34 | AM14: 0 | AN14: 0 | AO14: 0 | AP14: NA | AQ14: 715 | AR14: 991 | AS14: 1714 | AT14: 0.5781796966 | AU14: 1 | AV14: 106 | AW14: 106 | AX14: Polymorphism
A15: ESP6500, 1000G, dbSNP, ExAC, freq, many samples | B15: UPN_Tr2_003 | C15: 17 | D15: 7579472 | E15: G | F15: C | G15: TP53 | H15: ENST00000269305 | I15: missense_variant | J15: cCc/cGc|p.Pro72Arg/c.215C>G | K15: 1 | L15: 407 | M15: 408 | N15: 0.9975490196 | O15: 1 | P15: 1 | Q15: 1 | R15: 1 | S15: 1 | T15: 0 | U15: 1 | V15: 1 | W15: 7 | X15: 25.4767 | Y15: 0.7147 | Z15: COSM3766190, COSM3766191, COSM250061, COSM3766193, COSM3766192 | AA15: large_intestine, liver, pancreas, pleura, prostate, soft_tissue, stomach, upper_aerodigestive_tract, urinary_tract, central_nervous_system | AB15: 10, 5, 15, 5, 5, 100, 5, 7, 5, 1 | AC15: rs1042522 | AD15: rs1042522 | AE15: NO | AF15: 0.659 | AG15: NO | AH15: YES | AI15: 0.155 | AJ15: Tolerated | AK15: 14 | AL15: 34.28 | AM15: 0 | AN15: 0 | AO15: 0 | AP15: NA | AQ15: 1 | AR15: 407 | AS15: 408 | AT15: 0.9975490196 | AU15: 1 | AV15: 106 | AW15: 106 | AX15: Polymorphism
A16: ESP6500, 1000G, dbSNP, ExAC, freq, many samples | B16: UPN_Tr2_022 | C16: 17 | D16: 7579472 | E16: G | F16: C | G16: TP53 | H16: ENST00000269305 | I16: missense_variant | J16: cCc/cGc|p.Pro72Arg/c.215C>G | K16: 20 | L16: 3637 | M16: 3668 | N16: 0.9915485278 | O16: 1 | P16: 1 | Q16: 1 | R16: 1 | S16: 1 | T16: 0 | U16: 1 | V16: 1 | W16: 7 | X16: 25.4767 | Y16: 0.7147 | Z16: COSM3766190, COSM3766191, COSM250061, COSM3766193, COSM3766192 | AA16: large_intestine, liver, pancreas, pleura, prostate, soft_tissue, stomach, upper_aerodigestive_tract, urinary_tract, central_nervous_system | AB16: 10, 5, 15, 5, 5, 100, 5, 7, 5, 1 | AC16: rs1042522 | AD16: rs1042522 | AE16: NO | AF16: 0.659 | AG16: NO | AH16: YES | AI16: 0.155 | AJ16: Tolerated | AK16: 20.75 | AL16: 34.4 | AM16: 0 | AN16: 0 | AO16: 0 | AP16: NA | AQ16: 20 | AR16: 3637 | AS16: 3668 | AT16: 0.9915485278 | AU16: 1 | AV16: 106 | AW16: 106 | AX16: Polymorphism
A17: ESP6500, 1000G, dbSNP, ExAC, freq, many samples | B17: UPN_Tr2_023 | C17: 17 | D17: 7579472 | E17: G | F17: C | G17: TP53 | H17: ENST00000269305 | I17: missense_variant | J17: cCc/cGc|p.Pro72Arg/c.215C>G | K17: 21 | L17: 3469 | M17: 3498 | N17: 0.9917095483 | O17: 1 | P17: 1 | Q17: 1 | R17: 1 | S17: 1 | T17: 0 | U17: 1 | V17: 1 | W17: 7 | X17: 25.4767 | Y17: 0.7147 | Z17: COSM3766190, COSM3766191, COSM250061, COSM3766193, COSM3766192 | AA17: large_intestine, liver, pancreas, pleura, prostate, soft_tissue, stomach, upper_aerodigestive_tract, urinary_tract, central_nervous_system | AB17: 10, 5, 15, 5, 5, 100, 5, 7, 5, 1 | AC17: rs1042522 | AD17: rs1042522 | AE17: NO | AF17: 0.659 | AG17: NO | AH17: YES | AI17: 0.155 | AJ17: Tolerated | AK17: 24.48 | AL17: 34.27 | AM17: 0 | AN17: 0 | AO17: 0 | AP17: NA | AQ17: 21 | AR17: 3469 | AS17: 3498 | AT17: 0.9917095483 | AU17: 1 | AV17: 106 | AW17: 106 | AX17: Polymorphism
A18: ESP6500, 1000G, dbSNP, ExAC, freq, many samples | B18: UPN_Tr2_041 | C18: 17 | D18: 7579472 | E18: G | F18: C | G18: TP53 | H18: ENST00000269305 | I18: missense_variant | J18: cCc/cGc|p.Pro72Arg/c.215C>G | K18: 2572 | L18: 3919 | M18: 6514 | N18: 0.6016272644 | O18: 1 | P18: 1 | Q18: 1 | R18: 1 | S18: 1 | T18: 0 | U18: 1 | V18: 1 | W18: 7 | X18: 25.4767 | Y18: 0.7147 | Z18: COSM3766190, COSM3766191, COSM250061, COSM3766193, COSM3766192 | AA18: large_intestine, liver, pancreas, pleura, prostate, soft_tissue, stomach, upper_aerodigestive_tract, urinary_tract, central_nervous_system | AB18: 10, 5, 15, 5, 5, 100, 5, 7, 5, 1 | AC18: rs1042522 | AD18: rs1042522 | AE18: NO | AF18: 0.659 | AG18: NO | AH18: YES | AI18: 0.155 | AJ18: Tolerated | AK18: 34.74 | AL18: 33.68 | AM18: 0 | AN18: 0 | AO18: 0 | AP18: NA | AQ18: 2572 | AR18: 3919 | AS18: 6514 | AT18: 0.6016272644 | AU18: 1 | AV18: 106 | AW18: 106 | AX18: Polymorphism
A19: ESP6500, 1000G, dbSNP, ExAC, freq, many samples | B19: UPN_Tr2_024 | C19: 17 | D19: 7579472 | E19: G | F19: C | G19: TP53 | H19: ENST00000269305 | I19: missense_variant | J19: cCc/cGc|p.Pro72Arg/c.215C>G | K19: 12 | L19: 1556 | M19: 1568 | N19: 0.9923469388 | O19: 1 | P19: 1 | Q19: 1 | R19: 1 | S19: 1 | T19: 0 | U19: 1 | V19: 1 | W19: 7 | X19: 25.4767 | Y19: 0.7147 | Z19: COSM3766190, COSM3766191, COSM250061, COSM3766193, COSM3766192 | AA19: large_intestine, liver, pancreas, pleura, prostate, soft_tissue, stomach, upper_aerodigestive_tract, urinary_tract, central_nervous_system | AB19: 10, 5, 15, 5, 5, 100, 5, 7, 5, 1 | AC19: rs1042522 | AD19: rs1042522 | AE19: NO | AF19: 0.659 | AG19: NO | AH19: YES | AI19: 0.155 | AJ19: Tolerated | AK19: 25.75 | AL19: 34.2 | AM19: 0 | AN19: 0 | AO19: 0 | AP19: NA | AQ19: 12 | AR19: 1556 | AS19: 1568 | AT19: 0.9923469388 | AU19: 1 | AV19: 106 | AW19: 106 | AX19: Polymorphism
A20: ESP6500, 1000G, dbSNP, ExAC, freq, many samples | B20: UPN_Tr2_025 | C20: 17 | D20: 7579472 | E20: G | F20: C | G20: TP53 | H20: ENST00000269305 | I20: missense_variant | J20: cCc/cGc|p.Pro72Arg/c.215C>G | K20: 21 | L20: 5123 | M20: 5155 | N20: 0.9937924345 | O20: 1 | P20: 1 | Q20: 1 | R20: 1 | S20: 1 | T20: 0 | U20: 1 | V20: 1 | W20: 7 | X20: 25.4767 | Y20: 0.7147 | Z20: COSM3766190, COSM3766191, COSM250061, COSM3766193, COSM3766192 | AA20: large_intestine, liver, pancreas, pleura, prostate, soft_tissue, stomach, upper_aerodigestive_tract, urinary_tract, central_nervous_system | AB20: 10, 5, 15, 5, 5, 100, 5, 7, 5, 1 | AC20: rs1042522 | AD20: rs1042522 | AE20: NO | AF20: 0.659 | AG20: NO | AH20: YES | AI20: 0.155 | AJ20: Tolerated | AK20: 23.24 | AL20: 34.35 | AM20: 0 | AN20: 0 | AO20: 0 | AP20: NA | AQ20: 21 | AR20: 5123 | AS20: 5155 | AT20: 0.9937924345 | AU20: 1 | AV20: 106 | AW20: 106 | AX20: Polymorphism
A21: ESP6500, 1000G, dbSNP, ExAC, freq, many samples | B21: UPN_Tr2_026 | C21: 17 | D21: 7579472 | E21: G | F21: C | G21: TP53 | H21: ENST00000269305 | I21: missense_variant | J21: cCc/cGc|p.Pro72Arg/c.215C>G | K21: 15 | L21: 4324 | M21: 4352 | N21: 0.9935661765 | O21: 1 | P21: 1 | Q21: 1 | R21: 1 | S21: 1 | T21: 0 | U21: 1 | V21: 1 | W21: 7 | X21: 25.4767 | Y21: 0.7147 | Z21: COSM3766190, COSM3766191, COSM250061, COSM3766193, COSM3766192 | AA21: large_intestine, liver, pancreas, pleura, prostate, soft_tissue, stomach, upper_aerodigestive_tract, urinary_tract, central_nervous_system | AB21: 10, 5, 15, 5, 5, 100, 5, 7, 5, 1 | AC21: rs1042522 | AD21: rs1042522 | AE21: NO | AF21: 0.659 | AG21: NO | AH21: YES | AI21: 0.155 | AJ21: Tolerated | AK21: 21.8 | AL21: 34.39 | AM21: 0 | AN21: 0 | AO21: 0 | AP21: NA | AQ21: 15 | AR21: 4324 | AS21: 4352 | AT21: 0.9935661765 | AU21: 1 | AV21: 106 | AW21: 106 | AX21: Polymorphism
A22: 2nd Illumina, ESP6500, 1000G, dbSNP, ExAC, freq, many samples | B22: UPN_Tr2_004 | C22: 17 | D22: 7579472 | E22: G | F22: C | G22: TP53 | H22: ENST00000269305 | I22: missense_variant | J22: cCc/cGc|p.Pro72Arg/c.215C>G | K22: 83 | L22: 125 | M22: 209 | N22: 0.5980861244 | O22: 1 | P22: 1 | Q22: 1 | R22: 1 | S22: 1 | T22: 0 | U22: 1 | V22: 1 | W22: 7 | X22: 25.4767 | Y22: 0.7147 | Z22: COSM3766190, COSM3766191, COSM250061, COSM3766193, COSM3766192 | AA22: large_intestine, liver, pancreas, pleura, prostate, soft_tissue, stomach, upper_aerodigestive_tract, urinary_tract, central_nervous_system | AB22: 10, 5, 15, 5, 5, 100, 5, 7, 5, 1 | AC22: rs1042522 | AD22: rs1042522 | AE22: NO | AF22: 0.659 | AG22: NO | AH22: YES | AI22: 0.155 | AJ22: Tolerated | AK22: 35.02 | AL22: 34.41 | AM22: 0 | AN22: 0 | AO22: 0 | AP22: NA | AQ22: 83 | AR22: 125 | AS22: 209 | AT22: 0.5980861244 | AU22: 1 | AV22: 106 | AW22: 106 | AX22: Polymorphism
A23: ESP6500, 1000G, dbSNP, ExAC, freq, many samples | B23: UPN_Tr2_027 | C23: 17 | D23: 7579472 | E23: G | F23: C | G23: TP53 | H23: ENST00000269305 | I23: missense_variant | J23: cCc/cGc|p.Pro72Arg/c.215C>G | K23: 21 | L23: 4547 | M23: 4578 | N23: 0.9932284841 | O23: 1 | P23: 1 | Q23: 1 | R23: 1 | S23: 1 | T23: 0 | U23: 1 | V23: 1 | W23: 7 | X23: 25.4767 | Y23: 0.7147 | Z23: COSM3766190, COSM3766191, COSM250061, COSM3766193, COSM3766192 | AA23: large_intestine, liver, pancreas, pleura, prostate, soft_tissue, stomach, upper_aerodigestive_tract, urinary_tract, central_nervous_system | AB23: 10, 5, 15, 5, 5, 100, 5, 7, 5, 1 | AC23: rs1042522 | AD23: rs1042522 | AE23: NO | AF23: 0.659 | AG23: NO | AH23: YES | AI23: 0.155 | AJ23: Tolerated | AK23: 24.29 | AL23: 34.23 | AM23: 0 | AN23: 0 | AO23: 0 | AP23: NA | AQ23: 21 | AR23: 4547 | AS23: 4578 | AT23: 0.9932284841 | AU23: 1 | AV23: 106 | AW23: 106 | AX23: Polymorphism
A24: ESP6500, 1000G, dbSNP, ExAC, freq, many samples | B24: UPN_Tr2_089 | C24: 17 | D24: 7579472 | E24: G | F24: C | G24: TP53 | H24: ENST00000269305 | I24: missense_variant | J24: cCc/cGc|p.Pro72Arg/c.215C>G | K24: 1144 | L24: 1524 | M24: 2673 | N24: 0.5701459035 | O24: 1 | P24: 1 | Q24: 0 | R24: 1 | S24: 1 | T24: 0 | U24: 1 | V24: 1 | W24: 6 | X24: 25.4767 | Y24: 0.7147 | Z24: COSM3766190, COSM3766191, COSM250061, COSM3766193, COSM3766192 | AA24: large_intestine, liver, pancreas, pleura, prostate, soft_tissue, stomach, upper_aerodigestive_tract, urinary_tract, central_nervous_system | AB24: 10, 5, 15, 5, 5, 100, 5, 7, 5, 1 | AC24: rs1042522 | AD24: rs1042522 | AE24: NO | AF24: 0.659 | AG24: NO | AH24: YES | AI24: 0.155 | AJ24: Tolerated | AK24: 34.62 | AL24: 33.99 | AM24: 0 | AN24: 0 | AO24: 0 | AP24: NA | AQ24: 1144 | AR24: 1524 | AS24: 2673 | AT24: 0.5701459035 | AU24: 1 | AV24: 106 | AW24: 106 | AX24: Polymorphism
A25: ESP6500, 1000G, dbSNP, ExAC, freq, many samples | B25: UPN_Tr2_042 | C25: 17 | D25: 7579472 | E25: G | F25: C | G25: TP53 | H25: ENST00000269305 | I25: missense_variant | J25: cCc/cGc|p.Pro72Arg/c.215C>G | K25: 63 | L25: 6316 | M25: 6407 | N25: 0.9857967848 | O25: 1 | P25: 1 | Q25: 1 | R25: 1 | S25: 1 | T25: 0 | U25: 1 | V25: 1 | W25: 7 | X25: 25.4767 | Y25: 0.7147 | Z25: COSM3766190, COSM3766191, COSM250061, COSM3766193, COSM3766192 | AA25: large_intestine, liver, pancreas, pleura, prostate, soft_tissue, stomach, upper_aerodigestive_tract, urinary_tract, central_nervous_system | AB25: 10, 5, 15, 5, 5, 100, 5, 7, 5, 1 | AC25: rs1042522 | AD25: rs1042522 | AE25: NO | AF25: 0.659 | AG25: NO | AH25: YES | AI25: 0.155 | AJ25: Tolerated | AK25: 27.02 | AL25: 33.48 | AM25: 0 | AN25: 0 | AO25: 0 | AP25: NA | AQ25: 63 | AR25: 6316 | AS25: 6407 | AT25: 0.9857967848 | AU25: 1 | AV25: 106 | AW25: 106 | AX25: Polymorphism
A26: ESP6500, 1000G, dbSNP, ExAC, freq, many samples | B26: UPN_Tr2_028 | C26: 17 | D26: 7579472 | E26: G | F26: C | G26: TP53 | H26: ENST00000269305 | I26: missense_variant | J26: cCc/cGc|p.Pro72Arg/c.215C>G | K26: 17 | L26: 3708 | M26: 3736 | N26: 0.9925053533 | O26: 1 | P26: 1 | Q26: 1 | R26: 1 | S26: 1 | T26: 0 | U26: 1 | V26: 1 | W26: 7 | X26: 25.4767 | Y26: 0.7147 | Z26: COSM3766190, COSM3766191, COSM250061, COSM3766193, COSM3766192 | AA26: large_intestine, liver, pancreas, pleura, prostate, soft_tissue, stomach, upper_aerodigestive_tract, urinary_tract, central_nervous_system | AB26: 10, 5, 15, 5, 5, 100, 5, 7, 5, 1 | AC26: rs1042522 | AD26: rs1042522 | AE26: NO | AF26: 0.659 | AG26: NO | AH26: YES | AI26: 0.155 | AJ26: Tolerated | AK26: 23.06 | AL26: 34.4 | AM26: 0 | AN26: 0 | AO26: 0 | AP26: NA | AQ26: 17 | AR26: 3708 | AS26: 3736 | AT26: 0.9925053533 | AU26: 1 | AV26: 106 | AW26: 106 | AX26: Polymorphism
A27: ESP6500, 1000G, dbSNP, ExAC, freq, many samples | B27: UPN_Tr2_043 | C27: 17 | D27: 7579472 | E27: G | F27: C | G27: TP53 | H27: ENST00000269305 | I27: missense_variant | J27: cCc/cGc|p.Pro72Arg/c.215C>G | K27: 28 | L27: 3731 | M27: 3774 | N27: 0.9886062533 | O27: 1 | P27: 1 | Q27: 1 | R27: 1 | S27: 1 | T27: 0 | U27: 1 | V27: 1 | W27: 7 | X27: 25.4767 | Y27: 0.7147 | Z27: COSM3766190, COSM3766191, COSM250061, COSM3766193, COSM3766192 | AA27: large_intestine, liver, pancreas, pleura, prostate, soft_tissue, stomach, upper_aerodigestive_tract, urinary_tract, central_nervous_system | AB27: 10, 5, 15, 5, 5, 100, 5, 7, 5, 1 | AC27: rs1042522 | AD27: rs1042522 | AE27: NO | AF27: 0.659 | AG27: NO | AH27: YES | AI27: 0.155 | AJ27: Tolerated | AK27: 21.86 | AL27: 33.58 | AM27: 0 | AN27: 0 | AO27: 0 | AP27: NA | AQ27: 28 | AR27: 3731 | AS27: 3774 | AT27: 0.9886062533 | AU27: 1 | AV27: 106 | AW27: 106 | AX27: Polymorphism
A28: ESP6500, 1000G, dbSNP, ExAC, freq, many samples | B28: UPN_Tr2_029 | C28: 17 | D28: 7579472 | E28: G | F28: C | G28: TP53 | H28: ENST00000269305 | I28: missense_variant | J28: cCc/cGc|p.Pro72Arg/c.215C>G | K28: 16 | L28: 3638 | M28: 3667 | N28: 0.992091628 | O28: 1 | P28: 1 | Q28: 0 | R28: 1 | S28: 1 | T28: 0 | U28: 1 | V28: 1 | W28: 6 | X28: 25.4767 | Y28: 0.7147 | Z28: COSM3766190, COSM3766191, COSM250061, COSM3766193, COSM3766192 | AA28: large_intestine, liver, pancreas, pleura, prostate, soft_tissue, stomach, upper_aerodigestive_tract, urinary_tract, central_nervous_system | AB28: 10, 5, 15, 5, 5, 100, 5, 7, 5, 1 | AC28: rs1042522 | AD28: rs1042522 | AE28: NO | AF28: 0.659 | AG28: NO | AH28: YES | AI28: 0.155 | AJ28: Tolerated | AK28: 27.75 | AL28: 34.16 | AM28: 0 | AN28: 0 | AO28: 0 | AP28: NA | AQ28: 16 | AR28: 3638 | AS28: 3667 | AT28: 0.992091628 | AU28: 1 | AV28: 106 | AW28: 106 | AX28: Polymorphism
A29: ESP6500, 1000G, dbSNP, ExAC, freq, many samples | B29: UPN_Tr2_030 | C29: 17 | D29: 7579472 | E29: G | F29: C | G29: TP53 | H29: ENST00000269305 | I29: missense_variant | J29: cCc/cGc|p.Pro72Arg/c.215C>G | K29: 1768 | L29: 2068 | M29: 3842 | N29: 0.5382613222 | O29: 1 | P29: 1 | Q29: 1 | R29: 1 | S29: 1 | T29: 0 | U29: 1 | V29: 1 | W29: 7 | X29: 25.4767 | Y29: 0.7147 | Z29: COSM3766190, COSM3766191, COSM250061, COSM3766193, COSM3766192 | AA29: large_intestine, liver, pancreas, pleura, prostate, soft_tissue, stomach, upper_aerodigestive_tract, urinary_tract, central_nervous_system | AB29: 10, 5, 15, 5, 5, 100, 5, 7, 5, 1 | AC29: rs1042522 | AD29: rs1042522 | AE29: NO | AF29: 0.659 | AG29: NO | AH29: YES | AI29: 0.155 | AJ29: Tolerated | AK29: 35.23 | AL29: 34.33 | AM29: 0 | AN29: 0 | AO29: 0 | AP29: NA | AQ29: 1768 | AR29: 2068 | AS29: 3842 | AT29: 0.5382613222 | AU29: 1 | AV29: 106 | AW29: 106 | AX29: Polymorphism
A30: ESP6500, 1000G, dbSNP, ExAC, freq, many samples | B30: UPN_Tr2_031 | C30: 17 | D30: 7579472 | E30: G | F30: C | G30: TP53 | H30: ENST00000269305 | I30: missense_variant | J30: cCc/cGc|p.Pro72Arg/c.215C>G | K30: 1221 | L30: 1460 | M30: 2690 | N30: 0.5427509294 | O30: 1 | P30: 1 | Q30: 1 | R30: 1 | S30: 1 | T30: 0 | U30: 1 | V30: 1 | W30: 7 | X30: 25.4767 | Y30: 0.7147 | Z30: COSM3766190, COSM3766191, COSM250061, COSM3766193, COSM3766192 | AA30: large_intestine, liver, pancreas, pleura, prostate, soft_tissue, stomach, upper_aerodigestive_tract, urinary_tract, central_nervous_system | AB30: 10, 5, 15, 5, 5, 100, 5, 7, 5, 1 | AC30: rs1042522 | AD30: rs1042522 | AE30: NO | AF30: 0.659 | AG30: NO | AH30: YES | AI30: 0.155 | AJ30: Tolerated | AK30: 35.23 | AL30: 34.39 | AM30: 0 | AN30: 0 | AO30: 0 | AP30: NA | AQ30: 1221 | AR30: 1460 | AS30: 2690 | AT30: 0.5427509294 | AU30: 1 | AV30: 106 | AW30: 106 | AX30: Polymorphism
A31: ESP6500, 1000G, dbSNP, ExAC, freq, many samples | B31: UPN_Tr2_005 | C31: 17 | D31: 7579472 | E31: G | F31: C | G31: TP53 | H31: ENST00000269305 | I31: missense_variant | J31: cCc/cGc|p.Pro72Arg/c.215C>G | K31: 7 | L31: 675 | M31: 683 | N31: 0.9882869693 | O31: 1 | P31: 1 | Q31: 1 | R31: 1 | S31: 1 | T31: 0 | U31: 1 | V31: 1 | W31: 7 | X31: 25.4767 | Y31: 0.7147 | Z31: COSM3766190, COSM3766191, COSM250061, COSM3766193, COSM3766192 | AA31: large_intestine, liver, pancreas, pleura, prostate, soft_tissue, stomach, upper_aerodigestive_tract, urinary_tract, central_nervous_system | AB31: 10, 5, 15, 5, 5, 100, 5, 7, 5, 1 | AC31: rs1042522 | AD31: rs1042522 | AE31: NO | AF31: 0.659 | AG31: NO | AH31: YES | AI31: 0.155 | AJ31: Tolerated | AK31: 26 | AL31: 34.12 | AM31: 0 | AN31: 0 | AO31: 0 | AP31: NA | AQ31: 7 | AR31: 675 | AS31: 683 | AT31: 0.9882869693 | AU31: 1 | AV31: 106 | AW31: 106 | AX31: Polymorphism
A32: ESP6500, 1000G, dbSNP, ExAC, freq, many samples | B32: UPN_Tr2_032 | C32: 17 | D32: 7579472 | E32: G | F32: C | G32: TP53 | H32: ENST00000269305 | I32: missense_variant | J32: cCc/cGc|p.Pro72Arg/c.215C>G | K32: 13 | L32: 1296 | M32: 1309 | N32: 0.9900687548 | O32: 1 | P32: 1 | Q32: 1 | R32: 1 | S32: 1 | T32: 0 | U32: 1 | V32: 1 | W32: 7 | X32: 25.4767 | Y32: 0.7147 | Z32: COSM3766190, COSM3766191, COSM250061, COSM3766193, COSM3766192 | AA32: large_intestine, liver, pancreas, pleura, prostate, soft_tissue, stomach, upper_aerodigestive_tract, urinary_tract, central_nervous_system | AB32: 10, 5, 15, 5, 5, 100, 5, 7, 5, 1 | AC32: rs1042522 | AD32: rs1042522 | AE32: NO | AF32: 0.659 | AG32: NO | AH32: YES | AI32: 0.155 | AJ32: Tolerated | AK32: 25.77 | AL32: 34.11 | AM32: 0 | AN32: 0 | AO32: 0 | AP32: NA | AQ32: 13 | AR32: 1296 | AS32: 1309 | AT32: 0.9900687548 | AU32: 1 | AV32: 106 | AW32: 106 | AX32: Polymorphism
A33: ESP6500, 1000G, dbSNP, ExAC, freq, many samples | B33: UPN_Tr2_046 | C33: 17 | D33: 7579472 | E33: G | F33: C | G33: TP53 | H33: ENST00000269305 | I33: missense_variant | J33: cCc/cGc|p.Pro72Arg/c.215C>G | K33: 45 | L33: 6896 | M33: 6972 | N33: 0.9890992542 | O33: 1 | P33: 1 | Q33: 1 | R33: 1 | S33: 1 | T33: 0 | U33: 1 | V33: 1 | W33: 7 | X33: 25.4767 | Y33: 0.7147 | Z33: COSM3766190, COSM3766191, COSM250061, COSM3766193, COSM3766192 | AA33: large_intestine, liver, pancreas, pleura, prostate, soft_tissue, stomach, upper_aerodigestive_tract, urinary_tract, central_nervous_system | AB33: 10, 5, 15, 5, 5, 100, 5, 7, 5, 1 | AC33: rs1042522 | AD33: rs1042522 | AE33: NO | AF33: 0.659 | AG33: NO | AH33: YES | AI33: 0.155 | AJ33: Tolerated | AK33: 19.87 | AL33: 33.68 | AM33: 0 | AN33: 0 | AO33: 0 | AP33: NA | AQ33: 45 | AR33: 6896 | AS33: 6972 | AT33: 0.9890992542 | AU33: 1 | AV33: 106 | AW33: 106 | AX33: Polymorphism
A34: ESP6500, 1000G, dbSNP, ExAC, freq, many samples | B34: UPN_Tr2_033 | C34: 17 | D34: 7579472 | E34: G | F34: C | G34: TP53 | H34: ENST00000269305 | I34: missense_variant | J34: cCc/cGc|p.Pro72Arg/c.215C>G | K34: 1269 | L34: 1469 | M34: 2744 | N34: 0.5353498542 | O34: 1 | P34: 1 | Q34: 1 | R34: 1 | S34: 1 | T34: 0 | U34: 1 | V34: 1 | W34: 7 | X34: 25.4767 | Y34: 0.7147 | Z34: COSM3766190, COSM3766191, COSM250061, COSM3766193, COSM3766192 | AA34: large_intestine, liver, pancreas, pleura, prostate, soft_tissue, stomach, upper_aerodigestive_tract, urinary_tract, central_nervous_system | AB34: 10, 5, 15, 5, 5, 100, 5, 7, 5, 1 | AC34: rs1042522 | AD34: rs1042522 | AE34: NO | AF34: 0.659 | AG34: NO | AH34: YES | AI34: 0.155 | AJ34: Tolerated | AK34: 35.08 | AL34: 34.24 | AM34: 0 | AN34: 0 | AO34: 0 | AP34: NA | AQ34: 1269 | AR34: 1469 | AS34: 2744 | AT34: 0.5353498542 | AU34: 1 | AV34: 106 | AW34: 106 | AX34: Polymorphism
A35: ESP6500, 1000G, dbSNP, ExAC, freq, many samples | B35: UPN_Tr2_034 | C35: 17 | D35: 7579472 | E35: G | F35: C | G35: TP53 | H35: ENST00000269305 | I35: missense_variant | J35: cCc/cGc|p.Pro72Arg/c.215C>G | K35: 435 | L35: 596 | M35: 1033 | N35: 0.5769603098 | O35: 1 | P35: 1 | Q35: 1 | R35: 1 | S35: 1 | T35: 0 | U35: 1 | V35: 1 | W35: 7 | X35: 25.4767 | Y35: 0.7147 | Z35: COSM3766190, COSM3766191, COSM250061, COSM3766193, COSM3766192 | AA35: large_intestine, liver, pancreas, pleura, prostate, soft_tissue, stomach, upper_aerodigestive_tract, urinary_tract, central_nervous_system | AB35: 10, 5, 15, 5, 5, 100, 5, 7, 5, 1 | AC35: rs1042522 | AD35: rs1042522 | AE35: NO | AF35: 0.659 | AG35: NO | AH35: YES | AI35: 0.155 | AJ35: Tolerated | AK35: 35 | AL35: 34.19 | AM35: 0 | AN35: 0 | AO35: 0 | AP35: NA | AQ35: 435 | AR35: 596 | AS35: 1033 | AT35: 0.5769603098 | AU35: 1 | AV35: 106 | AW35: 106 | AX35: Polymorphism
A36: ESP6500, 1000G, dbSNP, ExAC, freq, many samples | B36: UPN_Tr2_047 | C36: 17 | D36: 7579472 | E36: G | F36: C | G36: TP53 | H36: ENST00000269305 | I36: missense_variant | J36: cCc/cGc|p.Pro72Arg/c.215C>G | K36: 49 | L36: 7119 | M36: 7204 | N36: 0.9882009994 | O36: 1 | P36: 1 | Q36: 1 | R36: 1 | S36: 1 | T36: 0 | U36: 1 | V36: 1 | W36: 7 | X36: 25.4767 | Y36: 0.7147 | Z36: COSM3766190, COSM3766191, COSM250061, COSM3766193, COSM3766192 | AA36: large_intestine, liver, pancreas, pleura, prostate, soft_tissue, stomach, upper_aerodigestive_tract, urinary_tract, central_nervous_system | AB36: 10, 5, 15, 5, 5, 100, 5, 7, 5, 1 | AC36: rs1042522 | AD36: rs1042522 | AE36: NO | AF36: 0.659 | AG36: NO | AH36: YES | AI36: 0.155 | AJ36: Tolerated | AK36: 25.04 | AL36: 33.43 | AM36: 0 | AN36: 0 | AO36: 0 | AP36: NA | AQ36: 49 | AR36: 7119 | AS36: 7204 | AT36: 0.9882009994 | AU36: 1 | AV36: 106 | AW36: 106 | AX36: Polymorphism
A37: ESP6500, 1000G, dbSNP, ExAC, freq, many samples | B37: UPN_Tr2_048 | C37: 17 | D37: 7579472 | E37: G | F37: C | G37: TP53 | H37: ENST00000269305 | I37: missense_variant | J37: cCc/cGc|p.Pro72Arg/c.215C>G | K37: 49 | L37: 6651 | M37: 6731 | N37: 0.9881146932 | O37: 1 | P37: 1 | Q37: 1 | R37: 1 | S37: 1 | T37: 0 | U37: 1 | V37: 1 | W37: 7 | X37: 25.4767 | Y37: 0.7147 | Z37: COSM3766190, COSM3766191, COSM250061, COSM3766193, COSM3766192 | AA37: large_intestine, liver, pancreas, pleura, prostate, soft_tissue, stomach, upper_aerodigestive_tract, urinary_tract, central_nervous_system | AB37: 10, 5, 15, 5, 5, 100, 5, 7, 5, 1 | AC37: rs1042522 | AD37: rs1042522 | AE37: NO | AF37: 0.659 | AG37: NO | AH37: YES | AI37: 0.155 | AJ37: Tolerated | AK37: 26.61 | AL37: 33.59 | AM37: 0 | AN37: 0 | AO37: 0 | AP37: NA | AQ37: 49 | AR37: 6651 | AS37: 6731 | AT37: 0.9881146932 | AU37: 1 | AV37: 106 | AW37: 106 | AX37: Polymorphism
A38: ESP6500, 1000G, dbSNP, ExAC, freq, many samples | B38: UPN_Tr2_035 | C38: 17 | D38: 7579472 | E38: G | F38: C | G38: TP53 | H38: ENST00000269305 | I38: missense_variant | J38: cCc/cGc|p.Pro72Arg/c.215C>G | K38: 43 | L38: 6686 | M38: 6741 | N38: 0.9918409731 | O38: 1 | P38: 1 | Q38: 0 | R38: 1 | S38: 1 | T38: 0 | U38: 1 | V38: 1 | W38: 6 | X38: 25.4767 | Y38: 0.7147 | Z38: COSM3766190, COSM3766191, COSM250061, COSM3766193, COSM3766192 | AA38: large_intestine, liver, pancreas, pleura, prostate, soft_tissue, stomach, upper_aerodigestive_tract, urinary_tract, central_nervous_system | AB38: 10, 5, 15, 5, 5, 100, 5, 7, 5, 1 | AC38: rs1042522 | AD38: rs1042522 | AE38: NO | AF38: 0.659 | AG38: NO | AH38: YES | AI38: 0.155 | AJ38: Tolerated | AK38: 23.02 | AL38: 34.27 | AM38: 0 | AN38: 0 | AO38: 0 | AP38: NA | AQ38: 43 | AR38: 6686 | AS38: 6741 | AT38: 0.9918409731 | AU38: 1 | AV38: 106 | AW38: 106 | AX38: Polymorphism
A39: ESP6500, 1000G, dbSNP, ExAC, freq, many samples | B39: UPN_Tr2_036 | C39: 17 | D39: 7579472 | E39: G | F39: C | G39: TP53 | H39: ENST00000269305 | I39: missense_variant | J39: cCc/cGc|p.Pro72Arg/c.215C>G | K39: 5751 | L39: 6631 | M39: 12412 | N39: 0.534241057 | O39: 1 | P39: 1 | Q39: 0 | R39: 1 | S39: 1 | T39: 0 | U39: 0 | V39: 1 | W39: 5 | X39: 25.4767 | Y39: 0.7147 | Z39: COSM3766190, COSM3766191, COSM250061, COSM3766193, COSM3766192 | AA39: large_intestine, liver, pancreas, pleura, prostate, soft_tissue, stomach, upper_aerodigestive_tract, urinary_tract, central_nervous_system | AB39: 10, 5, 15, 5, 5, 100, 5, 7, 5, 1 | AC39: rs1042522 | AD39: rs1042522 | AE39: NO | AF39: 0.659 | AG39: NO | AH39: YES | AI39: 0.155 | AJ39: Tolerated | AK39: 35.12 | AL39: 34.27 | AM39: 0 | AN39: 0 | AO39: 0 | AP39: NA | AQ39: 5751 | AR39: 6631 | AS39: 12412 | AT39: 0.534241057 | AU39: 1 | AV39: 106 | AW39: 106 | AX39: Polymorphism
A40: 2nd Illumina, ESP6500, 1000G, dbSNP, ExAC, freq, many samples | B40: UPN_Tr2_006 | C40: 17 | D40: 7579472 | E40: G | F40: C | G40: TP53 | H40: ENST00000269305 | I40: missense_variant | J40: cCc/cGc|p.Pro72Arg/c.215C>G | K40: 7 | L40: 1888 | M40: 1897 | N40: 0.9952556668 | O40: 1 | P40: 1 | Q40: 1 | R40: 1 | S40: 1 | T40: 0 | U40: 1 | V40: 1 | W40: 7 | X40: 25.4767 | Y40: 0.7147 | Z40: COSM3766190, COSM3766191, COSM250061, COSM3766193, COSM3766192 | AA40: large_intestine, liver, pancreas, pleura, prostate, soft_tissue, stomach, upper_aerodigestive_tract, urinary_tract, central_nervous_system | AB40: 10, 5, 15, 5, 5, 100, 5, 7, 5, 1 | AC40: rs1042522 | AD40: rs1042522 | AE40: NO | AF40: 0.659 | AG40: NO | AH40: YES | AI40: 0.155 | AJ40: Tolerated | AK40: 24.43 | AL40: 33.96 | AM40: 0 | AN40: 0 | AO40: 0 | AP40: NA | AQ40: 7 | AR40: 1888 | AS40: 1897 | AT40: 0.9952556668 | AU40: 1 | AV40: 106 | AW40: 106 | AX40: Polymorphism
A41: ESP6500, 1000G, dbSNP, ExAC, freq, many samples | B41: UPN_Tr2_050 | C41: 17 | D41: 7579472 | E41: G | F41: C | G41: TP53 | H41: ENST00000269305 | I41: missense_variant | J41: cCc/cGc|p.Pro72Arg/c.215C>G | K41: 1619 | L41: 2455 | M41: 4088 | N41: 0.6005381605 | O41: 1 | P41: 1 | Q41: 1 | R41: 1 | S41: 1 | T41: 0 | U41: 1 | V41: 1 | W41: 7 | X41: 25.4767 | Y41: 0.7147 | Z41: COSM3766190, COSM3766191, COSM250061, COSM3766193, COSM3766192 | AA41: large_intestine, liver, pancreas, pleura, prostate, soft_tissue, stomach, upper_aerodigestive_tract, urinary_tract, central_nervous_system | AB41: 10, 5, 15, 5, 5, 100, 5, 7, 5, 1 | AC41: rs1042522 | AD41: rs1042522 | AE41: NO | AF41: 0.659 | AG41: NO | AH41: YES | AI41: 0.155 | AJ41: Tolerated | AK41: 34.64 | AL41: 33.63 | AM41: 0 | AN41: 0 | AO41: 0 | AP41: NA | AQ41: 1619 | AR41: 2455 | AS41: 4088 | AT41: 0.6005381605 | AU41: 1 | AV41: 106 | AW41: 106 | AX41: Polymorphism
A42: ESP6500, 1000G, dbSNP, ExAC, freq, many samples | B42: UPN_Tr2_037 | C42: 17 | D42: 7579472 | E42: G | F42: C | G42: TP53 | H42: ENST00000269305 | I42: missense_variant | J42: cCc/cGc|p.Pro72Arg/c.215C>G | K42: 30 | L42: 6010 | M42: 6048 | N42: 0.9937169312 | O42: 1 | P42: 1 | Q42: 0 | R42: 1 | S42: 1 | T42: 0 | U42: 1 | V42: 1 | W42: 6 | X42: 25.4767 | Y42: 0.7147 | Z42: COSM3766190, COSM3766191, COSM250061, COSM3766193, COSM3766192 | AA42: large_intestine, liver, pancreas, pleura, prostate, soft_tissue, stomach, upper_aerodigestive_tract, urinary_tract, central_nervous_system | AB42: 10, 5, 15, 5, 5, 100, 5, 7, 5, 1 | AC42: rs1042522 | AD42: rs1042522 | AE42: NO | AF42: 0.659 | AG42: NO | AH42: YES | AI42: 0.155 | AJ42: Tolerated | AK42: 26.47 | AL42: 34.5 | AM42: 0 | AN42: 0 | AO42: 0 | AP42: NA | AQ42: 30 | AR42: 6010 | AS42: 6048 | AT42: 0.9937169312 | AU42: 1 | AV42: 106 | AW42: 106 | AX42: Polymorphism
A43: ESP6500, 1000G, dbSNP, ExAC, freq, many samples | B43: UPN_Tr2_051 | C43: 17 | D43: 7579472 | E43: G | F43: C | G43: TP53 | H43: ENST00000269305 | I43: missense_variant | J43: cCc/cGc|p.Pro72Arg/c.215C>G | K43: 2390 | L43: 3145 | M43: 5557 | N43: 0.5659528523 | O43: 1 | P43: 1 | Q43: 1 | R43: 1 | S43: 1 | T43: 0 | U43: 1 | V43: 1 | W43: 7 | X43: 25.4767 | Y43: 0.7147 | Z43: COSM3766190, COSM3766191, COSM250061, COSM3766193, COSM3766192 | AA43: large_intestine, liver, pancreas, pleura, prostate, soft_tissue, stomach, upper_aerodigestive_tract, urinary_tract, central_nervous_system | AB43: 10, 5, 15, 5, 5, 100, 5, 7, 5, 1 | AC43: rs1042522 | AD43: rs1042522 | AE43: NO | AF43: 0.659 | AG43: NO | AH43: YES | AI43: 0.155 | AJ43: Tolerated | AK43: 34.69 | AL43: 33.44 | AM43: 0 | AN43: 0 | AO43: 0 | AP43: NA | AQ43: 2390 | AR43: 3145 | AS43: 5557 | AT43: 0.5659528523 | AU43: 1 | AV43: 106 | AW43: 106 | AX43: Polymorphism
A44: ESP6500, 1000G, dbSNP, ExAC, freq, many samples | B44: UPN_Tr2_052 | C44: 17 | D44: 7579472 | E44: G | F44: C | G44: TP53 | H44: ENST00000269305 | I44: missense_variant | J44: cCc/cGc|p.Pro72Arg/c.215C>G | K44: 19 | L44: 3085 | M44: 3115 | N44: 0.9903691814 | O44: 1 | P44: 1 | Q44: 1 | R44: 1 | S44: 1 | T44: 0 | U44: 1 | V44: 0 | W44: 6 | X44: 25.4767 | Y44: 0.7147 | Z44: COSM3766190, COSM3766191, COSM250061, COSM3766193, COSM3766192 | AA44: large_intestine, liver, pancreas, pleura, prostate, soft_tissue, stomach, upper_aerodigestive_tract, urinary_tract, central_nervous_system | AB44: 10, 5, 15, 5, 5, 100, 5, 7, 5, 1 | AC44: rs1042522 | AD44: rs1042522 | AE44: NO | AF44: 0.659 | AG44: NO | AH44: YES | AI44: 0.155 | AJ44: Tolerated | AK44: 23.42 | AL44: 33.68 | AM44: 0 | AN44: 0 | AO44: 0 | AP44: NA | AQ44: 19 | AR44: 3085 | AS44: 3115 | AT44: 0.9903691814 | AU44: 1 | AV44: 106 | AW44: 106 | AX44: Polymorphism
A45: ESP6500, 1000G, dbSNP, ExAC, freq, many samples | B45: UPN_Tr2_038 | C45: 17 | D45: 7579472 | E45: G | F45: C | G45: TP53 | H45: ENST00000269305 | I45: missense_variant | J45: cCc/cGc|p.Pro72Arg/c.215C>G | K45: 48 | L45: 6732 | M45: 6799 | N45: 0.9901456096 | O45: 1 | P45: 1 | Q45: 1 | R45: 1 | S45: 1 | T45: 0 | U45: 1 | V45: 1 | W45: 7 | X45: 25.4767 | Y45: 0.7147 | Z45: COSM3766190, COSM3766191, COSM250061, COSM3766193, COSM3766192 | AA45: large_intestine, liver, pancreas, pleura, prostate, soft_tissue, stomach, upper_aerodigestive_tract, urinary_tract, central_nervous_system | AB45: 10, 5, 15, 5, 5, 100, 5, 7, 5, 1 | AC45: rs1042522 | AD45: rs1042522 | AE45: NO | AF45: 0.659 | AG45: NO | AH45: YES | AI45: 0.155 | AJ45: Tolerated | AK45: 22.35 | AL45: 34.41 | AM45: 0 | AN45: 0 | AO45: 0 | AP45: NA | AQ45: 48 | AR45: 6732 | AS45: 6799 | AT45: 0.9901456096 | AU45: 1 | AV45: 106 | AW45: 106 | AX45: Polymorphism
A46: ESP6500, 1000G, dbSNP, ExAC, freq, many samples | B46: UPN_Tr2_039 | C46: 17 | D46: 7579472 | E46: G | F46: C | G46: TP53 | H46: ENST00000269305 | I46: missense_variant | J46: cCc/cGc|p.Pro72Arg/c.215C>G | K46: 6987 | L46: 5618 | M46: 12631 | N46: 0.444778719 | O46: 1 | P46: 1 | Q46: 0 | R46: 1 | S46: 1 | T46: 0 | U46: 0 | V46: 1 | W46: 5 | X46: 25.4767 | Y46: 0.7147 | Z46: COSM3766190, COSM3766191, COSM250061, COSM3766193, COSM3766192 | AA46: large_intestine, liver, pancreas, pleura, prostate, soft_tissue, stomach, upper_aerodigestive_tract, urinary_tract, central_nervous_system | AB46: 10, 5, 15, 5, 5, 100, 5, 7, 5, 1 | AC46: rs1042522 | AD46: rs1042522 | AE46: NO | AF46: 0.659 | AG46: NO | AH46: YES | AI46: 0.155 | AJ46: Tolerated | AK46: 35.2 | AL46: 34.37 | AM46: 0 | AN46: 0 | AO46: 0 | AP46: NA | AQ46: 6987 | AR46: 5618 | AS46: 12631 | AT46: 0.444778719 | AU46: 1 | AV46: 106 | AW46: 106 | AX46: Polymorphism
A47: ESP6500, 1000G, dbSNP, ExAC, freq, many samples | B47: UPN_Tr2_053 | C47: 17 | D47: 7579472 | E47: G | F47: C | G47: TP53 | H47: ENST00000269305 | I47: missense_variant | J47: cCc/cGc|p.Pro72Arg/c.215C>G | K47: 2635 | L47: 3402 | M47: 6063 | N47: 0.5611083622 | O47: 1 | P47: 1 | Q47: 1 | R47: 1 | S47: 1 | T47: 0 | U47: 1 | V47: 1 | W47: 7 | X47: 25.4767 | Y47: 0.7147 | Z47: COSM3766190, COSM3766191, COSM250061, COSM3766193, COSM3766192 | AA47: large_intestine, liver, pancreas, pleura, prostate, soft_tissue, stomach, upper_aerodigestive_tract, urinary_tract, central_nervous_system | AB47: 10, 5, 15, 5, 5, 100, 5, 7, 5, 1 | AC47: rs1042522 | AD47: rs1042522 | AE47: NO | AF47: 0.659 | AG47: NO | AH47: YES | AI47: 0.155 | AJ47: Tolerated | AK47: 34.55 | AL47: 33.45 | AM47: 0 | AN47: 0 | AO47: 0 | AP47: NA | AQ47: 2635 | AR47: 3402 | AS47: 6063 | AT47: 0.5611083622 | AU47: 1 | AV47: 106 | AW47: 106 | AX47: Polymorphism
A48: ESP6500, 1000G, dbSNP, ExAC, freq, many samples | B48: UPN_Tr2_054 | C48: 17 | D48: 7579472 | E48: G | F48: C | G48: TP53 | H48: ENST00000269305 | I48: missense_variant | J48: cCc/cGc|p.Pro72Arg/c.215C>G | K48: 36 | L48: 4166 | M48: 4228 | N48: 0.9853358562 | O48: 1 | P48: 1 | Q48: 1 | R48: 1 | S48: 1 | T48: 0 | U48: 1 | V48: 1 | W48: 7 | X48: 25.4767 | Y48: 0.7147 | Z48: COSM3766190, COSM3766191, COSM250061, COSM3766193, COSM3766192 | AA48: large_intestine, liver, pancreas, pleura, prostate, soft_tissue, stomach, upper_aerodigestive_tract, urinary_tract, central_nervous_system | AB48: 10, 5, 15, 5, 5, 100, 5, 7, 5, 1 | AC48: rs1042522 | AD48: rs1042522 | AE48: NO | AF48: 0.659 | AG48: NO | AH48: YES | AI48: 0.155 | AJ48: Tolerated | AK48: 24.83 | AL48: 33.69 | AM48: 0 | AN48: 0 | AO48: 0 | AP48: NA | AQ48: 36 | AR48: 4166 | AS48: 4228 | AT48: 0.9853358562 | AU48: 1 | AV48: 106 | AW48: 106 | AX48: Polymorphism
A49: ESP6500, 1000G, dbSNP, ExAC, freq, many samples | B49: UPN_Tr2_007 | C49: 17 | D49: 7579472 | E49: G | F49: C | G49: TP53 | H49: ENST00000269305 | I49: missense_variant | J49: cCc/cGc|p.Pro72Arg/c.215C>G | K49: 22 | L49: 4776 | M49: 4806 | N49: 0.9937578027 | O49: 1 | P49: 1 | Q49: 0 | R49: 1 | S49: 1 | T49: 0 | U49: 1 | V49: 1 | W49: 6 | X49: 25.4767 | Y49: 0.7147 | Z49: COSM3766190, COSM3766191, COSM250061, COSM3766193, COSM3766192 | AA49: large_intestine, liver, pancreas, pleura, prostate, soft_tissue, stomach, upper_aerodigestive_tract, urinary_tract, central_nervous_system | AB49: 10, 5, 15, 5, 5, 100, 5, 7, 5, 1 | AC49: rs1042522 | AD49: rs1042522 | AE49: NO | AF49: 0.659 | AG49: NO | AH49: YES | AI49: 0.155 | AJ49: Tolerated | AK49: 22.41 | AL49: 33.89 | AM49: 0 | AN49: 0 | AO49: 0 | AP49: NA | AQ49: 22 | AR49: 4776 | AS49: 4806 | AT49: 0.9937578027 | AU49: 1 | AV49: 106 | AW49: 106 | AX49: Polymorphism
A50: ESP6500, 1000G, dbSNP, ExAC, freq, many samples | B50: UPN_Tr2_008 | C50: 17 | D50: 7579472 | E50: G | F50: C | G50: TP53 | H50: ENST00000269305 | I50: missense_variant | J50: cCc/cGc|p.Pro72Arg/c.215C>G | K50: 26 | L50: 6836 | M50: 6880 | N50: 0.9936046512 | O50: 1 | P50: 1 | Q50: 1 | R50: 1 | S50: 1 | T50: 0 | U50: 1 | V50: 1 | W50: 7 | X50: 25.4767 | Y50: 0.7147 | Z50: COSM3766190, COSM3766191, COSM250061, COSM3766193, COSM3766192 | AA50: large_intestine, liver, pancreas, pleura, prostate, soft_tissue, stomach, upper_aerodigestive_tract, urinary_tract, central_nervous_system | AB50: 10, 5, 15, 5, 5, 100, 5, 7, 5, 1 | AC50: rs1042522 | AD50: rs1042522 | AE50: NO | AF50: 0.659 | AG50: NO | AH50: YES | AI50: 0.155 | AJ50: Tolerated | AK50: 21.73 | AL50: 34.01 | AM50: 0 | AN50: 0 | AO50: 0 | AP50: NA | AQ50: 26 | AR50: 6836 | AS50: 6880 | AT50: 0.9936046512 | AU50: 1 | AV50: 106 | AW50: 106 | AX50: Polymorphism
A51: ESP6500, 1000G, dbSNP, ExAC, freq, many samples | B51: UPN_Tr2_009 | C51: 17 | D51: 7579472 | E51: G | F51: C | G51: TP53 | H51: ENST00000269305 | I51: missense_variant | J51: cCc/cGc|p.Pro72Arg/c.215C>G | K51: 21 | L51: 5510 | M51: 5550 | N51: 0.9927927928 | O51: 1 | P51: 1 | Q51: 0 | R51: 1 | S51: 1 | T51: 0 | U51: 1 | V51: 1 | W51: 6 | X51: 25.4767 | Y51: 0.7147 | Z51: COSM3766190, COSM3766191, COSM250061, COSM3766193, COSM3766192 | AA51: large_intestine, liver, pancreas, pleura, prostate, soft_tissue, stomach, upper_aerodigestive_tract, urinary_tract, central_nervous_system | AB51: 10, 5, 15, 5, 5, 100, 5, 7, 5, 1 | AC51: rs1042522 | AD51: rs1042522 | AE51: NO | AF51: 0.659 | AG51: NO | AH51: YES | AI51: 0.155 | AJ51: Tolerated | AK51: 24.48 | AL51: 34.26 | AM51: 0 | AN51: 0 | AO51: 0 | AP51: NA | AQ51: 21 | AR51: 5510 | AS51: 5550 | AT51: 0.9927927928 | AU51: 1 | AV51: 106 | AW51: 106 | AX51: Polymorphism
A52: ESP6500, 1000G, dbSNP, ExAC, freq, many samples | B52: UPN_Tr2_010 | C52: 17 | D52: 7579472 | E52: G | F52: C | G52: TP53 | H52: ENST00000269305 | I52: missense_variant | J52: cCc/cGc|p.Pro72Arg/c.215C>G | K52: 15 | L52: 3895 | M52: 3915 | N52: 0.9948914432 | O52: 1 | P52: 1 | Q52: 0 | R52: 1 | S52: 1 | T52: 0 | U52: 1 | V52: 1 | W52: 6 | X52: 25.4767 | Y52: 0.7147 | Z52: COSM3766190, COSM3766191, COSM250061, COSM3766193, COSM3766192 | AA52: large_intestine, liver, pancreas, pleura, prostate, soft_tissue, stomach, upper_aerodigestive_tract, urinary_tract, central_nervous_system | AB52: 10, 5, 15, 5, 5, 100, 5, 7, 5, 1 | AC52: rs1042522 | AD52: rs1042522 | AE52: NO | AF52: 0.659 | AG52: NO | AH52: YES | AI52: 0.155 | AJ52: Tolerated | AK52: 17.4 | AL52: 34.13 | AM52: 0 | AN52: 0 | AO52: 0 | AP52: NA | AQ52: 15 | AR52: 3895 | AS52: 3915 | AT52: 0.9948914432 | AU52: 1 | AV52: 106 | AW52: 106 | AX52: Polymorphism
A53: ESP6500, 1000G, dbSNP, ExAC, freq, many samples | B53: UPN_Tr2_011 | C53: 17 | D53: 7579472 | E53: G | F53: C | G53: TP53 | H53: ENST00000269305 | I53: missense_variant | J53: cCc/cGc|p.Pro72Arg/c.215C>G | K53: 16 | L53: 3641 | M53: 3667 | N53: 0.9929097355 | O53: 1 | P53: 1 | Q53: 1 | R53: 1 | S53: 1 | T53: 0 | U53: 1 | V53: 1 | W53: 7 | X53: 25.4767 | Y53: 0.7147 | Z53: COSM3766190, COSM3766191, COSM250061, COSM3766193, COSM3766192 | AA53: large_intestine, liver, pancreas, pleura, prostate, soft_tissue, stomach, upper_aerodigestive_tract, urinary_tract, central_nervous_system | AB53: 10, 5, 15, 5, 5, 100, 5, 7, 5, 1 | AC53: rs1042522 | AD53: rs1042522 | AE53: NO | AF53: 0.659 | AG53: NO | AH53: YES | AI53: 0.155 | AJ53: Tolerated | AK53: 22.25 | AL53: 34.27 | AM53: 0 | AN53: 0 | AO53: 0 | AP53: NA | AQ53: 16 | AR53: 3641 | AS53: 3667 | AT53: 0.9929097355 | AU53: 1 | AV53: 106 | AW53: 106 | AX53: Polymorphism
A54: ESP6500, 1000G, dbSNP, ExAC, freq, many samples | B54: UPN_Tr2_055 | C54: 17 | D54: 7579472 | E54: G | F54: C | G54: TP53 | H54: ENST00000269305 | I54: missense_variant | J54: cCc/cGc|p.Pro72Arg/c.215C>G | K54: 34 | L54: 6196 | M54: 6253 | N54: 0.9908843755 | O54: 1 | P54: 1 | Q54: 1 | R54: 1 | S54: 1 | T54: 0 | U54: 1 | V54: 1 | W54: 7 | X54: 25.4767 | Y54: 0.7147 | Z54: COSM3766190, COSM3766191, COSM250061, COSM3766193, COSM3766192 | AA54: large_intestine, liver, pancreas, pleura, prostate, soft_tissue, stomach, upper_aerodigestive_tract, urinary_tract, central_nervous_system | AB54: 10, 5, 15, 5, 5, 100, 5, 7, 5, 1 | AC54: rs1042522 | AD54: rs1042522 | AE54: NO | AF54: 0.659 | AG54: NO | AH54: YES | AI54: 0.155 | AJ54: Tolerated | AK54: 23.21 | AL54: 33.62 | AM54: 0 | AN54: 0 | AO54: 0 | AP54: NA | AQ54: 34 | AR54: 6196 | AS54: 6253 | AT54: 0.9908843755 | AU54: 1 | AV54: 106 | AW54: 106 | AX54: Polymorphism
A55: ESP6500, 1000G, dbSNP, ExAC, freq, many samples | B55: UPN_Tr2_056 | C55: 17 | D55: 7579472 | E55: G | F55: C | G55: TP53 | H55: ENST00000269305 | I55: missense_variant | J55: cCc/cGc|p.Pro72Arg/c.215C>G | K55: 186 | L55: 3776 | M55: 3970 | N55: 0.9511335013 | O55: 1 | P55: 1 | Q55: 1 | R55: 1 | S55: 1 | T55: 0 | U55: 1 | V55: 1 | W55: 7 | X55: 25.4767 | Y55: 0.7147 | Z55: COSM3766190, COSM3766191, COSM250061, COSM3766193, COSM3766192 | AA55: large_intestine, liver, pancreas, pleura, prostate, soft_tissue, stomach, upper_aerodigestive_tract, urinary_tract, central_nervous_system | AB55: 10, 5, 15, 5, 5, 100, 5, 7, 5, 1 | AC55: rs1042522 | AD55: rs1042522 | AE55: NO | AF55: 0.659 | AG55: NO | AH55: YES | AI55: 0.155 | AJ55: Tolerated | AK55: 33.21 | AL55: 33.56 | AM55: 0 | AN55: 0 | AO55: 0 | AP55: NA | AQ55: 186 | AR55: 3776 | AS55: 3970 | AT55: 0.9511335013 | AU55: 1 | AV55: 106 | AW55: 106 | AX55: Polymorphism
A56: ESP6500, 1000G, dbSNP, ExAC, freq, many samples | B56: UPN_Tr2_090 | C56: 17 | D56: 7579472 | E56: G | F56: C | G56: TP53 | H56: ENST00000269305 | I56: missense_variant | J56: cCc/cGc|p.Pro72Arg/c.215C>G | K56: 10 | L56: 1637 | M56: 1651 | N56: 0.9915202907 | O56: 1 | P56: 1 | Q56: 0 | R56: 1 | S56: 1 | T56: 0 | U56: 1 | V56: 1 | W56: 6 | X56: 25.4767 | Y56: 0.7147 | Z56: COSM3766190, COSM3766191, COSM250061, COSM3766193, COSM3766192 | AA56: large_intestine, liver, pancreas, pleura, prostate, soft_tissue, stomach, upper_aerodigestive_tract, urinary_tract, central_nervous_system | AB56: 10, 5, 15, 5, 5, 100, 5, 7, 5, 1 | AC56: rs1042522 | AD56: rs1042522 | AE56: NO | AF56: 0.659 | AG56: NO | AH56: YES | AI56: 0.155 | AJ56: Tolerated | AK56: 15.8 | AL56: 33.8 | AM56: 0 | AN56: 0 | AO56: 0 | AP56: NA | AQ56: 10 | AR56: 1637 | AS56: 1651 | AT56: 0.9915202907 | AU56: 1 | AV56: 106 | AW56: 106 | AX56: Polymorphism
A57: ESP6500, 1000G, dbSNP, ExAC, freq, many samples | B57: UPN_Tr2_057 | C57: 17 | D57: 7579472 | E57: G | F57: C | G57: TP53 | H57: ENST00000269305 | I57: missense_variant | J57: cCc/cGc|p.Pro72Arg/c.215C>G | K57: 1296 | L57: 2174 | M57: 3478 | N57: 0.6250718804 | O57: 1 | P57: 1 | Q57: 1 | R57: 1 | S57: 1 | T57: 0 | U57: 1 | V57: 1 | W57: 7 | X57: 25.4767 | Y57: 0.7147 | Z57: COSM3766190, COSM3766191, COSM250061, COSM3766193, COSM3766192 | AA57: large_intestine, liver, pancreas, pleura, prostate, soft_tissue, stomach, upper_aerodigestive_tract, urinary_tract, central_nervous_system | AB57: 10, 5, 15, 5, 5, 100, 5, 7, 5, 1 | AC57: rs1042522 | AD57: rs1042522 | AE57: NO | AF57: 0.659 | AG57: NO | AH57: YES | AI57: 0.155 | AJ57: Tolerated | AK57: 34.69 | AL57: 33.4 | AM57: 0 | AN57: 0 | AO57: 0 | AP57: NA | AQ57: 1296 | AR57: 2174 | AS57: 3478 | AT57: 0.6250718804 | AU57: 1 | AV57: 106 | AW57: 106 | AX57: Polymorphism
A58: ESP6500, 1000G, dbSNP, ExAC, freq, many samples | B58: UPN_Tr2_058 | C58: 17 | D58: 7579472 | E58: G | F58: C | G58: TP53 | H58: ENST00000269305 | I58: missense_variant | J58: cCc/cGc|p.Pro72Arg/c.215C>G | K58: 61 | L58: 7067 | M58: 7157 | N58: 0.9874248987 | O58: 1 | P58: 1 | Q58: 1 | R58: 1 | S58: 1 | T58: 0 | U58: 1 | V58: 1 | W58: 7 | X58: 25.4767 | Y58: 0.7147 | Z58: COSM3766190, COSM3766191, COSM250061, COSM3766193, COSM3766192 | AA58: large_intestine, liver, pancreas, pleura, prostate, soft_tissue, stomach, upper_aerodigestive_tract, urinary_tract, central_nervous_system | AB58: 10, 5, 15, 5, 5, 100, 5, 7, 5, 1 | AC58: rs1042522 | AD58: rs1042522 | AE58: NO | AF58: 0.659 | AG58: NO | AH58: YES | AI58: 0.155 | AJ58: Tolerated | AK58: 23.31 | AL58: 33.5 | AM58: 0 | AN58: 0 | AO58: 0 | AP58: NA | AQ58: 61 | AR58: 7067 | AS58: 7157 | AT58: 0.9874248987 | AU58: 1 | AV58: 106 | AW58: 106 | AX58: Polymorphism
A59: ESP6500, 1000G, dbSNP, ExAC, freq, many samples | B59: UPN_Tr2_059 | C59: 17 | D59: 7579472 | E59: G | F59: C | G59: TP53 | H59: ENST00000269305 | I59: missense_variant | J59: cCc/cGc|p.Pro72Arg/c.215C>G | K59: 5 | L59: 432 | M59: 438 | N59: 0.9863013699 | O59: 1 | P59: 1 | Q59: 1 | R59: 1 | S59: 1 | T59: 0 | U59: 1 | V59: 1 | W59: 7 | X59: 25.4767 | Y59: 0.7147 | Z59: COSM3766190, COSM3766191, COSM250061, COSM3766193, COSM3766192 | AA59: large_intestine, liver, pancreas, pleura, prostate, soft_tissue, stomach, upper_aerodigestive_tract, urinary_tract, central_nervous_system | AB59: 10, 5, 15, 5, 5, 100, 5, 7, 5, 1 | AC59: rs1042522 | AD59: rs1042522 | AE59: NO | AF59: 0.659 | AG59: NO | AH59: YES | AI59: 0.155 | AJ59: Tolerated | AK59: 14 | AL59: 33.56 | AM59: 0 | AN59: 0 | AO59: 0 | AP59: NA | AQ59: 5 | AR59: 432 | AS59: 438 | AT59: 0.9863013699 | AU59: 1 | AV59: 106 | AW59: 106 | AX59: Polymorphism
A60: ESP6500, 1000G, dbSNP, ExAC, freq, many samples | B60: UPN_Tr2_012 | C60: 17 | D60: 7579472 | E60: G | F60: C | G60: TP53 | H60: ENST00000269305 | I60: missense_variant | J60: cCc/cGc|p.Pro72Arg/c.215C>G | K60: 4 | L60: 2382 | M60: 2392 | N60: 0.995819398 | O60: 1 | P60: 1 | Q60: 1 | R60: 1 | S60: 1 | T60: 0 | U60: 1 | V60: 1 | W60: 7 | X60: 25.4767 | Y60: 0.7147 | Z60: COSM3766190, COSM3766191, COSM250061, COSM3766193, COSM3766192 | AA60: large_intestine, liver, pancreas, pleura, prostate, soft_tissue, stomach, upper_aerodigestive_tract, urinary_tract, central_nervous_system | AB60: 10, 5, 15, 5, 5, 100, 5, 7, 5, 1 | AC60: rs1042522 | AD60: rs1042522 | AE60: NO | AF60: 0.659 | AG60: NO | AH60: YES | AI60: 0.155 | AJ60: Tolerated | AK60: 30.5 | AL60: 34.2 | AM60: 0 | AN60: 0 | AO60: 0 | AP60: NA | AQ60: 4 | AR60: 2382 | AS60: 2392 | AT60: 0.995819398 | AU60: 1 | AV60: 106 | AW60: 106 | AX60: Polymorphism
A61: ESP6500, 1000G, dbSNP, ExAC, freq, many samples | B61: UPN_Tr2_060 | C61: 17 | D61: 7579472 | E61: G | F61: C | G61: TP53 | H61: ENST00000269305 | I61: missense_variant | J61: cCc/cGc|p.Pro72Arg/c.215C>G | K61: 342 | L61: 520 | M61: 862 | N61: 0.6032482599 | O61: 1 | P61: 1 | Q61: 1 | R61: 1 | S61: 1 | T61: 0 | U61: 1 | V61: 1 | W61: 7 | X61: 25.4767 | Y61: 0.7147 | Z61: COSM3766190, COSM3766191, COSM250061, COSM3766193, COSM3766192 | AA61: large_intestine, liver, pancreas, pleura, prostate, soft_tissue, stomach, upper_aerodigestive_tract, urinary_tract, central_nervous_system | AB61: 10, 5, 15, 5, 5, 100, 5, 7, 5, 1 | AC61: rs1042522 | AD61: rs1042522 | AE61: NO | AF61: 0.659 | AG61: NO | AH61: YES | AI61: 0.155 | AJ61: Tolerated | AK61: 34.64 | AL61: 33.74 | AM61: 0 | AN61: 0 | AO61: 0 | AP61: NA | AQ61: 342 | AR61: 520 | AS61: 862 | AT61: 0.6032482599 | AU61: 1 | AV61: 106 | AW61: 106 | AX61: Polymorphism
A62: ESP6500, 1000G, dbSNP, ExAC, freq, many samples | B62: UPN_Tr2_040 | C62: 17 | D62: 7579472 | E62: G | F62: C | G62: TP53 | H62: ENST00000269305 | I62: missense_variant | J62: cCc/cGc|p.Pro72Arg/c.215C>G | K62: 3114 | L62: 2516 | M62: 5646 | N62: 0.4456252214 | O62: 1 | P62: 1 | Q62: 1 | R62: 1 | S62: 1 | T62: 0 | U62: 1 | V62: 1 | W62: 7 | X62: 25.4767 | Y62: 0.7147 | Z62: COSM3766190, COSM3766191, COSM250061, COSM3766193, COSM3766192 | AA62: large_intestine, liver, pancreas, pleura, prostate, soft_tissue, stomach, upper_aerodigestive_tract, urinary_tract, central_nervous_system | AB62: 10, 5, 15, 5, 5, 100, 5, 7, 5, 1 | AC62: rs1042522 | AD62: rs1042522 | AE62: NO | AF62: 0.659 | AG62: NO | AH62: YES | AI62: 0.155 | AJ62: Tolerated | AK62: 35.15 | AL62: 34.4 | AM62: 0 | AN62: 0 | AO62: 0 | AP62: NA | AQ62: 3114 | AR62: 2516 | AS62: 5646 | AT62: 0.4456252214 | AU62: 1 | AV62: 106 | AW62: 106 | AX62: Polymorphism
A63: 2nd Illumina, ESP6500, 1000G, dbSNP, ExAC, freq, many samples | B63: UPN_Tr2_013 | C63: 17 | D63: 7579472 | E63: G | F63: C | G63: TP53 | H63: ENST00000269305 | I63: missense_variant | J63: cCc/cGc|p.Pro72Arg/c.215C>G | K63: 4 | L63: 1241 | M63: 1258 | N63: 0.9864864865 | O63: 1 | P63: 1 | Q63: 1 | R63: 1 | S63: 1 | T63: 0 | U63: 1 | V63: 1 | W63: 7 | X63: 25.4767 | Y63: 0.7147 | Z63: COSM3766190, COSM3766191, COSM250061, COSM3766193, COSM3766192 | AA63: large_intestine, liver, pancreas, pleura, prostate, soft_tissue, stomach, upper_aerodigestive_tract, urinary_tract, central_nervous_system | AB63: 10, 5, 15, 5, 5, 100, 5, 7, 5, 1 | AC63: rs1042522 | AD63: rs1042522 | AE63: NO | AF63: 0.659 | AG63: NO | AH63: YES | AI63: 0.155 | AJ63: Tolerated | AK63: 25 | AL63: 33.91 | AM63: 0 | AN63: 0 | AO63: 0 | AP63: NA | AQ63: 4 | AR63: 1241 | AS63: 1258 | AT63: 0.9864864865 | AU63: 1 | AV63: 106 | AW63: 106 | AX63: Polymorphism
A64: ESP6500, 1000G, dbSNP, ExAC, freq, many samples | B64: UPN_Tr2_091 | C64: 17 | D64: 7579472 | E64: G | F64: C | G64: TP53 | H64: ENST00000269305 | I64: missense_variant | J64: cCc/cGc|p.Pro72Arg/c.215C>G | K64: 14 | L64: 2551 | M64: 2573 | N64: 0.9914496696 | O64: 1 | P64: 1 | Q64: 0 | R64: 1 | S64: 1 | T64: 0 | U64: 1 | V64: 1 | W64: 6 | X64: 25.4767 | Y64: 0.7147 | Z64: COSM3766190, COSM3766191, COSM250061, COSM3766193, COSM3766192 | AA64: large_intestine, liver, pancreas, pleura, prostate, soft_tissue, stomach, upper_aerodigestive_tract, urinary_tract, central_nervous_system | AB64: 10, 5, 15, 5, 5, 100, 5, 7, 5, 1 | AC64: rs1042522 | AD64: rs1042522 | AE64: NO | AF64: 0.659 | AG64: NO | AH64: YES | AI64: 0.155 | AJ64: Tolerated | AK64: 20.79 | AL64: 33.89 | AM64: 0 | AN64: 0 | AO64: 0 | AP64: NA | AQ64: 14 | AR64: 2551 | AS64: 2573 | AT64: 0.9914496696 | AU64: 1 | AV64: 106 | AW64: 106 | AX64: Polymorphism
A65: ESP6500, 1000G, dbSNP, ExAC, freq, many samples | B65: UPN_Tr2_092 | C65: 17 | D65: 7579472 | E65: G | F65: C | G65: TP53 | H65: ENST00000269305 | I65: missense_variant | J65: cCc/cGc|p.Pro72Arg/c.215C>G | K65: 7 | L65: 1545 | M65: 1558 | N65: 0.9916559692 | O65: 1 | P65: 1 | Q65: 0 | R65: 1 | S65: 1 | T65: 0 | U65: 1 | V65: 1 | W65: 6 | X65: 25.4767 | Y65: 0.7147 | Z65: COSM3766190, COSM3766191, COSM250061, COSM3766193, COSM3766192 | AA65: large_intestine, liver, pancreas, pleura, prostate, soft_tissue, stomach, upper_aerodigestive_tract, urinary_tract, central_nervous_system | AB65: 10, 5, 15, 5, 5, 100, 5, 7, 5, 1 | AC65: rs1042522 | AD65: rs1042522 | AE65: NO | AF65: 0.659 | AG65: NO | AH65: YES | AI65: 0.155 | AJ65: Tolerated | AK65: 19.71 | AL65: 33.75 | AM65: 0 | AN65: 0 | AO65: 0 | AP65: NA | AQ65: 7 | AR65: 1545 | AS65: 1558 | AT65: 0.9916559692 | AU65: 1 | AV65: 106 | AW65: 106 | AX65: Polymorphism
A66: ESP6500, 1000G, dbSNP, ExAC, freq, many samples | B66: UPN_Tr2_093 | C66: 17 | D66: 7579472 | E66: G | F66: C | G66: TP53 | H66: ENST00000269305 | I66: missense_variant | J66: cCc/cGc|p.Pro72Arg/c.215C>G | K66: 12 | L66: 2197 | M66: 2216 | N66: 0.9914259928 | O66: 1 | P66: 1 | Q66: 0 | R66: 1 | S66: 1 | T66: 0 | U66: 1 | V66: 1 | W66: 6 | X66: 25.4767 | Y66: 0.7147 | Z66: COSM3766190, COSM3766191, COSM250061, COSM3766193, COSM3766192 | AA66: large_intestine, liver, pancreas, pleura, prostate, soft_tissue, stomach, upper_aerodigestive_tract, urinary_tract, central_nervous_system | AB66: 10, 5, 15, 5, 5, 100, 5, 7, 5, 1 | AC66: rs1042522 | AD66: rs1042522 | AE66: NO | AF66: 0.659 | AG66: NO | AH66: YES | AI66: 0.155 | AJ66: Tolerated | AK66: 21.33 | AL66: 33.97 | AM66: 0 | AN66: 0 | AO66: 0 | AP66: NA | AQ66: 12 | AR66: 2197 | AS66: 2216 | AT66: 0.9914259928 | AU66: 1 | AV66: 106 | AW66: 106 | AX66: Polymorphism
A67: ESP6500, 1000G, dbSNP, ExAC, freq, many samples | B67: UPN_Tr2_061 | C67: 17 | D67: 7579472 | E67: G | F67: C | G67: TP53 | H67: ENST00000269305 | I67: missense_variant | J67: cCc/cGc|p.Pro72Arg/c.215C>G | K67: 7 | L67: 1071 | M67: 1079 | N67: 0.9925857275 | O67: 1 | P67: 1 | Q67: 1 | R67: 1 | S67: 1 | T67: 0 | U67: 1 | V67: 1 | W67: 7 | X67: 25.4767 | Y67: 0.7147 | Z67: COSM3766190, COSM3766191, COSM250061, COSM3766193, COSM3766192 | AA67: large_intestine, liver, pancreas, pleura, prostate, soft_tissue, stomach, upper_aerodigestive_tract, urinary_tract, central_nervous_system | AB67: 10, 5, 15, 5, 5, 100, 5, 7, 5, 1 | AC67: rs1042522 | AD67: rs1042522 | AE67: NO | AF67: 0.659 | AG67: NO | AH67: YES | AI67: 0.155 | AJ67: Tolerated | AK67: 17.14 | AL67: 33.39 | AM67: 0 | AN67: 0 | AO67: 0 | AP67: NA | AQ67: 7 | AR67: 1071 | AS67: 1079 | AT67: 0.9925857275 | AU67: 1 | AV67: 106 | AW67: 106 | AX67: Polymorphism
A68: ESP6500, 1000G, dbSNP, ExAC, freq, many samples | B68: UPN_Tr2_062 | C68: 17 | D68: 7579472 | E68: G | F68: C | G68: TP53 | H68: ENST00000269305 | I68: missense_variant | J68: cCc/cGc|p.Pro72Arg/c.215C>G | K68: 8 | L68: 2084 | M68: 2099 | N68: 0.9928537399 | O68: 1 | P68: 1 | Q68: 0 | R68: 1 | S68: 1 | T68: 0 | U68: 1 | V68: 1 | W68: 6 | X68: 25.4767 | Y68: 0.7147 | Z68: COSM3766190, COSM3766191, COSM250061, COSM3766193, COSM3766192 | AA68: large_intestine, liver, pancreas, pleura, prostate, soft_tissue, stomach, upper_aerodigestive_tract, urinary_tract, central_nervous_system | AB68: 10, 5, 15, 5, 5, 100, 5, 7, 5, 1 | AC68: rs1042522 | AD68: rs1042522 | AE68: NO | AF68: 0.659 | AG68: NO | AH68: YES | AI68: 0.155 | AJ68: Tolerated | AK68: 16.75 | AL68: 33.44 | AM68: 0 | AN68: 0 | AO68: 0 | AP68: NA | AQ68: 8 | AR68: 2084 | AS68: 2099 | AT68: 0.9928537399 | AU68: 1 | AV68: 106 | AW68: 106 | AX68: Polymorphism
A69: ESP6500, 1000G, dbSNP, ExAC, freq, many samples | B69: UPN_Tr2_064 | C69: 17 | D69: 7579472 | E69: G | F69: C | G69: TP53 | H69: ENST00000269305 | I69: missense_variant | J69: cCc/cGc|p.Pro72Arg/c.215C>G | K69: 440 | L69: 444 | M69: 891 | N69: 0.4983164983 | O69: 1 | P69: 1 | Q69: 1 | R69: 1 | S69: 1 | T69: 0 | U69: 1 | V69: 1 | W69: 7 | X69: 25.4767 | Y69: 0.7147 | Z69: COSM3766190, COSM3766191, COSM250061, COSM3766193, COSM3766192 | AA69: large_intestine, liver, pancreas, pleura, prostate, soft_tissue, stomach, upper_aerodigestive_tract, urinary_tract, central_nervous_system | AB69: 10, 5, 15, 5, 5, 100, 5, 7, 5, 1 | AC69: rs1042522 | AD69: rs1042522 | AE69: NO | AF69: 0.659 | AG69: NO | AH69: YES | AI69: 0.155 | AJ69: Tolerated | AK69: 34.32 | AL69: 33.59 | AM69: 0 | AN69: 0 | AO69: 0 | AP69: NA | AQ69: 440 | AR69: 444 | AS69: 891 | AT69: 0.4983164983 | AU69: 1 | AV69: 106 | AW69: 106 | AX69: Polymorphism
A70: ESP6500, 1000G, dbSNP, ExAC, freq, many samples | B70: UPN_Tr2_065 | C70: 17 | D70: 7579472 | E70: G | F70: C | G70: TP53 | H70: ENST00000269305 | I70: missense_variant | J70: cCc/cGc|p.Pro72Arg/c.215C>G | K70: 0 | L70: 183 | M70: 184 | N70: 0.9945652174 | O70: 1 | P70: 1 | Q70: 1 | R70: 0 | S70: 1 | T70: 0 | U70: 1 | V70: 1 | W70: 6 | X70: 25.4767 | Y70: 0.7147 | Z70: COSM3766190, COSM3766191, COSM250061, COSM3766193, COSM3766192 | AA70: large_intestine, liver, pancreas, pleura, prostate, soft_tissue, stomach, upper_aerodigestive_tract, urinary_tract, central_nervous_system | AB70: 10, 5, 15, 5, 5, 100, 5, 7, 5, 1 | AC70: rs1042522 | AD70: rs1042522 | AE70: NO | AF70: 0.659 | AG70: NO | AH70: YES | AI70: 0.155 | AJ70: Tolerated | AK70: 0 | AL70: 33.6 | AM70: 0 | AN70: 0 | AO70: 0 | AP70: NA | AQ70: 0 | AR70: 183 | AS70: 184 | AT70: 0.9945652174 | AU70: 1 | AV70: 106 | AW70: 106 | AX70: Polymorphism
A71: ESP6500, 1000G, dbSNP, ExAC, freq, many samples | B71: UPN_Tr2_067 | C71: 17 | D71: 7579472 | E71: G | F71: C | G71: TP53 | H71: ENST00000269305 | I71: missense_variant | J71: cCc/cGc|p.Pro72Arg/c.215C>G | K71: 1 | L71: 120 | M71: 121 | N71: 0.9917355372 | O71: 1 | P71: 1 | Q71: 1 | R71: 1 | S71: 1 | T71: 0 | U71: 1 | V71: 1 | W71: 7 | X71: 25.4767 | Y71: 0.7147 | Z71: COSM3766190, COSM3766191, COSM250061, COSM3766193, COSM3766192 | AA71: large_intestine, liver, pancreas, pleura, prostate, soft_tissue, stomach, upper_aerodigestive_tract, urinary_tract, central_nervous_system | AB71: 10, 5, 15, 5, 5, 100, 5, 7, 5, 1 | AC71: rs1042522 | AD71: rs1042522 | AE71: NO | AF71: 0.659 | AG71: NO | AH71: YES | AI71: 0.155 | AJ71: Tolerated | AK71: 14 | AL71: 32.77 | AM71: 0 | AN71: 0 | AO71: 0 | AP71: NA | AQ71: 1 | AR71: 120 | AS71: 121 | AT71: 0.9917355372 | AU71: 1 | AV71: 106 | AW71: 106 | AX71: Polymorphism
A72: ESP6500, 1000G, dbSNP, ExAC, freq, many samples | B72: UPN_Tr2_068 | C72: 17 | D72: 7579472 | E72: G | F72: C | G72: TP53 | H72: ENST00000269305 | I72: missense_variant | J72: cCc/cGc|p.Pro72Arg/c.215C>G | K72: 187 | L72: 195 | M72: 385 | N72: 0.5064935065 | O72: 0 | P72: 1 | Q72: 1 | R72: 1 | S72: 1 | T72: 0 | U72: 1 | V72: 1 | W72: 6 | X72: 25.4767 | Y72: 0.7147 | Z72: COSM3766190, COSM3766191, COSM250061, COSM3766193, COSM3766192 | AA72: large_intestine, liver, pancreas, pleura, prostate, soft_tissue, stomach, upper_aerodigestive_tract, urinary_tract, central_nervous_system | AB72: 10, 5, 15, 5, 5, 100, 5, 7, 5, 1 | AC72: rs1042522 | AD72: rs1042522 | AE72: NO | AF72: 0.659 | AG72: NO | AH72: YES | AI72: 0.155 | AJ72: Tolerated | AK72: 34.05 | AL72: 33.74 | AM72: 2 | AN72: 0 | AO72: 2 | AP72: 0 | AQ72: 185 | AR72: 195 | AS72: 383 | AT72: 0.5091383812 | AU72: 0.2389825617 | AV72: 106 | AW72: 106 | AX72: Polymorphism
A73: ESP6500, 1000G, dbSNP, ExAC, freq, many samples | B73: UPN_Tr2_069 | C73: 17 | D73: 7579472 | E73: G | F73: C | G73: TP53 | H73: ENST00000269305 | I73: missense_variant | J73: cCc/cGc|p.Pro72Arg/c.215C>G | K73: 209 | L73: 390 | M73: 602 | N73: 0.6478405316 | O73: 0 | P73: 1 | Q73: 1 | R73: 1 | S73: 1 | T73: 0 | U73: 1 | V73: 1 | W73: 6 | X73: 25.4767 | Y73: 0.7147 | Z73: COSM3766190, COSM3766191, COSM250061, COSM3766193, COSM3766192 | AA73: large_intestine, liver, pancreas, pleura, prostate, soft_tissue, stomach, upper_aerodigestive_tract, urinary_tract, central_nervous_system | AB73: 10, 5, 15, 5, 5, 100, 5, 7, 5, 1 | AC73: rs1042522 | AD73: rs1042522 | AE73: NO | AF73: 0.659 | AG73: NO | AH73: YES | AI73: 0.155 | AJ73: Tolerated | AK73: 34.01 | AL73: 33.53 | AM73: 0 | AN73: 0 | AO73: 0 | AP73: NA | AQ73: 209 | AR73: 390 | AS73: 602 | AT73: 0.6478405316 | AU73: 1 | AV73: 106 | AW73: 106 | AX73: Polymorphism
A74: ESP6500, 1000G, dbSNP, ExAC, freq, many samples | B74: UPN_Tr2_070 | C74: 17 | D74: 7579472 | E74: G | F74: C | G74: TP53 | H74: ENST00000269305 | I74: missense_variant | J74: cCc/cGc|p.Pro72Arg/c.215C>G | K74: 8 | L74: 470 | M74: 480 | N74: 0.9791666667 | O74: 1 | P74: 1 | Q74: 1 | R74: 1 | S74: 1 | T74: 0 | U74: 1 | V74: 1 | W74: 7 | X74: 25.4767 | Y74: 0.7147 | Z74: COSM3766190, COSM3766191, COSM250061, COSM3766193, COSM3766192 | AA74: large_intestine, liver, pancreas, pleura, prostate, soft_tissue, stomach, upper_aerodigestive_tract, urinary_tract, central_nervous_system | AB74: 10, 5, 15, 5, 5, 100, 5, 7, 5, 1 | AC74: rs1042522 | AD74: rs1042522 | AE74: NO | AF74: 0.659 | AG74: NO | AH74: YES | AI74: 0.155 | AJ74: Tolerated | AK74: 25 | AL74: 33.7 | AM74: 0 | AN74: 0 | AO74: 0 | AP74: NA | AQ74: 8 | AR74: 470 | AS74: 480 | AT74: 0.9791666667 | AU74: 1 | AV74: 106 | AW74: 106 | AX74: Polymorphism
A75: ESP6500, 1000G, dbSNP, ExAC, freq, many samples | B75: UPN_Tr2_071 | C75: 17 | D75: 7579472 | E75: G | F75: C | G75: TP53 | H75: ENST00000269305 | I75: missense_variant | J75: cCc/cGc|p.Pro72Arg/c.215C>G | K75: 1123 | L75: 1280 | M75: 2417 | N75: 0.5295821266 | O75: 1 | P75: 1 | Q75: 1 | R75: 1 | S75: 1 | T75: 0 | U75: 1 | V75: 1 | W75: 7 | X75: 25.4767 | Y75: 0.7147 | Z75: COSM3766190, COSM3766191, COSM250061, COSM3766193, COSM3766192 | AA75: large_intestine, liver, pancreas, pleura, prostate, soft_tissue, stomach, upper_aerodigestive_tract, urinary_tract, central_nervous_system | AB75: 10, 5, 15, 5, 5, 100, 5, 7, 5, 1 | AC75: rs1042522 | AD75: rs1042522 | AE75: NO | AF75: 0.659 | AG75: NO | AH75: YES | AI75: 0.155 | AJ75: Tolerated | AK75: 34.27 | AL75: 33.2 | AM75: 0 | AN75: 0 | AO75: 0 | AP75: NA | AQ75: 1123 | AR75: 1280 | AS75: 2417 | AT75: 0.5295821266 | AU75: 1 | AV75: 106 | AW75: 106 | AX75: Polymorphism
A76: ESP6500, 1000G, dbSNP, ExAC, freq, many samples | B76: UPN_Tr2_072 | C76: 17 | D76: 7579472 | E76: G | F76: C | G76: TP53 | H76: ENST00000269305 | I76: missense_variant | J76: cCc/cGc|p.Pro72Arg/c.215C>G | K76: 974 | L76: 1504 | M76: 2481 | N76: 0.6062071745 | O76: 1 | P76: 1 | Q76: 1 | R76: 1 | S76: 1 | T76: 1 | U76: 1 | V76: 1 | W76: 8 | X76: 25.4767 | Y76: 0.7147 | Z76: COSM3766190, COSM3766191, COSM250061, COSM3766193, COSM3766192 | AA76: large_intestine, liver, pancreas, pleura, prostate, soft_tissue, stomach, upper_aerodigestive_tract, urinary_tract, central_nervous_system | AB76: 10, 5, 15, 5, 5, 100, 5, 7, 5, 1 | AC76: rs1042522 | AD76: rs1042522 | AE76: NO | AF76: 0.659 | AG76: NO | AH76: YES | AI76: 0.155 | AJ76: Tolerated | AK76: 33.94 | AL76: 33.31 | AM76: 0 | AN76: 1 | AO76: 1 | AP76: 1 | AQ76: 974 | AR76: 1503 | AS76: 2480 | AT76: 0.6060483871 | AU76: 1 | AV76: 106 | AW76: 106 | AX76: Polymorphism
A77: ESP6500, 1000G, dbSNP, ExAC, freq, many samples | B77: UPN_Tr2_073 | C77: 17 | D77: 7579472 | E77: G | F77: C | G77: TP53 | H77: ENST00000269305 | I77: missense_variant | J77: cCc/cGc|p.Pro72Arg/c.215C>G | K77: 3 | L77: 675 | M77: 678 | N77: 0.9955752212 | O77: 1 | P77: 1 | Q77: 1 | R77: 1 | S77: 1 | T77: 0 | U77: 1 | V77: 1 | W77: 7 | X77: 25.4767 | Y77: 0.7147 | Z77: COSM3766190, COSM3766191, COSM250061, COSM3766193, COSM3766192 | AA77: large_intestine, liver, pancreas, pleura, prostate, soft_tissue, stomach, upper_aerodigestive_tract, urinary_tract, central_nervous_system | AB77: 10, 5, 15, 5, 5, 100, 5, 7, 5, 1 | AC77: rs1042522 | AD77: rs1042522 | AE77: NO | AF77: 0.659 | AG77: NO | AH77: YES | AI77: 0.155 | AJ77: Tolerated | AK77: 14 | AL77: 33.07 | AM77: 0 | AN77: 0 | AO77: 0 | AP77: NA | AQ77: 3 | AR77: 675 | AS77: 678 | AT77: 0.9955752212 | AU77: 1 | AV77: 106 | AW77: 106 | AX77: Polymorphism
A78: ESP6500, 1000G, dbSNP, ExAC, freq, many samples | B78: UPN_Tr2_074 | C78: 17 | D78: 7579472 | E78: G | F78: C | G78: TP53 | H78: ENST00000269305 | I78: missense_variant | J78: cCc/cGc|p.Pro72Arg/c.215C>G | K78: 62 | L78: 108 | M78: 170 | N78: 0.6352941176 | O78: 1 | P78: 1 | Q78: 1 | R78: 1 | S78: 1 | T78: 0 | U78: 1 | V78: 1 | W78: 7 | X78: 25.4767 | Y78: 0.7147 | Z78: COSM3766190, COSM3766191, COSM250061, COSM3766193, COSM3766192 | AA78: large_intestine, liver, pancreas, pleura, prostate, soft_tissue, stomach, upper_aerodigestive_tract, urinary_tract, central_nervous_system | AB78: 10, 5, 15, 5, 5, 100, 5, 7, 5, 1 | AC78: rs1042522 | AD78: rs1042522 | AE78: NO | AF78: 0.659 | AG78: NO | AH78: YES | AI78: 0.155 | AJ78: Tolerated | AK78: 34.45 | AL78: 33.65 | AM78: 0 | AN78: 0 | AO78: 0 | AP78: NA | AQ78: 62 | AR78: 108 | AS78: 170 | AT78: 0.6352941176 | AU78: 1 | AV78: 106 | AW78: 106 | AX78: Polymorphism
A79: ESP6500, 1000G, dbSNP, ExAC, freq, many samples | B79: UPN_Tr2_075 | C79: 17 | D79: 7579472 | E79: G | F79: C | G79: TP53 | H79: ENST00000269305 | I79: missense_variant | J79: cCc/cGc|p.Pro72Arg/c.215C>G | K79: 4 | L79: 1775 | M79: 1787 | N79: 0.9932848349 | O79: 1 | P79: 1 | Q79: 1 | R79: 1 | S79: 1 | T79: 0 | U79: 1 | V79: 1 | W79: 7 | X79: 25.4767 | Y79: 0.7147 | Z79: COSM3766190, COSM3766191, COSM250061, COSM3766193, COSM3766192 | AA79: large_intestine, liver, pancreas, pleura, prostate, soft_tissue, stomach, upper_aerodigestive_tract, urinary_tract, central_nervous_system | AB79: 10, 5, 15, 5, 5, 100, 5, 7, 5, 1 | AC79: rs1042522 | AD79: rs1042522 | AE79: NO | AF79: 0.659 | AG79: NO | AH79: YES | AI79: 0.155 | AJ79: Tolerated | AK79: 29.5 | AL79: 33.17 | AM79: 0 | AN79: 0 | AO79: 0 | AP79: NA | AQ79: 4 | AR79: 1775 | AS79: 1787 | AT79: 0.9932848349 | AU79: 1 | AV79: 106 | AW79: 106 | AX79: Polymorphism
A80: ESP6500, 1000G, dbSNP, ExAC, freq, many samples | B80: UPN_Tr2_076 | C80: 17 | D80: 7579472 | E80: G | F80: C | G80: TP53 | H80: ENST00000269305 | I80: missense_variant | J80: cCc/cGc|p.Pro72Arg/c.215C>G | K80: 353 | L80: 551 | M80: 906 | N80: 0.6081677704 | O80: 1 | P80: 1 | Q80: 1 | R80: 1 | S80: 1 | T80: 0 | U80: 1 | V80: 1 | W80: 7 | X80: 25.4767 | Y80: 0.7147 | Z80: COSM3766190, COSM3766191, COSM250061, COSM3766193, COSM3766192 | AA80: large_intestine, liver, pancreas, pleura, prostate, soft_tissue, stomach, upper_aerodigestive_tract, urinary_tract, central_nervous_system | AB80: 10, 5, 15, 5, 5, 100, 5, 7, 5, 1 | AC80: rs1042522 | AD80: rs1042522 | AE80: NO | AF80: 0.659 | AG80: NO | AH80: YES | AI80: 0.155 | AJ80: Tolerated | AK80: 34.54 | AL80: 32.98 | AM80: 0 | AN80: 0 | AO80: 0 | AP80: NA | AQ80: 353 | AR80: 551 | AS80: 906 | AT80: 0.6081677704 | AU80: 1 | AV80: 106 | AW80: 106 | AX80: Polymorphism
A81: ESP6500, 1000G, dbSNP, ExAC, freq, many samples | B81: UPN_Tr2_077 | C81: 17 | D81: 7579472 | E81: G | F81: C | G81: TP53 | H81: ENST00000269305 | I81: missense_variant | J81: cCc/cGc|p.Pro72Arg/c.215C>G | K81: 3 | L81: 441 | M81: 444 | N81: 0.9932432432 | O81: 1 | P81: 1 | Q81: 1 | R81: 1 | S81: 1 | T81: 0 | U81: 1 | V81: 1 | W81: 7 | X81: 25.4767 | Y81: 0.7147 | Z81: COSM3766190, COSM3766191, COSM250061, COSM3766193, COSM3766192 | AA81: large_intestine, liver, pancreas, pleura, prostate, soft_tissue, stomach, upper_aerodigestive_tract, urinary_tract, central_nervous_system | AB81: 10, 5, 15, 5, 5, 100, 5, 7, 5, 1 | AC81: rs1042522 | AD81: rs1042522 | AE81: NO | AF81: 0.659 | AG81: NO | AH81: YES | AI81: 0.155 | AJ81: Tolerated | AK81: 14 | AL81: 33.46 | AM81: 0 | AN81: 0 | AO81: 0 | AP81: NA | AQ81: 3 | AR81: 441 | AS81: 444 | AT81: 0.9932432432 | AU81: 1 | AV81: 106 | AW81: 106 | AX81: Polymorphism
A82: ESP6500, 1000G, dbSNP, ExAC, freq, many samples | B82: UPN_Tr2_078 | C82: 17 | D82: 7579472 | E82: G | F82: C | G82: TP53 | H82: ENST00000269305 | I82: missense_variant | J82: cCc/cGc|p.Pro72Arg/c.215C>G | K82: 8 | L82: 1260 | M82: 1276 | N82: 0.987460815 | O82: 1 | P82: 1 | Q82: 0 | R82: 1 | S82: 1 | T82: 0 | U82: 1 | V82: 1 | W82: 6 | X82: 25.4767 | Y82: 0.7147 | Z82: COSM3766190, COSM3766191, COSM250061, COSM3766193, COSM3766192 | AA82: large_intestine, liver, pancreas, pleura, prostate, soft_tissue, stomach, upper_aerodigestive_tract, urinary_tract, central_nervous_system | AB82: 10, 5, 15, 5, 5, 100, 5, 7, 5, 1 | AC82: rs1042522 | AD82: rs1042522 | AE82: NO | AF82: 0.659 | AG82: NO | AH82: YES | AI82: 0.155 | AJ82: Tolerated | AK82: 19.5 | AL82: 33.59 | AM82: 0 | AN82: 0 | AO82: 0 | AP82: NA | AQ82: 8 | AR82: 1260 | AS82: 1276 | AT82: 0.987460815 | AU82: 1 | AV82: 106 | AW82: 106 | AX82: Polymorphism
A83: ESP6500, 1000G, dbSNP, ExAC, freq, many samples | B83: UPN_Tr2_079 | C83: 17 | D83: 7579472 | E83: G | F83: C | G83: TP53 | H83: ENST00000269305 | I83: missense_variant | J83: cCc/cGc|p.Pro72Arg/c.215C>G | K83: 3 | L83: 697 | M83: 704 | N83: 0.9900568182 | O83: 1 | P83: 1 | Q83: 0 | R83: 1 | S83: 1 | T83: 0 | U83: 1 | V83: 1 | W83: 6 | X83: 25.4767 | Y83: 0.7147 | Z83: COSM3766190, COSM3766191, COSM250061, COSM3766193, COSM3766192 | AA83: large_intestine, liver, pancreas, pleura, prostate, soft_tissue, stomach, upper_aerodigestive_tract, urinary_tract, central_nervous_system | AB83: 10, 5, 15, 5, 5, 100, 5, 7, 5, 1 | AC83: rs1042522 | AD83: rs1042522 | AE83: NO | AF83: 0.659 | AG83: NO | AH83: YES | AI83: 0.155 | AJ83: Tolerated | AK83: 23.67 | AL83: 33.22 | AM83: 0 | AN83: 0 | AO83: 0 | AP83: NA | AQ83: 3 | AR83: 697 | AS83: 704 | AT83: 0.9900568182 | AU83: 1 | AV83: 106 | AW83: 106 | AX83: Polymorphism
A84: ESP6500, 1000G, dbSNP, ExAC, freq, many samples | B84: UPN_Tr2_080 | C84: 17 | D84: 7579472 | E84: G | F84: C | G84: TP53 | H84: ENST00000269305 | I84: missense_variant | J84: cCc/cGc|p.Pro72Arg/c.215C>G | K84: 21 | L84: 1618 | M84: 1643 | N84: 0.9847839318 | O84: 1 | P84: 1 | Q84: 0 | R84: 1 | S84: 1 | T84: 0 | U84: 1 | V84: 1 | W84: 6 | X84: 25.4767 | Y84: 0.7147 | Z84: COSM3766190, COSM3766191, COSM250061, COSM3766193, COSM3766192 | AA84: large_intestine, liver, pancreas, pleura, prostate, soft_tissue, stomach, upper_aerodigestive_tract, urinary_tract, central_nervous_system | AB84: 10, 5, 15, 5, 5, 100, 5, 7, 5, 1 | AC84: rs1042522 | AD84: rs1042522 | AE84: NO | AF84: 0.659 | AG84: NO | AH84: YES | AI84: 0.155 | AJ84: Tolerated | AK84: 26.19 | AL84: 33.49 | AM84: 0 | AN84: 0 | AO84: 0 | AP84: NA | AQ84: 21 | AR84: 1618 | AS84: 1643 | AT84: 0.9847839318 | AU84: 1 | AV84: 106 | AW84: 106 | AX84: Polymorphism
A85: ESP6500, 1000G, dbSNP, ExAC, freq, many samples | B85: UPN_Tr2_081 | C85: 17 | D85: 7579472 | E85: G | F85: C | G85: TP53 | H85: ENST00000269305 | I85: missense_variant | J85: cCc/cGc|p.Pro72Arg/c.215C>G | K85: 27 | L85: 3390 | M85: 3425 | N85: 0.9897810219 | O85: 1 | P85: 1 | Q85: 0 | R85: 1 | S85: 1 | T85: 0 | U85: 1 | V85: 1 | W85: 6 | X85: 25.4767 | Y85: 0.7147 | Z85: COSM3766190, COSM3766191, COSM250061, COSM3766193, COSM3766192 | AA85: large_intestine, liver, pancreas, pleura, prostate, soft_tissue, stomach, upper_aerodigestive_tract, urinary_tract, central_nervous_system | AB85: 10, 5, 15, 5, 5, 100, 5, 7, 5, 1 | AC85: rs1042522 | AD85: rs1042522 | AE85: NO | AF85: 0.659 | AG85: NO | AH85: YES | AI85: 0.155 | AJ85: Tolerated | AK85: 18.26 | AL85: 33.14 | AM85: 0 | AN85: 0 | AO85: 0 | AP85: NA | AQ85: 27 | AR85: 3390 | AS85: 3425 | AT85: 0.9897810219 | AU85: 1 | AV85: 106 | AW85: 106 | AX85: Polymorphism
A86: ESP6500, 1000G, dbSNP, ExAC, freq, many samples | B86: UPN_Tr2_082 | C86: 17 | D86: 7579472 | E86: G | F86: C | G86: TP53 | H86: ENST00000269305 | I86: missense_variant | J86: cCc/cGc|p.Pro72Arg/c.215C>G | K86: 186 | L86: 312 | M86: 499 | N86: 0.625250501 | O86: 0 | P86: 1 | Q86: 0 | R86: 1 | S86: 1 | T86: 0 | U86: 1 | V86: 1 | W86: 5 | X86: 25.4767 | Y86: 0.7147 | Z86: COSM3766190, COSM3766191, COSM250061, COSM3766193, COSM3766192 | AA86: large_intestine, liver, pancreas, pleura, prostate, soft_tissue, stomach, upper_aerodigestive_tract, urinary_tract, central_nervous_system | AB86: 10, 5, 15, 5, 5, 100, 5, 7, 5, 1 | AC86: rs1042522 | AD86: rs1042522 | AE86: NO | AF86: 0.659 | AG86: NO | AH86: YES | AI86: 0.155 | AJ86: Tolerated | AK86: 34.44 | AL86: 33.22 | AM86: 0 | AN86: 0 | AO86: 0 | AP86: NA | AQ86: 186 | AR86: 312 | AS86: 499 | AT86: 0.625250501 | AU86: 1 | AV86: 106 | AW86: 106 | AX86: Polymorphism
A87: 2nd Illumina, ESP6500, 1000G, dbSNP, ExAC, freq, many samples | B87: UPN_Tr2_083 | C87: 17 | D87: 7579472 | E87: G | F87: C | G87: TP53 | H87: ENST00000269305 | I87: missense_variant | J87: cCc/cGc|p.Pro72Arg/c.215C>G | K87: 489 | L87: 487 | M87: 978 | N87: 0.4979550102 | O87: 1 | P87: 1 | Q87: 0 | R87: 1 | S87: 1 | T87: 0 | U87: 1 | V87: 1 | W87: 6 | X87: 25.4767 | Y87: 0.7147 | Z87: COSM3766190, COSM3766191, COSM250061, COSM3766193, COSM3766192 | AA87: large_intestine, liver, pancreas, pleura, prostate, soft_tissue, stomach, upper_aerodigestive_tract, urinary_tract, central_nervous_system | AB87: 10, 5, 15, 5, 5, 100, 5, 7, 5, 1 | AC87: rs1042522 | AD87: rs1042522 | AE87: NO | AF87: 0.659 | AG87: NO | AH87: YES | AI87: 0.155 | AJ87: Tolerated | AK87: 34.17 | AL87: 34.15 | AM87: 0 | AN87: 0 | AO87: 0 | AP87: NA | AQ87: 489 | AR87: 487 | AS87: 978 | AT87: 0.4979550102 | AU87: 1 | AV87: 106 | AW87: 106 | AX87: Polymorphism
A88: ESP6500, 1000G, dbSNP, ExAC, freq, many samples | B88: UPN_Tr2_084 | C88: 17 | D88: 7579472 | E88: G | F88: C | G88: TP53 | H88: ENST00000269305 | I88: missense_variant | J88: cCc/cGc|p.Pro72Arg/c.215C>G | K88: 6 | L88: 907 | M88: 913 | N88: 0.9934282585 | O88: 1 | P88: 1 | Q88: 0 | R88: 1 | S88: 1 | T88: 0 | U88: 1 | V88: 1 | W88: 6 | X88: 25.4767 | Y88: 0.7147 | Z88: COSM3766190, COSM3766191, COSM250061, COSM3766193, COSM3766192 | AA88: large_intestine, liver, pancreas, pleura, prostate, soft_tissue, stomach, upper_aerodigestive_tract, urinary_tract, central_nervous_system | AB88: 10, 5, 15, 5, 5, 100, 5, 7, 5, 1 | AC88: rs1042522 | AD88: rs1042522 | AE88: NO | AF88: 0.659 | AG88: NO | AH88: YES | AI88: 0.155 | AJ88: Tolerated | AK88: 21.33 | AL88: 33.34 | AM88: 0 | AN88: 0 | AO88: 0 | AP88: NA | AQ88: 6 | AR88: 907 | AS88: 913 | AT88: 0.9934282585 | AU88: 1 | AV88: 106 | AW88: 106 | AX88: Polymorphism
A89: ESP6500, 1000G, dbSNP, ExAC, freq, many samples | B89: UPN_Tr2_085 | C89: 17 | D89: 7579472 | E89: G | F89: C | G89: TP53 | H89: ENST00000269305 | I89: missense_variant | J89: cCc/cGc|p.Pro72Arg/c.215C>G | K89: 169 | L89: 174 | M89: 345 | N89: 0.5043478261 | O89: 1 | P89: 1 | Q89: 0 | R89: 1 | S89: 1 | T89: 0 | U89: 1 | V89: 1 | W89: 6 | X89: 25.4767 | Y89: 0.7147 | Z89: COSM3766190, COSM3766191, COSM250061, COSM3766193, COSM3766192 | AA89: large_intestine, liver, pancreas, pleura, prostate, soft_tissue, stomach, upper_aerodigestive_tract, urinary_tract, central_nervous_system | AB89: 10, 5, 15, 5, 5, 100, 5, 7, 5, 1 | AC89: rs1042522 | AD89: rs1042522 | AE89: NO | AF89: 0.659 | AG89: NO | AH89: YES | AI89: 0.155 | AJ89: Tolerated | AK89: 34.67 | AL89: 32.78 | AM89: 0 | AN89: 0 | AO89: 0 | AP89: NA | AQ89: 169 | AR89: 174 | AS89: 345 | AT89: 0.5043478261 | AU89: 1 | AV89: 106 | AW89: 106 | AX89: Polymorphism
A90: 2nd Illumina, ESP6500, 1000G, dbSNP, ExAC, freq, many samples | B90: UPN_Tr2_086 | C90: 17 | D90: 7579472 | E90: G | F90: C | G90: TP53 | H90: ENST00000269305 | I90: missense_variant | J90: cCc/cGc|p.Pro72Arg/c.215C>G | K90: 2 | L90: 196 | M90: 198 | N90: 0.9898989899 | O90: 1 | P90: 1 | Q90: 0 | R90: 1 | S90: 1 | T90: 0 | U90: 1 | V90: 1 | W90: 6 | X90: 25.4767 | Y90: 0.7147 | Z90: COSM3766190, COSM3766191, COSM250061, COSM3766193, COSM3766192 | AA90: large_intestine, liver, pancreas, pleura, prostate, soft_tissue, stomach, upper_aerodigestive_tract, urinary_tract, central_nervous_system | AB90: 10, 5, 15, 5, 5, 100, 5, 7, 5, 1 | AC90: rs1042522 | AD90: rs1042522 | AE90: NO | AF90: 0.659 | AG90: NO | AH90: YES | AI90: 0.155 | AJ90: Tolerated | AK90: 14 | AL90: 33.71 | AM90: 0 | AN90: 0 | AO90: 0 | AP90: NA | AQ90: 2 | AR90: 196 | AS90: 198 | AT90: 0.9898989899 | AU90: 1 | AV90: 106 | AW90: 106 | AX90: Polymorphism
A91: ESP6500, 1000G, dbSNP, ExAC, freq, many samples | B91: UPN_Tr2_087 | C91: 17 | D91: 7579472 | E91: G | F91: C | G91: TP53 | H91: ENST00000269305 | I91: missense_variant | J91: cCc/cGc|p.Pro72Arg/c.215C>G | K91: 201 | L91: 321 | M91: 523 | N91: 0.6137667304 | O91: 1 | P91: 1 | Q91: 0 | R91: 1 | S91: 1 | T91: 0 | U91: 1 | V91: 1 | W91: 6 | X91: 25.4767 | Y91: 0.7147 | Z91: COSM3766190, COSM3766191, COSM250061, COSM3766193, COSM3766192 | AA91: large_intestine, liver, pancreas, pleura, prostate, soft_tissue, stomach, upper_aerodigestive_tract, urinary_tract, central_nervous_system | AB91: 10, 5, 15, 5, 5, 100, 5, 7, 5, 1 | AC91: rs1042522 | AD91: rs1042522 | AE91: NO | AF91: 0.659 | AG91: NO | AH91: YES | AI91: 0.155 | AJ91: Tolerated | AK91: 34.78 | AL91: 33.2 | AM91: 0 | AN91: 0 | AO91: 0 | AP91: NA | AQ91: 201 | AR91: 321 | AS91: 523 | AT91: 0.6137667304 | AU91: 1 | AV91: 106 | AW91: 106 | AX91: Polymorphism
A92: ESP6500, 1000G, dbSNP, ExAC, freq, many samples | B92: UPN_Tr2_088 | C92: 17 | D92: 7579472 | E92: G | F92: C | G92: TP53 | H92: ENST00000269305 | I92: missense_variant | J92: cCc/cGc|p.Pro72Arg/c.215C>G | K92: 231 | L92: 179 | M92: 411 | N92: 0.4355231144 | O92: 1 | P92: 1 | Q92: 0 | R92: 1 | S92: 1 | T92: 0 | U92: 1 | V92: 1 | W92: 6 | X92: 25.4767 | Y92: 0.7147 | Z92: COSM3766190, COSM3766191, COSM250061, COSM3766193, COSM3766192 | AA92: large_intestine, liver, pancreas, pleura, prostate, soft_tissue, stomach, upper_aerodigestive_tract, urinary_tract, central_nervous_system | AB92: 10, 5, 15, 5, 5, 100, 5, 7, 5, 1 | AC92: rs1042522 | AD92: rs1042522 | AE92: NO | AF92: 0.659 | AG92: NO | AH92: YES | AI92: 0.155 | AJ92: Tolerated | AK92: 34.3 | AL92: 33.48 | AM92: 0 | AN92: 0 | AO92: 0 | AP92: NA | AQ92: 231 | AR92: 179 | AS92: 411 | AT92: 0.4355231144 | AU92: 1 | AV92: 106 | AW92: 106 | AX92: Polymorphism
A93: ESP6500, 1000G, dbSNP, ExAC, freq, many samples | B93: UPN_Tr2_094 | C93: 17 | D93: 7579472 | E93: G | F93: C | G93: TP53 | H93: ENST00000269305 | I93: missense_variant | J93: cCc/cGc|p.Pro72Arg/c.215C>G | K93: 867 | L93: 1349 | M93: 2222 | N93: 0.6071107111 | O93: 1 | P93: 1 | Q93: 0 | R93: 1 | S93: 1 | T93: 0 | U93: 1 | V93: 1 | W93: 6 | X93: 25.4767 | Y93: 0.7147 | Z93: COSM3766190, COSM3766191, COSM250061, COSM3766193, COSM3766192 | AA93: large_intestine, liver, pancreas, pleura, prostate, soft_tissue, stomach, upper_aerodigestive_tract, urinary_tract, central_nervous_system | AB93: 10, 5, 15, 5, 5, 100, 5, 7, 5, 1 | AC93: rs1042522 | AD93: rs1042522 | AE93: NO | AF93: 0.659 | AG93: NO | AH93: YES | AI93: 0.155 | AJ93: Tolerated | AK93: 34.7 | AL93: 33.77 | AM93: 0 | AN93: 0 | AO93: 0 | AP93: NA | AQ93: 867 | AR93: 1349 | AS93: 2222 | AT93: 0.6071107111 | AU93: 1 | AV93: 106 | AW93: 106 | AX93: Polymorphism
A94: ESP6500, 1000G, dbSNP, ExAC, freq, many samples | B94: UPN_Tr2_095 | C94: 17 | D94: 7579472 | E94: G | F94: C | G94: TP53 | H94: ENST00000269305 | I94: missense_variant | J94: cCc/cGc|p.Pro72Arg/c.215C>G | K94: 27 | L94: 3146 | M94: 3179 | N94: 0.9896193772 | O94: 1 | P94: 1 | Q94: 0 | R94: 1 | S94: 1 | T94: 0 | U94: 1 | V94: 1 | W94: 6 | X94: 25.4767 | Y94: 0.7147 | Z94: COSM3766190, COSM3766191, COSM250061, COSM3766193, COSM3766192 | AA94: large_intestine, liver, pancreas, pleura, prostate, soft_tissue, stomach, upper_aerodigestive_tract, urinary_tract, central_nervous_system | AB94: 10, 5, 15, 5, 5, 100, 5, 7, 5, 1 | AC94: rs1042522 | AD94: rs1042522 | AE94: NO | AF94: 0.659 | AG94: NO | AH94: YES | AI94: 0.155 | AJ94: Tolerated | AK94: 29 | AL94: 33.87 | AM94: 0 | AN94: 0 | AO94: 0 | AP94: NA | AQ94: 27 | AR94: 3146 | AS94: 3179 | AT94: 0.9896193772 | AU94: 1 | AV94: 106 | AW94: 106 | AX94: Polymorphism
A95: ESP6500, 1000G, dbSNP, ExAC, freq, many samples | B95: UPN_Tr2_096 | C95: 17 | D95: 7579472 | E95: G | F95: C | G95: TP53 | H95: ENST00000269305 | I95: missense_variant | J95: cCc/cGc|p.Pro72Arg/c.215C>G | K95: 19 | L95: 2363 | M95: 2391 | N95: 0.9882894187 | O95: 1 | P95: 1 | Q95: 0 | R95: 1 | S95: 1 | T95: 0 | U95: 1 | V95: 1 | W95: 6 | X95: 25.4767 | Y95: 0.7147 | Z95: COSM3766190, COSM3766191, COSM250061, COSM3766193, COSM3766192 | AA95: large_intestine, liver, pancreas, pleura, prostate, soft_tissue, stomach, upper_aerodigestive_tract, urinary_tract, central_nervous_system | AB95: 10, 5, 15, 5, 5, 100, 5, 7, 5, 1 | AC95: rs1042522 | AD95: rs1042522 | AE95: NO | AF95: 0.659 | AG95: NO | AH95: YES | AI95: 0.155 | AJ95: Tolerated | AK95: 22.84 | AL95: 33.92 | AM95: 0 | AN95: 0 | AO95: 0 | AP95: NA | AQ95: 19 | AR95: 2363 | AS95: 2391 | AT95: 0.9882894187 | AU95: 1 | AV95: 106 | AW95: 106 | AX95: Polymorphism
A96: ESP6500, 1000G, dbSNP, ExAC, freq, many samples | B96: UPN_Tr2_097 | C96: 17 | D96: 7579472 | E96: G | F96: C | G96: TP53 | H96: ENST00000269305 | I96: missense_variant | J96: cCc/cGc|p.Pro72Arg/c.215C>G | K96: 204 | L96: 2448 | M96: 2657 | N96: 0.921339857 | O96: 1 | P96: 1 | Q96: 0 | R96: 1 | S96: 1 | T96: 0 | U96: 1 | V96: 1 | W96: 6 | X96: 25.4767 | Y96: 0.7147 | Z96: COSM3766190, COSM3766191, COSM250061, COSM3766193, COSM3766192 | AA96: large_intestine, liver, pancreas, pleura, prostate, soft_tissue, stomach, upper_aerodigestive_tract, urinary_tract, central_nervous_system | AB96: 10, 5, 15, 5, 5, 100, 5, 7, 5, 1 | AC96: rs1042522 | AD96: rs1042522 | AE96: NO | AF96: 0.659 | AG96: NO | AH96: YES | AI96: 0.155 | AJ96: Tolerated | AK96: 34.43 | AL96: 33.68 | AM96: 0 | AN96: 0 | AO96: 0 | AP96: NA | AQ96: 204 | AR96: 2448 | AS96: 2657 | AT96: 0.921339857 | AU96: 1 | AV96: 106 | AW96: 106 | AX96: Polymorphism
A97: ESP6500, 1000G, dbSNP, ExAC, freq, many samples | B97: UPN_Tr2_098 | C97: 17 | D97: 7579472 | E97: G | F97: C | G97: TP53 | H97: ENST00000269305 | I97: missense_variant | J97: cCc/cGc|p.Pro72Arg/c.215C>G | K97: 13 | L97: 2510 | M97: 2529 | N97: 0.9924871491 | O97: 1 | P97: 1 | Q97: 0 | R97: 1 | S97: 1 | T97: 0 | U97: 1 | V97: 1 | W97: 6 | X97: 25.4767 | Y97: 0.7147 | Z97: COSM3766190, COSM3766191, COSM250061, COSM3766193, COSM3766192 | AA97: large_intestine, liver, pancreas, pleura, prostate, soft_tissue, stomach, upper_aerodigestive_tract, urinary_tract, central_nervous_system | AB97: 10, 5, 15, 5, 5, 100, 5, 7, 5, 1 | AC97: rs1042522 | AD97: rs1042522 | AE97: NO | AF97: 0.659 | AG97: NO | AH97: YES | AI97: 0.155 | AJ97: Tolerated | AK97: 23 | AL97: 33.61 | AM97: 0 | AN97: 0 | AO97: 0 | AP97: NA | AQ97: 13 | AR97: 2510 | AS97: 2529 | AT97: 0.9924871491 | AU97: 1 | AV97: 106 | AW97: 106 | AX97: Polymorphism
A98: ESP6500, 1000G, dbSNP, ExAC, freq, many samples | B98: UPN_Tr2_099 | C98: 17 | D98: 7579472 | E98: G | F98: C | G98: TP53 | H98: ENST00000269305 | I98: missense_variant | J98: cCc/cGc|p.Pro72Arg/c.215C>G | K98: 4 | L98: 1385 | M98: 1393 | N98: 0.9942569993 | O98: 1 | P98: 1 | Q98: 0 | R98: 1 | S98: 1 | T98: 0 | U98: 1 | V98: 1 | W98: 6 | X98: 25.4767 | Y98: 0.7147 | Z98: COSM3766190, COSM3766191, COSM250061, COSM3766193, COSM3766192 | AA98: large_intestine, liver, pancreas, pleura, prostate, soft_tissue, stomach, upper_aerodigestive_tract, urinary_tract, central_nervous_system | AB98: 10, 5, 15, 5, 5, 100, 5, 7, 5, 1 | AC98: rs1042522 | AD98: rs1042522 | AE98: NO | AF98: 0.659 | AG98: NO | AH98: YES | AI98: 0.155 | AJ98: Tolerated | AK98: 28.25 | AL98: 33.77 | AM98: 0 | AN98: 0 | AO98: 0 | AP98: NA | AQ98: 4 | AR98: 1385 | AS98: 1393 | AT98: 0.9942569993 | AU98: 1 | AV98: 106 | AW98: 106 | AX98: Polymorphism
A99: ESP6500, 1000G, dbSNP, ExAC, freq, many samples | B99: UPN_Tr2_100 | C99: 17 | D99: 7579472 | E99: G | F99: C | G99: TP53 | H99: ENST00000269305 | I99: missense_variant | J99: cCc/cGc|p.Pro72Arg/c.215C>G | K99: 1235 | L99: 1468 | M99: 2708 | N99: 0.5420974889 | O99: 1 | P99: 1 | Q99: 0 | R99: 1 | S99: 1 | T99: 0 | U99: 1 | V99: 1 | W99: 6 | X99: 25.4767 | Y99: 0.7147 | Z99: COSM3766190, COSM3766191, COSM250061, COSM3766193, COSM3766192 | AA99: large_intestine, liver, pancreas, pleura, prostate, soft_tissue, stomach, upper_aerodigestive_tract, urinary_tract, central_nervous_system | AB99: 10, 5, 15, 5, 5, 100, 5, 7, 5, 1 | AC99: rs1042522 | AD99: rs1042522 | AE99: NO | AF99: 0.659 | AG99: NO | AH99: YES | AI99: 0.155 | AJ99: Tolerated | AK99: 34.74 | AL99: 33.93 | AM99: 0 | AN99: 0 | AO99: 0 | AP99: NA | AQ99: 1235 | AR99: 1468 | AS99: 2708 | AT99: 0.5420974889 | AU99: 1 | AV99: 106 | AW99: 106 | AX99: Polymorphism
A100: ESP6500, 1000G, dbSNP, ExAC, freq, many samples | B100: UPN_Tr2_101 | C100: 17 | D100: 7579472 | E100: G | F100: C | G100: TP53 | H100: ENST00000269305 | I100: missense_variant | J100: cCc/cGc|p.Pro72Arg/c.215C>G | K100: 1026 | L100: 1338 | M100: 2370 | N100: 0.564556962 | O100: 1 | P100: 1 | Q100: 0 | R100: 1 | S100: 1 | T100: 0 | U100: 1 | V100: 1 | W100: 6 | X100: 25.4767 | Y100: 0.7147 | Z100: COSM3766190, COSM3766191, COSM250061, COSM3766193, COSM3766192 | AA100: large_intestine, liver, pancreas, pleura, prostate, soft_tissue, stomach, upper_aerodigestive_tract, urinary_tract, central_nervous_system | AB100: 10, 5, 15, 5, 5, 100, 5, 7, 5, 1 | AC100: rs1042522 | AD100: rs1042522 | AE100: NO | AF100: 0.659 | AG100: NO | AH100: YES | AI100: 0.155 | AJ100: Tolerated | AK100: 34.74 | AL100: 33.94 | AM100: 0 | AN100: 0 | AO100: 0 | AP100: NA | AQ100: 1026 | AR100: 1338 | AS100: 2370 | AT100: 0.564556962 | AU100: 1 | AV100: 106 | AW100: 106 | AX100: Polymorphism
A101: ESP6500, 1000G, dbSNP, ExAC, freq, many samples | B101: UPN_Tr2_102 | C101: 17 | D101: 7579472 | E101: G | F101: C | G101: TP53 | H101: ENST00000269305 | I101: missense_variant | J101: cCc/cGc|p.Pro72Arg/c.215C>G | K101: 14 | L101: 2554 | M101: 2575 | N101: 0.9918446602 | O101: 1 | P101: 1 | Q101: 0 | R101: 1 | S101: 1 | T101: 0 | U101: 1 | V101: 1 | W101: 6 | X101: 25.4767 | Y101: 0.7147 | Z101: COSM3766190, COSM3766191, COSM250061, COSM3766193, COSM3766192 | AA101: large_intestine, liver, pancreas, pleura, prostate, soft_tissue, stomach, upper_aerodigestive_tract, urinary_tract, central_nervous_system | AB101: 10, 5, 15, 5, 5, 100, 5, 7, 5, 1 | AC101: rs1042522 | AD101: rs1042522 | AE101: NO | AF101: 0.659 | AG101: NO | AH101: YES | AI101: 0.155 | AJ101: Tolerated | AK101: 22.07 | AL101: 33.67 | AM101: 0 | AN101: 0 | AO101: 0 | AP101: NA | AQ101: 14 | AR101: 2554 | AS101: 2575 | AT101: 0.9918446602 | AU101: 1 | AV101: 106 | AW101: 106 | AX101: Polymorphism
A102: ESP6500, 1000G, dbSNP, ExAC, freq, many samples | B102: UPN_Tr2_103 | C102: 17 | D102: 7579472 | E102: G | F102: C | G102: TP53 | H102: ENST00000269305 | I102: missense_variant | J102: cCc/cGc|p.Pro72Arg/c.215C>G | K102: 20 | L102: 3026 | M102: 3051 | N102: 0.9918059653 | O102: 1 | P102: 1 | Q102: 0 | R102: 1 | S102: 1 | T102: 0 | U102: 1 | V102: 1 | W102: 6 | X102: 25.4767 | Y102: 0.7147 | Z102: COSM3766190, COSM3766191, COSM250061, COSM3766193, COSM3766192 | AA102: large_intestine, liver, pancreas, pleura, prostate, soft_tissue, stomach, upper_aerodigestive_tract, urinary_tract, central_nervous_system | AB102: 10, 5, 15, 5, 5, 100, 5, 7, 5, 1 | AC102: rs1042522 | AD102: rs1042522 | AE102: NO | AF102: 0.659 | AG102: NO | AH102: YES | AI102: 0.155 | AJ102: Tolerated | AK102: 20.4 | AL102: 33.9 | AM102: 0 | AN102: 0 | AO102: 0 | AP102: NA | AQ102: 20 | AR102: 3026 | AS102: 3051 | AT102: 0.9918059653 | AU102: 1 | AV102: 106 | AW102: 106 | AX102: Polymorphism
A103: ESP6500, 1000G, dbSNP, ExAC, freq, many samples | B103: UPN_Tr2_104 | C103: 17 | D103: 7579472 | E103: G | F103: C | G103: TP53 | H103: ENST00000269305 | I103: missense_variant | J103: cCc/cGc|p.Pro72Arg/c.215C>G | K103: 8 | L103: 2716 | M103: 2729 | N103: 0.9952363503 | O103: 1 | P103: 1 | Q103: 0 | R103: 1 | S103: 1 | T103: 0 | U103: 1 | V103: 1 | W103: 6 | X103: 25.4767 | Y103: 0.7147 | Z103: COSM3766190, COSM3766191, COSM250061, COSM3766193, COSM3766192 | AA103: large_intestine, liver, pancreas, pleura, prostate, soft_tissue, stomach, upper_aerodigestive_tract, urinary_tract, central_nervous_system | AB103: 10, 5, 15, 5, 5, 100, 5, 7, 5, 1 | AC103: rs1042522 | AD103: rs1042522 | AE103: NO | AF103: 0.659 | AG103: NO | AH103: YES | AI103: 0.155 | AJ103: Tolerated | AK103: 22.25 | AL103: 33.83 | AM103: 0 | AN103: 0 | AO103: 0 | AP103: NA | AQ103: 8 | AR103: 2716 | AS103: 2729 | AT103: 0.9952363503 | AU103: 1 | AV103: 106 | AW103: 106 | AX103: Polymorphism
A104: ESP6500, 1000G, dbSNP, ExAC, freq, many samples | B104: UPN_Tr2_105 | C104: 17 | D104: 7579472 | E104: G | F104: C | G104: TP53 | H104: ENST00000269305 | I104: missense_variant | J104: cCc/cGc|p.Pro72Arg/c.215C>G | K104: 59 | L104: 2066 | M104: 2129 | N104: 0.9704086426 | O104: 1 | P104: 1 | Q104: 0 | R104: 1 | S104: 1 | T104: 0 | U104: 1 | V104: 1 | W104: 6 | X104: 25.4767 | Y104: 0.7147 | Z104: COSM3766190, COSM3766191, COSM250061, COSM3766193, COSM3766192 | AA104: large_intestine, liver, pancreas, pleura, prostate, soft_tissue, stomach, upper_aerodigestive_tract, urinary_tract, central_nervous_system | AB104: 10, 5, 15, 5, 5, 100, 5, 7, 5, 1 | AC104: rs1042522 | AD104: rs1042522 | AE104: NO | AF104: 0.659 | AG104: NO | AH104: YES | AI104: 0.155 | AJ104: Tolerated | AK104: 33.08 | AL104: 33.77 | AM104: 0 | AN104: 0 | AO104: 0 | AP104: NA | AQ104: 59 | AR104: 2066 | AS104: 2129 | AT104: 0.9704086426 | AU104: 1 | AV104: 106 | AW104: 106 | AX104: Polymorphism
A105: ESP6500, 1000G, dbSNP, ExAC, freq, many samples | B105: UPN_Tr2_106 | C105: 17 | D105: 7579472 | E105: G | F105: C | G105: TP53 | H105: ENST00000269305 | I105: missense_variant | J105: cCc/cGc|p.Pro72Arg/c.215C>G | K105: 1280 | L105: 1580 | M105: 2867 | N105: 0.5510987095 | O105: 1 | P105: 1 | Q105: 0 | R105: 1 | S105: 1 | T105: 0 | U105: 1 | V105: 1 | W105: 6 | X105: 25.4767 | Y105: 0.7147 | Z105: COSM3766190, COSM3766191, COSM250061, COSM3766193, COSM3766192 | AA105: large_intestine, liver, pancreas, pleura, prostate, soft_tissue, stomach, upper_aerodigestive_tract, urinary_tract, central_nervous_system | AB105: 10, 5, 15, 5, 5, 100, 5, 7, 5, 1 | AC105: rs1042522 | AD105: rs1042522 | AE105: NO | AF105: 0.659 | AG105: NO | AH105: YES | AI105: 0.155 | AJ105: Tolerated | AK105: 34.78 | AL105: 33.63 | AM105: 0 | AN105: 0 | AO105: 0 | AP105: NA | AQ105: 1280 | AR105: 1580 | AS105: 2867 | AT105: 0.5510987095 | AU105: 1 | AV105: 106 | AW105: 106 | AX105: Polymorphism
A106: ESP6500, 1000G, dbSNP, ExAC, freq, many samples | B106: UPN_Tr2_107 | C106: 17 | D106: 7579472 | E106: G | F106: C | G106: TP53 | H106: ENST00000269305 | I106: missense_variant | J106: cCc/cGc|p.Pro72Arg/c.215C>G | K106: 1457 | L106: 1854 | M106: 3318 | N106: 0.5587703436 | O106: 1 | P106: 1 | Q106: 0 | R106: 1 | S106: 1 | T106: 0 | U106: 1 | V106: 1 | W106: 6 | X106: 25.4767 | Y106: 0.7147 | Z106: COSM3766190, COSM3766191, COSM250061, COSM3766193, COSM3766192 | AA106: large_intestine, liver, pancreas, pleura, prostate, soft_tissue, stomach, upper_aerodigestive_tract, urinary_tract, central_nervous_system | AB106: 10, 5, 15, 5, 5, 100, 5, 7, 5, 1 | AC106: rs1042522 | AD106: rs1042522 | AE106: NO | AF106: 0.659 | AG106: NO | AH106: YES | AI106: 0.155 | AJ106: Tolerated | AK106: 34.65 | AL106: 33.88 | AM106: 0 | AN106: 0 | AO106: 0 | AP106: NA | AQ106: 1457 | AR106: 1854 | AS106: 3318 | AT106: 0.5587703436 | AU106: 1 | AV106: 106 | AW106: 106 | AX106: Polymorphism
A107: ESP6500, 1000G, dbSNP, ExAC, freq, many samples | B107: UPN_Tr2_108 | C107: 17 | D107: 7579472 | E107: G | F107: C | G107: TP53 | H107: ENST00000269305 | I107: missense_variant | J107: cCc/cGc|p.Pro72Arg/c.215C>G | K107: 24 | L107: 4411 | M107: 4442 | N107: 0.9930211616 | O107: 1 | P107: 1 | Q107: 0 | R107: 1 | S107: 1 | T107: 0 | U107: 1 | V107: 1 | W107: 6 | X107: 25.4767 | Y107: 0.7147 | Z107: COSM3766190, COSM3766191, COSM250061, COSM3766193, COSM3766192 | AA107: large_intestine, liver, pancreas, pleura, prostate, soft_tissue, stomach, upper_aerodigestive_tract, urinary_tract, central_nervous_system | AB107: 10, 5, 15, 5, 5, 100, 5, 7, 5, 1 | AC107: rs1042522 | AD107: rs1042522 | AE107: NO | AF107: 0.659 | AG107: NO | AH107: YES | AI107: 0.155 | AJ107: Tolerated | AK107: 25 | AL107: 33.83 | AM107: 0 | AN107: 0 | AO107: 0 | AP107: NA | AQ107: 24 | AR107: 4411 | AS107: 4442 | AT107: 0.9930211616 | AU107: 1 | AV107: 106 | AW107: 106 | AX107: Polymorphism
A108: ESP6500, 1000G, dbSNP, ExAC, freq, many samples | B108: UPN_Tr2_109 | C108: 17 | D108: 7579472 | E108: G | F108: C | G108: TP53 | H108: ENST00000269305 | I108: missense_variant | J108: cCc/cGc|p.Pro72Arg/c.215C>G | K108: 20 | L108: 3774 | M108: 3799 | N108: 0.9934193209 | O108: 1 | P108: 1 | Q108: 0 | R108: 1 | S108: 1 | T108: 0 | U108: 1 | V108: 1 | W108: 6 | X108: 25.4767 | Y108: 0.7147 | Z108: COSM3766190, COSM3766191, COSM250061, COSM3766193, COSM3766192 | AA108: large_intestine, liver, pancreas, pleura, prostate, soft_tissue, stomach, upper_aerodigestive_tract, urinary_tract, central_nervous_system | AB108: 10, 5, 15, 5, 5, 100, 5, 7, 5, 1 | AC108: rs1042522 | AD108: rs1042522 | AE108: NO | AF108: 0.659 | AG108: NO | AH108: YES | AI108: 0.155 | AJ108: Tolerated | AK108: 22.6 | AL108: 33.91 | AM108: 0 | AN108: 0 | AO108: 0 | AP108: NA | AQ108: 20 | AR108: 3774 | AS108: 3799 | AT108: 0.9934193209 | AU108: 1 | AV108: 106 | AW108: 106 | AX108: Polymorphism
A109: ESP6500, 1000G, dbSNP, ExAC, freq, many samples | B109: UPN_Tr2_110 | C109: 17 | D109: 7579472 | E109: G | F109: C | G109: TP53 | H109: ENST00000269305 | I109: missense_variant | J109: cCc/cGc|p.Pro72Arg/c.215C>G | K109: 1336 | L109: 1576 | M109: 2920 | N109: 0.5397260274 | O109: 1 | P109: 1 | Q109: 0 | R109: 1 | S109: 1 | T109: 0 | U109: 1 | V109: 1 | W109: 6 | X109: 25.4767 | Y109: 0.7147 | Z109: COSM3766190, COSM3766191, COSM250061, COSM3766193, COSM3766192 | AA109: large_intestine, liver, pancreas, pleura, prostate, soft_tissue, stomach, upper_aerodigestive_tract, urinary_tract, central_nervous_system | AB109: 10, 5, 15, 5, 5, 100, 5, 7, 5, 1 | AC109: rs1042522 | AD109: rs1042522 | AE109: NO | AF109: 0.659 | AG109: NO | AH109: YES | AI109: 0.155 | AJ109: Tolerated | AK109: 34.49 | AL109: 33.89 | AM109: 1 | AN109: 0 | AO109: 1 | AP109: 0 | AQ109: 1335 | AR109: 1576 | AS109: 2919 | AT109: 0.5399109284 | AU109: 0.4587912088 | AV109: 106 | AW109: 106 | AX109: Polymorphism
A110: ESP6500, 1000G, dbSNP, ExAC, freq, many samples | B110: UPN_Tr2_111 | C110: 17 | D110: 7579472 | E110: G | F110: C | G110: TP53 | H110: ENST00000269305 | I110: missense_variant | J110: cCc/cGc|p.Pro72Arg/c.215C>G | K110: 1307 | L110: 1669 | M110: 2981 | N110: 0.5598792352 | O110: 1 | P110: 1 | Q110: 0 | R110: 1 | S110: 1 | T110: 0 | U110: 1 | V110: 1 | W110: 6 | X110: 25.4767 | Y110: 0.7147 | Z110: COSM3766190, COSM3766191, COSM250061, COSM3766193, COSM3766192 | AA110: large_intestine, liver, pancreas, pleura, prostate, soft_tissue, stomach, upper_aerodigestive_tract, urinary_tract, central_nervous_system | AB110: 10, 5, 15, 5, 5, 100, 5, 7, 5, 1 | AC110: rs1042522 | AD110: rs1042522 | AE110: NO | AF110: 0.659 | AG110: NO | AH110: YES | AI110: 0.155 | AJ110: Tolerated | AK110: 34.76 | AL110: 33.89 | AM110: 0 | AN110: 0 | AO110: 0 | AP110: NA | AQ110: 1307 | AR110: 1669 | AS110: 2981 | AT110: 0.5598792352 | AU110: 1 | AV110: 106 | AW110: 106 | AX110: Polymorphism
A111: freq, neutrtal effect | B111: UPN_Tr2_103 | C111: 17 | D111: 7579575 | E111: G | F111: C | G111: TP53 | H111: ENST00000269305 | I111: missense_variant | J111: Caa/Gaa|p.Gln38Glu/c.112C>G | K111: 3541 | L111: 3458 | M111: 7029 | N111: 0.4919618722 | O111: 1 | P111: 1 | Q111: 0 | R111: 1 | S111: 1 | T111: 0 | U111: 1 | V111: 1 | W111: 6 | X111: NO | Y111: NO | Z111: NO | AA111: NA | AB111: NA | AC111: NO | AD111: NO | AE111: NO | AF111: NO | AG111: NO | AH111: NO | AI111: 0.115 | AJ111: Tolerated | AK111: 33.71 | AL111: 34.36 | AM111: 3541 | AN111: 3458 | AO111: 7029 | AP111: 0.4919618722 | AQ111: 0 | AR111: 0 | AS111: 0 | AT111: NA | AU111: 1 | AV111: 3 | AW111: 3 | AX111: Polymorphism
A112: freq, inframe, 2 samples | B112: UPN_Tr2_015 | C112: 19 | D112: 33792731 | E112: G | F112: GGCGGGT | G112: CEBPA | H112: ENST00000498907 | I112: inframe_insertion | J112: ccg/cACCCGCcg|p.His195_Pro196dup/c.584_589dupACCCGC | K112: 410 | L112: 168 | M112: 410 | N112: 0.4097560976 | O112: 1 | P112: 1 | Q112: 1 | R112: 1 | S112: 1 | T112: 1 | U112: 0 | V112: 1 | W112: 7 | X112: NO | Y112: NO | Z112: NO | AA112: NA | AB112: NA | AC112: NO | AD112: NO | AE112: NO | AF112: NO | AG112: NO | AH112: NO | AI112: -0.291 | AJ112: Tolerated | AK112: 33.24 | AL112: NA | AM112: 209 | AN112: 95 | AO112: 209 | AP112: 0.4545454545 | AQ112: 201 | AR112: 73 | AS112: 201 | AT112: 0.3631840796 | AU112: 0.2340766831 | AV112: 2 | AW112: 2 | AX112: Polymorphism
A113: freq, inframe, 2 samples | B113: UPN_Tr2_040 | C113: 19 | D113: 33792731 | E113: G | F113: GGCGGGT | G113: CEBPA | H113: ENST00000498907 | I113: inframe_insertion | J113: ccg/cACCCGCcg|p.His195_Pro196dup/c.584_589dupACCCGC | K113: 121 | L113: 78 | M113: 121 | N113: 0.6446280992 | O113: 1 | P113: 1 | Q113: 1 | R113: 1 | S113: 1 | T113: 1 | U113: 1 | V113: 1 | W113: 8 | X113: NO | Y113: NO | Z113: NO | AA113: NA | AB113: NA | AC113: NO | AD113: NO | AE113: NO | AF113: NO | AG113: NO | AH113: NO | AI113: -0.291 | AJ113: Tolerated | AK113: 32.26 | AL113: NA | AM113: 64 | AN113: 44 | AO113: 64 | AP113: 0.6875 | AQ113: 57 | AR113: 34 | AS113: 57 | AT113: 0.5964912281 | AU113: 0.6636402699 | AV113: 2 | AW113: 2 | AX113: Polymorphism
A114: ESP6500, 1000G, ExAC, freq | B114: UPN_Tr2_023 | C114: 2 | D114: 25523096 | E114: T | F114: G | G114: DNMT3A | H114: ENST00000264709 | I114: missense_variant | J114: gAg/gCg|p.Glu30Ala/c.89A>C | K114: 2915 | L114: 2652 | M114: 5580 | N114: 0.4752688172 | O114: 1 | P114: 1 | Q114: 1 | R114: 1 | S114: 1 | T114: 1 | U114: 1 | V114: 1 | W114: 8 | X114: 0.2093 | Y114: 0.007 | Z114: COSM307361 | AA114: haematopoietic_and_lymphoid_tissue | AB114: 1 | AC114: NO | AD114: rs143730975 | AE114: NO | AF114: 0.002916 | AG114: NO | AH114: YES | AI114: -0.129 | AJ114: Tolerated | AK114: 33.28 | AL114: 33.23 | AM114: 1468 | AN114: 1340 | AO114: 2816 | AP114: 0.4758522727 | AQ114: 1447 | AR114: 1312 | AS114: 2764 | AT114: 0.4746743849 | AU114: 0.9145202508 | AV114: 1 | AW114: 1 | AX114: Polymorphism
A115: 2nd Illumina, 1000G, dbSNP, ExAC, freq, many samples | B115: UPN_Tr2_001 | C115: 20 | D115: 31022959 | E115: T | F115: C | G115: ASXL1 | H115: ENST00000375687 | I115: missense_variant | J115: cTg/cCg|p.Leu815Pro/c.2444T>C | K115: 34 | L115: 8420 | M115: 8476 | N115: 0.99339311 | O115: 1 | P115: 1 | Q115: 1 | R115: 1 | S115: 1 | T115: 1 | U115: 1 | V115: 1 | W115: 8 | X115: 0 | Y115: 1 | Z115: NO | AA115: NO | AB115: O | AC115: rs6058694 | AD115: rs6058694 | AE115: NO | AF115: 1 | AG115: NO | AH115: NO | AI115: 1.033 | AJ115: Tolerated | AK115: 34.71 | AL115: 34.47 | AM115: 34 | AN115: 8402 | AO115: 8458 | AP115: 0.9933790494 | AQ115: 0 | AR115: 18 | AS115: 18 | AT115: 1 | AU115: 1 | AV115: 111 | AW115: 111 | AX115: Polymorphism
A116: 1000G, dbSNP, ExAC, freq, many samples | B116: UPN_Tr2_014 | C116: 20 | D116: 31022959 | E116: T | F116: C | G116: ASXL1 | H116: ENST00000375687 | I116: missense_variant | J116: cTg/cCg|p.Leu815Pro/c.2444T>C | K116: 31 | L116: 13591 | M116: 13643 | N116: 0.9961885216 | O116: 1 | P116: 1 | Q116: 1 | R116: 1 | S116: 1 | T116: 1 | U116: 1 | V116: 1 | W116: 8 | X116: 0 | Y116: 1 | Z116: NO | AA116: NO | AB116: O | AC116: rs6058694 | AD116: rs6058694 | AE116: NO | AF116: 1 | AG116: NO | AH116: NO | AI116: 1.033 | AJ116: Tolerated | AK116: 33.87 | AL116: 34.65 | AM116: 31 | AN116: 13587 | AO116: 13639 | AP116: 0.9961874038 | AQ116: 0 | AR116: 4 | AS116: 4 | AT116: 1 | AU116: 1 | AV116: 111 | AW116: 111 | AX116: Polymorphism
A117: 1000G, dbSNP, ExAC, freq, many samples | B117: UPN_Tr2_015 | C117: 20 | D117: 31022959 | E117: T | F117: C | G117: ASXL1 | H117: ENST00000375687 | I117: missense_variant | J117: cTg/cCg|p.Leu815Pro/c.2444T>C | K117: 53 | L117: 17984 | M117: 18062 | N117: 0.9956815414 | O117: 1 | P117: 1 | Q117: 1 | R117: 1 | S117: 1 | T117: 1 | U117: 1 | V117: 1 | W117: 8 | X117: 0 | Y117: 1 | Z117: NO | AA117: NO | AB117: O | AC117: rs6058694 | AD117: rs6058694 | AE117: NO | AF117: 1 | AG117: NO | AH117: NO | AI117: 1.033 | AJ117: Tolerated | AK117: 35.49 | AL117: 34.75 | AM117: 53 | AN117: 17960 | AO117: 18038 | AP117: 0.9956757955 | AQ117: 0 | AR117: 24 | AS117: 24 | AT117: 1 | AU117: 1 | AV117: 111 | AW117: 111 | AX117: Polymorphism
A118: 1000G, dbSNP, ExAC, freq, many samples | B118: UPN_Tr2_016 | C118: 20 | D118: 31022959 | E118: T | F118: C | G118: ASXL1 | H118: ENST00000375687 | I118: missense_variant | J118: cTg/cCg|p.Leu815Pro/c.2444T>C | K118: 16 | L118: 9117 | M118: 9148 | N118: 0.9966112812 | O118: 1 | P118: 1 | Q118: 1 | R118: 1 | S118: 1 | T118: 1 | U118: 1 | V118: 1 | W118: 8 | X118: 0 | Y118: 1 | Z118: NO | AA118: NO | AB118: O | AC118: rs6058694 | AD118: rs6058694 | AE118: NO | AF118: 1 | AG118: NO | AH118: NO | AI118: 1.033 | AJ118: Tolerated | AK118: 34.12 | AL118: 34.66 | AM118: 16 | AN118: 9106 | AO118: 9137 | AP118: 0.9966072015 | AQ118: 0 | AR118: 11 | AS118: 11 | AT118: 1 | AU118: 1 | AV118: 111 | AW118: 111 | AX118: Polymorphism
A119: 1000G, dbSNP, ExAC, freq, many samples | B119: UPN_Tr2_017 | C119: 20 | D119: 31022959 | E119: T | F119: C | G119: ASXL1 | H119: ENST00000375687 | I119: missense_variant | J119: cTg/cCg|p.Leu815Pro/c.2444T>C | K119: 13 | L119: 6125 | M119: 6145 | N119: 0.9967453214 | O119: 1 | P119: 1 | Q119: 1 | R119: 1 | S119: 1 | T119: 1 | U119: 1 | V119: 1 | W119: 8 | X119: 0 | Y119: 1 | Z119: NO | AA119: NO | AB119: O | AC119: rs6058694 | AD119: rs6058694 | AE119: NO | AF119: 1 | AG119: NO | AH119: NO | AI119: 1.033 | AJ119: Tolerated | AK119: 36 | AL119: 34.76 | AM119: 13 | AN119: 6122 | AO119: 6142 | AP119: 0.9967437317 | AQ119: 0 | AR119: 3 | AS119: 3 | AT119: 1 | AU119: 1 | AV119: 111 | AW119: 111 | AX119: Polymorphism
A120: 1000G, dbSNP, ExAC, freq, many samples | B120: UPN_Tr2_018 | C120: 20 | D120: 31022959 | E120: T | F120: C | G120: ASXL1 | H120: ENST00000375687 | I120: missense_variant | J120: cTg/cCg|p.Leu815Pro/c.2444T>C | K120: 20 | L120: 9151 | M120: 9182 | N120: 0.9966238292 | O120: 1 | P120: 1 | Q120: 1 | R120: 1 | S120: 1 | T120: 1 | U120: 1 | V120: 1 | W120: 8 | X120: 0 | Y120: 1 | Z120: NO | AA120: NO | AB120: O | AC120: rs6058694 | AD120: rs6058694 | AE120: NO | AF120: 1 | AG120: NO | AH120: NO | AI120: 1.033 | AJ120: Tolerated | AK120: 34.6 | AL120: 34.72 | AM120: 20 | AN120: 9146 | AO120: 9177 | AP120: 0.9966219898 | AQ120: 0 | AR120: 5 | AS120: 5 | AT120: 1 | AU120: 1 | AV120: 111 | AW120: 111 | AX120: Polymorphism
A121: 1000G, dbSNP, ExAC, freq, many samples | B121: UPN_Tr2_019 | C121: 20 | D121: 31022959 | E121: T | F121: C | G121: ASXL1 | H121: ENST00000375687 | I121: missense_variant | J121: cTg/cCg|p.Leu815Pro/c.2444T>C | K121: 20 | L121: 10062 | M121: 10094 | N121: 0.9968297999 | O121: 1 | P121: 1 | Q121: 1 | R121: 1 | S121: 1 | T121: 1 | U121: 1 | V121: 1 | W121: 8 | X121: 0 | Y121: 1 | Z121: NO | AA121: NO | AB121: O | AC121: rs6058694 | AD121: rs6058694 | AE121: NO | AF121: 1 | AG121: NO | AH121: NO | AI121: 1.033 | AJ121: Tolerated | AK121: 36 | AL121: 34.72 | AM121: 20 | AN121: 10055 | AO121: 10087 | AP121: 0.9968275999 | AQ121: 0 | AR121: 7 | AS121: 7 | AT121: 1 | AU121: 1 | AV121: 111 | AW121: 111 | AX121: Polymorphism
A122: 1000G, dbSNP, ExAC, freq, many samples | B122: UPN_Tr2_020 | C122: 20 | D122: 31022959 | E122: T | F122: C | G122: ASXL1 | H122: ENST00000375687 | I122: missense_variant | J122: cTg/cCg|p.Leu815Pro/c.2444T>C | K122: 18 | L122: 8869 | M122: 8897 | N122: 0.9968528718 | O122: 1 | P122: 1 | Q122: 1 | R122: 1 | S122: 1 | T122: 1 | U122: 1 | V122: 1 | W122: 8 | X122: 0 | Y122: 1 | Z122: NO | AA122: NO | AB122: O | AC122: rs6058694 | AD122: rs6058694 | AE122: NO | AF122: 1 | AG122: NO | AH122: NO | AI122: 1.033 | AJ122: Tolerated | AK122: 36 | AL122: 34.73 | AM122: 18 | AN122: 8864 | AO122: 8892 | AP122: 0.9968511021 | AQ122: 0 | AR122: 5 | AS122: 5 | AT122: 1 | AU122: 1 | AV122: 111 | AW122: 111 | AX122: Polymorphism
A123: 1000G, dbSNP, ExAC, freq, many samples | B123: UPN_Tr2_021 | C123: 20 | D123: 31022959 | E123: T | F123: C | G123: ASXL1 | H123: ENST00000375687 | I123: missense_variant | J123: cTg/cCg|p.Leu815Pro/c.2444T>C | K123: 24 | L123: 10394 | M123: 10440 | N123: 0.9955938697 | O123: 1 | P123: 1 | Q123: 1 | R123: 1 | S123: 1 | T123: 1 | U123: 1 | V123: 1 | W123: 8 | X123: 0 | Y123: 1 | Z123: NO | AA123: NO | AB123: O | AC123: rs6058694 | AD123: rs6058694 | AE123: NO | AF123: 1 | AG123: NO | AH123: NO | AI123: 1.033 | AJ123: Tolerated | AK123: 35.08 | AL123: 34.75 | AM123: 24 | AN123: 10388 | AO123: 10434 | AP123: 0.995591336 | AQ123: 0 | AR123: 6 | AS123: 6 | AT123: 1 | AU123: 1 | AV123: 111 | AW123: 111 | AX123: Polymorphism
A124: 1000G, dbSNP, ExAC, freq, many samples | B124: UPN_Tr2_002 | C124: 20 | D124: 31022959 | E124: T | F124: C | G124: ASXL1 | H124: ENST00000375687 | I124: missense_variant | J124: cTg/cCg|p.Leu815Pro/c.2444T>C | K124: 34 | L124: 10925 | M124: 10989 | N124: 0.9941759942 | O124: 1 | P124: 1 | Q124: 1 | R124: 1 | S124: 1 | T124: 0 | U124: 1 | V124: 1 | W124: 7 | X124: 0 | Y124: 1 | Z124: NO | AA124: NO | AB124: O | AC124: rs6058694 | AD124: rs6058694 | AE124: NO | AF124: 1 | AG124: NO | AH124: NO | AI124: 1.033 | AJ124: Tolerated | AK124: 35.35 | AL124: 34.57 | AM124: 34 | AN124: 10925 | AO124: 10989 | AP124: 0.9941759942 | AQ124: 0 | AR124: 0 | AS124: 0 | AT124: NA | AU124: 1 | AV124: 111 | AW124: 111 | AX124: Polymorphism
A125: 1000G, dbSNP, ExAC, freq, many samples | B125: UPN_Tr2_003 | C125: 20 | D125: 31022959 | E125: T | F125: C | G125: ASXL1 | H125: ENST00000375687 | I125: missense_variant | J125: cTg/cCg|p.Leu815Pro/c.2444T>C | K125: 4 | L125: 2096 | M125: 2106 | N125: 0.9952516619 | O125: 1 | P125: 1 | Q125: 1 | R125: 1 | S125: 1 | T125: 1 | U125: 1 | V125: 1 | W125: 8 | X125: 0 | Y125: 1 | Z125: NO | AA125: NO | AB125: O | AC125: rs6058694 | AD125: rs6058694 | AE125: NO | AF125: 1 | AG125: NO | AH125: NO | AI125: 1.033 | AJ125: Tolerated | AK125: 36 | AL125: 34.44 | AM125: 4 | AN125: 2095 | AO125: 2105 | AP125: 0.9952494062 | AQ125: 0 | AR125: 1 | AS125: 1 | AT125: 1 | AU125: 1 | AV125: 111 | AW125: 111 | AX125: Polymorphism
A126: 1000G, dbSNP, ExAC, freq, many samples | B126: UPN_Tr2_022 | C126: 20 | D126: 31022959 | E126: T | F126: C | G126: ASXL1 | H126: ENST00000375687 | I126: missense_variant | J126: cTg/cCg|p.Leu815Pro/c.2444T>C | K126: 30 | L126: 13618 | M126: 13662 | N126: 0.9967793881 | O126: 1 | P126: 1 | Q126: 1 | R126: 1 | S126: 1 | T126: 1 | U126: 1 | V126: 1 | W126: 8 | X126: 0 | Y126: 1 | Z126: NO | AA126: NO | AB126: O | AC126: rs6058694 | AD126: rs6058694 | AE126: NO | AF126: 1 | AG126: NO | AH126: NO | AI126: 1.033 | AJ126: Tolerated | AK126: 34.13 | AL126: 34.63 | AM126: 30 | AN126: 13613 | AO126: 13657 | AP126: 0.996778209 | AQ126: 0 | AR126: 5 | AS126: 5 | AT126: 1 | AU126: 1 | AV126: 111 | AW126: 111 | AX126: Polymorphism
A127: 1000G, dbSNP, ExAC, freq, many samples | B127: UPN_Tr2_023 | C127: 20 | D127: 31022959 | E127: T | F127: C | G127: ASXL1 | H127: ENST00000375687 | I127: missense_variant | J127: cTg/cCg|p.Leu815Pro/c.2444T>C | K127: 23 | L127: 14957 | M127: 14998 | N127: 0.9972663022 | O127: 1 | P127: 1 | Q127: 1 | R127: 1 | S127: 1 | T127: 1 | U127: 1 | V127: 1 | W127: 8 | X127: 0 | Y127: 1 | Z127: NO | AA127: NO | AB127: O | AC127: rs6058694 | AD127: rs6058694 | AE127: NO | AF127: 1 | AG127: NO | AH127: NO | AI127: 1.033 | AJ127: Tolerated | AK127: 35.65 | AL127: 34.58 | AM127: 23 | AN127: 14949 | AO127: 14990 | AP127: 0.9972648432 | AQ127: 0 | AR127: 8 | AS127: 8 | AT127: 1 | AU127: 1 | AV127: 111 | AW127: 111 | AX127: Polymorphism
A128: 1000G, dbSNP, ExAC, freq, many samples | B128: UPN_Tr2_041 | C128: 20 | D128: 31022959 | E128: T | F128: C | G128: ASXL1 | H128: ENST00000375687 | I128: missense_variant | J128: cTg/cCg|p.Leu815Pro/c.2444T>C | K128: 0 | L128: 480 | M128: 481 | N128: 0.9979209979 | O128: 1 | P128: 1 | Q128: 0 | R128: 0 | S128: 1 | T128: 0 | U128: 1 | V128: 1 | W128: 5 | X128: 0 | Y128: 1 | Z128: NO | AA128: NO | AB128: O | AC128: rs6058694 | AD128: rs6058694 | AE128: NO | AF128: 1 | AG128: NO | AH128: NO | AI128: 1.033 | AJ128: Tolerated | AK128: 0 | AL128: 34.39 | AM128: 0 | AN128: 480 | AO128: 481 | AP128: 0.9979209979 | AQ128: 0 | AR128: 0 | AS128: 0 | AT128: NA | AU128: 1 | AV128: 111 | AW128: 111 | AX128: Polymorphism
A129: 1000G, dbSNP, ExAC, freq, many samples | B129: UPN_Tr2_024 | C129: 20 | D129: 31022959 | E129: T | F129: C | G129: ASXL1 | H129: ENST00000375687 | I129: missense_variant | J129: cTg/cCg|p.Leu815Pro/c.2444T>C | K129: 16 | L129: 6813 | M129: 6836 | N129: 0.9966354593 | O129: 1 | P129: 1 | Q129: 1 | R129: 1 | S129: 1 | T129: 0 | U129: 1 | V129: 1 | W129: 7 | X129: 0 | Y129: 1 | Z129: NO | AA129: NO | AB129: O | AC129: rs6058694 | AD129: rs6058694 | AE129: NO | AF129: 1 | AG129: NO | AH129: NO | AI129: 1.033 | AJ129: Tolerated | AK129: 36 | AL129: 34.76 | AM129: 16 | AN129: 6813 | AO129: 6836 | AP129: 0.9966354593 | AQ129: 0 | AR129: 0 | AS129: 0 | AT129: NA | AU129: 1 | AV129: 111 | AW129: 111 | AX129: Polymorphism
A130: 1000G, dbSNP, ExAC, freq, many samples | B130: UPN_Tr2_025 | C130: 20 | D130: 31022959 | E130: T | F130: C | G130: ASXL1 | H130: ENST00000375687 | I130: missense_variant | J130: cTg/cCg|p.Leu815Pro/c.2444T>C | K130: 33 | L130: 16256 | M130: 16309 | N130: 0.9967502606 | O130: 1 | P130: 1 | Q130: 1 | R130: 1 | S130: 1 | T130: 1 | U130: 1 | V130: 1 | W130: 8 | X130: 0 | Y130: 1 | Z130: NO | AA130: NO | AB130: O | AC130: rs6058694 | AD130: rs6058694 | AE130: NO | AF130: 1 | AG130: NO | AH130: NO | AI130: 1.033 | AJ130: Tolerated | AK130: 35.09 | AL130: 34.64 | AM130: 33 | AN130: 16243 | AO130: 16296 | AP130: 0.9967476681 | AQ130: 0 | AR130: 13 | AS130: 13 | AT130: 1 | AU130: 1 | AV130: 111 | AW130: 111 | AX130: Polymorphism
A131: 1000G, dbSNP, ExAC, freq, many samples | B131: UPN_Tr2_026 | C131: 20 | D131: 31022959 | E131: T | F131: C | G131: ASXL1 | H131: ENST00000375687 | I131: missense_variant | J131: cTg/cCg|p.Leu815Pro/c.2444T>C | K131: 36 | L131: 15980 | M131: 16041 | N131: 0.9961972446 | O131: 1 | P131: 1 | Q131: 1 | R131: 1 | S131: 1 | T131: 1 | U131: 1 | V131: 1 | W131: 8 | X131: 0 | Y131: 1 | Z131: NO | AA131: NO | AB131: O | AC131: rs6058694 | AD131: rs6058694 | AE131: NO | AF131: 1 | AG131: NO | AH131: NO | AI131: 1.033 | AJ131: Tolerated | AK131: 34.25 | AL131: 34.7 | AM131: 36 | AN131: 15969 | AO131: 16029 | AP131: 0.9962567846 | AQ131: 0 | AR131: 11 | AS131: 12 | AT131: 0.9166666667 | AU131: 1 | AV131: 111 | AW131: 111 | AX131: Polymorphism
A132: 2nd Illumina, 1000G, dbSNP, ExAC, freq, many samples | B132: UPN_Tr2_004 | C132: 20 | D132: 31022959 | E132: T | F132: C | G132: ASXL1 | H132: ENST00000375687 | I132: missense_variant | J132: cTg/cCg|p.Leu815Pro/c.2444T>C | K132: 3 | L132: 1856 | M132: 1865 | N132: 0.9951742627 | O132: 1 | P132: 1 | Q132: 1 | R132: 1 | S132: 1 | T132: 0 | U132: 1 | V132: 1 | W132: 7 | X132: 0 | Y132: 1 | Z132: NO | AA132: NO | AB132: O | AC132: rs6058694 | AD132: rs6058694 | AE132: NO | AF132: 1 | AG132: NO | AH132: NO | AI132: 1.033 | AJ132: Tolerated | AK132: 36 | AL132: 34.51 | AM132: 3 | AN132: 1856 | AO132: 1865 | AP132: 0.9951742627 | AQ132: 0 | AR132: 0 | AS132: 0 | AT132: NA | AU132: 1 | AV132: 111 | AW132: 111 | AX132: Polymorphism
A133: 1000G, dbSNP, ExAC, freq, many samples | B133: UPN_Tr2_027 | C133: 20 | D133: 31022959 | E133: T | F133: C | G133: ASXL1 | H133: ENST00000375687 | I133: missense_variant | J133: cTg/cCg|p.Leu815Pro/c.2444T>C | K133: 18 | L133: 17106 | M133: 17139 | N133: 0.9980745668 | O133: 1 | P133: 1 | Q133: 1 | R133: 1 | S133: 1 | T133: 1 | U133: 1 | V133: 1 | W133: 8 | X133: 0 | Y133: 1 | Z133: NO | AA133: NO | AB133: O | AC133: rs6058694 | AD133: rs6058694 | AE133: NO | AF133: 1 | AG133: NO | AH133: NO | AI133: 1.033 | AJ133: Tolerated | AK133: 35.56 | AL133: 34.71 | AM133: 18 | AN133: 17095 | AO133: 17128 | AP133: 0.9980733302 | AQ133: 0 | AR133: 11 | AS133: 11 | AT133: 1 | AU133: 1 | AV133: 111 | AW133: 111 | AX133: Polymorphism
A134: 1000G, dbSNP, ExAC, freq, many samples | B134: UPN_Tr2_089 | C134: 20 | D134: 31022959 | E134: T | F134: C | G134: ASXL1 | H134: ENST00000375687 | I134: missense_variant | J134: cTg/cCg|p.Leu815Pro/c.2444T>C | K134: 20 | L134: 10678 | M134: 10724 | N134: 0.9957105558 | O134: 1 | P134: 1 | Q134: 0 | R134: 1 | S134: 1 | T134: 1 | U134: 1 | V134: 1 | W134: 7 | X134: 0 | Y134: 1 | Z134: NO | AA134: NO | AB134: O | AC134: rs6058694 | AD134: rs6058694 | AE134: NO | AF134: 1 | AG134: NO | AH134: NO | AI134: 1.033 | AJ134: Tolerated | AK134: 35.8 | AL134: 34.67 | AM134: 20 | AN134: 10668 | AO134: 10714 | AP134: 0.9957065522 | AQ134: 0 | AR134: 10 | AS134: 10 | AT134: 1 | AU134: 1 | AV134: 111 | AW134: 111 | AX134: Polymorphism
A135: 1000G, dbSNP, ExAC, freq, many samples | B135: UPN_Tr2_042 | C135: 20 | D135: 31022959 | E135: T | F135: C | G135: ASXL1 | H135: ENST00000375687 | I135: missense_variant | J135: cTg/cCg|p.Leu815Pro/c.2444T>C | K135: 47 | L135: 17232 | M135: 17323 | N135: 0.9947468683 | O135: 1 | P135: 1 | Q135: 1 | R135: 1 | S135: 1 | T135: 0 | U135: 1 | V135: 1 | W135: 7 | X135: 0 | Y135: 1 | Z135: NO | AA135: NO | AB135: O | AC135: rs6058694 | AD135: rs6058694 | AE135: NO | AF135: 1 | AG135: NO | AH135: NO | AI135: 1.033 | AJ135: Tolerated | AK135: 33.94 | AL135: 34.32 | AM135: 47 | AN135: 17232 | AO135: 17323 | AP135: 0.9947468683 | AQ135: 0 | AR135: 0 | AS135: 0 | AT135: NA | AU135: 1 | AV135: 111 | AW135: 111 | AX135: Polymorphism
A136: 1000G, dbSNP, ExAC, freq, many samples | B136: UPN_Tr2_028 | C136: 20 | D136: 31022959 | E136: T | F136: C | G136: ASXL1 | H136: ENST00000375687 | I136: missense_variant | J136: cTg/cCg|p.Leu815Pro/c.2444T>C | K136: 23 | L136: 12137 | M136: 12179 | N136: 0.996551441 | O136: 1 | P136: 1 | Q136: 1 | R136: 1 | S136: 1 | T136: 1 | U136: 1 | V136: 1 | W136: 8 | X136: 0 | Y136: 1 | Z136: NO | AA136: NO | AB136: O | AC136: rs6058694 | AD136: rs6058694 | AE136: NO | AF136: 1 | AG136: NO | AH136: NO | AI136: 1.033 | AJ136: Tolerated | AK136: 34.91 | AL136: 34.7 | AM136: 23 | AN136: 12126 | AO136: 12168 | AP136: 0.9965483235 | AQ136: 0 | AR136: 11 | AS136: 11 | AT136: 1 | AU136: 1 | AV136: 111 | AW136: 111 | AX136: Polymorphism
A137: 1000G, dbSNP, ExAC, freq, many samples | B137: UPN_Tr2_043 | C137: 20 | D137: 31022959 | E137: T | F137: C | G137: ASXL1 | H137: ENST00000375687 | I137: missense_variant | J137: cTg/cCg|p.Leu815Pro/c.2444T>C | K137: 44 | L137: 14969 | M137: 15044 | N137: 0.9950146238 | O137: 1 | P137: 1 | Q137: 1 | R137: 1 | S137: 1 | T137: 1 | U137: 1 | V137: 1 | W137: 8 | X137: 0 | Y137: 1 | Z137: NO | AA137: NO | AB137: O | AC137: rs6058694 | AD137: rs6058694 | AE137: NO | AF137: 1 | AG137: NO | AH137: NO | AI137: 1.033 | AJ137: Tolerated | AK137: 34.11 | AL137: 34.36 | AM137: 44 | AN137: 14948 | AO137: 15023 | AP137: 0.9950076549 | AQ137: 0 | AR137: 21 | AS137: 21 | AT137: 1 | AU137: 1 | AV137: 111 | AW137: 111 | AX137: Polymorphism
A138: 1000G, dbSNP, ExAC, freq, many samples | B138: UPN_Tr2_044 | C138: 20 | D138: 31022959 | E138: T | F138: C | G138: ASXL1 | H138: ENST00000375687 | I138: missense_variant | J138: cTg/cCg|p.Leu815Pro/c.2444T>C | K138: 7 | L138: 3808 | M138: 3817 | N138: 0.9976421273 | O138: 1 | P138: 1 | Q138: 1 | R138: 1 | S138: 1 | T138: 0 | U138: 1 | V138: 1 | W138: 7 | X138: 0 | Y138: 1 | Z138: NO | AA138: NO | AB138: O | AC138: rs6058694 | AD138: rs6058694 | AE138: NO | AF138: 1 | AG138: NO | AH138: NO | AI138: 1.033 | AJ138: Tolerated | AK138: 36 | AL138: 34.34 | AM138: 7 | AN138: 3808 | AO138: 3817 | AP138: 0.9976421273 | AQ138: 0 | AR138: 0 | AS138: 0 | AT138: NA | AU138: 1 | AV138: 111 | AW138: 111 | AX138: Polymorphism
A139: 1000G, dbSNP, ExAC, freq, many samples | B139: UPN_Tr2_029 | C139: 20 | D139: 31022959 | E139: T | F139: C | G139: ASXL1 | H139: ENST00000375687 | I139: missense_variant | J139: cTg/cCg|p.Leu815Pro/c.2444T>C | K139: 25 | L139: 14660 | M139: 14699 | N139: 0.9973467583 | O139: 1 | P139: 1 | Q139: 1 | R139: 1 | S139: 1 | T139: 0 | U139: 1 | V139: 1 | W139: 7 | X139: 0 | Y139: 1 | Z139: NO | AA139: NO | AB139: O | AC139: rs6058694 | AD139: rs6058694 | AE139: NO | AF139: 1 | AG139: NO | AH139: NO | AI139: 1.033 | AJ139: Tolerated | AK139: 34.8 | AL139: 34.66 | AM139: 25 | AN139: 14660 | AO139: 14699 | AP139: 0.9973467583 | AQ139: 0 | AR139: 0 | AS139: 0 | AT139: NA | AU139: 1 | AV139: 111 | AW139: 111 | AX139: Polymorphism
A140: 1000G, dbSNP, ExAC, freq, many samples | B140: UPN_Tr2_030 | C140: 20 | D140: 31022959 | E140: T | F140: C | G140: ASXL1 | H140: ENST00000375687 | I140: missense_variant | J140: cTg/cCg|p.Leu815Pro/c.2444T>C | K140: 22 | L140: 14516 | M140: 14561 | N140: 0.9969095529 | O140: 1 | P140: 1 | Q140: 1 | R140: 1 | S140: 1 | T140: 1 | U140: 1 | V140: 1 | W140: 8 | X140: 0 | Y140: 1 | Z140: NO | AA140: NO | AB140: O | AC140: rs6058694 | AD140: rs6058694 | AE140: NO | AF140: 1 | AG140: NO | AH140: NO | AI140: 1.033 | AJ140: Tolerated | AK140: 33.41 | AL140: 34.72 | AM140: 22 | AN140: 14510 | AO140: 14555 | AP140: 0.9969082789 | AQ140: 0 | AR140: 6 | AS140: 6 | AT140: 1 | AU140: 1 | AV140: 111 | AW140: 111 | AX140: Polymorphism
A141: 1000G, dbSNP, ExAC, freq, many samples | B141: UPN_Tr2_031 | C141: 20 | D141: 31022959 | E141: T | F141: C | G141: ASXL1 | H141: ENST00000375687 | I141: missense_variant | J141: cTg/cCg|p.Leu815Pro/c.2444T>C | K141: 23 | L141: 9615 | M141: 9652 | N141: 0.9961665976 | O141: 1 | P141: 1 | Q141: 1 | R141: 1 | S141: 1 | T141: 1 | U141: 1 | V141: 1 | W141: 8 | X141: 0 | Y141: 1 | Z141: NO | AA141: NO | AB141: O | AC141: rs6058694 | AD141: rs6058694 | AE141: NO | AF141: 1 | AG141: NO | AH141: NO | AI141: 1.033 | AJ141: Tolerated | AK141: 35.83 | AL141: 34.66 | AM141: 23 | AN141: 9609 | AO141: 9646 | AP141: 0.9961642131 | AQ141: 0 | AR141: 6 | AS141: 6 | AT141: 1 | AU141: 1 | AV141: 111 | AW141: 111 | AX141: Polymorphism
A142: 1000G, dbSNP, ExAC, freq, many samples | B142: UPN_Tr2_005 | C142: 20 | D142: 31022959 | E142: T | F142: C | G142: ASXL1 | H142: ENST00000375687 | I142: missense_variant | J142: cTg/cCg|p.Leu815Pro/c.2444T>C | K142: 7 | L142: 3643 | M142: 3662 | N142: 0.9948115784 | O142: 1 | P142: 1 | Q142: 1 | R142: 1 | S142: 1 | T142: 1 | U142: 1 | V142: 1 | W142: 8 | X142: 0 | Y142: 1 | Z142: NO | AA142: NO | AB142: O | AC142: rs6058694 | AD142: rs6058694 | AE142: NO | AF142: 1 | AG142: NO | AH142: NO | AI142: 1.033 | AJ142: Tolerated | AK142: 35.43 | AL142: 34.54 | AM142: 7 | AN142: 3642 | AO142: 3661 | AP142: 0.9948101612 | AQ142: 0 | AR142: 1 | AS142: 1 | AT142: 1 | AU142: 1 | AV142: 111 | AW142: 111 | AX142: Polymorphism
A143: 1000G, dbSNP, ExAC, freq, many samples | B143: UPN_Tr2_045 | C143: 20 | D143: 31022959 | E143: T | F143: C | G143: ASXL1 | H143: ENST00000375687 | I143: missense_variant | J143: cTg/cCg|p.Leu815Pro/c.2444T>C | K143: 80 | L143: 20981 | M143: 21114 | N143: 0.993700862 | O143: 1 | P143: 1 | Q143: 1 | R143: 1 | S143: 1 | T143: 1 | U143: 1 | V143: 1 | W143: 8 | X143: 0 | Y143: 1 | Z143: NO | AA143: NO | AB143: O | AC143: rs6058694 | AD143: rs6058694 | AE143: NO | AF143: 1 | AG143: NO | AH143: NO | AI143: 1.033 | AJ143: Tolerated | AK143: 35.69 | AL143: 34.34 | AM143: 80 | AN143: 20965 | AO143: 21098 | AP143: 0.9936960849 | AQ143: 0 | AR143: 16 | AS143: 16 | AT143: 1 | AU143: 1 | AV143: 111 | AW143: 111 | AX143: Polymorphism
A144: 1000G, dbSNP, ExAC, freq, many samples | B144: UPN_Tr2_032 | C144: 20 | D144: 31022959 | E144: T | F144: C | G144: ASXL1 | H144: ENST00000375687 | I144: missense_variant | J144: cTg/cCg|p.Leu815Pro/c.2444T>C | K144: 8 | L144: 5174 | M144: 5187 | N144: 0.9974937343 | O144: 1 | P144: 1 | Q144: 1 | R144: 1 | S144: 1 | T144: 0 | U144: 1 | V144: 1 | W144: 7 | X144: 0 | Y144: 1 | Z144: NO | AA144: NO | AB144: O | AC144: rs6058694 | AD144: rs6058694 | AE144: NO | AF144: 1 | AG144: NO | AH144: NO | AI144: 1.033 | AJ144: Tolerated | AK144: 33.25 | AL144: 34.62 | AM144: 8 | AN144: 5174 | AO144: 5187 | AP144: 0.9974937343 | AQ144: 0 | AR144: 0 | AS144: 0 | AT144: NA | AU144: 1 | AV144: 111 | AW144: 111 | AX144: Polymorphism
A145: 1000G, dbSNP, ExAC, freq, many samples | B145: UPN_Tr2_046 | C145: 20 | D145: 31022959 | E145: T | F145: C | G145: ASXL1 | H145: ENST00000375687 | I145: missense_variant | J145: cTg/cCg|p.Leu815Pro/c.2444T>C | K145: 60 | L145: 19708 | M145: 19812 | N145: 0.9947506562 | O145: 1 | P145: 1 | Q145: 1 | R145: 1 | S145: 1 | T145: 1 | U145: 1 | V145: 1 | W145: 8 | X145: 0 | Y145: 1 | Z145: NO | AA145: NO | AB145: O | AC145: rs6058694 | AD145: rs6058694 | AE145: NO | AF145: 1 | AG145: NO | AH145: NO | AI145: 1.033 | AJ145: Tolerated | AK145: 34.4 | AL145: 34.37 | AM145: 60 | AN145: 19706 | AO145: 19810 | AP145: 0.9947501262 | AQ145: 0 | AR145: 2 | AS145: 2 | AT145: 1 | AU145: 1 | AV145: 111 | AW145: 111 | AX145: Polymorphism
A146: 1000G, dbSNP, ExAC, freq, many samples | B146: UPN_Tr2_033 | C146: 20 | D146: 31022959 | E146: T | F146: C | G146: ASXL1 | H146: ENST00000375687 | I146: missense_variant | J146: cTg/cCg|p.Leu815Pro/c.2444T>C | K146: 21 | L146: 11257 | M146: 11287 | N146: 0.997342075 | O146: 1 | P146: 1 | Q146: 1 | R146: 1 | S146: 1 | T146: 1 | U146: 1 | V146: 1 | W146: 8 | X146: 0 | Y146: 1 | Z146: NO | AA146: NO | AB146: O | AC146: rs6058694 | AD146: rs6058694 | AE146: NO | AF146: 1 | AG146: NO | AH146: NO | AI146: 1.033 | AJ146: Tolerated | AK146: 34.1 | AL146: 34.69 | AM146: 21 | AN146: 11250 | AO146: 11280 | AP146: 0.9973404255 | AQ146: 0 | AR146: 7 | AS146: 7 | AT146: 1 | AU146: 1 | AV146: 111 | AW146: 111 | AX146: Polymorphism
A147: 1000G, dbSNP, ExAC, freq, many samples | B147: UPN_Tr2_034 | C147: 20 | D147: 31022959 | E147: T | F147: C | G147: ASXL1 | H147: ENST00000375687 | I147: missense_variant | J147: cTg/cCg|p.Leu815Pro/c.2444T>C | K147: 9 | L147: 4352 | M147: 4368 | N147: 0.9963369963 | O147: 1 | P147: 1 | Q147: 1 | R147: 1 | S147: 1 | T147: 1 | U147: 1 | V147: 1 | W147: 8 | X147: 0 | Y147: 1 | Z147: NO | AA147: NO | AB147: O | AC147: rs6058694 | AD147: rs6058694 | AE147: NO | AF147: 1 | AG147: NO | AH147: NO | AI147: 1.033 | AJ147: Tolerated | AK147: 35.11 | AL147: 34.75 | AM147: 9 | AN147: 4350 | AO147: 4366 | AP147: 0.9963353184 | AQ147: 0 | AR147: 2 | AS147: 2 | AT147: 1 | AU147: 1 | AV147: 111 | AW147: 111 | AX147: Polymorphism
A148: 1000G, dbSNP, ExAC, freq, many samples | B148: UPN_Tr2_047 | C148: 20 | D148: 31022959 | E148: T | F148: C | G148: ASXL1 | H148: ENST00000375687 | I148: missense_variant | J148: cTg/cCg|p.Leu815Pro/c.2444T>C | K148: 102 | L148: 20562 | M148: 20716 | N148: 0.9925661325 | O148: 1 | P148: 1 | Q148: 1 | R148: 1 | S148: 1 | T148: 0 | U148: 1 | V148: 1 | W148: 7 | X148: 0 | Y148: 1 | Z148: NO | AA148: NO | AB148: O | AC148: rs6058694 | AD148: rs6058694 | AE148: NO | AF148: 1 | AG148: NO | AH148: NO | AI148: 1.033 | AJ148: Tolerated | AK148: 35.07 | AL148: 34.31 | AM148: 102 | AN148: 20562 | AO148: 20716 | AP148: 0.9925661325 | AQ148: 0 | AR148: 0 | AS148: 0 | AT148: NA | AU148: 1 | AV148: 111 | AW148: 111 | AX148: Polymorphism
A149: 1000G, dbSNP, ExAC, freq, many samples | B149: UPN_Tr2_048 | C149: 20 | D149: 31022959 | E149: T | F149: C | G149: ASXL1 | H149: ENST00000375687 | I149: missense_variant | J149: cTg/cCg|p.Leu815Pro/c.2444T>C | K149: 33 | L149: 2479 | M149: 2518 | N149: 0.9845115171 | O149: 1 | P149: 1 | Q149: 1 | R149: 1 | S149: 1 | T149: 1 | U149: 1 | V149: 1 | W149: 8 | X149: 0 | Y149: 1 | Z149: NO | AA149: NO | AB149: O | AC149: rs6058694 | AD149: rs6058694 | AE149: NO | AF149: 1 | AG149: NO | AH149: NO | AI149: 1.033 | AJ149: Tolerated | AK149: 35.52 | AL149: 34.42 | AM149: 33 | AN149: 2469 | AO149: 2508 | AP149: 0.9844497608 | AQ149: 0 | AR149: 10 | AS149: 10 | AT149: 1 | AU149: 1 | AV149: 111 | AW149: 111 | AX149: Polymorphism
A150: 1000G, dbSNP, ExAC, freq, many samples | B150: UPN_Tr2_035 | C150: 20 | D150: 31022959 | E150: T | F150: C | G150: ASXL1 | H150: ENST00000375687 | I150: missense_variant | J150: cTg/cCg|p.Leu815Pro/c.2444T>C | K150: 37 | L150: 12136 | M150: 12183 | N150: 0.9961421653 | O150: 1 | P150: 1 | Q150: 1 | R150: 1 | S150: 1 | T150: 1 | U150: 1 | V150: 1 | W150: 8 | X150: 0 | Y150: 1 | Z150: NO | AA150: NO | AB150: O | AC150: rs6058694 | AD150: rs6058694 | AE150: NO | AF150: 1 | AG150: NO | AH150: NO | AI150: 1.033 | AJ150: Tolerated | AK150: 33.62 | AL150: 34.62 | AM150: 37 | AN150: 12135 | AO150: 12182 | AP150: 0.9961418486 | AQ150: 0 | AR150: 1 | AS150: 1 | AT150: 1 | AU150: 1 | AV150: 111 | AW150: 111 | AX150: Polymorphism
A151: 1000G, dbSNP, ExAC, freq, many samples | B151: UPN_Tr2_036 | C151: 20 | D151: 31022959 | E151: T | F151: C | G151: ASXL1 | H151: ENST00000375687 | I151: missense_variant | J151: cTg/cCg|p.Leu815Pro/c.2444T>C | K151: 37 | L151: 12159 | M151: 12212 | N151: 0.9956600066 | O151: 1 | P151: 1 | Q151: 1 | R151: 1 | S151: 1 | T151: 1 | U151: 1 | V151: 1 | W151: 8 | X151: 0 | Y151: 1 | Z151: NO | AA151: NO | AB151: O | AC151: rs6058694 | AD151: rs6058694 | AE151: NO | AF151: 1 | AG151: NO | AH151: NO | AI151: 1.033 | AJ151: Tolerated | AK151: 35.05 | AL151: 34.63 | AM151: 37 | AN151: 12156 | AO151: 12209 | AP151: 0.9956589401 | AQ151: 0 | AR151: 3 | AS151: 3 | AT151: 1 | AU151: 1 | AV151: 111 | AW151: 111 | AX151: Polymorphism
A152: 2nd Illumina, 1000G, dbSNP, ExAC, freq, many samples | B152: UPN_Tr2_006 | C152: 20 | D152: 31022959 | E152: T | F152: C | G152: ASXL1 | H152: ENST00000375687 | I152: missense_variant | J152: cTg/cCg|p.Leu815Pro/c.2444T>C | K152: 8 | L152: 3752 | M152: 3765 | N152: 0.9965471448 | O152: 1 | P152: 1 | Q152: 1 | R152: 1 | S152: 1 | T152: 0 | U152: 1 | V152: 1 | W152: 7 | X152: 0 | Y152: 1 | Z152: NO | AA152: NO | AB152: O | AC152: rs6058694 | AD152: rs6058694 | AE152: NO | AF152: 1 | AG152: NO | AH152: NO | AI152: 1.033 | AJ152: Tolerated | AK152: 30.5 | AL152: 34.47 | AM152: 8 | AN152: 3752 | AO152: 3765 | AP152: 0.9965471448 | AQ152: 0 | AR152: 0 | AS152: 0 | AT152: NA | AU152: 1 | AV152: 111 | AW152: 111 | AX152: Polymorphism
A153: 1000G, dbSNP, ExAC, freq, many samples | B153: UPN_Tr2_049 | C153: 20 | D153: 31022959 | E153: T | F153: C | G153: ASXL1 | H153: ENST00000375687 | I153: missense_variant | J153: cTg/cCg|p.Leu815Pro/c.2444T>C | K153: 38 | L153: 9416 | M153: 9478 | N153: 0.9934585356 | O153: 1 | P153: 1 | Q153: 1 | R153: 1 | S153: 1 | T153: 1 | U153: 1 | V153: 1 | W153: 8 | X153: 0 | Y153: 1 | Z153: NO | AA153: NO | AB153: O | AC153: rs6058694 | AD153: rs6058694 | AE153: NO | AF153: 1 | AG153: NO | AH153: NO | AI153: 1.033 | AJ153: Tolerated | AK153: 34.97 | AL153: 34.26 | AM153: 38 | AN153: 9415 | AO153: 9477 | AP153: 0.9934578453 | AQ153: 0 | AR153: 1 | AS153: 1 | AT153: 1 | AU153: 1 | AV153: 111 | AW153: 111 | AX153: Polymorphism
A154: 1000G, dbSNP, ExAC, freq, many samples | B154: UPN_Tr2_050 | C154: 20 | D154: 31022959 | E154: T | F154: C | G154: ASXL1 | H154: ENST00000375687 | I154: missense_variant | J154: cTg/cCg|p.Leu815Pro/c.2444T>C | K154: 71 | L154: 19446 | M154: 19572 | N154: 0.9935622318 | O154: 1 | P154: 1 | Q154: 1 | R154: 1 | S154: 1 | T154: 0 | U154: 1 | V154: 1 | W154: 7 | X154: 0 | Y154: 1 | Z154: NO | AA154: NO | AB154: O | AC154: rs6058694 | AD154: rs6058694 | AE154: NO | AF154: 1 | AG154: NO | AH154: NO | AI154: 1.033 | AJ154: Tolerated | AK154: 35.13 | AL154: 34.28 | AM154: 71 | AN154: 19446 | AO154: 19572 | AP154: 0.9935622318 | AQ154: 0 | AR154: 0 | AS154: 0 | AT154: NA | AU154: 1 | AV154: 111 | AW154: 111 | AX154: Polymorphism
A155: 1000G, dbSNP, ExAC, freq, many samples | B155: UPN_Tr2_037 | C155: 20 | D155: 31022959 | E155: T | F155: C | G155: ASXL1 | H155: ENST00000375687 | I155: missense_variant | J155: cTg/cCg|p.Leu815Pro/c.2444T>C | K155: 43 | L155: 22519 | M155: 22589 | N155: 0.9969011466 | O155: 1 | P155: 1 | Q155: 1 | R155: 1 | S155: 1 | T155: 1 | U155: 1 | V155: 1 | W155: 8 | X155: 0 | Y155: 1 | Z155: NO | AA155: NO | AB155: O | AC155: rs6058694 | AD155: rs6058694 | AE155: NO | AF155: 1 | AG155: NO | AH155: NO | AI155: 1.033 | AJ155: Tolerated | AK155: 35.12 | AL155: 34.73 | AM155: 43 | AN155: 22493 | AO155: 22563 | AP155: 0.9968975757 | AQ155: 0 | AR155: 26 | AS155: 26 | AT155: 1 | AU155: 1 | AV155: 111 | AW155: 111 | AX155: Polymorphism
A156: 1000G, dbSNP, ExAC, freq, many samples | B156: UPN_Tr2_051 | C156: 20 | D156: 31022959 | E156: T | F156: C | G156: ASXL1 | H156: ENST00000375687 | I156: missense_variant | J156: cTg/cCg|p.Leu815Pro/c.2444T>C | K156: 75 | L156: 15144 | M156: 15257 | N156: 0.9925935636 | O156: 1 | P156: 1 | Q156: 1 | R156: 1 | S156: 1 | T156: 1 | U156: 1 | V156: 1 | W156: 8 | X156: 0 | Y156: 1 | Z156: NO | AA156: NO | AB156: O | AC156: rs6058694 | AD156: rs6058694 | AE156: NO | AF156: 1 | AG156: NO | AH156: NO | AI156: 1.033 | AJ156: Tolerated | AK156: 34.77 | AL156: 34.28 | AM156: 75 | AN156: 15139 | AO156: 15252 | AP156: 0.9925911356 | AQ156: 0 | AR156: 5 | AS156: 5 | AT156: 1 | AU156: 1 | AV156: 111 | AW156: 111 | AX156: Polymorphism
A157: 1000G, dbSNP, ExAC, freq, many samples | B157: UPN_Tr2_052 | C157: 20 | D157: 31022959 | E157: T | F157: C | G157: ASXL1 | H157: ENST00000375687 | I157: missense_variant | J157: cTg/cCg|p.Leu815Pro/c.2444T>C | K157: 54 | L157: 17195 | M157: 17286 | N157: 0.9947356242 | O157: 1 | P157: 1 | Q157: 1 | R157: 1 | S157: 1 | T157: 1 | U157: 1 | V157: 1 | W157: 8 | X157: 0 | Y157: 1 | Z157: NO | AA157: NO | AB157: O | AC157: rs6058694 | AD157: rs6058694 | AE157: NO | AF157: 1 | AG157: NO | AH157: NO | AI157: 1.033 | AJ157: Tolerated | AK157: 34.54 | AL157: 34.33 | AM157: 54 | AN157: 17193 | AO157: 17284 | AP157: 0.994735015 | AQ157: 0 | AR157: 2 | AS157: 2 | AT157: 1 | AU157: 1 | AV157: 111 | AW157: 111 | AX157: Polymorphism
A158: 1000G, dbSNP, ExAC, freq, many samples | B158: UPN_Tr2_038 | C158: 20 | D158: 31022959 | E158: T | F158: C | G158: ASXL1 | H158: ENST00000375687 | I158: missense_variant | J158: cTg/cCg|p.Leu815Pro/c.2444T>C | K158: 57 | L158: 24747 | M158: 24832 | N158: 0.9965769974 | O158: 1 | P158: 1 | Q158: 1 | R158: 1 | S158: 1 | T158: 1 | U158: 1 | V158: 1 | W158: 8 | X158: 0 | Y158: 1 | Z158: NO | AA158: NO | AB158: O | AC158: rs6058694 | AD158: rs6058694 | AE158: NO | AF158: 1 | AG158: NO | AH158: NO | AI158: 1.033 | AJ158: Tolerated | AK158: 33.86 | AL158: 34.69 | AM158: 57 | AN158: 24740 | AO158: 24825 | AP158: 0.9965760322 | AQ158: 0 | AR158: 7 | AS158: 7 | AT158: 1 | AU158: 1 | AV158: 111 | AW158: 111 | AX158: Polymorphism
A159: 1000G, dbSNP, ExAC, freq, many samples | B159: UPN_Tr2_039 | C159: 20 | D159: 31022959 | E159: T | F159: C | G159: ASXL1 | H159: ENST00000375687 | I159: missense_variant | J159: cTg/cCg|p.Leu815Pro/c.2444T>C | K159: 25 | L159: 11125 | M159: 11167 | N159: 0.9962389182 | O159: 1 | P159: 1 | Q159: 1 | R159: 1 | S159: 1 | T159: 0 | U159: 1 | V159: 1 | W159: 7 | X159: 0 | Y159: 1 | Z159: NO | AA159: NO | AB159: O | AC159: rs6058694 | AD159: rs6058694 | AE159: NO | AF159: 1 | AG159: NO | AH159: NO | AI159: 1.033 | AJ159: Tolerated | AK159: 34.08 | AL159: 34.7 | AM159: 25 | AN159: 11125 | AO159: 11167 | AP159: 0.9962389182 | AQ159: 0 | AR159: 0 | AS159: 0 | AT159: NA | AU159: 1 | AV159: 111 | AW159: 111 | AX159: Polymorphism
A160: 1000G, dbSNP, ExAC, freq, many samples | B160: UPN_Tr2_053 | C160: 20 | D160: 31022959 | E160: T | F160: C | G160: ASXL1 | H160: ENST00000375687 | I160: missense_variant | J160: cTg/cCg|p.Leu815Pro/c.2444T>C | K160: 66 | L160: 22307 | M160: 22427 | N160: 0.9946493066 | O160: 1 | P160: 1 | Q160: 1 | R160: 1 | S160: 1 | T160: 1 | U160: 1 | V160: 1 | W160: 8 | X160: 0 | Y160: 1 | Z160: NO | AA160: NO | AB160: O | AC160: rs6058694 | AD160: rs6058694 | AE160: NO | AF160: 1 | AG160: NO | AH160: NO | AI160: 1.033 | AJ160: Tolerated | AK160: 34.24 | AL160: 34.35 | AM160: 66 | AN160: 22305 | AO160: 22425 | AP160: 0.9946488294 | AQ160: 0 | AR160: 2 | AS160: 2 | AT160: 1 | AU160: 1 | AV160: 111 | AW160: 111 | AX160: Polymorphism
A161: 1000G, dbSNP, ExAC, freq, many samples | B161: UPN_Tr2_054 | C161: 20 | D161: 31022959 | E161: T | F161: C | G161: ASXL1 | H161: ENST00000375687 | I161: missense_variant | J161: cTg/cCg|p.Leu815Pro/c.2444T>C | K161: 38 | L161: 14161 | M161: 14230 | N161: 0.9951510892 | O161: 1 | P161: 1 | Q161: 1 | R161: 1 | S161: 1 | T161: 0 | U161: 1 | V161: 1 | W161: 7 | X161: 0 | Y161: 1 | Z161: NO | AA161: NO | AB161: O | AC161: rs6058694 | AD161: rs6058694 | AE161: NO | AF161: 1 | AG161: NO | AH161: NO | AI161: 1.033 | AJ161: Tolerated | AK161: 35.45 | AL161: 34.33 | AM161: 38 | AN161: 14161 | AO161: 14230 | AP161: 0.9951510892 | AQ161: 0 | AR161: 0 | AS161: 0 | AT161: NA | AU161: 1 | AV161: 111 | AW161: 111 | AX161: Polymorphism
A162: 1000G, dbSNP, ExAC, freq, many samples | B162: UPN_Tr2_007 | C162: 20 | D162: 31022959 | E162: T | F162: C | G162: ASXL1 | H162: ENST00000375687 | I162: missense_variant | J162: cTg/cCg|p.Leu815Pro/c.2444T>C | K162: 47 | L162: 24088 | M162: 24206 | N162: 0.9951251756 | O162: 1 | P162: 1 | Q162: 1 | R162: 1 | S162: 1 | T162: 0 | U162: 1 | V162: 1 | W162: 7 | X162: 0 | Y162: 1 | Z162: NO | AA162: NO | AB162: O | AC162: rs6058694 | AD162: rs6058694 | AE162: NO | AF162: 1 | AG162: NO | AH162: NO | AI162: 1.033 | AJ162: Tolerated | AK162: 34.6 | AL162: 34.4 | AM162: 47 | AN162: 24088 | AO162: 24206 | AP162: 0.9951251756 | AQ162: 0 | AR162: 0 | AS162: 0 | AT162: NA | AU162: 1 | AV162: 111 | AW162: 111 | AX162: Polymorphism
A163: 1000G, dbSNP, ExAC, freq, many samples | B163: UPN_Tr2_008 | C163: 20 | D163: 31022959 | E163: T | F163: C | G163: ASXL1 | H163: ENST00000375687 | I163: missense_variant | J163: cTg/cCg|p.Leu815Pro/c.2444T>C | K163: 66 | L163: 33299 | M163: 33451 | N163: 0.9954560402 | O163: 1 | P163: 1 | Q163: 1 | R163: 1 | S163: 1 | T163: 1 | U163: 1 | V163: 1 | W163: 8 | X163: 0 | Y163: 1 | Z163: NO | AA163: NO | AB163: O | AC163: rs6058694 | AD163: rs6058694 | AE163: NO | AF163: 1 | AG163: NO | AH163: NO | AI163: 1.033 | AJ163: Tolerated | AK163: 34.39 | AL163: 34.48 | AM163: 66 | AN163: 33253 | AO163: 33405 | AP163: 0.995449783 | AQ163: 0 | AR163: 46 | AS163: 46 | AT163: 1 | AU163: 1 | AV163: 111 | AW163: 111 | AX163: Polymorphism
A164: 1000G, dbSNP, ExAC, freq, many samples | B164: UPN_Tr2_009 | C164: 20 | D164: 31022959 | E164: T | F164: C | G164: ASXL1 | H164: ENST00000375687 | I164: missense_variant | J164: cTg/cCg|p.Leu815Pro/c.2444T>C | K164: 83 | L164: 28400 | M164: 28565 | N164: 0.9942237003 | O164: 1 | P164: 1 | Q164: 1 | R164: 1 | S164: 1 | T164: 1 | U164: 1 | V164: 1 | W164: 8 | X164: 0 | Y164: 1 | Z164: NO | AA164: NO | AB164: O | AC164: rs6058694 | AD164: rs6058694 | AE164: NO | AF164: 1 | AG164: NO | AH164: NO | AI164: 1.033 | AJ164: Tolerated | AK164: 34.89 | AL164: 34.4 | AM164: 83 | AN164: 28373 | AO164: 28538 | AP164: 0.9942182353 | AQ164: 0 | AR164: 27 | AS164: 27 | AT164: 1 | AU164: 1 | AV164: 111 | AW164: 111 | AX164: Polymorphism
A165: 1000G, dbSNP, ExAC, freq, many samples | B165: UPN_Tr2_010 | C165: 20 | D165: 31022959 | E165: T | F165: C | G165: ASXL1 | H165: ENST00000375687 | I165: missense_variant | J165: cTg/cCg|p.Leu815Pro/c.2444T>C | K165: 53 | L165: 18583 | M165: 18683 | N165: 0.9946475405 | O165: 1 | P165: 1 | Q165: 1 | R165: 1 | S165: 1 | T165: 1 | U165: 1 | V165: 1 | W165: 8 | X165: 0 | Y165: 1 | Z165: NO | AA165: NO | AB165: O | AC165: rs6058694 | AD165: rs6058694 | AE165: NO | AF165: 1 | AG165: NO | AH165: NO | AI165: 1.033 | AJ165: Tolerated | AK165: 34.92 | AL165: 34.41 | AM165: 53 | AN165: 18580 | AO165: 18680 | AP165: 0.9946466809 | AQ165: 0 | AR165: 3 | AS165: 3 | AT165: 1 | AU165: 1 | AV165: 111 | AW165: 111 | AX165: Polymorphism
A166: 1000G, dbSNP, ExAC, freq, many samples | B166: UPN_Tr2_011 | C166: 20 | D166: 31022959 | E166: T | F166: C | G166: ASXL1 | H166: ENST00000375687 | I166: missense_variant | J166: cTg/cCg|p.Leu815Pro/c.2444T>C | K166: 46 | L166: 21595 | M166: 21702 | N166: 0.9950695788 | O166: 1 | P166: 1 | Q166: 1 | R166: 1 | S166: 1 | T166: 1 | U166: 1 | V166: 1 | W166: 8 | X166: 0 | Y166: 1 | Z166: NO | AA166: NO | AB166: O | AC166: rs6058694 | AD166: rs6058694 | AE166: NO | AF166: 1 | AG166: NO | AH166: NO | AI166: 1.033 | AJ166: Tolerated | AK166: 33.83 | AL166: 34.41 | AM166: 46 | AN166: 21573 | AO166: 21680 | AP166: 0.9950645756 | AQ166: 0 | AR166: 22 | AS166: 22 | AT166: 1 | AU166: 1 | AV166: 111 | AW166: 111 | AX166: Polymorphism
